Workbook

Sheet Readme First
A3: 1 | B3: All lines in the Portfolio view are coded with a reference, such as "aa" or "f". This makes conference discussions and data requests much easier.
C4: Some reference letters were purposely omitted.
A5: 2 | B5: Some programs in the Portfolio and Sector Views, (Single Family Existing and Electronic Media Tools & Marketing, for instance) are comprised
B6: of sub-groupings.
C7: Those sub-groups are color-coded and indented. Their totals add up to the grouping above.
A8: 3 | B8: In all program detail pages, program names, order number, and fuel type are noted in both the horizontal and vertical margins, providing a quick reference
B9: for readers, no matter where they are in the worksheet.
A10: 4 | B10: Measure tables are calculated for 2020/21-specific values.
B11: Original 2019 (the 2019 values originally stated in the 2019 ACP) are hard-coded in the detail pages for reference.
A12: 5 | B12: PSE added new navigation buttons to the detail pages. Now, readers can navigate directly to a corresponding gas or electric detail page.
B13: (The exception, of course, are those programs that are gas-or electric-only, or retired [red tab] programs.)
A14: 6 | B14: Tabs colored red indicate a retired program or a program that is on hiatus
C15: Over the years, as programs are retired and new programs implemented, old sheets within this workbook are re-purposed. As a result, all tabs may not be
C16: program sequential order, according to Exhibit 1's Portfolio View.

Sheet Budget Category Descriptions
B1: Exhibit 1 Budget Category Definitions
B3: Cost Element | C3: Also referred to as a General Ledger account number, the cost element is the finest level of detail within PSE accounting systems. There are often many cost element numbers that "roll up" into a cost element segment. For instance, the overhead segment includes material OH, transportation OH, labor OH, etc. Employee/Office Expenses include travel, meals, lodging, parking, etc. Cost elements have a very specific connotation and are typically designed to meet a variety of accounting standards, such as FERC requirements. Therefore, in Exhibit 1, the term "cost element" is rarely used. The groupings that represent the budget allocations are most accurately listed in the below table.
B4: Order number(s) | C4: This is the main level of tracking expenditures and expenses in Energy Effiency. Per FERC rules, all conservation order numbers start with a "1823nnnn", where "n" is some number. Cost elements apply to all order numbers (for instance, all conservation programs that offer incentives will have at least a labor, incentive and overhead cost element within the order number.
B5: Labor | C5: Energy Efficiency program staff labor. Average FTE cost including management assessments. This Budget Category group includes assessments from Major Accounts management, Resource Planning, Corporate Communications management, IT specialists and some building maintenance allocations.
B6: Marketing Labor | C6: Also Energy Efficiency staff labor, associated specifically with Marketing functions. Marketing allocates staffing according to program needs.
B7: Overhead | C7: Overhead--costs associated with primarily employee labor; benefits, for instance.
B8: Micro-Overhead | C8: New for 2017, these expenditures are not incremental from 2016 budget amounts. Rather, this budget category reflects assessments (both labor and non-labor, such as office supplies, departmental meetings, group trainings, etc.) that were formerly calculated, aggregated, and then represented in the Labor category. A result of PSE accounting revisions implemented in 2017, this enhancement will provide a more direct view of expenditures that assess over a cost center, rather than directly to an order number. Annual Schedule 120 audits of assessed costs will become clearer.
B9: Marketing | C9: Service and materials associated with the cost of printing program brochures, marketing pieces, advertising, banners, etc. Also includes marketing conducted by vendors and contractors.
B10: Employee/Office Expense | C10: Costs associated with EE staff attending events, employee training, conferences, business meals, business parking, ferry & bridge tolls, mileage incurred on employee automobiles, office supplies, phones, subscriptions, software/hardware, etc.
B11: Outside Services | C11: Contractors and vendors, such as PECI, Ecos, CostCo, EFI, etc. Legal expenses, technical services (CMS design, PSE.com web portals, etc.). These costs do NOT include brochure development, marketing pieces, (which are classified under MARKETING). These costs do NOT include incentives paid to customers by contractors.
B12: Materials | C12: Primarily tools, trade show equipment, etc.
B13: Miscellaneous | C13: This category should seldomly be used, and only expenses that cannot be classified under one of the above categories.
B14: Direct Benefit to Customer | C14: All costs associated with rebates, grants, remuneration, value-added services. PSE cost element # 62510000; Consumer Incentive Payments, is classified by the Accounting department as Miscellaneous. However, it is one of the primarily elements of Energy Efficiency's Direct Benefit to Customer (DBtC).
B15: Revenue (Enter as a negative) | C15: Any amount that PSE is paid by a customer, partner, municipality or outside entity.

Sheet Global Figures Reference
A1: Global References
B3: Overhead Rates
D4: 2020 | E4: 2021
C5: Labor Overhead | D5: 0.651 | E5: 0.651
C6: Micro Overhead | D6: 0.222 | E6: 0.222
B8: Biennial Years
C9: First Year | D9: 2020
C10: Second Year | D10: 2021
B12: Messages
C13: Horizontal Table Reference | D13: This table summarizes the subtotals in the detail table below and is used to populate 2020-2021 Sector view tables (located at the front of this workbook).
C14: Horizontal Table Labels | D14: 2019 ACP (For comparison reference)
D15: 2020
D16: 2021

Sheet Savings Terminology
A1: PSE's formerly used terms | B1: Updated Terms (2018) | C1: Definition
A2: Total Biennial Potential | B2: CPA Pro-Rata Share | C2: Pro-rata share of the utilities IRP's Conservation Potential Assessment's 10-year potential or 2 year total (whichever is greater). Includes NEEA.
A3: Total Base Savings | B3: EIA Target | C3: [(CPA Pro-Rata Share) + (other programs/measures with confident savings that were omitted from CPA)]
A4: Decoupling Penalty Target | B4: Decoupling Threshold | C4: [EIA Target * 0.05]
A5: Total Portfolio Target | B5: Total Utility Conservation Goal/Achievement | C5: All savings programs funded by Conservation Riders [EIA Target + Decoupling Threshold]
A6: (Loosely) "Excluded" | B6: Excluded Programs | C6: Programs approved by the Commission to be excluded from a Penalty Threshold. For last three biennia, these included NEEA and Pilots with Uncertain Savings.
A7: Utility-Specific Savings | B7: Utility-Specific Conservation Goal/Achievement | C7: [Total Utility Conservation Goal/Achievement – (Excluded programs (for instance, NEEA, Pilots with uncertain savings, retail wheeling accounts, etc.) + adjustments)]
A8: EIA Penalty Target | B8: EIA Penalty Threshold | C8: [Utility-Specific Conservation - Decoupling Threshold]
A9: Excess Savings (1) | B9: Excess Savings (Dept of Commerce driven) | C9: (Referencing results) The difference of [Total Utility Conservation Achievement – Total Utility Conservation Goal]
A10: Excess Savings (2P) | B10: PSE Excess Savings for Penalty Thresholds (UTC Driven) | C10: (Referencing results) The difference of Total Utility-Specific Conservation Achievement - Goal.

Sheet Apr-2020-Blg'g 2-yr elec target
H2: * Updated for 2020 Revision *
H5: Puget Sound Energy 2020-2021 Electric Portfolio Savings
I8: November 1, 2019 Filing | L8: April 2020 Revision
G9: Index | H9: Description | I9: MWh | J9: aMW | K9: Comment | L9: MWh | M9: aMW | N9: Comment | P9: Calculation
H11: Colored cells correspond to indicated lines in Exhibit 1: Savings and Budgets, 2-Year Portfolio View.
H12: Calculate the EIA Target | N12: These are specific elements that comprise the Portfolio View of Exhibit 1.
G13: a | H13: CPA Pro-Rata Share IRP & CPA Guidance | I13: 359861 | J13: =I13/8760 -> 41.08002283 | K13: IRP guidance (no behavior savings) | L13: =I13+I22 -> 434197 | M13: =L13/8760 -> 49.56586758 | N13: for April 2020 revision, PSE moved total of "Additional Portfolio Build-out" in November, 2019 filing to CPA Pro-Rata Share value. | P13: Figure 3, Exhibit i
G14: b | H14: EIA Target | I14: =SUM(I13) -> 359861 | J14: =I14/8760 -> 41.08002283 | L14: =SUM(L13) -> 434197 | M14: =L14/8760 -> 49.56586758 | N14: Updated EIA Target is in range of potential savings values that incorporate social cost of carbon. | P14: line bg of Exhibit 1 Portfolio View
H15: Calculate the Penalty Thresholds
G16: c | H16: Subtract NEEA Savings | I16: =-'Portfolio--2020-2021'!G41 -> -23564.4 | J16: =I16/8760 -> -2.69 | L16: =I16 -> -23564.4 | M16: =L16/8760 -> -2.69 | N16: ("Option A" in savings calculation table from NEEA forecast--current method) | P16: line ac of Exhibit 1 Portfolio View
G17: d | H17: EIA Penalty Threshold | I17: =I14+I16 -> 336296.6 | J17: =I17/8760 -> 38.39002283 | K17: EIA Target + Decoupling Commitment. $50/MWh of shortfall. | L17: =L14+L16 -> 410632.6 | M17: =L17/8760 -> 46.87586758 | N17: Updated Thresholds, calculated on revised EIA Target. $61 - 64/MWh shortfall penalty, based on 2020 inflation, per RCW 19.285.060. | P17: = b - c
G18: e | H18: Decoupling Threshold | I18: =I14*0.05 -> 17993.05 | J18: =I18/8760 -> 2.054001142 | L18: =L14*0.05 -> 21709.85 | M18: =L18/8760 -> 2.478293379 | N18: 5 percent of EIA Target | P18: = b * .05
H19: Complete the Portfolio | L19: No Changes for April 2020
G20: f | H20: Add Firm Savings Excluded from CPA | I20: ='Portfolio--2020-2021'!G29 -> 9197.791 | J20: =I20/8760 -> 1.049976142 | K20: 15,000 residential HER customers | L20: =I20 -> 9197.791 | M20: =L20/8760 -> 1.049976142 | N20: 2020/2021: 449s, special contracts | P20: line u of Exhibit 1
G21: g | H21: Add Pilots with Uncertain Savings | I21: ='Portfolio--2020-2021'!G38 -> 15080 | J21: =I21/8760 -> 1.721461187 | K21: New Residential + Small Business | L21: =I21 -> 15080 | M21: =L21/8760 -> 1.721461187 | N21: Commercial Pay For Performance pilot, Retail Choice, SMB Enhanced Engagement | P21: line aa of Exhibit 1 Portfolio View
G22: h | H22: Original Additional Portfolio Build-out | I22: 74336 | J22: =I22/8760 -> 8.485844749 | N22: Added to EIA Target, due to well-vetted and developed programs | R22: USE CALCULATION FOR FINAL BCP!
G23: i | H23: Revised Portfolio Buildout, April 2020 | L23: =('Portfolio--2020-2021'!G71-(I14+I18+I20+I21))-I22 -> 49575.86152 | M23: =L23/8760 -> 5.659344923 | N23: Excluded from EIA Target, due to uncertainty
G25: j | H25: Total 2020-2021 Utility Conservation Goal | I25: =I14+SUM(I18:I22) -> 476467.841 | J25: =I25/8760 -> 54.39130605 | L25: =L14+SUM(L18:L23)-(L18-I18) -> 526043.7025 | M25: =L25/8760 -> 60.05065097 | N25: This is the total Portfolio to which Energy Efficiency is managing. | P25: = b + e + (f + g + h): lines bb & be of Exhibit 1 Portfolio View | S25: 43.2
S26: 53
S31: =(S25-S26)/S26 -> -0.1849056604
N32: D.C. = Decoupling Commitment
N33: EIA = Energy Independence Act; referencing RCW 19.285, or "I-937".
N34: HER = Residential Home Energy Reports
N35: IRP = Integrated Resource Plan

Sheet Building the 2-yr gas target
F7: Puget Sound Energy 2020-2021 Natural Gas Portfolio Savings
G10: November 1, 2019 Filing
E11: Index | F11: Description | G11: Therms | H11: Comment | K11: Calculation
F12: Colored cells correspond to indicated lines in Exhibit 1: Savings and Budgets, 2-Year Portfolio View.
F13: Calculate Natural Gas Penalty Threshold | H13: These are specific elements that comprise the Portfolio View of Exhibit 1
E14: a | F14: CPA Pro-Rata Share IRP Guidance | G14: =ROUND(6160000,-3) -> 6160000 | H14: 2-year pro-rata, versus ramp rate in IRP
E15: b | F15: Subtract NEEA Savings | G15: 0 | K15: line ab of Exhibit 1 Portfolio View
E16: c | F16: Total Natural Gas Penalty Threshold | G16: =G14+G15 -> 6160000 | H16: Penalty outlined in Stipulation Agreement, UG-011571 Section M43. | K16: = a + b
E17: d | F17: Decoupling Threshold | G17: =G14*0.05 -> 308000 | H17: Penalty = Up to $75,000, depending on range | K17: = a *0.05
F18: Build the Total Utility Conservation Goal
E19: e | F19: Add Pilots with Uncertain Savings | G19: ='Portfolio--2020-2021'!I38 -> 320000 | H19: Commercial Pay For Performance pilot, Retail Choice, SMB Enhanced Engagement | K19: = line ad of Exhibit 1
E20: f | F20: Additional Portfolio Build-out | G20: 986516 | H20: Represents incremental effort to anticipate 2019 IRP updates.
E21: g | F21: Total 2020-2021 Utility Conservation Goal | G21: =SUM(G16:G20) -> 7774516 | H21: This is the total Portfolio to which Energy Efficiency is managing. | K21: = c + d + e + f; line bf of Exhibit 1 Portfolio View
N25: 6468000
G26: It is important to note that many specific natural gas program total values include decimals. Their aggregation may | N26: 7231000
G27: result in slight rounding differences between this table and the Portfolio View of Exhibit 1. | N27: =(N26-N25)/N25 -> 0.117965368

Sheet Overview Summary Tables
B3: Chapter 1: Exec Summary
B5: 2020-2021 Energy Efficiency
B6: Portfolio Amounts
C7: Total Savings | D7: Budgets | E7: EIA & Natural Gas Penalty Target | F7: TRC B/C Ratio
B8: Electric | C8: ='Portfolio--2020-2021'!G80 -> 526043.7025 | D8: ='Portfolio--2020-2021'!H80 -> 193876788.5 | E8: ='Portfolio--2020-2021'!G88 -> 410632.6 | F8: 1.26
C9: =C8/8760 -> 60.05065097 | E9: =E8/8760 -> 46.87586758
B10: Natural Gas | C10: ='Portfolio--2020-2021'!I80 -> 8003282.07 | D10: ='Portfolio--2020-2021'!J80 -> 37221653.48 | E10: ='Portfolio--2020-2021'!I88 -> 6155000 | F10: 1.28
B11: Total Budget | D11: =SUM(D8:D10) -> 231098442
H14: Chapter 4: Developing Portfolio
H16: 2020-2021 Energy Efficiency
H17: Sector Savings Goals
I18: REM | J18: BEM | K18: Pilots | L18: Regional (NEEA + Generation)
H19: Electric | I19: ='Portfolio--2020-2021'!G22 -> 179872.4279 | J19: ='Portfolio--2020-2021'!G33 -> 306026.8746 | K19: ='Portfolio--2020-2021'!G38 -> 15080 | L19: ='Portfolio--2020-2021'!G45 -> 25064.4
I20: =I19/8760 -> 20.53338218 | J20: =J19/8760 -> 34.93457473 | K20: =K19/8760 -> 1.721461187 | L20: =L19/8760 -> 2.861232877
H21: Natural Gas | I21: ='Portfolio--2020-2021'!I22 -> 4389196.07 | J21: ='Portfolio--2020-2021'!I33 -> 3294086 | K21: ='Portfolio--2020-2021'!I38 -> 320000 | L21: ='Portfolio--2020-2021'!I45 -> 0
H23: Source - Exhibit 1: Savings and Budgets
N24: Chapter 4: Developing Portfolio
N26: 2020-2021 Energy Efficiency
N27: Sector Anticipated Expenditures
O28: REM | P28: BEM | Q28: Pilots | R28: Regional (NEEA + Generation) | S28: Portfolio Support | T28: Research & Compliance | U28: Other Electric Programs
N29: Electric | O29: ='Portfolio--2020-2021'!H22 -> 66140635.44 | P29: ='Portfolio--2020-2021'!H33 -> 88854942.2 | Q29: ='Portfolio--2020-2021'!H38 -> 3991169.5 | R29: ='Portfolio--2020-2021'!H45 -> 9841194.74 | S29: ='Portfolio--2020-2021'!H61 -> 15122062.77 | T29: ='Portfolio--2020-2021'!H69 -> 6533169.36 | U29: ='Portfolio--2020-2021'!H76 -> 3393614.5
N30: Natural Gas | O30: ='Portfolio--2020-2021'!J22 -> 18670775.63 | P30: ='Portfolio--2020-2021'!J33 -> 10105713.63 | Q30: ='Portfolio--2020-2021'!J38 -> 201825 | R30: ='Portfolio--2020-2021'!J45 -> 3864081.46 | S30: ='Portfolio--2020-2021'!J61 -> 3152147.718 | T30: ='Portfolio--2020-2021'!J69 -> 1019210.04 | U30: ='Portfolio--2020-2021'!P22 -> 0
N31: Sector Total | O31: =SUM(O29:O30) -> 84811411.06 | P31: =SUM(P29:P30) -> 98960655.83 | Q31: 4192994.5 | R31: 13705276.2 | S31: 18274210.48 | T31: 7552379.4 | U31: 3393614.5
N33: Source - Exhibit 1: Savings and Budgets
X36: Chapter 5: REM Overview
X38: 2020-2021 Residential Energy Management
Y39: Total Savings Electric: MWh Natural Gas: Therms | Z39: Budgets | AA39: Total Resource Cost
X40: Electric | Y40: ='Portfolio--2020-2021'!G22 -> 179872.4279 | Z40: ='Portfolio--2020-2021'!H22 -> 66140635.44 | AA40: 1.39
X41: aMW | Y41: =Y40/8760 -> 20.53338218
X42: Natural Gas | Y42: ='Portfolio--2020-2021'!I22 -> 4389196.07 | Z42: ='Portfolio--2020-2021'!J22 -> 18670775.63 | AA42: 1.36
X43: Total Budget | Z43: =Z40+Z42 -> 84811411.06
X46: Note: consistent with WAC 480-109-100(10)(b), Low Income Weatherization (LIW) electric figures are excluded from REM and Portfolio TRC ratios. LIW natural gas figures are also excluded from REM and Portfolio cost-effectiveness totals.
X48: Chapter 7: BEM Overview
X50: 2020-2021 Business Energy Management
Y51: Total Savings Electric: MWh Natural Gas: Therms | Z51: Budgets | AA51: Total Resource Cost
X52: Electric | Y52: ='Portfolio--2020-2021'!G33 -> 306026.8746 | Z52: ='Portfolio--2020-2021'!H33 -> 88854942.2 | AA52: 1.48
X53: aMW | Y53: =Y52/8760 -> 34.93457473
X54: Natural Gas | Y54: ='Portfolio--2020-2021'!I33 -> 3294086 | Z54: ='Portfolio--2020-2021'!J33 -> 10105713.63 | AA54: 1.78
X55: Total Budget | Z55: =Z52+Z54 -> 98960655.83

Sheet Compr 20-21 BCP to Apr20 Petitn
A1: Schedule | B1: Program Name | E1: MWh Savings | I1: Electric Rider Budget | M1: Therm Savings | Q1: Gas Rider Budget | U1: Total Rider Budget
E2: Original 2020-2021 BCP (Hard-coded) | F2: April 2020 Petition (Linked to Portfolio View) | G2: Difference (Updated - Orig. BCP) | H2: % Change | I2: Original 2020-2021 BCP (Hard-coded) | J2: April 2020 Petition (Linked to Portfolio View) | K2: Difference (Updated - Orig. BCP) | L2: % Change | M2: Original 2020-2021 BCP (Hard-coded) | N2: April 2020 Petition (Linked to Portfolio View) | O2: Difference (Updated - Orig. BCP) | P2: % Change | Q2: Original 2020-2021 BCP (Hard-coded) | R2: April 2020 Petition (Linked to Portfolio View) | S2: Difference (Updated - Orig. BCP) | T2: % Change | U2: Original 2020-2021 BCP (Hard-coded) | V2: April 2020 Petition (Linked to Portfolio View) | W2: Difference (Updated - Orig. BCP) | X2: % Change | Z2: % electric savings | AA2: % gas savings
B3: Residential Energy Management
A4: 201 | B4: Low Income Weatherization | E4: 3915.7792 | F4: ='Portfolio--2020-2021'!G7 -> 3915.7792 | G4: =F4-E4 -> 0 | H4: =(F4-E4)/E4 -> 0 | I4: 12289870.85 | J4: ='Portfolio--2020-2021'!H7 -> 12289870.85 | K4: =J4-I4 -> 0 | L4: =(J4-I4)/I4 -> 0 | M4: 49918.31 | N4: ='Portfolio--2020-2021'!I7 -> 49918.31 | O4: =N4-M4 -> 0 | P4: =(N4-M4)/M4 -> 0 | Q4: 2543666.336 | R4: ='Portfolio--2020-2021'!J7 -> 2543666.336 | S4: =R4-Q4 -> 0 | T4: =(R4-Q4)/Q4 -> 0 | U4: =I4+Q4 -> 14833537.19 | V4: =J4+R4 -> 14833537.19 | W4: =V4-U4 -> 0 | X4: =(V4-U4)/U4 -> 0 | Z4: =F4/$F$19 -> 0.02176975785 | AA4: =N4/$N$19 -> 0.01137299615
A5: 214 | B5: Single Family Existing Subtotal | E5: 129717.4616 | F5: ='Portfolio--2020-2021'!G8 -> 137220.0276 | G5: =F5-E5 -> 7502.566 | H5: =(F5-E5)/E5 -> 0.05783774912 | I5: 30125922.27 | J5: ='Portfolio--2020-2021'!H8 -> 34783732.27 | K5: 4657810 | L5: 0.1546113662 | M5: 4121639.9 | N5: ='Portfolio--2020-2021'!I8 -> 4123983.5 | O5: 2343.6 | P5: 0.0005686086259 | Q5: 14304230.33 | R5: ='Portfolio--2020-2021'!J8 -> 14304230.33 | S5: 0 | T5: 0 | U5: =I5+Q5 -> 44430152.6 | V5: 49087962.6 | W5: 4657810 | X5: 0.1048344363 | Z5: =F5/$F$19 -> 0.7628741612 | AA5: =N5/$N$19 -> 0.9395760486
C6: Residential lighting | E6: 35395.01941 | F6: ='Portfolio--2020-2021'!G9 -> 35395.01941 | G6: 0 | H6: 0 | I6: 8972128.11 | J6: ='Portfolio--2020-2021'!H9 -> 8972128.11 | K6: 0 | L6: 0 | M6: 0 | N6: ='Portfolio--2020-2021'!I9 -> 0 | O6: 0 | Q6: 0 | R6: ='Portfolio--2020-2021'!J9 -> 0 | S6: 0 | U6: 8972128.11 | V6: 8972128.11 | W6: 0 | X6: 0 | Z6: 0.1967784603 | AA6: 0
C7: Space heat | E7: 24918.025 | F7: ='Portfolio--2020-2021'!G10 -> 28464.405 | G7: 3546.38 | H7: 0.1423218734 | I7: 10049839 | J7: ='Portfolio--2020-2021'!H10 -> 12915839 | K7: 2866000 | L7: 0.2851786979 | M7: 1130450 | N7: ='Portfolio--2020-2021'!I10 -> 1130450 | O7: 0 | P7: 0 | Q7: 4376339 | R7: ='Portfolio--2020-2021'!J10 -> 4376339 | S7: 0 | T7: 0 | U7: 14426178 | V7: 17292178 | W7: 2866000 | X7: 0.1986666184 | Z7: 0.1582477388 | AA7: 0.2575528598
C8: Water heat | E8: 2000 | F8: ='Portfolio--2020-2021'!G11 -> 4450 | G8: 2450 | H8: 1.225 | I8: 884919.5 | J8: ='Portfolio--2020-2021'!H11 -> 1984919.5 | K8: 1100000 | L8: 1.243050922 | M8: 107600 | N8: ='Portfolio--2020-2021'!I11 -> 107600 | O8: 0 | P8: 0 | Q8: 657919.5 | R8: ='Portfolio--2020-2021'!J11 -> 657919.5 | S8: 0 | T8: 0 | U8: 1542839 | V8: 2642839 | W8: 1100000 | X8: 0.712971347 | Z8: 0.02473975612 | AA8: 0.02451473989
C9: Home Energy Assessment | E9: 6247.546654 | F9: ='Portfolio--2020-2021'!G12 -> 6247.546654 | G9: 0 | H9: 0 | I9: 2350595.157 | J9: ='Portfolio--2020-2021'!H12 -> 2350595.157 | K9: 0 | L9: 0 | M9: 0 | N9: ='Portfolio--2020-2021'!I12 -> 0 | O9: 0 | Q9: 0 | R9: ='Portfolio--2020-2021'!J12 -> 0 | S9: 0 | U9: 2350595.157 | V9: 2350595.157 | W9: 0 | X9: 0 | Z9: 0.03473320912 | AA9: 0
C10: Home Appliances | E10: 3598.09528 | F10: ='Portfolio--2020-2021'!G13 -> 5104.28128 | G10: 1506.186 | H10: 0.41860648 | I10: 1899915.34 | J10: ='Portfolio--2020-2021'!H13 -> 2591725.34 | K10: 691810 | L10: 0.364126751 | M10: 11673.6 | N10: ='Portfolio--2020-2021'!I13 -> 14017.2 | O10: 2343.6 | P10: 0.2007606908 | Q10: 0 | R10: ='Portfolio--2020-2021'!J13 -> 0 | S10: 0 | U10: 1899915.34 | V10: 2591725.34 | W10: 691810 | X10: 0.364126751 | Z10: 0.02837723012 | AA10: 0.003193568885
C11: Smart Thermostats | E11: 1555.48144 | F11: ='Portfolio--2020-2021'!G14 -> 1555.48144 | G11: 0 | H11: 0 | I11: 525502.86 | J11: ='Portfolio--2020-2021'!H14 -> 525502.86 | K11: 0 | L11: 0 | M11: 629449.8 | N11: ='Portfolio--2020-2021'!I14 -> 629449.8 | O11: 0 | P11: 0 | Q11: 2606184.05 | R11: ='Portfolio--2020-2021'!J14 -> 2606184.05 | S11: 0 | T11: 0 | U11: 3131686.91 | V11: 3131686.91 | W11: 0 | X11: 0 | Z11: 0.008647692467 | AA11: 0.1434089045
C12: Showerheads | E12: 4104.4598 | F12: ='Portfolio--2020-2021'!G15 -> 4104.4598 | G12: 0 | H12: 0 | I12: 1213769.06 | J12: ='Portfolio--2020-2021'!H15 -> 1213769.06 | K12: 0 | L12: 0 | M12: 115264.7 | N12: ='Portfolio--2020-2021'!I15 -> 115264.7 | O12: 0 | P12: 0 | Q12: 501672.66 | R12: ='Portfolio--2020-2021'!J15 -> 501672.66 | S12: 0 | T12: 0 | U12: 1715441.72 | V12: 1715441.72 | W12: 0 | X12: 0 | Z12: 0.02281872685 | AA12: 0.02626100501
C13: Weatherization | E13: 4122.524 | F13: ='Portfolio--2020-2021'!G16 -> 4122.524 | G13: 0 | H13: 0 | I13: 1494156.2 | J13: ='Portfolio--2020-2021'!H16 -> 1494156.2 | K13: 0 | L13: 0 | M13: 695350.8 | N13: ='Portfolio--2020-2021'!I16 -> 695350.8 | O13: 0 | P13: 0 | Q13: 4163333.8 | R13: ='Portfolio--2020-2021'!J16 -> 4163333.8 | S13: 0 | T13: 0 | U13: 5657490 | V13: 5657490 | W13: 0 | X13: 0 | Z13: 0.02291915469 | AA13: 0.1584232713
C14: Home Energy Reports | E14: 47776.31 | F14: ='Portfolio--2020-2021'!G17 -> 47776.31 | G14: 0 | H14: 0 | I14: 2735097.042 | J14: ='Portfolio--2020-2021'!H17 -> 2735097.042 | K14: 0 | L14: 0 | M14: 1431851 | N14: ='Portfolio--2020-2021'!I17 -> 1431851 | O14: 0 | P14: 0 | Q14: 1998781.317 | R14: ='Portfolio--2020-2021'!J17 -> 1998781.317 | S14: 0 | T14: 0 | U14: 4733878.359 | V14: 4733878.359 | W14: 0 | X14: 0 | Z14: 0.2656121928 | AA14: 0.3262216992
A15: 215 | B15: Single Family New Construction | E15: 1447.7 | F15: ='Portfolio--2020-2021'!G18 -> 1447.7 | G15: 0 | H15: 0 | I15: 1027008.82 | J15: ='Portfolio--2020-2021'!H18 -> 1027008.82 | K15: 0 | L15: 0 | M15: 51860 | N15: ='Portfolio--2020-2021'!I18 -> 51860 | O15: 0 | P15: 0 | Q15: 291287.32 | R15: ='Portfolio--2020-2021'!J18 -> 291287.32 | S15: 0 | T15: 0 | U15: 1318296.14 | V15: 1318296.14 | W15: 0 | X15: 0 | Z15: 0.008048482009 | AA15: 0.01181537557
A16: 214 & 217 | B16: Moderate Income Residences | E16: 0 | F16: ='Portfolio--2020-2021'!G19 -> 0 | G16: 0 | I16: 87326.66 | J16: ='Portfolio--2020-2021'!H19 -> 87326.66 | K16: 0 | L16: 0 | M16: 0 | N16: ='Portfolio--2020-2021'!I19 -> 0 | O16: 0 | Q16: 87326.66 | R16: ='Portfolio--2020-2021'!J19 -> 87326.66 | S16: 0 | T16: 0 | U16: 174653.32 | V16: 174653.32 | W16: 0 | X16: 0 | Z16: 0 | AA16: 0
A17: 217 | B17: Multifamily Retrofit | E17: 25426.92114 | F17: ='Portfolio--2020-2021'!G20 -> 25426.92114 | G17: 0 | H17: 0 | I17: 13544656.43 | J17: ='Portfolio--2020-2021'!H20 -> 13544656.43 | K17: 0 | L17: 0 | M17: 53534.26 | N17: ='Portfolio--2020-2021'!I20 -> 53534.26 | O17: 0 | P17: 0 | Q17: 533849.924 | R17: ='Portfolio--2020-2021'!J20 -> 533849.924 | S17: 0 | T17: 0 | U17: 14078506.36 | V17: 14078506.36 | W17: 0 | X17: 0 | Z17: 0.1413608602 | AA17: 0.01219682583
A18: 218 | B18: Multifamily New Construction | E18: 11862 | F18: ='Portfolio--2020-2021'!G21 -> 11862 | G18: 0 | H18: 0 | I18: 4408040.4 | J18: ='Portfolio--2020-2021'!H21 -> 4408040.4 | K18: 0 | L18: 0 | M18: 109900 | N18: ='Portfolio--2020-2021'!I21 -> 109900 | O18: 0 | P18: 0 | Q18: 910415.06 | R18: ='Portfolio--2020-2021'!J21 -> 910415.06 | S18: 0 | T18: 0 | U18: 5318455.46 | V18: 5318455.46 | W18: 0 | X18: 0 | Z18: 0.06594673868 | AA18: 0.02503875385
B19: Subtotal, Residential Programs | E19: =E4+E5+SUM(E15:E18) -> 172369.8619 | F19: =F4+F5+SUM(F15:F18) -> 179872.4279 | G19: 7502.566 | H19: 0.04352597325 | I19: =I4+I5+SUM(I15:I18) -> 61482825.44 | J19: =J4+J5+SUM(J15:J18) -> 66140635.44 | K19: 4657810 | L19: 0.07575790421 | M19: =M4+M5+SUM(M15:M18) -> 4386852.47 | N19: =N4+N5+SUM(N15:N18) -> 4389196.07 | O19: 2343.6 | P19: 0.000534232691 | Q19: =Q4+Q5+SUM(Q15:Q18) -> 18670775.63 | R19: =R4+R5+SUM(R15:R18) -> 18670775.63 | S19: 0 | T19: 0 | U19: =I19+Q19 -> 80153601.06 | V19: =J19+R19 -> 84811411.06 | W19: 4657810 | X19: 0.05811105101
B21: Business Energy Management
A22: 250 | B22: Commercial / Industrial Retrofit | E22: 132000 | F22: ='Portfolio--2020-2021'!G25 -> 148500 | G22: =F22-E22 -> 16500 | H22: =(F22-E22)/E22 -> 0.125 | I22: 36050062.18 | J22: ='Portfolio--2020-2021'!H25 -> 40242911.96 | K22: =J22-I22 -> 4192849.778 | L22: =(J22-I22)/I22 -> 0.1163063119 | M22: 650000 | N22: ='Portfolio--2020-2021'!I25 -> 670000 | O22: =N22-M22 -> 20000 | P22: =(N22-M22)/M22 -> 0.03076923077 | Q22: 3050756 | R22: ='Portfolio--2020-2021'!J25 -> 3120756 | S22: =R22-Q22 -> 70000 | T22: =(R22-Q22)/Q22 -> 0.02294513229 | U22: =I22+Q22 -> 39100818.18 | V22: =J22+R22 -> 43363667.96 | W22: =V22-U22 -> 4262849.778 | X22: =(V22-U22)/U22 -> 0.1090220097 | Z22: =F22/$F$30 -> 0.4852515002 | AA22: =N22/$N$30 -> 0.2033948112
A23: 251 | B23: Commercial/Industrial New Construction | E23: 35000 | F23: ='Portfolio--2020-2021'!G26 -> 35000 | G23: =F23-E23 -> 0 | H23: =(F23-E23)/E23 -> 0 | I23: 9344846 | J23: ='Portfolio--2020-2021'!H26 -> 9344846 | K23: 0 | L23: 0 | M23: 200000 | N23: ='Portfolio--2020-2021'!I26 -> 200000 | O23: 0 | P23: 0 | Q23: 1055934 | R23: ='Portfolio--2020-2021'!J26 -> 1055934 | S23: 0 | T23: 0 | U23: =I23+Q23 -> 10400780 | V23: 10400780 | W23: 0 | X23: 0 | Z23: =F23/$F$30 -> 0.1143690405 | AA23: =N23/$N$30 -> 0.06071486901
A24: 253 | B24: Commercial Strategic Energy Management | E24: 28000 | F24: ='Portfolio--2020-2021'!G27 -> 30000 | G24: 2000 | H24: 0.07142857143 | I24: 3001687.317 | J24: ='Portfolio--2020-2021'!H27 -> 3569336.394 | K24: 567649.0769 | L24: 0.1891099961 | M24: 1140000 | N24: ='Portfolio--2020-2021'!I27 -> 1140000 | O24: 0 | P24: 0 | Q24: 1127632.789 | R24: ='Portfolio--2020-2021'!J27 -> 1127632.789 | S24: 0 | T24: 0 | U24: 4129320.106 | V24: 4696969.183 | W24: 567649.0769 | X24: 0.1374679275 | Z24: 0.0980306061 | AA24: 0.3460747534
A25: E258 | B25: Large Power User - Self Directed Program - Subtotal | E25: 16151.13 | F25: ='Portfolio--2020-2021'!G28 -> 16151.13 | G25: 0 | H25: 0 | I25: 8370734.387 | J25: ='Portfolio--2020-2021'!H28 -> 8370734.387 | K25: 0 | L25: 0 | N25: ='Portfolio--2020-2021'!I28 -> 0 | O25: 0 | R25: ='Portfolio--2020-2021'!J28 -> 0 | S25: 0 | U25: 8370734.387 | V25: 8370734.387 | W25: 0 | X25: 0 | Z25: 0.05277683544 | AA25: 0
A26: E258 | C26: 449 Customers | E26: 9197.791 | F26: ='Portfolio--2020-2021'!G29 -> 9197.791 | G26: 0 | H26: 0 | I26: 4248048.734 | J26: ='Portfolio--2020-2021'!H29 -> 4248048.734 | K26: 0 | L26: 0 | N26: ='Portfolio--2020-2021'!I29 -> 0 | O26: 0 | R26: ='Portfolio--2020-2021'!J29 -> 0 | S26: 0 | U26: 4248048.734 | V26: 4248048.734 | W26: 0 | X26: 0 | Z26: 0.03005550088 | AA26: 0
A27: E258 | C27: Non-449 Customers | E27: 6953.339 | F27: ='Portfolio--2020-2021'!G30 -> 6953.339 | G27: 0 | H27: 0 | I27: 4122685.653 | J27: ='Portfolio--2020-2021'!H30 -> 4122685.653 | K27: 0 | L27: 0 | N27: ='Portfolio--2020-2021'!I30 -> 0 | O27: 0 | R27: ='Portfolio--2020-2021'!J30 -> 0 | S27: 0 | U27: 4122685.653 | V27: 4122685.653 | W27: 0 | X27: 0 | Z27: 0.02272133455 | AA27: 0
A28: 261 | B28: Energy Efficient Technology Evaluation | E28: 0 | F28: ='Portfolio--2020-2021'!G31 -> 0 | G28: 0 | I28: 0 | J28: ='Portfolio--2020-2021'!H31 -> 0 | K28: 0 | M28: 0 | N28: ='Portfolio--2020-2021'!I31 -> 0 | O28: 0 | Q28: 0 | R28: ='Portfolio--2020-2021'!J31 -> 0 | S28: 0 | U28: 0 | V28: 0 | W28: 0 | Z28: 0 | AA28: 0
A29: 262 | B29: Commercial Rebates | E29: 52802.86898 | F29: ='Portfolio--2020-2021'!G32 -> 76375.7446 | G29: 23572.87562 | H29: 0.44643172 | I29: 21485516.04 | J29: ='Portfolio--2020-2021'!H32 -> 27327113.46 | K29: 5841597.42 | L29: =(J29-I29)/I29 -> 0.2718853673 | M29: 1077664 | N29: ='Portfolio--2020-2021'!I32 -> 1284086 | O29: 206422 | P29: 0.1915457879 | Q29: 4043390.844 | R29: ='Portfolio--2020-2021'!J32 -> 4801390.844 | S29: 758000 | T29: 0.1874664185 | U29: 25528906.88 | V29: 32128504.3 | W29: 6599597.42 | X29: 0.2585146889 | Z29: 0.2495720178 | AA29: 0.3898155664
B30: Subtotal, Business Programs | E30: =SUM(E22:E25)+E28+E29 -> 263953.999 | F30: =SUM(F22:F25)+F28+F29 -> 306026.8746 | G30: 42072.87562 | H30: 0.159394727 | I30: =SUM(I22:I25)+I28+I29 -> 78252845.92 | J30: =SUM(J22:J25)+J28+J29 -> 88854942.2 | K30: 10602096.27 | L30: 0.1354851207 | M30: =SUM(M22:M29) -> 3067664 | N30: =SUM(N22:N29) -> 3294086 | O30: 226422 | P30: 0.07380925682 | Q30: =SUM(Q22:Q29) -> 9277713.633 | R30: =SUM(R22:R29) -> 10105713.63 | S30: 828000 | T30: 0.08924612601 | U30: 87530559.56 | V30: 98960655.83 | W30: 11430096.27 | X30: 0.130584065
R31: ='Portfolio--2020-2021'!J34 -> 0 | V31: 0
B32: Pilots With Uncertain Savings | R32: ='Portfolio--2020-2021'!J35 -> 0
A33: 249 | B33: Residential | E33: 11480 | F33: ='Portfolio--2020-2021'!G36 -> 11480 | G33: =F33-E33 -> 0 | H33: =(F33-E33)/E33 -> 0 | I33: 1370974.75 | J33: ='Portfolio--2020-2021'!H36 -> 2771949.5 | K33: =J33-I33 -> 1400974.75 | L33: =(J33-I33)/I33 -> 1.021882241 | M33: 300000 | N33: ='Portfolio--2020-2021'!I36 -> 300000 | O33: =N33-M33 -> 0 | P33: =(N33-M33)/M33 -> 0 | Q33: 176700 | R33: ='Portfolio--2020-2021'!J36 -> 176700 | S33: =R33-Q33 -> 0 | T33: =(R33-Q33)/Q33 -> 0 | U33: =I33+Q33 -> 1547674.75 | V33: 2948649.5 | W33: =V33-U33 -> 1400974.75 | X33: =(V33-U33)/U33 -> 0.9052126424
A34: 249 | B34: Commercial Pay for Performance Pilot | E34: 3600 | F34: ='Portfolio--2020-2021'!G37 -> 3600 | G34: 0 | H34: 0 | I34: 1219220 | J34: ='Portfolio--2020-2021'!H37 -> 1219220 | K34: 0 | L34: 0 | M34: 20000 | N34: ='Portfolio--2020-2021'!I37 -> 20000 | O34: 0 | P34: 0 | Q34: 25125 | R34: ='Portfolio--2020-2021'!J37 -> 25125 | S34: 0 | T34: 0 | U34: 1244345 | V34: 1244345 | W34: 0 | X34: 0
B35: Subtotal, Pilots | E35: =SUM(E33:E34) -> 15080 | F35: =SUM(F33:F34) -> 15080 | G35: 0 | H35: 0 | I35: =SUM(I33:I34) -> 2590194.75 | J35: =SUM(J33:J34) -> 3991169.5 | K35: 1400974.75 | L35: =(J35-I35)/I35 -> 0.5408762218 | M35: =SUM(M33:M34) -> 320000 | N35: =SUM(N33:N34) -> 320000 | O35: =N35-M35 -> 0 | P35: 0 | Q35: =SUM(Q33:Q34) -> 201825 | R35: =SUM(R33:R34) -> 201825 | S35: 0 | T35: 0 | U35: 2792019.75 | V35: 4192994.5 | W35: 1400974.75 | X35: 0.5017782378
B37: Regional Efficiency Programs
A38: E254 | B38: NW Energy Efficiency Alliance (NEEA) | E38: 23564.4 | F38: ='Portfolio--2020-2021'!G41 -> 23564.4 | G38: =F38-E38 -> 0 | H38: =(F38-E38)/E38 -> 0 | I38: 8914410 | J38: ='Portfolio--2020-2021'!H41 -> 8914410 | K38: =J38-I38 -> 0 | L38: =(J38-I38)/I38 -> 0 | N38: ='Portfolio--2021 Specific'!I41 -> 0 | O38: =N38-M38 -> 0 | P38: =(N38-M38)/M38 ->  | R38: ='Portfolio--2020-2021'!J41 -> 0 | S38: =R38-Q38 -> 0 | T38: =(R38-Q38)/Q38 ->  | U38: =I38+Q38 -> 8914410 | V38: =J38+R38 -> 8914410 | W38: =V38-U38 -> 0 | X38: =(V38-U38)/U38 -> 0 | Z38: NOTE: Although budget is a 14% decrease, actual annual spending has been ~$4.7 million, not $5.2 million
B39: NEEA Natural Gas Market Transformation | F39: ='Portfolio--2020-2021'!G42 -> 0 | G39: 0 | J39: ='Portfolio--2020-2021'!H42 -> 0 | K39: 0 | M39: 0 | N39: ='Portfolio--2021 Specific'!I42 -> 0 | O39: 0 | Q39: 3466888 | R39: ='Portfolio--2020-2021'!J42 -> 3466888 | S39: 0 | T39: 0 | U39: =I39+Q39 -> 3466888 | V39: 3466888 | W39: 0 | X39: 0
B40: Targeted DSM | E40: 0 | F40: ='Portfolio--2020-2021'!G43 -> 0 | G40: 0 | I40: 926784.74 | J40: ='Portfolio--2020-2021'!H43 -> 926784.74 | K40: 0 | L40: 0 | M40: 0 | N40: ='Portfolio--2021 Specific'!I43 -> 0 | O40: 0 | Q40: 397193.46 | R40: ='Portfolio--2020-2021'!J43 -> 397193.46 | S40: 0 | T40: 0 | U40: 1323978.2 | V40: 1323978.2 | W40: 0 | X40: 0
A41: E292 | B41: Generation, Transmission and Distribution | E41: 1500 | F41: ='Portfolio--2020-2021'!G44 -> 1500 | G41: 0 | H41: 0 | I41: 0 | J41: ='Portfolio--2020-2021'!H44 -> 0 | K41: 0 | N41: ='Portfolio--2021 Specific'!I44 -> 0 | O41: 0 | R41: ='Portfolio--2020-2021'!J44 -> 0 | S41: 0 | U41: 0 | V41: 0 | W41: 0
B42: Subtotal, Regional Programs | E42: =SUM(E38:E41) -> 25064.4 | F42: =SUM(F38:F41) -> 25064.4 | G42: =F42-E42 -> 0 | H42: 0 | I42: =SUM(I38:I41) -> 9841194.74 | J42: =SUM(J38:J41) -> 9841194.74 | K42: =J42-I42 -> 0 | L42: =(J42-I42)/I42 -> 0 | M42: =SUM(M38:M41) -> 0 | N42: =SUM(N38:N41) -> 0 | O42: 0 | Q42: =SUM(Q38:Q41) -> 3864081.46 | R42: =SUM(R38:R41) -> 3864081.46 | S42: 0 | T42: =(R42-Q42)/Q42 -> 0 | U42: =I42+Q42 -> 13705276.2 | V42: 13705276.2 | W42: 0 | X42: 0
B44: Energy Efficiency Portfolio Support
B45: Data and Systems Services | F45: ='Portfolio--2020-2021'!G48 -> 0 | G45: =F45-E45 -> 0 | H45: =(F45-E45)/E45 ->  | I45: 2121378.42 | J45: ='Portfolio--2020-2021'!H48 -> 2121378.42 | K45: =J45-I45 -> 0 | L45: =(J45-I45)/I45 -> 0 | N45: ='Portfolio--2020-2021'!I48 -> 0 | O45: =N45-M45 -> 0 | P45: =(N45-M45)/M45 ->  | Q45: 316987.58 | R45: ='Portfolio--2020-2021'!J48 -> 316987.58 | S45: =R45-Q45 -> 0 | T45: =(R45-Q45)/Q45 -> 0 | U45: =I45+Q45 -> 2438366 | V45: =J45+R45 -> 2438366 | W45: =V45-U45 -> 0 | X45: =(V45-U45)/U45 -> 0
B46: Rebates Processing | F46: ='Portfolio--2020-2021'!G49 -> 0 | G46: 0 | I46: 1268135.73 | J46: ='Portfolio--2020-2021'!H49 -> 1268135.73 | K46: 0 | L46: 0 | N46: ='Portfolio--2020-2021'!I49 -> 0 | O46: 0 | Q46: 202826.78 | R46: ='Portfolio--2020-2021'!J49 -> 202826.78 | S46: 0 | T46: 0 | U46: =I46+Q46 -> 1470962.51 | V46: 1470962.51 | W46: 0 | X46: 0
B47: Verification Team | F47: ='Portfolio--2020-2021'!G50 -> 0 | G47: 0 | I47: 1171556.78 | J47: ='Portfolio--2020-2021'!H50 -> 1171556.78 | K47: 0 | L47: 0 | N47: ='Portfolio--2020-2021'!I50 -> 0 | O47: 0 | Q47: 172459.22 | R47: ='Portfolio--2020-2021'!J50 -> 172459.22 | S47: 0 | T47: 0 | U47: 1344016 | V47: 1344016 | W47: 0 | X47: 0
B48: Programs Support | F48: ='Portfolio--2020-2021'!G51 -> 0 | G48: 0 | I48: 825718.92 | J48: ='Portfolio--2020-2021'!H51 -> 825718.92 | K48: 0 | L48: 0 | N48: ='Portfolio--2020-2021'!I51 -> 0 | O48: 0 | Q48: 123797.08 | R48: ='Portfolio--2020-2021'!J51 -> 123797.08 | S48: 0 | T48: 0 | U48: 949516 | V48: 949516 | W48: 0 | X48: 0
B49: Trade Ally Memberships | F49: ='Portfolio--2020-2021'!G52 -> 0 | G49: 0 | I49: 236000 | J49: ='Portfolio--2020-2021'!H52 -> 236000 | K49: 0 | L49: 0 | N49: ='Portfolio--2020-2021'!I52 -> 0 | O49: 0 | Q49: 44000 | R49: ='Portfolio--2020-2021'!J52 -> 44000 | S49: 0 | T49: 0 | U49: 280000 | V49: 280000 | W49: 0 | X49: 0
B50: Trade Ally Network | F50: ='Portfolio--2020-2021'!G53 -> 0 | G50: 0 | I50: -2977 | J50: ='Portfolio--2020-2021'!H53 -> -2977 | K50: 0 | L50: 0 | N50: ='Portfolio--2020-2021'!I53 -> 0 | O50: 0 | Q50: -2977 | R50: ='Portfolio--2020-2021'!J53 -> -2977 | S50: 0 | T50: 0 | U50: -5954 | V50: -5954 | W50: 0 | X50: 0
B51: Automated Benchmarking System | F51: ='Portfolio--2020-2021'!G54 -> 0 | G51: 0 | I51: 603491.6 | J51: ='Portfolio--2020-2021'!H54 -> 603491.6 | K51: 0 | L51: 0 | N51: ='Portfolio--2020-2021'!I54 -> 0 | O51: 0 | Q51: 283340 | R51: ='Portfolio--2020-2021'!J54 -> 283340 | S51: 0 | T51: 0 | U51: 886831.6 | V51: 886831.6 | W51: 0 | X51: 0
B52: Energy Advisors | F52: ='Portfolio--2020-2021'!G55 -> 0 | G52: 0 | I52: 2755768.86 | J52: ='Portfolio--2020-2021'!H55 -> 2755768.86 | K52: 0 | L52: 0 | N52: ='Portfolio--2020-2021'!I55 -> 0 | O52: 0 | Q52: 403519.14 | R52: ='Portfolio--2020-2021'!J55 -> 403519.14 | S52: 0 | T52: 0 | U52: 3159288 | V52: 3159288 | W52: 0 | X52: 0
B53: Energy Efficient Communities | F53: ='Portfolio--2020-2021'!G56 -> 0 | G53: 0 | I53: 2064850.775 | J53: ='Portfolio--2020-2021'!H56 -> 2064850.775 | K53: 0 | L53: 0 | N53: ='Portfolio--2020-2021'!I56 -> 0 | O53: 0 | Q53: 476117.76 | R53: ='Portfolio--2020-2021'!J56 -> 476117.76 | S53: 0 | T53: 0 | U53: 2540968.535 | V53: 2540968.535 | W53: 0 | X53: 0
B54: Customer Digital Services | F54: ='Portfolio--2020-2021'!G57 -> 0 | G54: 0 | I54: 1970311.207 | J54: ='Portfolio--2020-2021'!H57 -> 2714512.08 | K54: 744200.8732 | L54: 0.3777072732 | N54: ='Portfolio--2020-2021'!I57 -> 0 | O54: 0 | Q54: 733120.42 | R54: ='Portfolio--2020-2021'!J57 -> 928810.36 | S54: 195689.94 | T54: 0.2669274169 | U54: 2703431.627 | V54: 3643322.44 | W54: 939890.8132 | X54: 0.3476658347
B55: Market Integration | F55: ='Portfolio--2020-2021'!G58 -> 0 | G55: 0 | I55: 631580.539 | J55: ='Portfolio--2020-2021'!H58 -> 631580.539 | K55: 0 | L55: 0 | N55: ='Portfolio--2020-2021'!I58 -> 0 | O55: 0 | Q55: 93667.961 | R55: ='Portfolio--2020-2021'!J58 -> 93667.961 | S55: 0 | T55: 0 | U55: 725248.5 | V55: 725248.5 | W55: 0 | X55: 0
B56: Events | F56: ='Portfolio--2020-2021'!G59 -> 0 | G56: 0 | I56: 732046.063 | J56: ='Portfolio--2020-2021'!H59 -> 732046.063 | K56: 0 | L56: 0 | N56: ='Portfolio--2020-2021'!I59 -> 0 | O56: 0 | Q56: 109598.837 | R56: ='Portfolio--2020-2021'!J59 -> 109598.837 | S56: 0 | T56: 0 | U56: 841644.9 | V56: 841644.9 | W56: 0 | X56: 0
B57: Brochures, non program-specific | F57: ='Portfolio--2020-2021'!G60 -> 0 | G57: 0 | I57: 0 | J57: ='Portfolio--2020-2021'!H60 -> 0 | K57: 0 | N57: ='Portfolio--2020-2021'!I60 -> 0 | O57: 0 | Q57: 0 | R57: ='Portfolio--2020-2021'!J60 -> 0 | S57: 0 | U57: 0 | V57: 0 | W57: 0
B58: Subtotal, Portfolio Support | F58: ='Portfolio--2020-2021'!G61 -> 0 | G58: 0 | I58: =SUM(I45:I57) -> 14377861.89 | J58: =SUM(J45:J57) -> 15122062.77 | K58: =J58-I58 -> 744200.8732 | L58: 0.05176019068 | N58: ='Portfolio--2020-2021'!I61 -> 0 | O58: 0 | Q58: =SUM(Q45:Q57) -> 2956457.778 | R58: =SUM(R45:R57) -> 3152147.718 | S58: 195689.94 | T58: 0.06619067638 | U58: =I58+Q58 -> 17334319.67 | V58: =J58+R58 -> 18274210.48 | W58: 939890.8132 | X58: 0.05422138457
B60: Energy Efficiency Research & Compliance
B61: Conservation Supply Curves | F61: ='Portfolio--2020-2021'!G64 -> 0 | G61: =F61-E61 -> 0 | H61: =(F61-E61)/E61 ->  | I61: 634379.64 | J61: ='Portfolio--2020-2021'!H64 -> 634379.64 | K61: =J61-I61 -> 0 | L61: =(J61-I61)/I61 -> 0 | N61: ='Portfolio--2020-2021'!I64 -> 0 | O61: =N61-M61 -> 0 | P61: =(N61-M61)/M61 ->  | Q61: 94792.36 | R61: ='Portfolio--2020-2021'!J64 -> 94792.36 | S61: =R61-Q61 -> 0 | T61: =(R61-Q61)/Q61 -> 0 | U61: =I61+Q61 -> 729172 | V61: =J61+R61 -> 729172 | W61: =V61-U61 -> 0 | X61: =(V61-U61)/U61 -> 0
B62: Strategic Planning | F62: ='Portfolio--2020-2021'!G65 -> 0 | G62: 0 | I62: 1408171.735 | J62: ='Portfolio--2020-2021'!H65 -> 1408171.735 | K62: 0 | L62: 0 | N62: ='Portfolio--2020-2021'!I65 -> 0 | O62: 0 | Q62: 105818.765 | R62: ='Portfolio--2020-2021'!J65 -> 105818.765 | S62: 0 | T62: 0 | U62: =I62+Q62 -> 1513990.5 | V62: 1513990.5 | W62: 0 | X62: 0
B63: Market Research | F63: ='Portfolio--2020-2021'!G66 -> 0 | G63: 0 | I63: 333871.88 | J63: ='Portfolio--2020-2021'!H66 -> 333871.88 | K63: 0 | L63: 0 | N63: ='Portfolio--2020-2021'!I66 -> 0 | O63: 0 | Q63: 51303.52 | R63: ='Portfolio--2020-2021'!J66 -> 51303.52 | S63: 0 | T63: 0 | U63: 385175.4 | V63: 385175.4 | W63: 0 | X63: 0
B64: Program Evaluation | F64: ='Portfolio--2020-2021'!G67 -> 0 | G64: 0 | I64: 4006746.105 | J64: ='Portfolio--2020-2021'!H67 -> 4006746.105 | K64: 0 | L64: 0 | N64: ='Portfolio--2020-2021'!I67 -> 0 | O64: 0 | Q64: 767295.395 | R64: ='Portfolio--2020-2021'!J67 -> 767295.395 | S64: 0 | T64: 0 | U64: 4774041.5 | V64: 4774041.5 | W64: 0 | X64: 0
B65: Biennial Electric Conservation Acquisition Review | F65: ='Portfolio--2020-2021'!G68 -> 0 | G65: 0 | I65: 150000 | J65: ='Portfolio--2020-2021'!H68 -> 150000 | K65: 0 | L65: 0 | N65: ='Portfolio--2020-2021'!I68 -> 0 | O65: 0 | Q65: 0 | R65: ='Portfolio--2020-2021'!J68 -> 0 | S65: 0 | U65: 150000 | V65: 150000 | W65: 0 | X65: 0
B66: Subtotal, Research & Compliance | F66: ='Portfolio--2020-2021'!G69 -> 0 | G66: 0 | I66: =SUM(I61:I65) -> 6533169.36 | J66: =SUM(J61:J65) -> 6533169.36 | K66: =J66-I66 -> 0 | L66: 0 | N66: ='Portfolio--2020-2021'!I69 -> 0 | O66: 0 | Q66: =SUM(Q61:Q65) -> 1019210.04 | R66: =SUM(R61:R65) -> 1019210.04 | S66: 0 | T66: 0 | U66: 7552379.4 | V66: 7552379.4 | W66: 0 | X66: 0
J67: ='Portfolio--2020-2021'!H70 -> 0 | N67: ='Portfolio--2020-2021'!I70 -> 0 | R67: ='Portfolio--2020-2021'!J70 -> 0 | V67: 0
B68: Total Savings, Efficiency Programs Included in CE Calculations | E68: =E19+E30+E35+E42+E58+E66 -> 476468.2609 | F68: =F19+F30+F35+F42+F58+F66 -> 526043.7025 | G68: =F68-E68 -> 49575.44162 | H68: =(F68-E68)/E68 -> 0.1040477314 | I68: =I19+I30+I35+I42+I58+I66 -> 173078092.1 | J68: =J19+J30+J35+J42+J58+J66 -> 190483174 | K68: =I68-J68 -> -17405081.9 | L68: =(J68-I68)/I68 -> 0.1005620162 | M68: =M19+M30+M35+M42+M58+M66 -> 7774516.47 | N68: =N19+N30+N35+N42+N58+N66 -> 8003282.07 | O68: =N68-M68 -> 228765.6 | P68: =(N68-M68)/M68 -> 0.02942505825 | Q68: =Q19+Q30+Q35+Q42+Q58+Q66 -> 35990063.54 | R68: =R19+R30+R35+R42+R58+R66 -> 37013753.48 | S68: =R68-Q68 -> 1023689.94 | T68: =(R68-Q68)/Q68 -> 0.02844368249 | U68: =U19+U30+U35+U42+U58+U66 -> 209068155.6 | V68: =V19+V30+V35+V42+V58+V66 -> 227496927.5 | W68: =U68-V68 -> -18428771.84 | X68: =(V68-U68)/U68 -> 0.08814719669
R69: ='Portfolio--2020-2021'!J72 -> 0 | V69: 0
B70: Other Customer Programs | R70: ='Portfolio--2020-2021'!J73 -> 0 | V70: 0
A71: E150 | B71: Net Metering | F71: ='Portfolio--2020-2021'!G74 -> 0 | G71: =F71-E71 -> 0 | H71: =(F71-E71)/E71 ->  | I71: 2908514.5 | J71: ='Portfolio--2020-2021'!H74 -> 2908514.5 | K71: =J71-I71 -> 0 | L71: =(J71-I71)/I71 -> 0 | N71: ='Portfolio--2020-2021'!I74 -> 0 | O71: =N71-M71 -> 0 | P71: =(N71-M71)/M71 ->  | R71: ='Portfolio--2020-2021'!J74 -> 0 | S71: =R71-Q71 -> 0 | T71: =(R71-Q71)/Q71 ->  | U71: =I71+Q71 -> 2908514.5 | V71: =J71+R71 -> 2908514.5 | W71: =V71-U71 -> 0 | X71: =(V71-U71)/U71 -> 0
A72: 249 | B72: Demand Response Pilots | F72: ='Portfolio--2020-2021'!G75 -> 0 | G72: 0 | H72: =(F72-E72)/E72 ->  | I72: 485100 | J72: ='Portfolio--2020-2021'!H75 -> 485100 | K72: 0 | L72: 0 | N72: ='Portfolio--2020-2021'!I75 -> 0 | O72: 0 | Q72: 207900 | R72: ='Portfolio--2020-2021'!J75 -> 207900 | S72: 0 | T72: 0 | U72: =I72+Q72 -> 693000 | V72: 693000 | W72: 0 | X72: 0
B73: Subtotal, Other Customer Programs | F73: ='Portfolio--2020-2021'!G76 -> 0 | G73: 0 | I73: =SUM(I71:I72) -> 3393614.5 | J73: =SUM(J71:J72) -> 3393614.5 | K73: =J73-I73 -> 0 | L73: =(J73-I73)/I73 -> 0 | N73: ='Portfolio--2020-2021'!I76 -> 0 | O73: 0 | Q73: =SUM(Q71:Q72) -> 207900 | R73: =SUM(R71:R72) -> 207900 | S73: 0 | T73: 0 | U73: 3601514.5 | V73: 3601514.5 | W73: 0 | X73: 0
B77: GRAND TOTAL All Programs | E77: =E68+E73 -> 476468.2609 | F77: ='Portfolio--2020-2021'!G80 -> 526043.7025 | G77: =F77-E77 -> 49575.44162 | H77: =(F77-E77)/E77 -> 0.1040477314 | I77: =I68+I73 -> 176471706.6 | J77: ='Portfolio--2020-2021'!H80 -> 193876788.5 | K77: =J77-I77 -> 17405081.9 | L77: =(J77-I77)/I77 -> 0.09862817237 | M77: =M68+M73 -> 7774516.47 | N77: ='Portfolio--2020-2021'!I80 -> 8003282.07 | O77: =N77-M77 -> 228765.6 | P77: =(N77-M77)/M77 -> 0.02942505825 | Q77: =Q68+Q73 -> 36197963.54 | R77: ='Portfolio--2020-2021'!J80 -> 37221653.48 | S77: =R77-Q77 -> 1023689.94 | T77: =(R77-Q77)/Q77 -> 0.02828031856 | U77: =U68+U73 -> 212669670.1 | V77: =J77+R77 -> 231098442 | W77: =V77-U77 -> 18428771.84 | X77: =(V77-U77)/U77 -> 0.08665444314
B78: and Portfolio Budgets | E78: =E77/8760 -> 54.39135398 | F78: ='Portfolio--2020-2021'!G81 -> 60.05065097 | G78: =F78-E78 -> 5.659296989 | H78: =(F78-E78)/E78 -> 0.1040477314 | K78: =I78-J78 -> 0 | O78: =M78-N78 -> 0
F81: NOTE: July 24 CRAG meeting tables had 53.6 aMW | J81: =(J19+J30)/(V19+V30) -> 0.8434120607 | R81: =(R19+R30)/(V19+V30) -> 0.1565879393
I82: =(I19+I30)/(U19+U30) -> 0.8333265995 | Q82: =(Q19+Q30)/(U19+U30) -> 0.1666734005

Sheet Compr Orig 20-21 BCP to 20 rev (hidden)
A1: Schedule | B1: Program Name | E1: MWh Savings | I1: Electric Rider Budget | M1: Therm Savings | Q1: Gas Rider Budget | U1: Total Rider Budget
E2: Original 2020-2021 BCP | F2: April 2020 Update | G2: Difference (ACP - Orig. BCP) | H2: % Change | I2: Original 2020-2021 BCP | J2: April 2020 Update | K2: Difference (ACP - Orig. BCP) | L2: % Change | M2: Original 2020-2021 BCP | N2: April 2020 Update | O2: Difference (ACP - Orig. BCP) | P2: % Change | Q2: Original 2020-2021 BCP | R2: April 2020 Update | S2: Difference (ACP - Orig. BCP) | T2: % Change | U2: Original 2020-2021 BCP | V2: April 2020 Update | W2: Difference (ACP - Orig. BCP) | X2: % Change | Z2: % electric savings | AA2: % gas savings
B3: Residential Energy Management
A4: 201 | B4: Low Income Weatherization | E4: 3915.7792 | F4: ='Portfolio--2020-2021'!G7 -> 3915.7792 | G4: =F4-E4 -> 0 | H4: =(F4-E4)/E4 -> 0 | I4: 12289870.85 | J4: ='Portfolio--2020-2021'!H7 -> 12289870.85 | K4: =J4-I4 -> 0 | L4: =(J4-I4)/I4 -> 0 | M4: 49918.31 | N4: ='Portfolio--2020-2021'!I7 -> 49918.31 | O4: =N4-M4 -> 0 | P4: =(N4-M4)/M4 -> 0 | Q4: 2543666.336 | R4: ='Portfolio--2020-2021'!J7 -> 2543666.336 | S4: =R4-Q4 -> 0 | T4: =(R4-Q4)/Q4 -> 0 | U4: =I4+Q4 -> 14833537.19 | V4: =J4+R4 -> 14833537.19 | W4: =V4-U4 -> 0 | X4: =(V4-U4)/U4 -> 0 | Z4: =F4/$F$19 -> 0.02176975785 | AA4: =N4/$N$19 -> 0.01137299615
A5: 214 | B5: Single Family Existing Subtotal | E5: 129717.4616 | F5: ='Portfolio--2020-2021'!G8 -> 137220.0276 | G5: =F5-E5 -> 7502.566 | H5: =(F5-E5)/E5 -> 0.05783774912 | I5: 30125922.27 | J5: ='Portfolio--2020-2021'!H8 -> 34783732.27 | K5: 4657810 | L5: 0.1546113662 | M5: 4121639.9 | N5: ='Portfolio--2020-2021'!I8 -> 4123983.5 | O5: 2343.6 | P5: 0.0005686086259 | Q5: 14304230.33 | R5: ='Portfolio--2020-2021'!J8 -> 14304230.33 | S5: 0 | T5: 0 | U5: =I5+Q5 -> 44430152.6 | V5: 49087962.6 | W5: 4657810 | X5: 0.1048344363 | Z5: =F5/$F$19 -> 0.7628741612 | AA5: =N5/$N$19 -> 0.9395760486
C6: Residential lighting | E6: 35395.01941 | F6: ='Portfolio--2020-2021'!G9 -> 35395.01941 | G6: 0 | H6: 0 | I6: 8972128.11 | J6: ='Portfolio--2020-2021'!H9 -> 8972128.11 | K6: 0 | L6: 0 | M6: 0 | N6: ='Portfolio--2020-2021'!I9 -> 0 | O6: 0 | Q6: 0 | R6: ='Portfolio--2020-2021'!J9 -> 0 | S6: 0 | U6: 8972128.11 | V6: 8972128.11 | W6: 0 | X6: 0 | Z6: 0.1967784603 | AA6: 0
C7: Space heat | E7: 24918.025 | F7: ='Portfolio--2020-2021'!G10 -> 28464.405 | G7: 3546.38 | H7: 0.1423218734 | I7: 10049839 | J7: ='Portfolio--2020-2021'!H10 -> 12915839 | K7: 2866000 | L7: 0.2851786979 | M7: 1130450 | N7: ='Portfolio--2020-2021'!I10 -> 1130450 | O7: 0 | P7: 0 | Q7: 4376339 | R7: ='Portfolio--2020-2021'!J10 -> 4376339 | S7: 0 | T7: 0 | U7: 14426178 | V7: 17292178 | W7: 2866000 | X7: 0.1986666184 | Z7: 0.1582477388 | AA7: 0.2575528598
C8: Water heat | E8: 2000 | F8: ='Portfolio--2020-2021'!G11 -> 4450 | G8: 2450 | H8: 1.225 | I8: 884919.5 | J8: ='Portfolio--2020-2021'!H11 -> 1984919.5 | K8: 1100000 | L8: 1.243050922 | M8: 107600 | N8: ='Portfolio--2020-2021'!I11 -> 107600 | O8: 0 | P8: 0 | Q8: 657919.5 | R8: ='Portfolio--2020-2021'!J11 -> 657919.5 | S8: 0 | T8: 0 | U8: 1542839 | V8: 2642839 | W8: 1100000 | X8: 0.712971347 | Z8: 0.02473975612 | AA8: 0.02451473989
C9: Home Energy Assessment | E9: 6247.546654 | F9: ='Portfolio--2020-2021'!G12 -> 6247.546654 | G9: 0 | H9: 0 | I9: 2350595.157 | J9: ='Portfolio--2020-2021'!H12 -> 2350595.157 | K9: 0 | L9: 0 | M9: 0 | N9: ='Portfolio--2020-2021'!I12 -> 0 | O9: 0 | Q9: 0 | R9: ='Portfolio--2020-2021'!J12 -> 0 | S9: 0 | U9: 2350595.157 | V9: 2350595.157 | W9: 0 | X9: 0 | Z9: 0.03473320912 | AA9: 0
C10: Home Appliances | E10: 3598.09528 | F10: ='Portfolio--2020-2021'!G13 -> 5104.28128 | G10: 1506.186 | H10: 0.41860648 | I10: 1899915.34 | J10: ='Portfolio--2020-2021'!H13 -> 2591725.34 | K10: 691810 | L10: 0.364126751 | M10: 11673.6 | N10: ='Portfolio--2020-2021'!I13 -> 14017.2 | O10: 2343.6 | P10: 0.2007606908 | Q10: 0 | R10: ='Portfolio--2020-2021'!J13 -> 0 | S10: 0 | U10: 1899915.34 | V10: 2591725.34 | W10: 691810 | X10: 0.364126751 | Z10: 0.02837723012 | AA10: 0.003193568885
C11: Smart Thermostats | E11: 1555.48144 | F11: ='Portfolio--2020-2021'!G14 -> 1555.48144 | G11: 0 | H11: 0 | I11: 525502.86 | J11: ='Portfolio--2020-2021'!H14 -> 525502.86 | K11: 0 | L11: 0 | M11: 629449.8 | N11: ='Portfolio--2020-2021'!I14 -> 629449.8 | O11: 0 | P11: 0 | Q11: 2606184.05 | R11: ='Portfolio--2020-2021'!J14 -> 2606184.05 | S11: 0 | T11: 0 | U11: 3131686.91 | V11: 3131686.91 | W11: 0 | X11: 0 | Z11: 0.008647692467 | AA11: 0.1434089045
C12: Showerheads | E12: 4104.4598 | F12: ='Portfolio--2020-2021'!G15 -> 4104.4598 | G12: 0 | H12: 0 | I12: 1213769.06 | J12: ='Portfolio--2020-2021'!H15 -> 1213769.06 | K12: 0 | L12: 0 | M12: 115264.7 | N12: ='Portfolio--2020-2021'!I15 -> 115264.7 | O12: 0 | P12: 0 | Q12: 501672.66 | R12: ='Portfolio--2020-2021'!J15 -> 501672.66 | S12: 0 | T12: 0 | U12: 1715441.72 | V12: 1715441.72 | W12: 0 | X12: 0 | Z12: 0.02281872685 | AA12: 0.02626100501
C13: Weatherization | E13: 4122.524 | F13: ='Portfolio--2020-2021'!G16 -> 4122.524 | G13: 0 | H13: 0 | I13: 1494156.2 | J13: ='Portfolio--2020-2021'!H16 -> 1494156.2 | K13: 0 | L13: 0 | M13: 695350.8 | N13: ='Portfolio--2020-2021'!I16 -> 695350.8 | O13: 0 | P13: 0 | Q13: 4163333.8 | R13: ='Portfolio--2020-2021'!J16 -> 4163333.8 | S13: 0 | T13: 0 | U13: 5657490 | V13: 5657490 | W13: 0 | X13: 0 | Z13: 0.02291915469 | AA13: 0.1584232713
C14: Home Energy Reports | E14: 47776.31 | F14: ='Portfolio--2020-2021'!G17 -> 47776.31 | G14: 0 | H14: 0 | I14: 2735097.042 | J14: ='Portfolio--2020-2021'!H17 -> 2735097.042 | K14: 0 | L14: 0 | M14: 1431851 | N14: ='Portfolio--2020-2021'!I17 -> 1431851 | O14: 0 | P14: 0 | Q14: 1998781.317 | R14: ='Portfolio--2020-2021'!J17 -> 1998781.317 | S14: 0 | T14: 0 | U14: 4733878.359 | V14: 4733878.359 | W14: 0 | X14: 0 | Z14: 0.2656121928 | AA14: 0.3262216992
A15: 215 | B15: Single Family New Construction | E15: 1447.7 | F15: ='Portfolio--2020-2021'!G18 -> 1447.7 | G15: 0 | H15: 0 | I15: 1027008.82 | J15: ='Portfolio--2020-2021'!H18 -> 1027008.82 | K15: 0 | L15: 0 | M15: 51860 | N15: ='Portfolio--2020-2021'!I18 -> 51860 | O15: 0 | P15: 0 | Q15: 291287.32 | R15: ='Portfolio--2020-2021'!J18 -> 291287.32 | S15: 0 | T15: 0 | U15: 1318296.14 | V15: 1318296.14 | W15: 0 | X15: 0 | Z15: 0.008048482009 | AA15: 0.01181537557
A16: 214 & 217 | B16: Moderate Income Residences | E16: 0 | F16: ='Portfolio--2020-2021'!G19 -> 0 | G16: =F16-E16 -> 0 | H16: =(F16-E16)/E16 ->  | I16: 87326.66 | J16: ='Portfolio--2020-2021'!H19 -> 87326.66 | K16: 0 | L16: 0 | M16: 0 | N16: ='Portfolio--2020-2021'!I19 -> 0 | O16: 0 | Q16: 87326.66 | R16: ='Portfolio--2020-2021'!J19 -> 87326.66 | S16: 0 | T16: 0 | U16: 174653.32 | V16: 174653.32 | W16: 0 | X16: 0 | Z16: 0 | AA16: 0
A17: 217 | B17: Multifamily Retrofit | E17: 25426.92114 | F17: ='Portfolio--2020-2021'!G20 -> 25426.92114 | G17: =F17-E17 -> 0 | H17: =(F17-E17)/E17 -> 0 | I17: 13544656.43 | J17: ='Portfolio--2020-2021'!H20 -> 13544656.43 | K17: 0 | L17: 0 | M17: 53534.26 | N17: ='Portfolio--2020-2021'!I20 -> 53534.26 | O17: 0 | P17: 0 | Q17: 533849.924 | R17: ='Portfolio--2020-2021'!J20 -> 533849.924 | S17: 0 | T17: 0 | U17: 14078506.36 | V17: 14078506.36 | W17: 0 | X17: 0 | Z17: 0.1413608602 | AA17: 0.01219682583
A18: 218 | B18: Multifamily New Construction | E18: 11862 | F18: ='Portfolio--2020-2021'!G21 -> 11862 | G18: =F18-E18 -> 0 | H18: =(F18-E18)/E18 -> 0 | I18: 4408040.4 | J18: ='Portfolio--2020-2021'!H21 -> 4408040.4 | K18: 0 | L18: 0 | M18: 109900 | N18: ='Portfolio--2020-2021'!I21 -> 109900 | O18: 0 | P18: 0 | Q18: 910415.06 | R18: ='Portfolio--2020-2021'!J21 -> 910415.06 | S18: 0 | T18: 0 | U18: 5318455.46 | V18: 5318455.46 | W18: 0 | X18: 0 | Z18: 0.06594673868 | AA18: 0.02503875385
B19: Subtotal, Residential Programs | E19: =E4+E5+SUM(E15:E18) -> 172369.8619 | F19: =F4+F5+SUM(F15:F18) -> 179872.4279 | G19: 7502.566 | H19: 0.04352597325 | I19: =I4+I5+SUM(I15:I18) -> 61482825.44 | J19: =J4+J5+SUM(J15:J18) -> 66140635.44 | K19: 4657810 | L19: 0.07575790421 | M19: =M4+M5+SUM(M15:M18) -> 4386852.47 | N19: =N4+N5+SUM(N15:N18) -> 4389196.07 | O19: 2343.6 | P19: 0.000534232691 | Q19: =Q4+Q5+SUM(Q15:Q18) -> 18670775.63 | R19: =R4+R5+SUM(R15:R18) -> 18670775.63 | S19: 0 | T19: 0 | U19: =I19+Q19 -> 80153601.06 | V19: =J19+R19 -> 84811411.06 | W19: 4657810 | X19: 0.05811105101
B21: Business Energy Management
A22: 250 | B22: Commercial / Industrial Retrofit | E22: 132000 | F22: ='Portfolio--2020-2021'!G25 -> 148500 | G22: =F22-E22 -> 16500 | H22: =(F22-E22)/E22 -> 0.125 | I22: 36050062.18 | J22: ='Portfolio--2020-2021'!H25 -> 40242911.96 | K22: =J22-I22 -> 4192849.778 | L22: =(J22-I22)/I22 -> 0.1163063119 | M22: 650000 | N22: ='Portfolio--2020-2021'!I25 -> 670000 | O22: =N22-M22 -> 20000 | P22: =(N22-M22)/M22 -> 0.03076923077 | Q22: 3050756 | R22: ='Portfolio--2020-2021'!J25 -> 3120756 | S22: =R22-Q22 -> 70000 | T22: =(R22-Q22)/Q22 -> 0.02294513229 | U22: =I22+Q22 -> 39100818.18 | V22: =J22+R22 -> 43363667.96 | W22: =V22-U22 -> 4262849.778 | X22: =(V22-U22)/U22 -> 0.1090220097 | Z22: =F22/$F$30 -> 0.4852515002 | AA22: =N22/$N$30 -> 0.2033948112
A23: 251 | B23: Commercial/Industrial New Construction | E23: 35000 | F23: ='Portfolio--2020-2021'!G26 -> 35000 | G23: =F23-E23 -> 0 | H23: =(F23-E23)/E23 -> 0 | I23: 9344846 | J23: ='Portfolio--2020-2021'!H26 -> 9344846 | K23: 0 | L23: 0 | M23: 200000 | N23: ='Portfolio--2020-2021'!I26 -> 200000 | O23: 0 | P23: 0 | Q23: 1055934 | R23: ='Portfolio--2020-2021'!J26 -> 1055934 | S23: 0 | T23: 0 | U23: =I23+Q23 -> 10400780 | V23: 10400780 | W23: 0 | X23: 0 | Z23: =F23/$F$30 -> 0.1143690405 | AA23: =N23/$N$30 -> 0.06071486901
A24: 253 | B24: Commercial Strategic Energy Management | E24: 28000 | F24: ='Portfolio--2020-2021'!G27 -> 30000 | G24: 2000 | H24: 0.07142857143 | I24: 3001687.317 | J24: ='Portfolio--2020-2021'!H27 -> 3569336.394 | K24: 567649.0769 | L24: 0.1891099961 | M24: 1140000 | N24: ='Portfolio--2020-2021'!I27 -> 1140000 | O24: 0 | P24: 0 | Q24: 1127632.789 | R24: ='Portfolio--2020-2021'!J27 -> 1127632.789 | S24: 0 | T24: 0 | U24: 4129320.106 | V24: 4696969.183 | W24: 567649.0769 | X24: 0.1374679275 | Z24: 0.0980306061 | AA24: 0.3460747534
A25: E258 | B25: Large Power User - Self Directed Program - Subtotal | E25: 16151.13 | F25: ='Portfolio--2020-2021'!G28 -> 16151.13 | G25: 0 | H25: 0 | I25: 8370734.387 | J25: ='Portfolio--2020-2021'!H28 -> 8370734.387 | K25: 0 | L25: 0 | M25: 0 | N25: ='Portfolio--2020-2021'!I28 -> 0 | O25: 0 | Q25: 0 | R25: ='Portfolio--2020-2021'!J28 -> 0 | S25: 0 | U25: 8370734.387 | V25: 8370734.387 | W25: 0 | X25: 0 | Z25: 0.05277683544 | AA25: 0
A26: E258 | C26: 449 Customers | E26: 9197.791 | F26: ='Portfolio--2020-2021'!G29 -> 9197.791 | G26: 0 | H26: 0 | I26: 4248048.734 | J26: ='Portfolio--2020-2021'!H29 -> 4248048.734 | K26: 0 | L26: 0 | M26: 0 | N26: ='Portfolio--2020-2021'!I29 -> 0 | O26: 0 | Q26: 0 | R26: ='Portfolio--2020-2021'!J29 -> 0 | S26: 0 | U26: 4248048.734 | V26: 4248048.734 | W26: 0 | X26: 0 | Z26: 0.03005550088 | AA26: 0
A27: E258 | C27: Non-449 Customers | E27: 6953.339 | F27: ='Portfolio--2020-2021'!G30 -> 6953.339 | G27: 0 | H27: 0 | I27: 4122685.653 | J27: ='Portfolio--2020-2021'!H30 -> 4122685.653 | K27: 0 | L27: 0 | M27: 0 | N27: ='Portfolio--2020-2021'!I30 -> 0 | O27: 0 | Q27: 0 | R27: ='Portfolio--2020-2021'!J30 -> 0 | S27: 0 | U27: 4122685.653 | V27: 4122685.653 | W27: 0 | X27: 0 | Z27: 0.02272133455 | AA27: 0
A28: 261 | B28: Energy Efficient Technology Evaluation | E28: 0 | F28: ='Portfolio--2020-2021'!G31 -> 0 | G28: 0 | I28: 0 | J28: ='Portfolio--2020-2021'!H31 -> 0 | K28: 0 | M28: 0 | N28: ='Portfolio--2020-2021'!I31 -> 0 | O28: 0 | Q28: 0 | R28: ='Portfolio--2020-2021'!J31 -> 0 | S28: 0 | U28: 0 | V28: 0 | W28: 0 | Z28: 0 | AA28: 0
A29: 262 | B29: Commercial Rebates | E29: 52802.86898 | F29: ='Portfolio--2020-2021'!G32 -> 76375.7446 | G29: 23572.87562 | H29: 0.44643172 | I29: 21485516.04 | J29: ='Portfolio--2020-2021'!H32 -> 27327113.46 | K29: 5841597.42 | L29: =(J29-I29)/I29 -> 0.2718853673 | M29: 1077664 | N29: ='Portfolio--2020-2021'!I32 -> 1284086 | O29: 206422 | P29: 0.1915457879 | Q29: 4043390.844 | R29: ='Portfolio--2020-2021'!J32 -> 4801390.844 | S29: 758000 | T29: 0.1874664185 | U29: 25528906.88 | V29: 32128504.3 | W29: 6599597.42 | X29: 0.2585146889 | Z29: 0.2495720178 | AA29: 0.3898155664
B30: Subtotal, Business Programs | E30: =SUM(E22:E25)+E28+E29 -> 263953.999 | F30: =SUM(F22:F25)+F28+F29 -> 306026.8746 | G30: 42072.87562 | H30: 0.159394727 | I30: =SUM(I22:I25)+I28+I29 -> 78252845.92 | J30: =SUM(J22:J25)+J28+J29 -> 88854942.2 | K30: 10602096.27 | L30: 0.1354851207 | M30: =SUM(M22:M29) -> 3067664 | N30: =SUM(N22:N29) -> 3294086 | O30: 226422 | P30: 0.07380925682 | Q30: =SUM(Q22:Q29) -> 9277713.633 | R30: =SUM(R22:R29) -> 10105713.63 | S30: 828000 | T30: 0.08924612601 | U30: 87530559.56 | V30: 98960655.83 | W30: 11430096.27 | X30: 0.130584065
R31: ='Portfolio--2020-2021'!J34 -> 0 | V31: =J31+R31 -> 0
B32: Pilots With Uncertain Savings | R32: ='Portfolio--2020-2021'!J35 -> 0
A33: 249 | B33: Residential | E33: 11480 | F33: ='Portfolio--2020-2021'!G36 -> 11480 | G33: =F33-E33 -> 0 | H33: =(F33-E33)/E33 -> 0 | I33: 2771949.5 | J33: ='Portfolio--2020-2021'!H36 -> 2771949.5 | K33: =J33-I33 -> 0 | L33: =(J33-I33)/I33 -> 0 | M33: 300000 | N33: ='Portfolio--2020-2021'!I36 -> 300000 | O33: =N33-M33 -> 0 | P33: =(N33-M33)/M33 -> 0 | Q33: 176700 | R33: ='Portfolio--2020-2021'!J36 -> 176700 | S33: =R33-Q33 -> 0 | T33: =(R33-Q33)/Q33 -> 0 | U33: =I33+Q33 -> 2948649.5 | V33: 2948649.5 | W33: =V33-U33 -> 0 | X33: =(V33-U33)/U33 -> 0
A34: 249 | B34: Commercial Pay for Performance Pilot | E34: 3600 | F34: ='Portfolio--2020-2021'!G37 -> 3600 | G34: 0 | H34: 0 | I34: 1219220 | J34: ='Portfolio--2020-2021'!H37 -> 1219220 | K34: 0 | L34: 0 | M34: 20000 | N34: ='Portfolio--2020-2021'!I37 -> 20000 | O34: 0 | P34: 0 | Q34: 25125 | R34: ='Portfolio--2020-2021'!J37 -> 25125 | S34: 0 | T34: 0 | U34: 1244345 | V34: 1244345 | W34: 0 | X34: 0
B35: Subtotal, Pilots | E35: =SUM(E33:E34) -> 15080 | F35: =SUM(F33:F34) -> 15080 | G35: 0 | H35: 0 | I35: =SUM(I33:I34) -> 3991169.5 | J35: =SUM(J33:J34) -> 3991169.5 | K35: 0 | L35: =(J35-I35)/I35 -> 0 | M35: =SUM(M33:M34) -> 320000 | N35: =SUM(N33:N34) -> 320000 | O35: =N35-M35 -> 0 | P35: 0 | Q35: =SUM(Q33:Q34) -> 201825 | R35: =SUM(R33:R34) -> 201825 | S35: 0 | T35: 0 | U35: 4192994.5 | V35: 4192994.5 | W35: 0 | X35: 0
B37: Regional Efficiency Programs
A38: E254 | B38: NW Energy Efficiency Alliance (NEEA) | E38: 23564.4 | F38: ='Portfolio--2020-2021'!G41 -> 23564.4 | G38: =F38-E38 -> 0 | H38: =(F38-E38)/E38 -> 0 | I38: 8914410 | J38: ='Portfolio--2020-2021'!H41 -> 8914410 | K38: =J38-I38 -> 0 | L38: =(J38-I38)/I38 -> 0 | N38: ='Portfolio--2021 Specific'!I41 -> 0 | O38: =N38-M38 -> 0 | P38: =(N38-M38)/M38 ->  | S38: =R38-Q38 -> 0 | T38: =(R38-Q38)/Q38 ->  | U38: =I38+Q38 -> 8914410 | V38: =J38+R38 -> 8914410 | W38: =V38-U38 -> 0 | X38: =(V38-U38)/U38 -> 0 | Z38: NOTE: Although budget is a 14% decrease, actual annual spending has been ~$4.7 million, not $5.2 million
B39: NEEA Natural Gas Market Transformation | E39: 0 | F39: ='Portfolio--2020-2021'!G42 -> 0 | G39: 0 | I39: 0 | J39: ='Portfolio--2020-2021'!H42 -> 0 | K39: 0 | M39: 0 | N39: ='Portfolio--2021 Specific'!I42 -> 0 | O39: 0 | Q39: 3466888 | R39: ='Portfolio--2020-2021'!J42 -> 3466888 | S39: 0 | T39: 0 | U39: =I39+Q39 -> 3466888 | V39: =J39+R39 -> 3466888 | W39: 0 | X39: 0
B40: Targeted DSM | E40: 0 | F40: ='Portfolio--2020-2021'!G43 -> 0 | G40: 0 | I40: 926784.74 | J40: ='Portfolio--2020-2021'!H43 -> 926784.74 | K40: 0 | L40: 0 | M40: 0 | N40: ='Portfolio--2021 Specific'!I43 -> 0 | O40: 0 | Q40: 397193.46 | R40: ='Portfolio--2020-2021'!J43 -> 397193.46 | S40: 0 | T40: 0 | U40: 1323978.2 | V40: 1323978.2 | W40: 0 | X40: 0
A41: E292 | B41: Generation, Transmission and Distribution | E41: 1500 | F41: ='Portfolio--2020-2021'!G44 -> 1500 | G41: 0 | H41: 0 | I41: 0 | J41: ='Portfolio--2020-2021'!H44 -> 0 | K41: 0 | N41: ='Portfolio--2021 Specific'!I44 -> 0 | O41: 0 | S41: 0 | U41: 0 | V41: 0 | W41: 0
B42: Subtotal, Regional Programs | E42: =SUM(E38:E41) -> 25064.4 | F42: =SUM(F38:F41) -> 25064.4 | G42: =F42-E42 -> 0 | H42: 0 | I42: =SUM(I38:I41) -> 9841194.74 | J42: =SUM(J38:J41) -> 9841194.74 | K42: =J42-I42 -> 0 | L42: =(J42-I42)/I42 -> 0 | M42: =SUM(M38:M41) -> 0 | N42: =SUM(N38:N41) -> 0 | O42: 0 | Q42: =SUM(Q38:Q41) -> 3864081.46 | R42: =SUM(R38:R41) -> 3864081.46 | S42: 0 | T42: =(R42-Q42)/Q42 -> 0 | U42: =I42+Q42 -> 13705276.2 | V42: 13705276.2 | W42: 0 | X42: 0
B44: Energy Efficiency Portfolio Support
B45: Data and Systems Services | F45: ='Portfolio--2020-2021'!G48 -> 0 | G45: =F45-E45 -> 0 | H45: =(F45-E45)/E45 ->  | I45: 2121378.42 | J45: ='Portfolio--2020-2021'!H48 -> 2121378.42 | K45: =J45-I45 -> 0 | L45: =(J45-I45)/I45 -> 0 | N45: ='Portfolio--2020-2021'!I48 -> 0 | O45: =N45-M45 -> 0 | P45: =(N45-M45)/M45 ->  | Q45: 316987.58 | R45: ='Portfolio--2020-2021'!J48 -> 316987.58 | S45: =R45-Q45 -> 0 | T45: =(R45-Q45)/Q45 -> 0 | U45: =I45+Q45 -> 2438366 | V45: =J45+R45 -> 2438366 | W45: =V45-U45 -> 0 | X45: =(V45-U45)/U45 -> 0
B46: Rebates Processing | F46: ='Portfolio--2020-2021'!G49 -> 0 | G46: 0 | I46: 1268135.73 | J46: ='Portfolio--2020-2021'!H49 -> 1268135.73 | K46: 0 | L46: 0 | N46: ='Portfolio--2020-2021'!I49 -> 0 | O46: 0 | Q46: 202826.78 | R46: ='Portfolio--2020-2021'!J49 -> 202826.78 | S46: 0 | T46: 0 | U46: =I46+Q46 -> 1470962.51 | V46: 1470962.51 | W46: 0 | X46: 0
B47: Verification Team | F47: ='Portfolio--2020-2021'!G50 -> 0 | G47: 0 | I47: 1171556.78 | J47: ='Portfolio--2020-2021'!H50 -> 1171556.78 | K47: 0 | L47: 0 | N47: ='Portfolio--2020-2021'!I50 -> 0 | O47: 0 | Q47: 172459.22 | R47: ='Portfolio--2020-2021'!J50 -> 172459.22 | S47: 0 | T47: 0 | U47: 1344016 | V47: 1344016 | W47: 0 | X47: 0
B48: Programs Support | F48: ='Portfolio--2020-2021'!G51 -> 0 | G48: 0 | I48: 825718.92 | J48: ='Portfolio--2020-2021'!H51 -> 825718.92 | K48: 0 | L48: 0 | N48: ='Portfolio--2020-2021'!I51 -> 0 | O48: 0 | Q48: 123797.08 | R48: ='Portfolio--2020-2021'!J51 -> 123797.08 | S48: 0 | T48: 0 | U48: 949516 | V48: 949516 | W48: 0 | X48: 0
B49: Trade Ally Memberships | F49: ='Portfolio--2020-2021'!G52 -> 0 | G49: 0 | I49: 236000 | J49: ='Portfolio--2020-2021'!H52 -> 236000 | K49: 0 | L49: 0 | N49: ='Portfolio--2020-2021'!I52 -> 0 | O49: 0 | Q49: 44000 | R49: ='Portfolio--2020-2021'!J52 -> 44000 | S49: 0 | T49: 0 | U49: 280000 | V49: 280000 | W49: 0 | X49: 0
B50: Trade Ally Network | F50: ='Portfolio--2020-2021'!G53 -> 0 | G50: 0 | I50: -2977 | J50: ='Portfolio--2020-2021'!H53 -> -2977 | K50: 0 | L50: 0 | N50: ='Portfolio--2020-2021'!I53 -> 0 | O50: 0 | Q50: -2977 | R50: ='Portfolio--2020-2021'!J53 -> -2977 | S50: 0 | T50: 0 | U50: -5954 | V50: -5954 | W50: 0 | X50: 0
B51: Automated Benchmarking System | F51: ='Portfolio--2020-2021'!G54 -> 0 | G51: 0 | I51: 603491.6 | J51: ='Portfolio--2020-2021'!H54 -> 603491.6 | K51: 0 | L51: 0 | N51: ='Portfolio--2020-2021'!I54 -> 0 | O51: 0 | Q51: 283340 | R51: ='Portfolio--2020-2021'!J54 -> 283340 | S51: 0 | T51: 0 | U51: 886831.6 | V51: 886831.6 | W51: 0 | X51: 0
B52: Energy Advisors | F52: ='Portfolio--2020-2021'!G55 -> 0 | G52: 0 | I52: 2755768.86 | J52: ='Portfolio--2020-2021'!H55 -> 2755768.86 | K52: 0 | L52: 0 | N52: ='Portfolio--2020-2021'!I55 -> 0 | O52: 0 | Q52: 403519.14 | R52: ='Portfolio--2020-2021'!J55 -> 403519.14 | S52: 0 | T52: 0 | U52: 3159288 | V52: 3159288 | W52: 0 | X52: 0
B53: Energy Efficient Communities | F53: ='Portfolio--2020-2021'!G56 -> 0 | G53: 0 | I53: 2064850.775 | J53: ='Portfolio--2020-2021'!H56 -> 2064850.775 | K53: 0 | L53: 0 | N53: ='Portfolio--2020-2021'!I56 -> 0 | O53: 0 | Q53: 476117.76 | R53: ='Portfolio--2020-2021'!J56 -> 476117.76 | S53: 0 | T53: 0 | U53: 2540968.535 | V53: 2540968.535 | W53: 0 | X53: 0
B54: Customer Digital Services | F54: ='Portfolio--2020-2021'!G57 -> 0 | G54: 0 | I54: 2714512.08 | J54: ='Portfolio--2020-2021'!H57 -> 2714512.08 | K54: 0 | L54: 0 | N54: ='Portfolio--2020-2021'!I57 -> 0 | O54: 0 | Q54: 928810.36 | R54: ='Portfolio--2020-2021'!J57 -> 928810.36 | S54: 0 | T54: 0 | U54: 3643322.44 | V54: 3643322.44 | W54: 0 | X54: 0
B55: Market Integration | F55: ='Portfolio--2020-2021'!G58 -> 0 | G55: 0 | I55: 631580.539 | J55: ='Portfolio--2020-2021'!H58 -> 631580.539 | K55: 0 | L55: 0 | N55: ='Portfolio--2020-2021'!I58 -> 0 | O55: 0 | Q55: 93667.961 | R55: ='Portfolio--2020-2021'!J58 -> 93667.961 | S55: 0 | T55: 0 | U55: 725248.5 | V55: 725248.5 | W55: 0 | X55: 0
B56: Events | F56: ='Portfolio--2020-2021'!G59 -> 0 | G56: 0 | I56: 732046.063 | J56: ='Portfolio--2020-2021'!H59 -> 732046.063 | K56: 0 | L56: 0 | N56: ='Portfolio--2020-2021'!I59 -> 0 | O56: 0 | Q56: 109598.837 | R56: ='Portfolio--2020-2021'!J59 -> 109598.837 | S56: 0 | T56: 0 | U56: 841644.9 | V56: 841644.9 | W56: 0 | X56: 0
B57: Brochures, non program-specific | F57: ='Portfolio--2020-2021'!G60 -> 0 | G57: 0 | I57: 0 | J57: ='Portfolio--2020-2021'!H60 -> 0 | K57: 0 | N57: ='Portfolio--2020-2021'!I60 -> 0 | O57: 0 | Q57: 0 | R57: ='Portfolio--2020-2021'!J60 -> 0 | S57: 0 | U57: 0 | V57: 0 | W57: 0
B58: Subtotal, Portfolio Support | F58: ='Portfolio--2020-2021'!G61 -> 0 | G58: 0 | I58: =SUM(I45:I57) -> 15122062.77 | J58: =SUM(J45:J57) -> 15122062.77 | K58: =J58-I58 -> 0 | L58: 0 | N58: ='Portfolio--2020-2021'!I61 -> 0 | O58: 0 | Q58: =SUM(Q45:Q57) -> 3152147.718 | R58: =SUM(R45:R57) -> 3152147.718 | S58: 0 | T58: 0 | U58: =I58+Q58 -> 18274210.48 | V58: =J58+R58 -> 18274210.48 | W58: 0 | X58: 0
B60: Energy Efficiency Research & Compliance
B61: Conservation Supply Curves | F61: ='Portfolio--2020-2021'!G64 -> 0 | G61: =F61-E61 -> 0 | H61: =(F61-E61)/E61 ->  | I61: 634379.64 | J61: ='Portfolio--2020-2021'!H64 -> 634379.64 | K61: =J61-I61 -> 0 | L61: =(J61-I61)/I61 -> 0 | N61: ='Portfolio--2020-2021'!I64 -> 0 | O61: =N61-M61 -> 0 | P61: =(N61-M61)/M61 ->  | Q61: 94792.36 | R61: ='Portfolio--2020-2021'!J64 -> 94792.36 | S61: =R61-Q61 -> 0 | T61: =(R61-Q61)/Q61 -> 0 | U61: =I61+Q61 -> 729172 | V61: =J61+R61 -> 729172 | W61: =V61-U61 -> 0 | X61: =(V61-U61)/U61 -> 0
B62: Strategic Planning | F62: ='Portfolio--2020-2021'!G65 -> 0 | G62: 0 | I62: 1408171.735 | J62: ='Portfolio--2020-2021'!H65 -> 1408171.735 | K62: 0 | L62: 0 | N62: ='Portfolio--2020-2021'!I65 -> 0 | O62: 0 | Q62: 105818.765 | R62: ='Portfolio--2020-2021'!J65 -> 105818.765 | S62: 0 | T62: 0 | U62: =I62+Q62 -> 1513990.5 | V62: 1513990.5 | W62: 0 | X62: 0
B63: Market Research | F63: ='Portfolio--2020-2021'!G66 -> 0 | G63: 0 | I63: 333871.88 | J63: ='Portfolio--2020-2021'!H66 -> 333871.88 | K63: 0 | L63: 0 | N63: ='Portfolio--2020-2021'!I66 -> 0 | O63: 0 | Q63: 51303.52 | R63: ='Portfolio--2020-2021'!J66 -> 51303.52 | S63: 0 | T63: 0 | U63: 385175.4 | V63: 385175.4 | W63: 0 | X63: 0
B64: Program Evaluation | F64: ='Portfolio--2020-2021'!G67 -> 0 | G64: 0 | I64: 4006746.105 | J64: ='Portfolio--2020-2021'!H67 -> 4006746.105 | K64: 0 | L64: 0 | N64: ='Portfolio--2020-2021'!I67 -> 0 | O64: 0 | Q64: 767295.395 | R64: ='Portfolio--2020-2021'!J67 -> 767295.395 | S64: 0 | T64: 0 | U64: 4774041.5 | V64: 4774041.5 | W64: 0 | X64: 0
B65: Biennial Electric Conservation Acquisition Review | F65: ='Portfolio--2020-2021'!G68 -> 0 | G65: 0 | I65: 150000 | J65: ='Portfolio--2020-2021'!H68 -> 150000 | K65: 0 | L65: 0 | N65: ='Portfolio--2020-2021'!I68 -> 0 | O65: 0 | Q65: 0 | R65: ='Portfolio--2020-2021'!J68 -> 0 | S65: 0 | U65: 150000 | V65: 150000 | W65: 0 | X65: 0
B66: Subtotal, Research & Compliance | F66: ='Portfolio--2020-2021'!G69 -> 0 | G66: 0 | I66: =SUM(I61:I65) -> 6533169.36 | J66: =SUM(J61:J65) -> 6533169.36 | K66: =J66-I66 -> 0 | L66: 0 | N66: ='Portfolio--2020-2021'!I69 -> 0 | O66: 0 | Q66: =SUM(Q61:Q65) -> 1019210.04 | R66: =SUM(R61:R65) -> 1019210.04 | S66: 0 | T66: 0 | U66: 7552379.4 | V66: 7552379.4 | W66: 0 | X66: 0
J67: ='Portfolio--2020-2021'!H70 -> 0 | N67: ='Portfolio--2020-2021'!I70 -> 0 | R67: ='Portfolio--2020-2021'!J70 -> 0 | V67: =J67+R67 -> 0
B68: Total Savings, Efficiency Programs Included in CE Calculations | E68: =E19+E30+E35+E42+E58+E66 -> 476468.2609 | F68: =F19+F30+F35+F42+F58+F66 -> 526043.7025 | G68: =F68-E68 -> 49575.44162 | H68: =(F68-E68)/E68 -> 0.1040477314 | I68: =I19+I30+I35+I42+I58+I66 -> 175223267.7 | J68: =J19+J30+J35+J42+J58+J66 -> 190483174 | K68: =I68-J68 -> -15259906.27 | L68: =(J68-I68)/I68 -> 0.08708835575 | M68: =M19+M30+M35+M42+M58+M66 -> 7774516.47 | N68: =N19+N30+N35+N42+N58+N66 -> 8003282.07 | O68: =N68-M68 -> 228765.6 | P68: =(N68-M68)/M68 -> 0.02942505825 | Q68: =Q19+Q30+Q35+Q42+Q58+Q66 -> 36185753.48 | R68: =R19+R30+R35+R42+R58+R66 -> 37013753.48 | S68: =R68-Q68 -> 828000 | T68: =(R68-Q68)/Q68 -> 0.02288193337 | U68: =U19+U30+U35+U42+U58+U66 -> 211409021.2 | V68: =V19+V30+V35+V42+V58+V66 -> 227496927.5 | W68: =U68-V68 -> -16087906.27 | X68: =(V68-U68)/U68 -> 0.07609848522
R69: ='Portfolio--2020-2021'!J72 -> 0 | V69: 0
B70: Other Customer Programs | R70: ='Portfolio--2020-2021'!J73 -> 0 | V70: 0
A71: E150 | B71: Net Metering | F71: ='Portfolio--2020-2021'!G74 -> 0 | G71: =F71-E71 -> 0 | H71: =(F71-E71)/E71 ->  | I71: 2908514.5 | J71: ='Portfolio--2020-2021'!H74 -> 2908514.5 | K71: =J71-I71 -> 0 | L71: =(J71-I71)/I71 -> 0 | N71: ='Portfolio--2020-2021'!I74 -> 0 | O71: =N71-M71 -> 0 | P71: =(N71-M71)/M71 ->  | Q71: 0 | R71: ='Portfolio--2020-2021'!J74 -> 0 | S71: =R71-Q71 -> 0 | T71: =(R71-Q71)/Q71 ->  | U71: =I71+Q71 -> 2908514.5 | V71: =J71+R71 -> 2908514.5 | W71: =V71-U71 -> 0 | X71: =(V71-U71)/U71 -> 0
A72: 249 | B72: Demand Response Pilots | F72: ='Portfolio--2020-2021'!G75 -> 0 | G72: 0 | H72: =(F72-E72)/E72 ->  | I72: 485100 | J72: ='Portfolio--2020-2021'!H75 -> 485100 | K72: 0 | L72: 0 | N72: ='Portfolio--2020-2021'!I75 -> 0 | O72: 0 | Q72: 207900 | R72: ='Portfolio--2020-2021'!J75 -> 207900 | S72: 0 | T72: 0 | U72: =I72+Q72 -> 693000 | V72: 693000 | W72: 0 | X72: 0
B73: Subtotal, Other Customer Programs | F73: ='Portfolio--2020-2021'!G76 -> 0 | G73: 0 | I73: =SUM(I71:I72) -> 3393614.5 | J73: =SUM(J71:J72) -> 3393614.5 | K73: =J73-I73 -> 0 | L73: =(J73-I73)/I73 -> 0 | N73: ='Portfolio--2020-2021'!I76 -> 0 | O73: 0 | Q73: =SUM(Q71:Q72) -> 207900 | R73: =SUM(R71:R72) -> 207900 | S73: 0 | T73: 0 | U73: 3601514.5 | V73: 3601514.5 | W73: 0 | X73: 0
B77: GRAND TOTAL All Programs | E77: =E68+E73 -> 476468.2609 | F77: ='Portfolio--2020-2021'!G80 -> 526043.7025 | G77: =F77-E77 -> 49575.44162 | H77: =(F77-E77)/E77 -> 0.1040477314 | I77: =I68+I73 -> 178616882.2 | J77: ='Portfolio--2020-2021'!H80 -> 193876788.5 | K77: =J77-I77 -> 15259906.27 | L77: =(J77-I77)/I77 -> 0.0854337288 | M77: =M68+M73 -> 7774516.47 | N77: ='Portfolio--2020-2021'!I80 -> 8003282.07 | O77: =N77-M77 -> 228765.6 | P77: =(N77-M77)/M77 -> 0.02942505825 | Q77: =Q68+Q73 -> 36393653.48 | R77: ='Portfolio--2020-2021'!J80 -> 37221653.48 | S77: =R77-Q77 -> 828000 | T77: =(R77-Q77)/Q77 -> 0.02275121954 | U77: =U68+U73 -> 215010535.7 | V77: =J77+R77 -> 231098442 | W77: =V77-U77 -> 16087906.27 | X77: =(V77-U77)/U77 -> 0.07482380443
B78: and Portfolio Budgets | E78: =E77/8760 -> 54.39135398 | F78: ='Portfolio--2020-2021'!G81 -> 60.05065097 | G78: =F78-E78 -> 5.659296989 | H78: =(F78-E78)/E78 -> 0.1040477314 | K78: =I78-J78 -> 0 | O78: =M78-N78 -> 0
F81: NOTE: July 24 CRAG meeting tables had 53.6 aMW | J81: =(J19+J30)/(V19+V30) -> 0.8434120607 | R81: =(R19+R30)/(V19+V30) -> 0.1565879393
I82: =(I19+I30)/(U19+U30) -> 0.8333265995 | Q82: =(Q19+Q30)/(U19+U30) -> 0.1666734005

Sheet Portfolio--2020-2021
G1: 2020-2021 Two-Year * Updated for 2020 Revision *
F2: PSE Conservation Rider Savings Goals and Budgets
B3: Last revised: | D3: =NOW() -> 2020-04-14T14:37:42.310
B4: Ref # | C4: Schedule Nos. (Unless otherwise noted, applies to both electric and gas) | D4: Program Name | G4: MWh Savings | H4: Electric Rider Budget | I4: Therm Savings | J4: Gas Rider Budget | K4: Total Rider Budget
D5: (All indented program or activity names are color-coded and comprise the totals of the above program or activity grouping.)
D6: Residential Energy Management
B7: a | C7: 201 | D7: Low Income Weatherization | G7: ='Portfolio--2020 Specific'!G7+'Portfolio--2021 Specific'!G7 -> 3915.7792 | H7: ='Portfolio--2020 Specific'!H7+'Portfolio--2021 Specific'!H7 -> 12289870.85 | I7: ='Portfolio--2020 Specific'!I7+'Portfolio--2021 Specific'!I7 -> 49918.31 | J7: ='Portfolio--2020 Specific'!J7+'Portfolio--2021 Specific'!J7 -> 2543666.336 | K7: =H7:H21+J7:J21 -> 14833537.19
B8: b | C8: 214 | D8: Single Family Existing Subtotal | G8: =SUM(G9:G17) -> 137220.0276 | H8: =SUM(H9:H17) -> 34783732.27 | I8: =SUM(I9:I17) -> 4123983.5 | J8: =SUM(J9:J17) -> 14304230.33 | K8: =H8:H22+J8:J22 -> 49087962.6
B9: c | E9: Residential lighting | G9: ='Portfolio--2020 Specific'!G9+'Portfolio--2021 Specific'!G9 -> 35395.01941 | H9: ='Portfolio--2020 Specific'!H9+'Portfolio--2021 Specific'!H9 -> 8972128.11 | I9: ='Portfolio--2020 Specific'!I9+'Portfolio--2021 Specific'!I9 -> 0 | J9: ='Portfolio--2020 Specific'!J9+'Portfolio--2021 Specific'!J9 -> 0 | K9: =H9:H23+J9:J23 -> 8972128.11
B10: d | E10: Space heat | G10: ='Portfolio--2020 Specific'!G10+'Portfolio--2021 Specific'!G10 -> 28464.405 | H10: ='Portfolio--2020 Specific'!H10+'Portfolio--2021 Specific'!H10 -> 12915839 | I10: ='Portfolio--2020 Specific'!I10+'Portfolio--2021 Specific'!I10 -> 1130450 | J10: ='Portfolio--2020 Specific'!J10+'Portfolio--2021 Specific'!J10 -> 4376339 | K10: =H10:H24+J10:J24 -> 17292178
B11: e | E11: Water heat | G11: ='Portfolio--2020 Specific'!G11+'Portfolio--2021 Specific'!G11 -> 4450 | H11: ='Portfolio--2020 Specific'!H11+'Portfolio--2021 Specific'!H11 -> 1984919.5 | I11: ='Portfolio--2020 Specific'!I11+'Portfolio--2021 Specific'!I11 -> 107600 | J11: ='Portfolio--2020 Specific'!J11+'Portfolio--2021 Specific'!J11 -> 657919.5 | K11: =H11:H25+J11:J25 -> 2642839
B12: f | E12: Home Energy Assessment | G12: ='Portfolio--2020 Specific'!G12+'Portfolio--2021 Specific'!G12 -> 6247.546654 | H12: ='Portfolio--2020 Specific'!H12+'Portfolio--2021 Specific'!H12 -> 2350595.157 | I12: ='Portfolio--2020 Specific'!I12+'Portfolio--2021 Specific'!I12 -> 0 | J12: ='Portfolio--2020 Specific'!J12+'Portfolio--2021 Specific'!J12 -> 0 | K12: =H12:H27+J12:J27 -> 2350595.157
B13: g | E13: Home Appliances | G13: ='Portfolio--2020 Specific'!G13+'Portfolio--2021 Specific'!G13 -> 5104.28128 | H13: ='Portfolio--2020 Specific'!H13+'Portfolio--2021 Specific'!H13 -> 2591725.34 | I13: ='Portfolio--2020 Specific'!I13+'Portfolio--2021 Specific'!I13 -> 14017.2 | J13: ='Portfolio--2020 Specific'!J13+'Portfolio--2021 Specific'!J13 -> 0 | K13: =H13:H28+J13:J28 -> 2591725.34
B14: h | E14: Smart Thermostats | G14: ='Portfolio--2020 Specific'!G14+'Portfolio--2021 Specific'!G14 -> 1555.48144 | H14: ='Portfolio--2020 Specific'!H14+'Portfolio--2021 Specific'!H14 -> 525502.86 | I14: ='Portfolio--2020 Specific'!I14+'Portfolio--2021 Specific'!I14 -> 629449.8 | J14: ='Portfolio--2020 Specific'!J14+'Portfolio--2021 Specific'!J14 -> 2606184.05 | K14: =H14:H29+J14:J29 -> 3131686.91
B15: i | E15: Showerheads | G15: ='Portfolio--2020 Specific'!G15+'Portfolio--2021 Specific'!G15 -> 4104.4598 | H15: ='Portfolio--2020 Specific'!H15+'Portfolio--2021 Specific'!H15 -> 1213769.06 | I15: ='Portfolio--2020 Specific'!I15+'Portfolio--2021 Specific'!I15 -> 115264.7 | J15: ='Portfolio--2020 Specific'!J15+'Portfolio--2021 Specific'!J15 -> 501672.66 | K15: =H15:H30+J15:J30 -> 1715441.72
B16: j | E16: Weatherization | G16: ='Portfolio--2020 Specific'!G16+'Portfolio--2021 Specific'!G16 -> 4122.524 | H16: ='Portfolio--2020 Specific'!H16+'Portfolio--2021 Specific'!H16 -> 1494156.2 | I16: ='Portfolio--2020 Specific'!I16+'Portfolio--2021 Specific'!I16 -> 695350.8 | J16: ='Portfolio--2020 Specific'!J16+'Portfolio--2021 Specific'!J16 -> 4163333.8 | K16: =H16:H31+J16:J31 -> 5657490
B17: k | E17: Home Energy Reports | G17: ='Portfolio--2020 Specific'!G17+'Portfolio--2021 Specific'!G17 -> 47776.31 | H17: ='Portfolio--2020 Specific'!H17+'Portfolio--2021 Specific'!H17 -> 2735097.042 | I17: ='Portfolio--2020 Specific'!I17+'Portfolio--2021 Specific'!I17 -> 1431851 | J17: ='Portfolio--2020 Specific'!J17+'Portfolio--2021 Specific'!J17 -> 1998781.317 | K17: =H17:H32+J17:J32 -> 4733878.359
B18: l | C18: 215 | D18: Single Family New Construction | G18: ='Portfolio--2020 Specific'!G18+'Portfolio--2021 Specific'!G18 -> 1447.7 | H18: ='Portfolio--2020 Specific'!H18+'Portfolio--2021 Specific'!H18 -> 1027008.82 | I18: ='Portfolio--2020 Specific'!I18+'Portfolio--2021 Specific'!I18 -> 51860 | J18: ='Portfolio--2020 Specific'!J18+'Portfolio--2021 Specific'!J18 -> 291287.32 | K18: =H18:H33+J18:J33 -> 1318296.14
B19: m | C19: 214 & 217 | D19: Moderate Income Residences | G19: ='Portfolio--2020 Specific'!G19+'Portfolio--2021 Specific'!G19 -> 0 | H19: ='Portfolio--2020 Specific'!H19+'Portfolio--2021 Specific'!H19 -> 87326.66 | I19: ='Portfolio--2020 Specific'!I19+'Portfolio--2021 Specific'!I19 -> 0 | J19: ='Portfolio--2020 Specific'!J19+'Portfolio--2021 Specific'!J19 -> 87326.66 | K19: =H19:H34+J19:J34 -> 174653.32
B20: n | C20: 217 | D20: Multifamily Retrofit | G20: ='Portfolio--2020 Specific'!G20+'Portfolio--2021 Specific'!G20 -> 25426.92114 | H20: ='Portfolio--2020 Specific'!H20+'Portfolio--2021 Specific'!H20 -> 13544656.43 | I20: ='Portfolio--2020 Specific'!I20+'Portfolio--2021 Specific'!I20 -> 53534.26 | J20: ='Portfolio--2020 Specific'!J20+'Portfolio--2021 Specific'!J20 -> 533849.924 | K20: =H20:H35+J20:J35 -> 14078506.36
B21: o | C21: 218 | D21: Multifamily New Construction | G21: ='Portfolio--2020 Specific'!G21+'Portfolio--2021 Specific'!G21 -> 11862 | H21: ='Portfolio--2020 Specific'!H21+'Portfolio--2021 Specific'!H21 -> 4408040.4 | I21: ='Portfolio--2020 Specific'!I21+'Portfolio--2021 Specific'!I21 -> 109900 | J21: ='Portfolio--2020 Specific'!J21+'Portfolio--2021 Specific'!J21 -> 910415.06 | K21: =H21:H36+J21:J36 -> 5318455.46
B22: p | D22: Total, Residential Programs | G22: =G7+G8+SUM(G18:G21) -> 179872.4279 | H22: =H7+H8+SUM(H18:H21) -> 66140635.44 | I22: =I7+I8+SUM(I18:I21) -> 4389196.07 | J22: =J7+J8+SUM(J18:J21) -> 18670775.63 | K22: =H22:H37+J22:J37 -> 84811411.06
D24: Business Energy Management
B25: q | C25: 250 | D25: Commercial / Industrial Retrofit | G25: ='Portfolio--2020 Specific'!G25+'Portfolio--2021 Specific'!G25 -> 148500 | H25: ='Portfolio--2020 Specific'!H25+'Portfolio--2021 Specific'!H25 -> 40242911.96 | I25: ='Portfolio--2020 Specific'!I25+'Portfolio--2021 Specific'!I25 -> 670000 | J25: ='Portfolio--2020 Specific'!J25+'Portfolio--2021 Specific'!J25 -> 3120756 | K25: =H25:H33+J25:J33 -> 43363667.96
B26: r | C26: 251 | D26: Commercial/Industrial New Construction | G26: ='Portfolio--2020 Specific'!G26+'Portfolio--2021 Specific'!G26 -> 35000 | H26: ='Portfolio--2020 Specific'!H26+'Portfolio--2021 Specific'!H26 -> 9344846 | I26: ='Portfolio--2020 Specific'!I26+'Portfolio--2021 Specific'!I26 -> 200000 | J26: ='Portfolio--2020 Specific'!J26+'Portfolio--2021 Specific'!J26 -> 1055934 | K26: 10400780
B27: s | C27: 253 | D27: Commercial Strategic Energy Management | G27: ='Portfolio--2020 Specific'!G27+'Portfolio--2021 Specific'!G27 -> 30000 | H27: ='Portfolio--2020 Specific'!H27+'Portfolio--2021 Specific'!H27 -> 3569336.394 | I27: ='Portfolio--2020 Specific'!I27+'Portfolio--2021 Specific'!I27 -> 1140000 | J27: ='Portfolio--2020 Specific'!J27+'Portfolio--2021 Specific'!J27 -> 1127632.789 | K27: 4696969.183
B28: t | C28: E258 | D28: Large Power User - Self Directed Program - Subtotal | G28: =G29+G30 -> 16151.13 | H28: =H29+H30 -> 8370734.387 | K28: 8370734.387
B29: u | C29: E258 | E29: 449 Customers | G29: ='Portfolio--2020 Specific'!G29+'Portfolio--2021 Specific'!G29 -> 9197.791 | H29: ='Portfolio--2020 Specific'!H29+'Portfolio--2021 Specific'!H29 -> 4248048.734 | K29: 4248048.734
B30: v | C30: E258 | E30: Non-449 Customers | G30: ='Portfolio--2020 Specific'!G30+'Portfolio--2021 Specific'!G30 -> 6953.339 | H30: ='Portfolio--2020 Specific'!H30+'Portfolio--2021 Specific'!H30 -> 4122685.653 | K30: 4122685.653
B31: w | C31: 261 | D31: Energy Efficient Technology Evaluation | G31: ='Portfolio--2020 Specific'!G31+'Portfolio--2021 Specific'!G31 -> 0 | H31: ='Portfolio--2020 Specific'!H31+'Portfolio--2021 Specific'!H31 -> 0 | I31: ='Portfolio--2020 Specific'!I31+'Portfolio--2021 Specific'!I31 -> 0 | J31: ='Portfolio--2020 Specific'!J31+'Portfolio--2021 Specific'!J31 -> 0 | K31: 0
B32: x | C32: 262 | D32: Commercial Rebates | G32: ='Portfolio--2020 Specific'!G32+'Portfolio--2021 Specific'!G32 -> 76375.7446 | H32: ='Portfolio--2020 Specific'!H32+'Portfolio--2021 Specific'!H32 -> 27327113.46 | I32: ='Portfolio--2020 Specific'!I32+'Portfolio--2021 Specific'!I32 -> 1284086 | J32: ='Portfolio--2020 Specific'!J32+'Portfolio--2021 Specific'!J32 -> 4801390.844 | K32: 32128504.3
B33: y | D33: Subtotal, Business Programs | G33: =SUM(G25:G28)+SUM(G31:G32) -> 306026.8746 | H33: =SUM(H25:H28)+SUM(H31:H32) -> 88854942.2 | I33: =SUM(I25:I32) -> 3294086 | J33: =SUM(J25:J32) -> 10105713.63 | K33: 98960655.83
D35: Pilots With Uncertain Savings
B36: z | C36: 249 | D36: Residential | G36: ='Portfolio--2020 Specific'!G36+'Portfolio--2021 Specific'!G36 -> 11480 | H36: ='Portfolio--2020 Specific'!H36+'Portfolio--2021 Specific'!H36 -> 2771949.5 | I36: ='Portfolio--2020 Specific'!I36+'Portfolio--2021 Specific'!I36 -> 300000 | J36: ='Portfolio--2020 Specific'!J36+'Portfolio--2021 Specific'!J36 -> 176700 | K36: =H36:H38+J36:J38 -> 2948649.5
B37: aa | C37: 249 | D37: Commercial | G37: ='Portfolio--2020 Specific'!G37+'Portfolio--2021 Specific'!G37 -> 3600 | H37: ='Portfolio--2020 Specific'!H37+'Portfolio--2021 Specific'!H37 -> 1219220 | I37: ='Portfolio--2020 Specific'!I37+'Portfolio--2021 Specific'!I37 -> 20000 | J37: ='Portfolio--2020 Specific'!J37+'Portfolio--2021 Specific'!J37 -> 25125 | K37: 1244345
B38: ab | D38: Subtotal, Pilots | G38: =SUM(G36:G37) -> 15080 | H38: =SUM(H36:H37) -> 3991169.5 | I38: =SUM(I36:I37) -> 320000 | J38: =SUM(J36:J37) -> 201825 | K38: 4192994.5
D40: Regional Efficiency Programs
B41: ac | C41: E254 | D41: NW Energy Efficiency Alliance (NEEA) | G41: ='Portfolio--2020 Specific'!G41+'Portfolio--2021 Specific'!G41 -> 23564.4 | H41: ='Portfolio--2020 Specific'!H41+'Portfolio--2021 Specific'!H41 -> 8914410 | K41: =H41:H45+J41:J45 -> 8914410
B42: ad | D42: NEEA Natural Gas Market Transformation | I42: ='Portfolio--2020 Specific'!I42+'Portfolio--2021 Specific'!I42 -> 0 | J42: ='Portfolio--2020 Specific'!J42+'Portfolio--2021 Specific'!J42 -> 3466888 | K42: 3466888
B43: ae | C43: 219 | D43: Targeted DSM Pilot | G43: ='Portfolio--2020 Specific'!G43+'Portfolio--2021 Specific'!G43 -> 0 | H43: ='Portfolio--2020 Specific'!H43+'Portfolio--2021 Specific'!H43 -> 926784.74 | I43: ='Portfolio--2020 Specific'!I43+'Portfolio--2021 Specific'!I43 -> 0 | J43: ='Portfolio--2020 Specific'!J43+'Portfolio--2021 Specific'!J43 -> 397193.46 | K43: 1323978.2
B44: af | C44: E292 | D44: Generation, Transmission and Distribution | G44: ='Portfolio--2020 Specific'!G44+'Portfolio--2021 Specific'!G44 -> 1500 | H44: ='Portfolio--2020 Specific'!H44+'Portfolio--2021 Specific'!H44 -> 0 | K44: 0
B45: ag | D45: Subtotal, Regional Programs | G45: =SUM(G41:G44) -> 25064.4 | H45: =SUM(H41:H44) -> 9841194.74 | I45: =SUM(I41:I44) -> 0 | J45: =SUM(J41:J44) -> 3864081.46 | K45: 13705276.2
D47: Energy Efficiency Portfolio Support
B48: ah | D48: Data and Systems Services | H48: ='Portfolio--2020 Specific'!H48+'Portfolio--2021 Specific'!H48 -> 2121378.42 | J48: ='Portfolio--2020 Specific'!J48+'Portfolio--2021 Specific'!J48 -> 316987.58 | K48: =H48:H61+J48:J61 -> 2438366
B49: ai | D49: Rebates Processing | H49: ='Portfolio--2020 Specific'!H49+'Portfolio--2021 Specific'!H49 -> 1268135.73 | J49: ='Portfolio--2020 Specific'!J49+'Portfolio--2021 Specific'!J49 -> 202826.78 | K49: =H49:H61+J49:J61 -> 1470962.51
B50: aj | D50: Verification Team | H50: ='Portfolio--2020 Specific'!H50+'Portfolio--2021 Specific'!H50 -> 1171556.78 | J50: ='Portfolio--2020 Specific'!J50+'Portfolio--2021 Specific'!J50 -> 172459.22 | K50: 1344016
B51: ak | D51: Programs Support | H51: ='Portfolio--2020 Specific'!H51+'Portfolio--2021 Specific'!H51 -> 825718.92 | J51: ='Portfolio--2020 Specific'!J51+'Portfolio--2021 Specific'!J51 -> 123797.08 | K51: 949516
B52: al | D52: Trade Ally Memberships | H52: ='Portfolio--2020 Specific'!H52+'Portfolio--2021 Specific'!H52 -> 236000 | J52: ='Portfolio--2020 Specific'!J52+'Portfolio--2021 Specific'!J52 -> 44000 | K52: 280000
B53: am | D53: Trade Ally Network (revenue + cost) | H53: ='Portfolio--2020 Specific'!H53+'Portfolio--2021 Specific'!H53 -> -2977 | J53: ='Portfolio--2020 Specific'!J53+'Portfolio--2021 Specific'!J53 -> -2977 | K53: -5954
B54: an | D54: Automated Benchmarking System | H54: ='Portfolio--2020 Specific'!H54+'Portfolio--2021 Specific'!H54 -> 603491.6 | J54: ='Portfolio--2020 Specific'!J54+'Portfolio--2021 Specific'!J54 -> 283340 | K54: 886831.6
B55: ao | D55: Energy Advisors | H55: ='Portfolio--2020 Specific'!H55+'Portfolio--2021 Specific'!H55 -> 2755768.86 | J55: ='Portfolio--2020 Specific'!J55+'Portfolio--2021 Specific'!J55 -> 403519.14 | K55: 3159288
B56: ap | D56: Energy Efficient Communities | H56: ='Portfolio--2020 Specific'!H56+'Portfolio--2021 Specific'!H56 -> 2064850.775 | J56: ='Portfolio--2020 Specific'!J56+'Portfolio--2021 Specific'!J56 -> 476117.76 | K56: 2540968.535
B57: aq | D57: Customer Digital Services | H57: ='Portfolio--2020 Specific'!H57+'Portfolio--2021 Specific'!H57 -> 2714512.08 | J57: ='Portfolio--2020 Specific'!J57+'Portfolio--2021 Specific'!J57 -> 928810.36 | K57: 3643322.44
B58: ar | D58: Market Integration | H58: ='Portfolio--2020 Specific'!H58+'Portfolio--2021 Specific'!H58 -> 631580.539 | J58: ='Portfolio--2020 Specific'!J58+'Portfolio--2021 Specific'!J58 -> 93667.961 | K58: 725248.5
B59: as | D59: Events | H59: ='Portfolio--2020 Specific'!H59+'Portfolio--2021 Specific'!H59 -> 732046.063 | J59: ='Portfolio--2020 Specific'!J59+'Portfolio--2021 Specific'!J59 -> 109598.837 | K59: 841644.9
B60: at | D60: Brochures, non program-specific | H60: ='Portfolio--2020 Specific'!H60+'Portfolio--2021 Specific'!H60 -> 0 | J60: ='Portfolio--2020 Specific'!J60+'Portfolio--2021 Specific'!J60 -> 0 | K60: 0
B61: au | D61: Subtotal, Portfolio Support | H61: =SUM(H48:H60) -> 15122062.77 | J61: =SUM(J48:J60) -> 3152147.718 | K61: 18274210.48
D63: Energy Efficiency Research & Compliance
B64: av | D64: Conservation Supply Curves | H64: ='Portfolio--2020 Specific'!H64+'Portfolio--2021 Specific'!H64 -> 634379.64 | J64: ='Portfolio--2020 Specific'!J64+'Portfolio--2021 Specific'!J64 -> 94792.36 | K64: =H64:H68+J64:J68 -> 729172
B65: aw | D65: Strategic Planning | H65: ='Portfolio--2020 Specific'!H65+'Portfolio--2021 Specific'!H65 -> 1408171.735 | J65: ='Portfolio--2020 Specific'!J65+'Portfolio--2021 Specific'!J65 -> 105818.765 | K65: =H65:H69+J65:J69 -> 1513990.5
B66: ax | D66: Market Research | H66: ='Portfolio--2020 Specific'!H66+'Portfolio--2021 Specific'!H66 -> 333871.88 | J66: ='Portfolio--2020 Specific'!J66+'Portfolio--2021 Specific'!J66 -> 51303.52 | K66: =H66:H70+J66:J70 -> 385175.4
B67: ay | D67: Program Evaluation | H67: ='Portfolio--2020 Specific'!H67+'Portfolio--2021 Specific'!H67 -> 4006746.105 | J67: ='Portfolio--2020 Specific'!J67+'Portfolio--2021 Specific'!J67 -> 767295.395 | K67: =H67:H71+J67:J71 -> 4774041.5
B68: az | D68: Biennial Electric Conservation Acquisition Review | H68: ='Portfolio--2020 Specific'!H68+'Portfolio--2021 Specific'!H68 -> 150000 | J68: ='Portfolio--2020 Specific'!J68+'Portfolio--2021 Specific'!J68 -> 0 | K68: =H68:H72+J68:J72 -> 150000
B69: ba | D69: Subtotal, Research & Compliance | H69: =SUM(H64:H68) -> 6533169.36 | J69: =SUM(J64:J68) -> 1019210.04 | K69: =H69+J69 -> 7552379.4
B71: bb | C71: Total Savings, Efficiency Programs Included in CE Calculations | G71: =G22+G33+G38+G45 -> 526043.7025 | H71: =H22+H33+H38+H45+H61+H69 -> 190483174 | I71: =I22+I33+I38+I45 -> 8003282.07 | J71: =J22+J33+J38+J45+J61+J69 -> 37013753.48 | K71: =H71+J71 -> 227496927.5
D73: Other Customer Programs
B74: bc | C74: E150 | D74: Net Metering | H74: ='Portfolio--2020 Specific'!H74+'Portfolio--2021 Specific'!H74 -> 2908514.5 | K74: =H74:H76+J74:J76 -> 2908514.5
B75: bd | C75: 249A, 271 | D75: Demand Response Pilot | H75: ='Portfolio--2020 Specific'!H75+'Portfolio--2021 Specific'!H75 -> 485100 | J75: ='Portfolio--2020 Specific'!J75+'Portfolio--2021 Specific'!J75 -> 207900 | K75: 693000
B76: be | D76: Subtotal, Other Energy Efficiency Programs | H76: =SUM(H74:H75) -> 3393614.5 | J76: =SUM(J74:J75) -> 207900 | K76: 3601514.5
B80: bf | D80: TOTAL UTILITY CONSERVATION GOALS | G80: =G71 -> 526043.7025 | H80: =H71+H76 -> 193876788.5 | I80: =I71 -> 8003282.07 | J80: =J71+J76 -> 37221653.48 | K80: =H80+J80 -> 231098442
D81: and Portfolio Budgets | G81: =G80/8760 -> 60.05065097
D82: NOTE: The electric Portfolio Savings Target figure in line be is 0.1% higher than the calculated Total 2018-2019 Portfolio Savings Target of 519,994 MWh. This is due to the timing of revisions of RTF UES values in the Home Appliances program subsequent to target-setting. Please select the "Go to Building the Electric Target" button to the left to see each element of the 2018-2019 Portfolio Savings Target calculation steps.
B85: bg | D85: EIA Target | G85: ='Apr-2020-Blg''g 2-yr elec target'!L14 -> 434197 | I85: Electric Only | J85: CPA Pro-Rata Share
G86: =G85/8760 -> 49.56586758
B88: bh | D88: EIA and Natural Gas Penalty Threshold | G88: ='Apr-2020-Blg''g 2-yr elec target'!L17 -> 410632.6 | I88: 6155000 | J88: EIA Target - NEEA
G89: =G88/8760 -> 46.87586758
B91: bi | D91: Two-Year Decoupling Threshold | G91: ='Apr-2020-Blg''g 2-yr elec target'!L18 -> 21709.85 | H91: 5% of IRP Total Biennial Potential of | I91: ='Building the 2-yr gas target'!G17 -> 308000 | J91: 5% of CPA Pro-Rata Share
G92: =G91/8760 -> 2.478293379 | H92: =G85 -> 434197
B95: bk | E95: Blue cells = use for 10% "info-only" calculation: | H95: =(H38+H61)/H71 -> 0.1003407906 | J95: =(J38+J61)/J71 -> 0.09061422857
F96: Add up all blue cells and divide by "Total, Efficiency Programs Included in CE Calculations" line.
F97: HER program costs excluded from "info-only" calculation because savings will be measured.
B99: bl | E99: Purple cells = use to indicate a reasonable amt. spent on EM&V (condition (6)(c)): | H99: =(H48+H50+SUM(H67:H68))/(H22+H33) -> 0.04806383136 | J99: =(J48+J50+SUM(J67:J68))/(J22+J33) -> 0.04367253363
B100: bn | E100: EM&V Budget (WAC 480-109-120(1)(b)(vi)(B)) | H100: =(H48+H50+SUM(H67:H68)) -> 7449681.305 | J100: =(J48+J50+SUM(J67:J68)) -> 1256742.195
F101: (Line bl) Add up the sum of [Data & Systems Services + Program Evaluation + BECAR + Verification] purple cells and divide by the [Residential + Business] purple cells.
F102: (Line bn) Add up the sum of [Data & Systems Services + Program Evaluation + BECAR + Verification] purple cells

Sheet Portfolio--2020 Specific
G1: Updated 2020 - BCP
F2: PSE Conservation Rider Savings Goals and Budgets
B3: Last revised: | D3: =NOW() -> 2020-04-14T14:37:42.310
B4: Ref # | C4: Schedule Nos. (Unless otherwise noted, applies to both electric and gas) | D4: Program Name | G4: MWh Savings | H4: Electric Rider Budget | I4: Therm Savings | J4: Gas Rider Budget | K4: Total Rider Budget
D5: (All indented program or activity names are color-coded and comprise the totals of the above program or activity grouping.)
D6: Residential Energy Management
B7: a | C7: 201 | D7: Low Income Weatherization | G7: ='2020 BCP Sector View Electric'!S8/1000 -> 1965.8721 | H7: ='2020 BCP Sector View Electric'!R8 -> 6149015.802 | I7: ='2020 Sector View Gas'!S8 -> 25007.23 | J7: ='2020 Sector View Gas'!R8 -> 1272180.755
B8: b | C8: 214 | D8: Single Family Existing Subtotal | G8: =SUM(G9:G17) -> 106089.7595 | H8: =SUM(H9:H17) -> 19521339.95 | I8: =SUM(I9:I17) -> 2702707.7 | J8: =SUM(J9:J17) -> 7147688.59
B9: c | E9: Residential lighting | G9: ='2020 BCP Sector View Electric'!S15/1000 -> 31185.37755 | H9: ='2020 BCP Sector View Electric'!R15 -> 6511511.3
B10: d | E10: Space heat | G10: ='2020 BCP Sector View Electric'!S12/1000 -> 14207.24 | H10: ='2020 BCP Sector View Electric'!R12 -> 6437919.5 | I10: ='2020 Sector View Gas'!S12 -> 565225 | J10: ='2020 Sector View Gas'!R12 -> 2188169.5
B11: e | E11: Water heat | G11: ='2020 BCP Sector View Electric'!S10/1000 -> 2225 | H11: ='2020 BCP Sector View Electric'!R10 -> 992459.75 | I11: ='2020 Sector View Gas'!S10 -> 53800 | J11: ='2020 Sector View Gas'!R10 -> 328959.75
B12: f | E12: Home Energy Assessment | G12: ='2020 BCP Sector View Electric'!S9/1000 -> 3657.1774 | H12: ='2020 BCP Sector View Electric'!R9 -> 1225694.6 | I12: ='2020 Sector View Gas'!S9 -> 0 | J12: ='2020 Sector View Gas'!R9 -> 0
B13: g | E13: Home Appliances | G13: ='2020 BCP Sector View Electric'!S13/1000 -> 2513.42028 | H13: ='2020 BCP Sector View Electric'!R13 -> 1315721.29 | I13: ='2020 Sector View Gas'!S14 -> 6784.8 | J13: ='2020 Sector View Gas'!R14 -> 0
B14: h | E14: Smart Thermostats | G14: ='2020 BCP Sector View Electric'!S17/1000 -> 781.88744 | H14: ='2020 BCP Sector View Electric'!R17 -> 260517.16 | I14: ='2020 Sector View Gas'!S15 -> 315223.8 | J14: ='2020 Sector View Gas'!R15 -> 1281820.75
B15: i | E15: Showerheads | G15: ='2020 BCP Sector View Electric'!S14/1000 -> 2581.9948 | H15: ='2020 BCP Sector View Electric'!R14 -> 662875.45 | I15: ='2020 Sector View Gas'!S13 -> 72138.7 | J15: ='2020 Sector View Gas'!R13 -> 267798.99
B16: j | E16: Weatherization | G16: ='2020 BCP Sector View Electric'!S11/1000 -> 2061.262 | H16: ='2020 BCP Sector View Electric'!R11 -> 747078.1 | I16: ='2020 Sector View Gas'!S11 -> 347675.4 | J16: ='2020 Sector View Gas'!R11 -> 2081666.9
B17: k | E17: Home Energy Reports | G17: ='2020 BCP Sector View Electric'!S16/1000 -> 46876.4 | H17: ='2020 BCP Sector View Electric'!R16 -> 1367562.8 | I17: ='2020 Sector View Gas'!S16 -> 1341860 | J17: ='2020 Sector View Gas'!R16 -> 999272.7
B18: l | C18: 215 | D18: Single Family New Construction | G18: ='2020 BCP Sector View Electric'!S18/1000+'2020 BCP Sector View Electric'!S19/1000 -> 723.85 | H18: ='2020 BCP Sector View Electric'!R18+'2020 BCP Sector View Electric'!R19 -> 514254.41 | I18: ='2020 Sector View Gas'!S17 -> 25930 | J18: =+'2020 Sector View Gas'!R17 -> 145643.66
B19: m | C19: 214 & 217 | D19: Moderate Income Residences | G19: ='2020 BCP Sector View Electric'!S20 -> 0 | H19: ='2020 BCP Sector View Electric'!R20 -> 43738.33 | I19: ='2020 Sector View Gas'!S18 -> 0 | J19: ='2020 Sector View Gas'!R18 -> 43738.33
B20: n | C20: 217 | D20: Multifamily Retrofit | G20: =('2020 BCP Sector View Electric'!S21+'2020 BCP Sector View Electric'!S22)/1000 -> 15736.24012 | H20: =('2020 BCP Sector View Electric'!R21+'2020 BCP Sector View Electric'!R22) -> 7389025.537 | I20: ='2020 Sector View Gas'!S19+'2020 Sector View Gas'!S20 -> 26854.68 | J20: ='2020 Sector View Gas'!R19+'2020 Sector View Gas'!R20 -> 272562.432
B21: o | C21: 218 | D21: Multifamily New Construction | G21: ='2020 BCP Sector View Electric'!S23/1000 -> 5112 | H21: ='2020 BCP Sector View Electric'!R23 -> 1975725.55 | I21: ='2020 Sector View Gas'!S21 -> 45600 | J21: ='2020 Sector View Gas'!R21 -> 400714.53
B22: p | D22: Total, Residential Programs | G22: =G7+G8+SUM(G18:G21) -> 129627.7217 | H22: =H7+H8+SUM(H18:H21) -> 35593099.58 | I22: =I7+I8+SUM(I18:I21) -> 2826099.61 | J22: =J7+J8+SUM(J18:J21) -> 9282528.297
D24: Business Energy Management
B25: q | C25: 250 | D25: Commercial / Industrial Retrofit | G25: =('2020 BCP Sector View Electric'!S28/1000) -> 70000 | H25: ='2020 BCP Sector View Electric'!R28 -> 19924506.45 | I25: ='2020 Sector View Gas'!S27 -> 330000 | J25: ='2020 Sector View Gas'!R27 -> 1509420 | K25: =H25:H33+J25:J33 -> 21433926.45
B26: r | C26: 251 | D26: Commercial/Industrial New Construction | G26: ='2020 BCP Sector View Electric'!S32/1000 -> 17500 | H26: ='2020 BCP Sector View Electric'!R32 -> 4666298 | I26: ='2020 Sector View Gas'!S30 -> 100000 | J26: ='2020 Sector View Gas'!R30 -> 525342 | K26: 5191640
B27: s | C27: 253 | D27: Commercial Strategic Energy Management | G27: ='2020 BCP Sector View Electric'!S33/1000 -> 14500 | H27: ='2020 BCP Sector View Electric'!R33 -> 1765437.548 | I27: ='2020 Sector View Gas'!S31 -> 570000 | J27: ='2020 Sector View Gas'!R31 -> 563816.5056 | K27: 2329254.053
B28: t | C28: E258 | D28: Large Power User - Self Directed Program Subtotal | G28: =G29+G30 -> 5118.359 | H28: =H29+H30 -> 3091810.976 | K28: 3091810.976
B29: u | C29: E258 | E29: 449 Customers | G29: ='2020 BCP Sector View Electric'!S37/1000 -> 3966.157 | H29: ='2020 BCP Sector View Electric'!R37 -> 2142404.367 | K29: 2142404.367
B30: v | C30: E258 | E30: Non-449 Customers | G30: ='2020 BCP Sector View Electric'!S38/1000 -> 1152.202 | H30: ='2020 BCP Sector View Electric'!R38 -> 949406.6091 | K30: 949406.6091
B31: w | C31: 261 | D31: Energy Efficient Technology Evaluation | G31: ='2020 BCP Sector View Electric'!S39 -> 0 | H31: ='2020 BCP Sector View Electric'!R39 -> 0 | I31: ='2020 Sector View Gas'!S34 -> 0 | J31: ='2020 Sector View Gas'!R34 -> 0 | K31: 0
B32: x | C32: 262 | D32: Commercial Rebates | G32: ='2020 BCP Sector View Electric'!S40/1000 -> 38187.8723 | H32: ='2020 BCP Sector View Electric'!R40 -> 12944258.23 | I32: ='2020 Sector View Gas'!S35 -> 642448 | J32: ='2020 Sector View Gas'!R35 -> 2400695.422 | K32: 15344953.65
B33: y | D33: Subtotal, Business Programs | G33: =SUM(G25:G28)+SUM(G31:G32) -> 145306.2313 | H33: =SUM(H25:H28)+SUM(H31:H32) -> 42392311.2 | I33: =SUM(I25:I32) -> 1642448 | J33: =SUM(J25:J32) -> 4999273.928 | K33: 47391585.12
D35: Pilots With Uncertain Savings
B36: z | C36: 249 | D36: Residential | G36: ='2020 BCP Sector View Electric'!S51/1000 -> 5740 | H36: ='2020 BCP Sector View Electric'!R51 -> 1400974.75 | I36: ='2020 Sector View Gas'!S46 -> 150000 | J36: ='2020 Sector View Gas'!R46 -> 88350 | K36: =H36:H38+J36:J38 -> 1489324.75
B37: aa | C37: 249 | D37: Commercial | G37: ='2020 BCP Sector View Electric'!S52/1000 -> 1800 | H37: ='2020 BCP Sector View Electric'!R52 -> 606280 | I37: ='2020 Sector View Gas'!S47 -> 10000 | J37: ='2020 Sector View Gas'!R47 -> 12562.5 | K37: 618842.5
B38: ab | D38: Subtotal, Pilots | G38: =SUM(G36:G37) -> 7540 | H38: =SUM(H36:H37) -> 2007254.75 | I38: =SUM(I36:I37) -> 160000 | J38: =SUM(J36:J37) -> 100912.5 | K38: 2108167.25
D40: Regional Efficiency Programs
B41: ac | C41: E254 | D41: NW Energy Efficiency Alliance (NEEA) | G41: ='2020 BCP Sector View Electric'!S58/1000 -> 12702 | H41: ='2020 BCP Sector View Electric'!R58 -> 4457205 | K41: =H41:H45+J41:J45 -> 4457205
B42: ad | D42: NEEA Natural Gas Market Transformation | I42: ='2020 Sector View Gas'!S54 -> 0 | J42: ='2020 Sector View Gas'!R54 -> 983444 | K42: 983444
B43: ae | C43: 219 | D43: Targeted DSM Pilot | G43: ='2020 BCP Sector View Electric'!S59/1000 -> 0 | H43: ='2020 BCP Sector View Electric'!R59 -> 445892.37 | I43: ='2020 Sector View Gas'!S53 -> 0 | J43: ='2020 Sector View Gas'!R53 -> 191096.73 | K43: 636989.1
B44: af | C44: E292 | D44: Generation, Transmission and Distribution | G44: ='2020 BCP Sector View Electric'!S60/1000 -> 750 | H44: ='2020 BCP Sector View Electric'!R60 -> 0 | K44: 0
B45: ag | D45: Subtotal, Regional Programs | G45: =SUM(G41:G44) -> 13452 | H45: =SUM(H41:H44) -> 4903097.37 | I45: =SUM(I41:I44) -> 0 | J45: =SUM(J41:J44) -> 1174540.73 | K45: 6077638.1
D47: Energy Efficiency Portfolio Support
B48: ah | D48: Data and Systems Services | H48: ='2020 BCP Sector View Electric'!R66 -> 1060689.21 | J48: ='2020 Sector View Gas'!R60 -> 158493.79 | K48: =H48:H61+J48:J61 -> 1219183
B49: ai | D49: Rebates Processing | H49: ='2020 BCP Sector View Electric'!R67 -> 634067.865 | J49: ='2020 Sector View Gas'!R61 -> 101413.39 | K49: 735481.255
B50: aj | D50: Verification Team | H50: ='2020 BCP Sector View Electric'!R68 -> 585778.39 | J50: ='2020 Sector View Gas'!R62 -> 86229.61 | K50: 672008
B51: ak | D51: Programs Support | H51: ='2020 BCP Sector View Electric'!R69 -> 412859.46 | J51: ='2020 Sector View Gas'!R63 -> 61898.54 | K51: 474758
B52: al | D52: Trade Ally Memberships | H52: ='2020 BCP Sector View Electric'!R70 -> 118000 | J52: ='2020 Sector View Gas'!R64 -> 22000 | K52: 140000
B53: am | D53: Trade Ally Network (revenue + cost) | H53: ='2020 BCP Sector View Electric'!R71 -> 211.5 | J53: ='2020 Sector View Gas'!R65 -> 211.5 | K53: 423
B54: an | D54: Automated Benchmarking System | H54: ='2020 BCP Sector View Electric'!R72 -> 347995.8 | J54: ='2020 Sector View Gas'!R66 -> 157920 | K54: 505915.8
B55: ao | D55: Energy Advisors | H55: ='2020 BCP Sector View Electric'!R73 -> 1377884.43 | J55: ='2020 Sector View Gas'!R67 -> 201774.57 | K55: 1579659
B56: ap | D56: Energy Efficient Communities | H56: ='2020 BCP Sector View Electric'!R74 -> 1032233.405 | J56: ='2020 Sector View Gas'!R68 -> 238058.88 | K56: 1270292.285
B57: aq | D57: Customer Digital Services | H57: ='2020 BCP Sector View Electric'!R75 -> 1335867.09 | J57: ='2020 Sector View Gas'!R69 -> 461209.13 | K57: 1797076.22
B58: ar | D58: Market Integration | H58: ='2020 BCP Sector View Electric'!R79 -> 315790.2695 | J58: ='2020 Sector View Gas'!R73 -> 46833.9805 | K58: 362624.25
B59: as | D59: Events | H59: ='2020 BCP Sector View Electric'!R80 -> 384923.0315 | J59: ='2020 Sector View Gas'!R74 -> 57649.4185 | K59: 442572.45
B60: at | D60: Brochures, non program-specific | H60: ='2020 BCP Sector View Electric'!R81 -> 0 | J60: ='2020 Sector View Gas'!R75 -> 0 | K60: 0
B61: au | D61: Subtotal, Portfolio Support | H61: =SUM(H48:H60) -> 7606300.451 | J61: =SUM(J48:J60) -> 1593692.809 | K61: 9199993.26
D63: Energy Efficiency Research & Compliance
B64: av | D64: Conservation Supply Curves | H64: ='2020 BCP Sector View Electric'!R87 -> 408539.82 | J64: ='2020 Sector View Gas'!R81 -> 61046.18 | K64: =H64:H68+J64:J68 -> 469586
B65: aw | D65: Strategic Planning | H65: ='2020 BCP Sector View Electric'!R88 -> 730185.8675 | J65: ='2020 Sector View Gas'!R82 -> 56809.3825 | K65: =H65:H69+J65:J69 -> 786995.25
B66: ax | D66: Market Research | H66: ='2020 BCP Sector View Electric'!R89 -> 166829.44 | J66: ='2020 Sector View Gas'!R83 -> 25635.76 | K66: =H66:H70+J66:J70 -> 192465.2
B67: ay | D67: Program Evaluation | H67: ='2020 BCP Sector View Electric'!R90 -> 2000828.052 | J67: ='2020 Sector View Gas'!R84 -> 380192.6975 | K67: =H67:H71+J67:J71 -> 2381020.75
B68: az | D68: Biennial Electric Conservation Acquisition Review | H68: ='2020 BCP Sector View Electric'!R91 -> 90000 | K68: =H68:H72+J68:J72 -> 90000
B69: ba | D69: Subtotal, Research & Compliance | H69: =SUM(H64:H68) -> 3396383.18 | J69: =SUM(J64:J68) -> 523684.02 | K69: =H69+J69 -> 3920067.2
B71: bb | C71: Total Savings, Efficiency Programs Included in CE Calculations | G71: =G22+G33+G38+G45 -> 295925.953 | H71: =H22+H33+H38+H45+H61+H69 -> 95898446.53 | I71: =I22+I33+I38+I45 -> 4628547.61 | J71: =J22+J33+J38+J45+J61+J69 -> 17674632.28 | K71: =H71+J71 -> 113573078.8
D73: Other Customer Programs
B74: bc | C74: E150 | D74: Net Metering | H74: ='2020 BCP Sector View Electric'!R97 -> 1429257.25 | K74: =H74:H76+J74:J76 -> 1429257.25
B75: bd | C75: 249A, 271 | D75: Demand Response Pilot | H75: ='2020 BCP Sector View Electric'!R98 -> 282100 | J75: ='2020 Sector View Gas'!R90 -> 120900 | K75: 403000
B76: be | D76: Subtotal, Other Energy Efficiency Programs | H76: =SUM(H74:H75) -> 1711357.25 | J76: =SUM(J74:J75) -> 120900 | K76: 1832257.25
B80: bf | D80: TOTAL UTILITY CONSERVATION GOALS | G80: =G71 -> 295925.953 | H80: =H71+H76 -> 97609803.78 | I80: =I71 -> 4628547.61 | J80: =J71+J76 -> 17795532.28 | K80: =H80+J80 -> 115405336.1
G81: =G80/8760 -> 33.78150148
B83: bg | E83: Blue cells = use for 10% "info-only" calculation: | H83: =(H38+H61)/H71 -> 0.1002472464 | J83: =(J38+J61)/J71 -> 0.09587782545
F84: Add up all blue cells and divide by "Total, Efficiency Programs Included in CE Calculations" line.
F85: HER program costs excluded from "info-only" calculation because savings will be measured.
B87: bh | E87: Purple cells = use to indicate a reasonable amt. spent on EM&V (condition (6)(c)): | H87: =(H48+H50+SUM(H67:H68))/(H22+H33) -> 0.04792301041 | J87: =(J48+J50+SUM(J67:J68))/(J22+J33) -> 0.04375610918
B88: bi | E88: EM&V Budget (WAC 480-109-120(1)(b)(vi)(B)) | H88: =(H48+H50+SUM(H67:H68)) -> 3737295.652 | J88: =(J48+J50+SUM(J67:J68)) -> 624916.0975
F89: (Line bh) Add up the sum of [Data & Systems Services + Program Evaluation + BECAR + Verification] purple cells and divide by the [Residential + Business] purple cells.
F90: (Line bi) Add up the sum of [Data & Systems Services + Program Evaluation + BECAR + Verification] purple cells

Sheet Portfolio--2021 Specific
G1: Updated 2021 - BCP
F2: PSE Conservation Rider Savings Goals and Budgets
B3: Last revised: | D3: =NOW() -> 2020-04-14T14:37:42.310
B4: Ref # | C4: Schedule Nos. (Unless otherwise noted, applies to both electric and gas) | D4: Program Name | G4: MWh Savings | H4: Electric Rider Budget | I4: Therm Savings | J4: Gas Rider Budget | K4: Total Rider Budget
D5: (All indented program or activity names are color-coded and comprise the totals of the above program or activity grouping.)
D6: Residential Energy Management
B7: a | C7: 201 | D7: Low Income Weatherization | G7: ='2021 ACP Sector View Elect'!S8/1000 -> 1949.9071 | H7: ='2021 ACP Sector View Elect'!R8 -> 6140855.052 | I7: ='2021 Sector View Gas'!S8 -> 24911.08 | J7: ='2021 Sector View Gas'!R8 -> 1271485.58 | K7: =H7:H22+J7:J22 -> 7412340.632
B8: b | C8: 214 | D8: Single Family Existing Subtotal | G8: =SUM(G9:G17) -> 31130.26811 | H8: =SUM(H9:H17) -> 15262392.32 | I8: =SUM(I9:I17) -> 1421275.8 | J8: =SUM(J9:J17) -> 7156541.737 | K8: 22418934.06
B9: c | E9: Residential lighting | G9: ='2021 ACP Sector View Elect'!S15/1000 -> 4209.64186 | H9: ='2021 ACP Sector View Elect'!R15 -> 2460616.81 | K9: 2460616.81
B10: d | E10: Space heat | G10: ='2021 ACP Sector View Elect'!S12/1000 -> 14257.165 | H10: ='2021 ACP Sector View Elect'!R12 -> 6477919.5 | I10: ='2021 Sector View Gas'!S12 -> 565225 | J10: ='2021 Sector View Gas'!R12 -> 2188169.5 | K10: 8666089
B11: e | E11: Water heat | G11: ='2021 ACP Sector View Elect'!S10/1000 -> 2225 | H11: ='2021 ACP Sector View Elect'!R10 -> 992459.75 | I11: ='2021 Sector View Gas'!S10 -> 53800 | J11: ='2021 Sector View Gas'!R10 -> 328959.75 | K11: 1321419.5
B12: f | E12: Home Energy Assessment | G12: ='2021 ACP Sector View Elect'!S9/1000 -> 2590.369254 | H12: ='2021 ACP Sector View Elect'!R9 -> 1124900.557 | I12: ='2021 Sector View Gas'!S9 -> 0 | J12: ='2021 Sector View Gas'!R9 -> 0 | K12: 1124900.557
B13: g | E13: Home Appliances | G13: ='2021 ACP Sector View Elect'!S13/1000 -> 2590.861 | H13: ='2021 ACP Sector View Elect'!R13 -> 1276004.05 | I13: ='2021 Sector View Gas'!S14 -> 7232.4 | J13: ='2021 Sector View Gas'!R14 -> 0 | K13: 1276004.05
B14: h | E14: Smart Thermostats | G14: ='2021 ACP Sector View Elect'!S17/1000 -> 773.594 | H14: ='2021 ACP Sector View Elect'!R17 -> 264985.7 | I14: ='2021 Sector View Gas'!S15 -> 314226 | J14: ='2021 Sector View Gas'!R15 -> 1324363.3 | K14: 1589349
B15: i | E15: Showerheads | G15: ='2021 ACP Sector View Elect'!S14/1000 -> 1522.465 | H15: ='2021 ACP Sector View Elect'!R14 -> 550893.61 | I15: ='2021 Sector View Gas'!S13 -> 43126 | J15: ='2021 Sector View Gas'!R13 -> 233873.67 | K15: 784767.28
B16: j | E16: Weatherization | G16: ='2021 ACP Sector View Elect'!S11/1000 -> 2061.262 | H16: ='2021 ACP Sector View Elect'!R11 -> 747078.1 | I16: ='2021 Sector View Gas'!S11 -> 347675.4 | J16: ='2021 Sector View Gas'!R11 -> 2081666.9 | K16: 2828745
B17: k | E17: Home Energy Reports | G17: ='2021 ACP Sector View Elect'!S16/1000 -> 899.91 | H17: ='2021 ACP Sector View Elect'!R16 -> 1367534.242 | I17: ='2021 Sector View Gas'!S16 -> 89991 | J17: ='2021 Sector View Gas'!R16 -> 999508.617 | K17: 2367042.859
B18: l | C18: 215 | D18: Single Family New Construction | G18: ='2021 ACP Sector View Elect'!S18/1000+'2021 ACP Sector View Elect'!S19/1000 -> 723.85 | H18: ='2021 ACP Sector View Elect'!R18+'2021 ACP Sector View Elect'!R19 -> 512754.41 | I18: =+'2021 Sector View Gas'!S17 -> 25930 | J18: ='2021 Sector View Gas'!R17 -> 145643.66 | K18: 658398.07
B19: m | C19: 214 & 217 | D19: Moderate Income Residences | G19: ='2021 ACP Sector View Elect'!S20 -> 0 | H19: ='2021 ACP Sector View Elect'!R20 -> 43588.33 | I19: ='2021 Sector View Gas'!S18 -> 0 | J19: ='2021 Sector View Gas'!R18 -> 43588.33 | K19: 87176.66
B20: n | C20: 217 | D20: Multifamily Retrofit | G20: =('2021 ACP Sector View Elect'!S21+'2021 ACP Sector View Elect'!S22)/1000 -> 9690.68102 | H20: ='2021 ACP Sector View Elect'!R21+'2021 ACP Sector View Elect'!R22 -> 6155630.898 | I20: ='2021 Sector View Gas'!S19+'2021 Sector View Gas'!S20 -> 26679.58 | J20: ='2021 Sector View Gas'!R20+'2021 Sector View Gas'!R19 -> 261287.492 | K20: 6416918.39
B21: o | C21: 218 | D21: Multifamily New Construction | G21: ='2021 ACP Sector View Elect'!S23/1000 -> 6750 | H21: ='2021 ACP Sector View Elect'!R23 -> 2432314.85 | I21: ='2021 Sector View Gas'!S21 -> 64300 | J21: ='2021 Sector View Gas'!R21 -> 509700.53 | K21: 2942015.38
B22: p | D22: Total, Residential Programs | G22: =G7+G8+SUM(G18:G21) -> 50244.70623 | H22: =H7+H8+SUM(H18:H21) -> 30547535.86 | I22: =I7+I8+SUM(I18:I21) -> 1563096.46 | J22: =J7+J8+SUM(J18:J21) -> 9388247.329 | K22: 39935783.19
D24: Business Energy Management
B25: q | C25: 250 | D25: Commercial / Industrial Retrofit | G25: =('2021 ACP Sector View Elect'!S28/1000) -> 78500 | H25: ='2021 ACP Sector View Elect'!R28 -> 20318405.51 | I25: ='2021 Sector View Gas'!S27 -> 340000 | J25: ='2021 Sector View Gas'!R27 -> 1611336 | K25: =H25:H33+J25:J33 -> 21929741.51
B26: r | C26: 251 | D26: Commercial/Industrial New Construction | G26: ='2021 ACP Sector View Elect'!S32/1000 -> 17500 | H26: ='2021 ACP Sector View Elect'!R32 -> 4678548 | I26: ='2021 Sector View Gas'!S30 -> 100000 | J26: ='2021 Sector View Gas'!R30 -> 530592 | K26: 5209140
B27: s | C27: 253 | D27: Commercial Strategic Energy Management | G27: ='2021 ACP Sector View Elect'!S33/1000 -> 15500 | H27: ='2021 ACP Sector View Elect'!R33 -> 1803898.846 | I27: ='2021 Sector View Gas'!S31 -> 570000 | J27: ='2021 Sector View Gas'!R31 -> 563816.2836 | K27: 2367715.13
B28: t | C28: E258 | D28: Large Power User - Self Directed Program Subtotal | G28: =G29+G30 -> 11032.771 | H28: =H29+H30 -> 5278923.411 | K28: 5278923.411
B29: u | C29: E258 | E29: 449 Customers | G29: ='2021 ACP Sector View Elect'!S37/1000 -> 5231.634 | H29: ='2021 ACP Sector View Elect'!R37 -> 2105644.367 | K29: 2105644.367
B30: v | C30: E258 | E30: Non-449 Customers | G30: ='2021 ACP Sector View Elect'!S38/1000 -> 5801.137 | H30: ='2021 ACP Sector View Elect'!R38 -> 3173279.044 | K30: 3173279.044
B31: w | C31: 261 | D31: Energy Efficient Technology Evaluation | G31: ='2021 ACP Sector View Elect'!S39 -> 0 | H31: ='2021 ACP Sector View Elect'!R39 -> 0 | I31: ='2021 Sector View Gas'!S34 -> 0 | J31: ='2021 Sector View Gas'!R34 -> 0 | K31: 0
B32: x | C32: 262 | D32: Commercial Rebates | G32: ='2021 ACP Sector View Elect'!S40/1000 -> 38187.8723 | H32: ='2021 ACP Sector View Elect'!R40 -> 14382855.23 | I32: ='2021 Sector View Gas'!S35 -> 641638 | J32: ='2021 Sector View Gas'!R35 -> 2400695.422 | K32: 16783550.65
B33: y | D33: Subtotal, Business Programs | G33: =SUM(G25:G28)+SUM(G31:G32) -> 160720.6433 | H33: =SUM(H25:H28)+SUM(H31:H32) -> 46462631 | I33: =SUM(I25:I32) -> 1651638 | J33: =SUM(J25:J32) -> 5106439.706 | K33: 51569070.71
D35: Pilots With Uncertain Savings
B36: z | C36: 249 | D36: Residential | G36: ='2021 ACP Sector View Elect'!S51/1000 -> 5740 | H36: ='2021 ACP Sector View Elect'!R51 -> 1370974.75 | I36: ='2021 Sector View Gas'!S46 -> 150000 | J36: ='2021 Sector View Gas'!R46 -> 88350 | K36: =H36:H38+J36:J38 -> 1459324.75
B37: aa | C37: 249 | D37: Commercial | G37: ='2021 ACP Sector View Elect'!S52/1000 -> 1800 | H37: ='2021 ACP Sector View Elect'!R52 -> 612940 | I37: ='2021 Sector View Gas'!S47 -> 10000 | J37: ='2021 Sector View Gas'!R47 -> 12562.5 | K37: 625502.5
B38: ab | D38: Subtotal, Pilots | G38: =SUM(G36:G37) -> 7540 | H38: =SUM(H36:H37) -> 1983914.75 | I38: =SUM(I36:I37) -> 160000 | J38: =SUM(J36:J37) -> 100912.5 | K38: 2084827.25
D40: Regional Efficiency Programs
B41: ac | C41: E254 | D41: NW Energy Efficiency Alliance (NEEA) | G41: ='2021 ACP Sector View Elect'!S58/1000 -> 10862.4 | H41: ='2021 ACP Sector View Elect'!R58 -> 4457205 | K41: =H41:H45+J41:J45 -> 4457205
B42: ad | D42: NEEA Natural Gas Market Transformation | I42: ='2021 Sector View Gas'!S54 -> 0 | J42: ='2021 Sector View Gas'!R54 -> 2483444 | K42: 2483444
B43: ae | C43: 219 | D43: Targeted DSM Pilot | G43: ='2021 ACP Sector View Elect'!S59/1000 -> 0 | H43: ='2021 ACP Sector View Elect'!R59 -> 480892.37 | I43: ='2021 Sector View Gas'!S53 -> 0 | J43: ='2021 Sector View Gas'!R53 -> 206096.73 | K43: 686989.1
B44: af | C44: E292 | D44: Generation, Transmission and Distribution | G44: ='2021 ACP Sector View Elect'!S60/1000 -> 750 | H44: ='2021 ACP Sector View Elect'!R60 -> 0 | K44: 0
B45: ag | D45: Subtotal, Regional Programs | G45: =SUM(G41:G44) -> 11612.4 | H45: =SUM(H41:H44) -> 4938097.37 | I45: =SUM(I41:I44) -> 0 | J45: =SUM(J41:J44) -> 2689540.73 | K45: 7627638.1
D47: Energy Efficiency Portfolio Support
B48: ah | D48: Data and Systems Services | H48: ='2021 ACP Sector View Elect'!R66 -> 1060689.21 | J48: ='2021 Sector View Gas'!R60 -> 158493.79 | K48: =H48:H61+J48:J61 -> 1219183
B49: ai | D49: Rebates Processing | H49: ='2021 ACP Sector View Elect'!R67 -> 634067.865 | J49: ='2021 Sector View Gas'!R61 -> 101413.39 | K49: 735481.255
B50: aj | D50: Verification Team | H50: ='2021 ACP Sector View Elect'!R68 -> 585778.39 | J50: ='2021 Sector View Gas'!R62 -> 86229.61 | K50: 672008
B51: ak | D51: Programs Support | H51: ='2021 ACP Sector View Elect'!R69 -> 412859.46 | J51: ='2021 Sector View Gas'!R63 -> 61898.54 | K51: 474758
B52: al | D52: Trade Ally Memberships | H52: ='2021 ACP Sector View Elect'!R70 -> 118000 | J52: ='2021 Sector View Gas'!R64 -> 22000 | K52: 140000
B53: am | D53: Trade Ally Network (revenue + cost) | H53: ='2021 ACP Sector View Elect'!R71 -> -3188.5 | J53: ='2021 Sector View Gas'!R65 -> -3188.5 | K53: -6377
B54: an | D54: Automated Benchmarking System | H54: ='2021 ACP Sector View Elect'!R72 -> 255495.8 | J54: ='2021 Sector View Gas'!R66 -> 125420 | K54: 380915.8
B55: ao | D55: Energy Advisors | H55: ='2021 ACP Sector View Elect'!R73 -> 1377884.43 | J55: ='2021 Sector View Gas'!R67 -> 201744.57 | K55: 1579629
B56: ap | D56: Energy Efficient Communities | H56: ='2021 ACP Sector View Elect'!R74 -> 1032617.37 | J56: ='2021 Sector View Gas'!R68 -> 238058.88 | K56: 1270676.25
B57: aq | D57: Customer Digital Services | H57: ='2021 ACP Sector View Elect'!R75 -> 1378644.99 | J57: ='2021 Sector View Gas'!R69 -> 467601.23 | K57: 1846246.22
B58: ar | D58: Market Integration | H58: ='2021 ACP Sector View Elect'!R79 -> 315790.2695 | J58: ='2021 Sector View Gas'!R73 -> 46833.9805 | K58: 362624.25
B59: as | D59: Events | H59: ='2021 ACP Sector View Elect'!R80 -> 347123.0315 | J59: ='2021 Sector View Gas'!R74 -> 51949.4185 | K59: 399072.45
B60: at | D60: Brochures, non program-specific | H60: ='2021 ACP Sector View Elect'!R81 -> 0 | J60: ='2021 Sector View Gas'!R75 -> 0 | K60: 0
B61: au | D61: Subtotal, Portfolio Support | H61: =SUM(H48:H60) -> 7515762.316 | J61: =SUM(J48:J60) -> 1558454.909 | K61: 9074217.225
D63: Energy Efficiency Research & Compliance
B64: av | D64: Conservation Supply Curves | H64: ='2021 ACP Sector View Elect'!R87 -> 225839.82 | J64: ='2021 Sector View Gas'!R81 -> 33746.18 | K64: =H64:H68+J64:J68 -> 259586
B65: aw | D65: Strategic Planning | H65: ='2021 ACP Sector View Elect'!R88 -> 677985.8675 | J65: ='2021 Sector View Gas'!R82 -> 49009.3825 | K65: =H65:H69+J65:J69 -> 726995.25
B66: ax | D66: Market Research | H66: ='2021 ACP Sector View Elect'!R89 -> 167042.44 | J66: ='2021 Sector View Gas'!R83 -> 25667.76 | K66: =H66:H70+J66:J70 -> 192710.2
B67: ay | D67: Program Evaluation | H67: ='2021 ACP Sector View Elect'!R90 -> 2005918.052 | J67: ='2021 Sector View Gas'!R84 -> 387102.6975 | K67: =H67:H71+J67:J71 -> 2393020.75
B68: az | D68: Biennial Electric Conservation Acquisition Review | H68: ='2021 ACP Sector View Elect'!R91 -> 60000 | K68: =H68:H72+J68:J72 -> 60000
B69: ba | D69: Subtotal, Research & Compliance | H69: =SUM(H64:H68) -> 3136786.18 | J69: =SUM(J64:J68) -> 495526.02 | K69: =H69+J69 -> 3632312.2
B71: bb | C71: Total Savings, Efficiency Programs Included in CE Calculations | G71: =G22+G33+G38+G45 -> 230117.7495 | H71: =H22+H33+H38+H45+H61+H69 -> 94584727.47 | I71: =I22+I33+I38+I45 -> 3374734.46 | J71: =J22+J33+J38+J45+J61+J69 -> 19339121.19 | K71: =H71+J71 -> 113923848.7
D73: Other Customer Programs
B74: bc | C74: E150 | D74: Net Metering | H74: ='2021 ACP Sector View Elect'!R97 -> 1479257.25 | K74: =H74:H76+J74:J76 -> 1479257.25
B75: bd | C75: 249A, 271 | D75: Demand Response Pilot | H75: ='2021 ACP Sector View Elect'!R98 -> 203000 | J75: ='2021 Sector View Gas'!R90 -> 87000 | K75: 290000
B76: be | D76: Subtotal, Other Energy Efficiency Programs | H76: =SUM(H74:H75) -> 1682257.25 | J76: =SUM(J74:J75) -> 87000 | K76: 1769257.25
B80: bf | D80: TOTAL UTILITY CONSERVATION GOALS | G80: =G71 -> 230117.7495 | H80: =H71+H76 -> 96266984.72 | I80: =I71 -> 3374734.46 | J80: =J71+J76 -> 19426121.19 | K80: =H80+J80 -> 115693105.9
G81: =G80/8760 -> 26.26914949
B83: bg | E83: Blue cells = use for 10% "info-only" calculation: | H83: =(H38+H61)/H71 -> 0.100435634 | J83: =(J38+J61)/J71 -> 0.08580366152
F84: Add up all blue cells and divide by "Total, Efficiency Programs Included in CE Calculations" line.
F85: HER program costs excluded from "info-only" calculation because savings will be measured.
B87: bh | E87: Purple cells = use to indicate a reasonable amt. spent on EM&V (condition (6)(c)): | H87: =(H48+H50+SUM(H67:H68))/(H22+H33) -> 0.04820643564 | J87: =(J48+J50+SUM(J67:J68))/(J22+J33) -> 0.04359018556
B88: bi | E88: EM&V Budget (WAC 480-109-120(1)(b)(vi)(B)) | H88: =(H48+H50+SUM(H67:H68)) -> 3712385.652 | J88: =(J48+J50+SUM(J67:J68)) -> 631826.0975
F89: (Line bh) Add up the sum of [Data & Systems Services + Program Evaluation + BECAR + Verification] purple cells and divide by the [Residential + Business] purple cells.
F90: (Line bi) Add up the sum of [Data & Systems Services + Program Evaluation + BECAR + Verification] purple cells

Sheet 2-year Sector View Electric
C2: Energy Efficiency 2020 + 2021 ACP Budgets and Aggregate Program Savings
C3: Two-Year Sector View
C4: Electric Programs | I4: Please see category descriptions at the bottom of the sector table.
I5: Budget Category
B6: Workbook Name | C6: Schedule | D6: Comment | E6: Description (Blue, indented text indicates a sub-total value) | H6: Order Number (Click on the order# below to link to the detail page) | I6: Program Labor | J6: Overhead | K6: Marketing | L6: Employee/Office Expense | M6: Outside Services | N6: Materials | O6: Miscellaneous | P6: DBtC | Q6: Revenue | R6: Total Budget | S6: Total Savings kWh | U6: Comments
C7: Residential Energy Management
B8: LIW Detail_REM E201_Elec | C8: E201 | E8: Low Income Weatherization | H8: 18230611 | I8: ='2020 BCP Sector View Electric'!I8+'2021 ACP Sector View Elect'!I8 -> 230181 | J8: ='2020 BCP Sector View Electric'!J8+'2021 ACP Sector View Elect'!J8 -> 200948.013 | K8: ='2020 BCP Sector View Electric'!K8+'2021 ACP Sector View Elect'!K8 -> 97200 | L8: ='2020 BCP Sector View Electric'!L8+'2021 ACP Sector View Elect'!L8 -> 9000 | M8: ='2020 BCP Sector View Electric'!M8+'2021 ACP Sector View Elect'!M8 -> 45000 | N8: ='2020 BCP Sector View Electric'!N8+'2021 ACP Sector View Elect'!N8 -> 2700 | O8: ='2020 BCP Sector View Electric'!O8+'2021 ACP Sector View Elect'!O8 -> 2700 | P8: ='2020 BCP Sector View Electric'!P8+'2021 ACP Sector View Elect'!P8 -> 11702141.84 | Q8: ='2020 BCP Sector View Electric'!Q8+'2021 ACP Sector View Elect'!Q8 -> 0 | R8: ='2020 BCP Sector View Electric'!R8+'2021 ACP Sector View Elect'!R8 -> 12289870.85 | S8: ='2020 BCP Sector View Electric'!S8+'2021 ACP Sector View Elect'!S8 -> 3915779.2
B9: HomePrint Detail_REM_E214 Elec | C9: E214 | E9: Home Energy Assessments | H9: 18230625 | I9: ='2020 BCP Sector View Electric'!I9+'2021 ACP Sector View Elect'!I9 -> 225700 | J9: ='2020 BCP Sector View Electric'!J9+'2021 ACP Sector View Elect'!J9 -> 197036.1 | K9: ='2020 BCP Sector View Electric'!K9+'2021 ACP Sector View Elect'!K9 -> 10000 | L9: ='2020 BCP Sector View Electric'!L9+'2021 ACP Sector View Elect'!L9 -> 3000 | M9: ='2020 BCP Sector View Electric'!M9+'2021 ACP Sector View Elect'!M9 -> 571360 | N9: ='2020 BCP Sector View Electric'!N9+'2021 ACP Sector View Elect'!N9 -> 0 | O9: ='2020 BCP Sector View Electric'!O9+'2021 ACP Sector View Elect'!O9 -> 2000 | P9: ='2020 BCP Sector View Electric'!P9+'2021 ACP Sector View Elect'!P9 -> 1341499.057 | Q9: ='2020 BCP Sector View Electric'!Q9+'2021 ACP Sector View Elect'!Q9 -> 0 | R9: ='2020 BCP Sector View Electric'!R9+'2021 ACP Sector View Elect'!R9 -> 2350595.157 | S9: ='2020 BCP Sector View Electric'!S9+'2021 ACP Sector View Elect'!S9 -> 6247546.654
B10: WaterHea_Detail_REM_E214 Elec | C10: E214 | E10: SF Existing Water Heat | H10: 18230626 | I10: ='2020 BCP Sector View Electric'!I10+'2021 ACP Sector View Elect'!I10 -> 71500 | J10: ='2020 BCP Sector View Electric'!J10+'2021 ACP Sector View Elect'!J10 -> 62419.5 | K10: ='2020 BCP Sector View Electric'!K10+'2021 ACP Sector View Elect'!K10 -> 20000 | L10: ='2020 BCP Sector View Electric'!L10+'2021 ACP Sector View Elect'!L10 -> 1000 | M10: ='2020 BCP Sector View Electric'!M10+'2021 ACP Sector View Elect'!M10 -> 428000 | N10: ='2020 BCP Sector View Electric'!N10+'2021 ACP Sector View Elect'!N10 -> 1000 | O10: ='2020 BCP Sector View Electric'!O10+'2021 ACP Sector View Elect'!O10 -> 1000 | P10: ='2020 BCP Sector View Electric'!P10+'2021 ACP Sector View Elect'!P10 -> 1400000 | Q10: ='2020 BCP Sector View Electric'!Q10+'2021 ACP Sector View Elect'!Q10 -> 0 | R10: ='2020 BCP Sector View Electric'!R10+'2021 ACP Sector View Elect'!R10 -> 1984919.5 | S10: ='2020 BCP Sector View Electric'!S10+'2021 ACP Sector View Elect'!S10 -> 4450000
B11: Wx_Detail_REM E214 Elec | C11: E214 | E11: SF Existing Weatherization | H11: 18230627 | I11: ='2020 BCP Sector View Electric'!I11+'2021 ACP Sector View Elect'!I11 -> 145400 | J11: ='2020 BCP Sector View Electric'!J11+'2021 ACP Sector View Elect'!J11 -> 126934.2 | K11: ='2020 BCP Sector View Electric'!K11+'2021 ACP Sector View Elect'!K11 -> 240000 | L11: ='2020 BCP Sector View Electric'!L11+'2021 ACP Sector View Elect'!L11 -> 2000 | M11: ='2020 BCP Sector View Electric'!M11+'2021 ACP Sector View Elect'!M11 -> 0 | N11: ='2020 BCP Sector View Electric'!N11+'2021 ACP Sector View Elect'!N11 -> 1000 | O11: ='2020 BCP Sector View Electric'!O11+'2021 ACP Sector View Elect'!O11 -> 2000 | P11: ='2020 BCP Sector View Electric'!P11+'2021 ACP Sector View Elect'!P11 -> 976822 | Q11: ='2020 BCP Sector View Electric'!Q11+'2021 ACP Sector View Elect'!Q11 -> 0 | R11: ='2020 BCP Sector View Electric'!R11+'2021 ACP Sector View Elect'!R11 -> 1494156.2 | S11: ='2020 BCP Sector View Electric'!S11+'2021 ACP Sector View Elect'!S11 -> 4122524
B12: SpcHeat Detail_REM_E214 Elec | C12: E214 | E12: SF Existing Space Heat | H12: 18230628 | I12: ='2020 BCP Sector View Electric'!I12+'2021 ACP Sector View Elect'!I12 -> 143000 | J12: ='2020 BCP Sector View Electric'!J12+'2021 ACP Sector View Elect'!J12 -> 124839 | K12: ='2020 BCP Sector View Electric'!K12+'2021 ACP Sector View Elect'!K12 -> 450000 | L12: ='2020 BCP Sector View Electric'!L12+'2021 ACP Sector View Elect'!L12 -> 2000 | M12: ='2020 BCP Sector View Electric'!M12+'2021 ACP Sector View Elect'!M12 -> 1100000 | N12: ='2020 BCP Sector View Electric'!N12+'2021 ACP Sector View Elect'!N12 -> 0 | O12: ='2020 BCP Sector View Electric'!O12+'2021 ACP Sector View Elect'!O12 -> 0 | P12: ='2020 BCP Sector View Electric'!P12+'2021 ACP Sector View Elect'!P12 -> 11096000 | Q12: ='2020 BCP Sector View Electric'!Q12+'2021 ACP Sector View Elect'!Q12 -> 0 | R12: ='2020 BCP Sector View Electric'!R12+'2021 ACP Sector View Elect'!R12 -> 12915839 | S12: ='2020 BCP Sector View Electric'!S12+'2021 ACP Sector View Elect'!S12 -> 28464405
B13: HmAppplc_Detail_REM_E214 Elec | C13: E214 | E13: Home Appliances | H13: 18230434 | I13: ='2020 BCP Sector View Electric'!I13+'2021 ACP Sector View Elect'!I13 -> 119700 | J13: ='2020 BCP Sector View Electric'!J13+'2021 ACP Sector View Elect'!J13 -> 104498.1 | K13: ='2020 BCP Sector View Electric'!K13+'2021 ACP Sector View Elect'!K13 -> 80000 | L13: ='2020 BCP Sector View Electric'!L13+'2021 ACP Sector View Elect'!L13 -> 2000 | M13: ='2020 BCP Sector View Electric'!M13+'2021 ACP Sector View Elect'!M13 -> 157000 | N13: ='2020 BCP Sector View Electric'!N13+'2021 ACP Sector View Elect'!N13 -> 1000 | O13: ='2020 BCP Sector View Electric'!O13+'2021 ACP Sector View Elect'!O13 -> 0 | P13: ='2020 BCP Sector View Electric'!P13+'2021 ACP Sector View Elect'!P13 -> 2127527.24 | Q13: ='2020 BCP Sector View Electric'!Q13+'2021 ACP Sector View Elect'!Q13 -> 0 | R13: ='2020 BCP Sector View Electric'!R13+'2021 ACP Sector View Elect'!R13 -> 2591725.34 | S13: ='2020 BCP Sector View Electric'!S13+'2021 ACP Sector View Elect'!S13 -> 5104281.28
B14: ShwrHead_Detail_REM_E214 Elec | C14: E214 | E14: Residential Showerheads | H14: 18230435 | I14: ='2020 BCP Sector View Electric'!I14+'2021 ACP Sector View Elect'!I14 -> 60900 | J14: ='2020 BCP Sector View Electric'!J14+'2021 ACP Sector View Elect'!J14 -> 53165.7 | K14: ='2020 BCP Sector View Electric'!K14+'2021 ACP Sector View Elect'!K14 -> 161830 | L14: ='2020 BCP Sector View Electric'!L14+'2021 ACP Sector View Elect'!L14 -> 1000 | M14: ='2020 BCP Sector View Electric'!M14+'2021 ACP Sector View Elect'!M14 -> 289300 | N14: ='2020 BCP Sector View Electric'!N14+'2021 ACP Sector View Elect'!N14 -> 1000 | O14: ='2020 BCP Sector View Electric'!O14+'2021 ACP Sector View Elect'!O14 -> 500 | P14: ='2020 BCP Sector View Electric'!P14+'2021 ACP Sector View Elect'!P14 -> 646073.36 | Q14: ='2020 BCP Sector View Electric'!Q14+'2021 ACP Sector View Elect'!Q14 -> 0 | R14: ='2020 BCP Sector View Electric'!R14+'2021 ACP Sector View Elect'!R14 -> 1213769.06 | S14: ='2020 BCP Sector View Electric'!S14+'2021 ACP Sector View Elect'!S14 -> 4104459.8
B15: Lighting Detail_REM_E214 Elec | C15: E214 | E15: Energy Efficient Lighting Services | H15: 18230440 | I15: ='2020 BCP Sector View Electric'!I15+'2021 ACP Sector View Elect'!I15 -> 544440 | J15: ='2020 BCP Sector View Electric'!J15+'2021 ACP Sector View Elect'!J15 -> 475296.12 | K15: ='2020 BCP Sector View Electric'!K15+'2021 ACP Sector View Elect'!K15 -> 1000000 | L15: ='2020 BCP Sector View Electric'!L15+'2021 ACP Sector View Elect'!L15 -> 20000 | M15: ='2020 BCP Sector View Electric'!M15+'2021 ACP Sector View Elect'!M15 -> 1012000 | N15: ='2020 BCP Sector View Electric'!N15+'2021 ACP Sector View Elect'!N15 -> 16500 | O15: ='2020 BCP Sector View Electric'!O15+'2021 ACP Sector View Elect'!O15 -> 0 | P15: ='2020 BCP Sector View Electric'!P15+'2021 ACP Sector View Elect'!P15 -> 5903891.99 | Q15: ='2020 BCP Sector View Electric'!Q15+'2021 ACP Sector View Elect'!Q15 -> 0 | R15: ='2020 BCP Sector View Electric'!R15+'2021 ACP Sector View Elect'!R15 -> 8972128.11 | S15: ='2020 BCP Sector View Electric'!S15+'2021 ACP Sector View Elect'!S15 -> 35395019.41
B16: HER Detail_REM_E214 elec. | C16: E214 | E16: Home Energy Reports | H16: 18230461 | I16: ='2020 BCP Sector View Electric'!I16+'2021 ACP Sector View Elect'!I16 -> 168000 | J16: ='2020 BCP Sector View Electric'!J16+'2021 ACP Sector View Elect'!J16 -> 146664 | K16: ='2020 BCP Sector View Electric'!K16+'2021 ACP Sector View Elect'!K16 -> 0 | L16: ='2020 BCP Sector View Electric'!L16+'2021 ACP Sector View Elect'!L16 -> 2600 | M16: ='2020 BCP Sector View Electric'!M16+'2021 ACP Sector View Elect'!M16 -> 1215205.8 | N16: ='2020 BCP Sector View Electric'!N16+'2021 ACP Sector View Elect'!N16 -> 0 | O16: ='2020 BCP Sector View Electric'!O16+'2021 ACP Sector View Elect'!O16 -> 0 | P16: ='2020 BCP Sector View Electric'!P16+'2021 ACP Sector View Elect'!P16 -> 1202627.242 | Q16: ='2020 BCP Sector View Electric'!Q16+'2021 ACP Sector View Elect'!Q16 -> 0 | R16: ='2020 BCP Sector View Electric'!R16+'2021 ACP Sector View Elect'!R16 -> 2735097.042 | S16: ='2020 BCP Sector View Electric'!S16+'2021 ACP Sector View Elect'!S16 -> 47776310
B17: Web Tstat Detail_REM E214 Elec | C17: E214 | E17: Smart Thermostats | H17: 18230023 | I17: ='2020 BCP Sector View Electric'!I17+'2021 ACP Sector View Elect'!I17 -> 56800 | J17: ='2020 BCP Sector View Electric'!J17+'2021 ACP Sector View Elect'!J17 -> 49586.4 | K17: ='2020 BCP Sector View Electric'!K17+'2021 ACP Sector View Elect'!K17 -> 88000 | L17: ='2020 BCP Sector View Electric'!L17+'2021 ACP Sector View Elect'!L17 -> 200 | M17: ='2020 BCP Sector View Electric'!M17+'2021 ACP Sector View Elect'!M17 -> 74100 | N17: ='2020 BCP Sector View Electric'!N17+'2021 ACP Sector View Elect'!N17 -> 2000 | O17: ='2020 BCP Sector View Electric'!O17+'2021 ACP Sector View Elect'!O17 -> 0 | P17: ='2020 BCP Sector View Electric'!P17+'2021 ACP Sector View Elect'!P17 -> 254816.46 | Q17: ='2020 BCP Sector View Electric'!Q17+'2021 ACP Sector View Elect'!Q17 -> 0 | R17: ='2020 BCP Sector View Electric'!R17+'2021 ACP Sector View Elect'!R17 -> 525502.86 | S17: ='2020 BCP Sector View Electric'!S17+'2021 ACP Sector View Elect'!S17 -> 1555481.44
B18: SFNC Detail_REM E215 Elec | C18: E215 | E18: Single Family New Construction | H18: 18230405 | I18: ='2020 BCP Sector View Electric'!I18+'2021 ACP Sector View Elect'!I18 -> 38100 | J18: ='2020 BCP Sector View Electric'!J18+'2021 ACP Sector View Elect'!J18 -> 33261.3 | K18: ='2020 BCP Sector View Electric'!K18+'2021 ACP Sector View Elect'!K18 -> 6000 | L18: ='2020 BCP Sector View Electric'!L18+'2021 ACP Sector View Elect'!L18 -> 2000 | M18: ='2020 BCP Sector View Electric'!M18+'2021 ACP Sector View Elect'!M18 -> 0 | N18: ='2020 BCP Sector View Electric'!N18+'2021 ACP Sector View Elect'!N18 -> 0 | O18: ='2020 BCP Sector View Electric'!O18+'2021 ACP Sector View Elect'!O18 -> 0 | P18: ='2020 BCP Sector View Electric'!P18+'2021 ACP Sector View Elect'!P18 -> 615000 | Q18: ='2020 BCP Sector View Electric'!Q18+'2021 ACP Sector View Elect'!Q18 -> 0 | R18: ='2020 BCP Sector View Electric'!R18+'2021 ACP Sector View Elect'!R18 -> 694361.3 | S18: ='2020 BCP Sector View Electric'!S18+'2021 ACP Sector View Elect'!S18 -> 960260
B19: MfgHmNew Detail_REM E215 Elec | C19: E215 | E19: Manufactured Home New Construction | H19: 18230071 | I19: ='2020 BCP Sector View Electric'!I19+'2021 ACP Sector View Elect'!I19 -> 26240 | J19: ='2020 BCP Sector View Electric'!J19+'2021 ACP Sector View Elect'!J19 -> 22907.52 | K19: ='2020 BCP Sector View Electric'!K19+'2021 ACP Sector View Elect'!K19 -> 31500 | L19: ='2020 BCP Sector View Electric'!L19+'2021 ACP Sector View Elect'!L19 -> 1000 | M19: ='2020 BCP Sector View Electric'!M19+'2021 ACP Sector View Elect'!M19 -> 30000 | N19: ='2020 BCP Sector View Electric'!N19+'2021 ACP Sector View Elect'!N19 -> 1000 | O19: ='2020 BCP Sector View Electric'!O19+'2021 ACP Sector View Elect'!O19 -> 0 | P19: ='2020 BCP Sector View Electric'!P19+'2021 ACP Sector View Elect'!P19 -> 220000 | Q19: ='2020 BCP Sector View Electric'!Q19+'2021 ACP Sector View Elect'!Q19 -> 0 | R19: ='2020 BCP Sector View Electric'!R19+'2021 ACP Sector View Elect'!R19 -> 332647.52 | S19: ='2020 BCP Sector View Electric'!S19+'2021 ACP Sector View Elect'!S19 -> 487440
B20: ModIncome Detail E217 | C20: E214 & 217 | D20: New for 2020 | E20: Moderate Income Residences | H20: 1823xxxx | I20: ='2020 BCP Sector View Electric'!I20+'2021 ACP Sector View Elect'!I20 -> 30420 | J20: ='2020 BCP Sector View Electric'!J20+'2021 ACP Sector View Elect'!J20 -> 26556.66 | K20: ='2020 BCP Sector View Electric'!K20+'2021 ACP Sector View Elect'!K20 -> 30000 | L20: ='2020 BCP Sector View Electric'!L20+'2021 ACP Sector View Elect'!L20 -> 350 | M20: ='2020 BCP Sector View Electric'!M20+'2021 ACP Sector View Elect'!M20 -> 0 | N20: ='2020 BCP Sector View Electric'!N20+'2021 ACP Sector View Elect'!N20 -> 0 | O20: ='2020 BCP Sector View Electric'!O20+'2021 ACP Sector View Elect'!O20 -> 0 | P20: ='2020 BCP Sector View Electric'!P20+'2021 ACP Sector View Elect'!P20 -> 0 | Q20: ='2020 BCP Sector View Electric'!Q20+'2021 ACP Sector View Elect'!Q20 -> 0 | R20: ='2020 BCP Sector View Electric'!R20+'2021 ACP Sector View Elect'!R20 -> 87326.66 | S20: ='2020 BCP Sector View Electric'!S20+'2021 ACP Sector View Elect'!S20 -> 0
B21: MF Retr Detail_REM E217 Elec | C21: E217 | E21: Multifamily Retrofit | H21: 18230407 | I21: ='2020 BCP Sector View Electric'!I21+'2021 ACP Sector View Elect'!I21 -> 293200 | J21: ='2020 BCP Sector View Electric'!J21+'2021 ACP Sector View Elect'!J21 -> 255963.6 | K21: ='2020 BCP Sector View Electric'!K21+'2021 ACP Sector View Elect'!K21 -> 134000 | L21: ='2020 BCP Sector View Electric'!L21+'2021 ACP Sector View Elect'!L21 -> 8000 | M21: ='2020 BCP Sector View Electric'!M21+'2021 ACP Sector View Elect'!M21 -> 2682540.18 | N21: ='2020 BCP Sector View Electric'!N21+'2021 ACP Sector View Elect'!N21 -> 2000 | O21: ='2020 BCP Sector View Electric'!O21+'2021 ACP Sector View Elect'!O21 -> 2000 | P21: ='2020 BCP Sector View Electric'!P21+'2021 ACP Sector View Elect'!P21 -> 10166952.65 | Q21: ='2020 BCP Sector View Electric'!Q21+'2021 ACP Sector View Elect'!Q21 -> 0 | R21: ='2020 BCP Sector View Electric'!R21+'2021 ACP Sector View Elect'!R21 -> 13544656.43 | S21: ='2020 BCP Sector View Electric'!S21+'2021 ACP Sector View Elect'!S21 -> 25426921.14
B22: MF Retr Grants Detail_REM E217 Elec | C22: E217 | E22: Multifamily Retrofit Grants | H22: 18230747 | I22: ='2020 BCP Sector View Electric'!I22+'2021 ACP Sector View Elect'!I22 -> 0 | J22: ='2020 BCP Sector View Electric'!J22+'2021 ACP Sector View Elect'!J22 -> 0 | K22: ='2020 BCP Sector View Electric'!K22+'2021 ACP Sector View Elect'!K22 -> 0 | L22: ='2020 BCP Sector View Electric'!L22+'2021 ACP Sector View Elect'!L22 -> 0 | M22: ='2020 BCP Sector View Electric'!M22+'2021 ACP Sector View Elect'!M22 -> 0 | N22: ='2020 BCP Sector View Electric'!N22+'2021 ACP Sector View Elect'!N22 -> 0 | O22: ='2020 BCP Sector View Electric'!O22+'2021 ACP Sector View Elect'!O22 -> 0 | P22: ='2020 BCP Sector View Electric'!P22+'2021 ACP Sector View Elect'!P22 -> 0 | Q22: ='2020 BCP Sector View Electric'!Q22+'2021 ACP Sector View Elect'!Q22 -> 0 | R22: ='2020 BCP Sector View Electric'!R22+'2021 ACP Sector View Elect'!R22 -> 0 | S22: ='2020 BCP Sector View Electric'!S22+'2021 ACP Sector View Elect'!S22 -> 0
B23: MFNC Detail_REM E218 Elec | C23: E218 | E23: Multi-Family New Construction | H23: 18230486 | I23: ='2020 BCP Sector View Electric'!I23+'2021 ACP Sector View Elect'!I23 -> 224800 | J23: ='2020 BCP Sector View Electric'!J23+'2021 ACP Sector View Elect'!J23 -> 196250.4 | K23: ='2020 BCP Sector View Electric'!K23+'2021 ACP Sector View Elect'!K23 -> 70000 | L23: ='2020 BCP Sector View Electric'!L23+'2021 ACP Sector View Elect'!L23 -> 8000 | M23: ='2020 BCP Sector View Electric'!M23+'2021 ACP Sector View Elect'!M23 -> 568400 | N23: ='2020 BCP Sector View Electric'!N23+'2021 ACP Sector View Elect'!N23 -> 4000 | O23: ='2020 BCP Sector View Electric'!O23+'2021 ACP Sector View Elect'!O23 -> 0 | P23: ='2020 BCP Sector View Electric'!P23+'2021 ACP Sector View Elect'!P23 -> 3336590 | Q23: ='2020 BCP Sector View Electric'!Q23+'2021 ACP Sector View Elect'!Q23 -> 0 | R23: ='2020 BCP Sector View Electric'!R23+'2021 ACP Sector View Elect'!R23 -> 4408040.4 | S23: ='2020 BCP Sector View Electric'!S23+'2021 ACP Sector View Elect'!S23 -> 11862000
G24: Total, Residential Energy Management | I24: =SUM(I8:I23) -> 2378381 | J24: 2076326.613 | K24: 2418530 | L24: 62150 | M24: 8172905.98 | N24: 32200 | O24: 10200 | P24: 50989941.84 | Q24: 0 | R24: 66140635.44 | S24: 179872427.9
P25: =P24/R24 -> 0.7709321434
H26: 2018-2019 Figures | I26: 2267960 | J26: 2104667 | K26: 5232355 | L26: 72150 | M26: 7976437 | N26: 36400 | O26: 13500 | P26: 60846736 | Q26: 0 | R26: 78550204 | S26: 227798836
C27: Business Energy Managment
E28: Commercial/Industrial Retrofit | I28: =SUM(I29:I31) -> 4537916.782 | J28: =SUM(J29:J31) -> 4290817.401 | K28: 334000 | L28: 263400 | M28: 310000 | N28: 7000 | O28: 16000 | P28: 30483777.78 | Q28: 0 | R28: 40242911.96 | S28: =SUM(S29:S31) -> 148500000 | U28: =S28/$S$47 -> 0.4852515002
B29: CI Retr Detail_BEM E250 Elec | C29: E250 | E29: Retrofit Custom Grants | H29: 18230711 | I29: ='2020 BCP Sector View Electric'!I29+'2021 ACP Sector View Elect'!I29 -> 1054291.782 | J29: ='2020 BCP Sector View Electric'!J29+'2021 ACP Sector View Elect'!J29 -> 1249612.776 | K29: ='2020 BCP Sector View Electric'!K29+'2021 ACP Sector View Elect'!K29 -> 190000 | L29: ='2020 BCP Sector View Electric'!L29+'2021 ACP Sector View Elect'!L29 -> 181400 | M29: ='2020 BCP Sector View Electric'!M29+'2021 ACP Sector View Elect'!M29 -> 0 | N29: ='2020 BCP Sector View Electric'!N29+'2021 ACP Sector View Elect'!N29 -> 0 | O29: ='2020 BCP Sector View Electric'!O29+'2021 ACP Sector View Elect'!O29 -> 10000 | P29: ='2020 BCP Sector View Electric'!P29+'2021 ACP Sector View Elect'!P29 -> 8550000 | Q29: ='2020 BCP Sector View Electric'!Q29+'2021 ACP Sector View Elect'!Q29 -> 0 | R29: ='2020 BCP Sector View Electric'!R29+'2021 ACP Sector View Elect'!R29 -> 11235304.56 | S29: ='2020 BCP Sector View Electric'!S29+'2021 ACP Sector View Elect'!S29 -> 28500000 | U29: =S29/$S$47 -> 0.0931290758
B30: BusLgtGrants_BEM E250 Elect | C30: E250 | E30: Custom Lighting Grants | H30: 18230724 | I30: ='2020 BCP Sector View Electric'!I30+'2021 ACP Sector View Elect'!I30 -> 2900000 | J30: ='2020 BCP Sector View Electric'!J30+'2021 ACP Sector View Elect'!J30 -> 2531700 | K30: ='2020 BCP Sector View Electric'!K30+'2021 ACP Sector View Elect'!K30 -> 94000 | L30: ='2020 BCP Sector View Electric'!L30+'2021 ACP Sector View Elect'!L30 -> 70000 | M30: ='2020 BCP Sector View Electric'!M30+'2021 ACP Sector View Elect'!M30 -> 280000 | N30: ='2020 BCP Sector View Electric'!N30+'2021 ACP Sector View Elect'!N30 -> 7000 | O30: ='2020 BCP Sector View Electric'!O30+'2021 ACP Sector View Elect'!O30 -> 6000 | P30: ='2020 BCP Sector View Electric'!P30+'2021 ACP Sector View Elect'!P30 -> 18550000 | Q30: ='2020 BCP Sector View Electric'!Q30+'2021 ACP Sector View Elect'!Q30 -> 0 | R30: ='2020 BCP Sector View Electric'!R30+'2021 ACP Sector View Elect'!R30 -> 24438700 | S30: ='2020 BCP Sector View Electric'!S30+'2021 ACP Sector View Elect'!S30 -> 106000000 | U30: 0.3463748082
B31: CI Indust_BEM_E250_Elec | C31: E250 | E31: Industrial Programs | H31: 18231137 | I31: ='2020 BCP Sector View Electric'!I31+'2021 ACP Sector View Elect'!I31 -> 583625 | J31: ='2020 BCP Sector View Electric'!J31+'2021 ACP Sector View Elect'!J31 -> 509504.625 | K31: ='2020 BCP Sector View Electric'!K31+'2021 ACP Sector View Elect'!K31 -> 50000 | L31: ='2020 BCP Sector View Electric'!L31+'2021 ACP Sector View Elect'!L31 -> 12000 | M31: ='2020 BCP Sector View Electric'!M31+'2021 ACP Sector View Elect'!M31 -> 30000 | N31: ='2020 BCP Sector View Electric'!N31+'2021 ACP Sector View Elect'!N31 -> 0 | O31: ='2020 BCP Sector View Electric'!O31+'2021 ACP Sector View Elect'!O31 -> 0 | P31: ='2020 BCP Sector View Electric'!P31+'2021 ACP Sector View Elect'!P31 -> 3383777.778 | Q31: ='2020 BCP Sector View Electric'!Q31+'2021 ACP Sector View Elect'!Q31 -> 0 | R31: ='2020 BCP Sector View Electric'!R31+'2021 ACP Sector View Elect'!R31 -> 4568907.403 | S31: ='2020 BCP Sector View Electric'!S31+'2021 ACP Sector View Elect'!S31 -> 14000000 | U31: 0.04574761618
B32: CI NC Detail_BEM E251 Elec | C32: E251 | E32: Commercial/Industrial New Construction | H32: 18230715 | I32: ='2020 BCP Sector View Electric'!I32+'2021 ACP Sector View Elect'!I32 -> 672000 | J32: ='2020 BCP Sector View Electric'!J32+'2021 ACP Sector View Elect'!J32 -> 586656 | K32: ='2020 BCP Sector View Electric'!K32+'2021 ACP Sector View Elect'!K32 -> 44600 | L32: ='2020 BCP Sector View Electric'!L32+'2021 ACP Sector View Elect'!L32 -> 9600 | M32: ='2020 BCP Sector View Electric'!M32+'2021 ACP Sector View Elect'!M32 -> 221340 | N32: ='2020 BCP Sector View Electric'!N32+'2021 ACP Sector View Elect'!N32 -> 14400 | O32: ='2020 BCP Sector View Electric'!O32+'2021 ACP Sector View Elect'!O32 -> 0 | P32: ='2020 BCP Sector View Electric'!P32+'2021 ACP Sector View Elect'!P32 -> 7796250 | Q32: ='2020 BCP Sector View Electric'!Q32+'2021 ACP Sector View Elect'!Q32 -> 0 | R32: ='2020 BCP Sector View Electric'!R32+'2021 ACP Sector View Elect'!R32 -> 9344846 | S32: ='2020 BCP Sector View Electric'!S32+'2021 ACP Sector View Elect'!S32 -> 35000000 | U32: 0.1143690405
E33: Commercial Strategic Energy Management | I33: ='2020 BCP Sector View Electric'!I33+'2021 ACP Sector View Elect'!I33 -> 1230000 | J33: ='2020 BCP Sector View Electric'!J33+'2021 ACP Sector View Elect'!J33 -> 1080490.24 | K33: ='2020 BCP Sector View Electric'!K33+'2021 ACP Sector View Elect'!K33 -> 5000 | L33: ='2020 BCP Sector View Electric'!L33+'2021 ACP Sector View Elect'!L33 -> 30000 | M33: ='2020 BCP Sector View Electric'!M33+'2021 ACP Sector View Elect'!M33 -> 60000 | N33: ='2020 BCP Sector View Electric'!N33+'2021 ACP Sector View Elect'!N33 -> 5000 | O33: ='2020 BCP Sector View Electric'!O33+'2021 ACP Sector View Elect'!O33 -> 5000 | P33: ='2020 BCP Sector View Electric'!P33+'2021 ACP Sector View Elect'!P33 -> 1153846.154 | Q33: ='2020 BCP Sector View Electric'!Q33+'2021 ACP Sector View Elect'!Q33 -> 0 | R33: ='2020 BCP Sector View Electric'!R33+'2021 ACP Sector View Elect'!R33 -> 3569336.394 | S33: ='2020 BCP Sector View Electric'!S33+'2021 ACP Sector View Elect'!S33 -> 30000000 | U33: 0.0980306061
B34: RCM Detail_BEM E253 Elec | C34: E253 | E34: SEM | H34: 18230723 | I34: ='2020 BCP Sector View Electric'!I34+'2021 ACP Sector View Elect'!I34 -> 1130000 | J34: ='2020 BCP Sector View Electric'!J34+'2021 ACP Sector View Elect'!J34 -> 986490 | K34: ='2020 BCP Sector View Electric'!K34+'2021 ACP Sector View Elect'!K34 -> 5000 | L34: ='2020 BCP Sector View Electric'!L34+'2021 ACP Sector View Elect'!L34 -> 30000 | M34: ='2020 BCP Sector View Electric'!M34+'2021 ACP Sector View Elect'!M34 -> 30000 | N34: ='2020 BCP Sector View Electric'!N34+'2021 ACP Sector View Elect'!N34 -> 5000 | O34: ='2020 BCP Sector View Electric'!O34+'2021 ACP Sector View Elect'!O34 -> 5000 | P34: ='2020 BCP Sector View Electric'!P34+'2021 ACP Sector View Elect'!P34 -> 1153846.154 | Q34: ='2020 BCP Sector View Electric'!Q34+'2021 ACP Sector View Elect'!Q34 -> 0 | R34: ='2020 BCP Sector View Electric'!R34+'2021 ACP Sector View Elect'!R34 -> 3345336.154 | S34: ='2020 BCP Sector View Electric'!S34+'2021 ACP Sector View Elect'!S34 -> 30000000 | U34: 0.0980306061
B35: ResAcctSW Detail_PSWE_Elec | E35: Resource Accounting Software | H35: 18230502 | I35: ='2020 BCP Sector View Electric'!I35+'2021 ACP Sector View Elect'!I35 -> 100000 | J35: ='2020 BCP Sector View Electric'!J35+'2021 ACP Sector View Elect'!J35 -> 94000.24 | K35: ='2020 BCP Sector View Electric'!K35+'2021 ACP Sector View Elect'!K35 -> 0 | L35: ='2020 BCP Sector View Electric'!L35+'2021 ACP Sector View Elect'!L35 -> 0 | M35: ='2020 BCP Sector View Electric'!M35+'2021 ACP Sector View Elect'!M35 -> 30000 | N35: ='2020 BCP Sector View Electric'!N35+'2021 ACP Sector View Elect'!N35 -> 0 | O35: ='2020 BCP Sector View Electric'!O35+'2021 ACP Sector View Elect'!O35 -> 0 | P35: ='2020 BCP Sector View Electric'!P35+'2021 ACP Sector View Elect'!P35 -> 0 | Q35: ='2020 BCP Sector View Electric'!Q35+'2021 ACP Sector View Elect'!Q35 -> 0 | R35: ='2020 BCP Sector View Electric'!R35+'2021 ACP Sector View Elect'!R35 -> 224000.24 | S35: ='2020 BCP Sector View Electric'!S35+'2021 ACP Sector View Elect'!S35 -> 0 | U35: 0
E36: High Voltage, Self-Directed | I36: ='2020 BCP Sector View Electric'!I36+'2021 ACP Sector View Elect'!I36 -> 396531.8987 | J36: ='2020 BCP Sector View Electric'!J36+'2021 ACP Sector View Elect'!J36 -> 417246.1314 | K36: ='2020 BCP Sector View Electric'!K36+'2021 ACP Sector View Elect'!K36 -> 0 | L36: ='2020 BCP Sector View Electric'!L36+'2021 ACP Sector View Elect'!L36 -> 0 | M36: ='2020 BCP Sector View Electric'!M36+'2021 ACP Sector View Elect'!M36 -> 0 | N36: ='2020 BCP Sector View Electric'!N36+'2021 ACP Sector View Elect'!N36 -> 0 | O36: ='2020 BCP Sector View Electric'!O36+'2021 ACP Sector View Elect'!O36 -> 0 | P36: ='2020 BCP Sector View Electric'!P36+'2021 ACP Sector View Elect'!P36 -> 7556956.357 | Q36: ='2020 BCP Sector View Electric'!Q36+'2021 ACP Sector View Elect'!Q36 -> 0 | R36: ='2020 BCP Sector View Electric'!R36+'2021 ACP Sector View Elect'!R36 -> 8370734.387 | S36: ='2020 BCP Sector View Electric'!S36+'2021 ACP Sector View Elect'!S36 -> 16151130 | U36: 0.05277683544
B37: LPSD_Detail_449_Elec | C37: E258 | E37: 449 Customers | H37: 18230720 | I37: ='2020 BCP Sector View Electric'!I37+'2021 ACP Sector View Elect'!I37 -> 189706 | J37: ='2020 BCP Sector View Electric'!J37+'2021 ACP Sector View Elect'!J37 -> 236687.1218 | K37: ='2020 BCP Sector View Electric'!K37+'2021 ACP Sector View Elect'!K37 -> 0 | L37: ='2020 BCP Sector View Electric'!L37+'2021 ACP Sector View Elect'!L37 -> 0 | M37: ='2020 BCP Sector View Electric'!M37+'2021 ACP Sector View Elect'!M37 -> 0 | N37: ='2020 BCP Sector View Electric'!N37+'2021 ACP Sector View Elect'!N37 -> 0 | O37: ='2020 BCP Sector View Electric'!O37+'2021 ACP Sector View Elect'!O37 -> 0 | P37: ='2020 BCP Sector View Electric'!P37+'2021 ACP Sector View Elect'!P37 -> 3821655.612 | Q37: ='2020 BCP Sector View Electric'!Q37+'2021 ACP Sector View Elect'!Q37 -> 0 | R37: ='2020 BCP Sector View Electric'!R37+'2021 ACP Sector View Elect'!R37 -> 4248048.734 | S37: ='2020 BCP Sector View Electric'!S37+'2021 ACP Sector View Elect'!S37 -> 9197791 | U37: 0.03005550088
B38: LPSD_Detail_Non-449 Elec | C38: E258 | E38: Non-449 Customers | H38: 18230721 | I38: ='2020 BCP Sector View Electric'!I38+'2021 ACP Sector View Elect'!I38 -> 206825.8987 | J38: ='2020 BCP Sector View Electric'!J38+'2021 ACP Sector View Elect'!J38 -> 180559.0096 | K38: ='2020 BCP Sector View Electric'!K38+'2021 ACP Sector View Elect'!K38 -> 0 | L38: ='2020 BCP Sector View Electric'!L38+'2021 ACP Sector View Elect'!L38 -> 0 | M38: ='2020 BCP Sector View Electric'!M38+'2021 ACP Sector View Elect'!M38 -> 0 | N38: ='2020 BCP Sector View Electric'!N38+'2021 ACP Sector View Elect'!N38 -> 0 | O38: ='2020 BCP Sector View Electric'!O38+'2021 ACP Sector View Elect'!O38 -> 0 | P38: ='2020 BCP Sector View Electric'!P38+'2021 ACP Sector View Elect'!P38 -> 3735300.745 | Q38: ='2020 BCP Sector View Electric'!Q38+'2021 ACP Sector View Elect'!Q38 -> 0 | R38: ='2020 BCP Sector View Electric'!R38+'2021 ACP Sector View Elect'!R38 -> 4122685.653 | S38: ='2020 BCP Sector View Electric'!S38+'2021 ACP Sector View Elect'!S38 -> 6953339 | U38: 0.02272133455
B39: TechEval Detail_BEM E261 Elec | C39: E261 | E39: Technology Evaluation | H39: 18230448 | I39: ='2020 BCP Sector View Electric'!I39+'2021 ACP Sector View Elect'!I39 -> 0 | J39: ='2020 BCP Sector View Electric'!J39+'2021 ACP Sector View Elect'!J39 -> 0 | K39: ='2020 BCP Sector View Electric'!K39+'2021 ACP Sector View Elect'!K39 -> 0 | L39: ='2020 BCP Sector View Electric'!L39+'2021 ACP Sector View Elect'!L39 -> 0 | M39: ='2020 BCP Sector View Electric'!M39+'2021 ACP Sector View Elect'!M39 -> 0 | N39: ='2020 BCP Sector View Electric'!N39+'2021 ACP Sector View Elect'!N39 -> 0 | O39: ='2020 BCP Sector View Electric'!O39+'2021 ACP Sector View Elect'!O39 -> 0 | P39: ='2020 BCP Sector View Electric'!P39+'2021 ACP Sector View Elect'!P39 -> 0 | Q39: ='2020 BCP Sector View Electric'!Q39+'2021 ACP Sector View Elect'!Q39 -> 0 | R39: ='2020 BCP Sector View Electric'!R39+'2021 ACP Sector View Elect'!R39 -> 0 | S39: ='2020 BCP Sector View Electric'!S39+'2021 ACP Sector View Elect'!S39 -> 0 | U39: 0
C40: E262 | E40: Business Rebates | I40: ='2020 BCP Sector View Electric'!I40+'2021 ACP Sector View Elect'!I40 -> 531272 | J40: ='2020 BCP Sector View Electric'!J40+'2021 ACP Sector View Elect'!J40 -> 463800.456 | K40: ='2020 BCP Sector View Electric'!K40+'2021 ACP Sector View Elect'!K40 -> 191463 | L40: ='2020 BCP Sector View Electric'!L40+'2021 ACP Sector View Elect'!L40 -> 14400 | M40: ='2020 BCP Sector View Electric'!M40+'2021 ACP Sector View Elect'!M40 -> 5633362 | N40: ='2020 BCP Sector View Electric'!N40+'2021 ACP Sector View Elect'!N40 -> 5500 | O40: ='2020 BCP Sector View Electric'!O40+'2021 ACP Sector View Elect'!O40 -> 4000 | P40: ='2020 BCP Sector View Electric'!P40+'2021 ACP Sector View Elect'!P40 -> 20483316 | Q40: ='2020 BCP Sector View Electric'!Q40+'2021 ACP Sector View Elect'!Q40 -> 0 | R40: ='2020 BCP Sector View Electric'!R40+'2021 ACP Sector View Elect'!R40 -> 27327113.46 | S40: ='2020 BCP Sector View Electric'!S40+'2021 ACP Sector View Elect'!S40 -> 76375744.6 | U40: 0.2495720178
B41: Comm Lgt Mkdn_E262 Elect | C41: E262 | E41: Lighting to Go--also referred to as Business Lighting Markdowns | H41: 18230714 | I41: ='2020 BCP Sector View Electric'!I41+'2021 ACP Sector View Elect'!I41 -> 102740 | J41: ='2020 BCP Sector View Electric'!J41+'2021 ACP Sector View Elect'!J41 -> 89692.02 | K41: ='2020 BCP Sector View Electric'!K41+'2021 ACP Sector View Elect'!K41 -> 40000 | L41: ='2020 BCP Sector View Electric'!L41+'2021 ACP Sector View Elect'!L41 -> 2000 | M41: ='2020 BCP Sector View Electric'!M41+'2021 ACP Sector View Elect'!M41 -> 1211362 | N41: ='2020 BCP Sector View Electric'!N41+'2021 ACP Sector View Elect'!N41 -> 500 | O41: ='2020 BCP Sector View Electric'!O41+'2021 ACP Sector View Elect'!O41 -> 500 | P41: ='2020 BCP Sector View Electric'!P41+'2021 ACP Sector View Elect'!P41 -> 3612314 | Q41: ='2020 BCP Sector View Electric'!Q41+'2021 ACP Sector View Elect'!Q41 -> 0 | R41: ='2020 BCP Sector View Electric'!R41+'2021 ACP Sector View Elect'!R41 -> 5059108.02 | S41: ='2020 BCP Sector View Electric'!S41+'2021 ACP Sector View Elect'!S41 -> 30109064.6 | U41: 0.09838699506
B42: Comm Kit-Laund_E262 Elect | C42: E262 | E42: Commercial kitchen and laundry | H42: 18230716 | I42: ='2020 BCP Sector View Electric'!I42+'2021 ACP Sector View Elect'!I42 -> 27732 | J42: ='2020 BCP Sector View Electric'!J42+'2021 ACP Sector View Elect'!J42 -> 24210.036 | K42: ='2020 BCP Sector View Electric'!K42+'2021 ACP Sector View Elect'!K42 -> 9000 | L42: ='2020 BCP Sector View Electric'!L42+'2021 ACP Sector View Elect'!L42 -> 6000 | M42: ='2020 BCP Sector View Electric'!M42+'2021 ACP Sector View Elect'!M42 -> 560000 | N42: ='2020 BCP Sector View Electric'!N42+'2021 ACP Sector View Elect'!N42 -> 1000 | O42: ='2020 BCP Sector View Electric'!O42+'2021 ACP Sector View Elect'!O42 -> 0 | P42: ='2020 BCP Sector View Electric'!P42+'2021 ACP Sector View Elect'!P42 -> 510000 | Q42: ='2020 BCP Sector View Electric'!Q42+'2021 ACP Sector View Elect'!Q42 -> 0 | R42: ='2020 BCP Sector View Electric'!R42+'2021 ACP Sector View Elect'!R42 -> 1137942.036 | S42: ='2020 BCP Sector View Electric'!S42+'2021 ACP Sector View Elect'!S42 -> 2600000 | U42: 0.008495985862
B43: Comm HVAC_E262 Elect | C43: E262 | E43: Commercial HVAC | H43: 18230718 | I43: ='2020 BCP Sector View Electric'!I43+'2021 ACP Sector View Elect'!I43 -> 112500 | J43: ='2020 BCP Sector View Electric'!J43+'2021 ACP Sector View Elect'!J43 -> 98212.5 | K43: ='2020 BCP Sector View Electric'!K43+'2021 ACP Sector View Elect'!K43 -> 10000 | L43: ='2020 BCP Sector View Electric'!L43+'2021 ACP Sector View Elect'!L43 -> 1000 | M43: ='2020 BCP Sector View Electric'!M43+'2021 ACP Sector View Elect'!M43 -> 1000 | N43: ='2020 BCP Sector View Electric'!N43+'2021 ACP Sector View Elect'!N43 -> 1000 | O43: ='2020 BCP Sector View Electric'!O43+'2021 ACP Sector View Elect'!O43 -> 1000 | P43: ='2020 BCP Sector View Electric'!P43+'2021 ACP Sector View Elect'!P43 -> 611600 | Q43: ='2020 BCP Sector View Electric'!Q43+'2021 ACP Sector View Elect'!Q43 -> 0 | R43: ='2020 BCP Sector View Electric'!R43+'2021 ACP Sector View Elect'!R43 -> 836312.5 | S43: ='2020 BCP Sector View Electric'!S43+'2021 ACP Sector View Elect'!S43 -> 2666680 | U43: 0.008713875223
C44: E262 | E44: Commercial Midstream | H44: 18230524 | I44: ='2020 BCP Sector View Electric'!I44+'2021 ACP Sector View Elect'!I44 -> 112500 | J44: ='2020 BCP Sector View Electric'!J44+'2021 ACP Sector View Elect'!J44 -> 98212.5 | K44: ='2020 BCP Sector View Electric'!K44+'2021 ACP Sector View Elect'!K44 -> 20000 | L44: ='2020 BCP Sector View Electric'!L44+'2021 ACP Sector View Elect'!L44 -> 3000 | M44: ='2020 BCP Sector View Electric'!M44+'2021 ACP Sector View Elect'!M44 -> 425000 | N44: ='2020 BCP Sector View Electric'!N44+'2021 ACP Sector View Elect'!N44 -> 2000 | O44: ='2020 BCP Sector View Electric'!O44+'2021 ACP Sector View Elect'!O44 -> 2000 | P44: ='2020 BCP Sector View Electric'!P44+'2021 ACP Sector View Elect'!P44 -> 2500000 | Q44: ='2020 BCP Sector View Electric'!Q44+'2021 ACP Sector View Elect'!Q44 -> 0 | R44: ='2020 BCP Sector View Electric'!R44+'2021 ACP Sector View Elect'!R44 -> 3162712.5 | S44: ='2020 BCP Sector View Electric'!S44+'2021 ACP Sector View Elect'!S44 -> 5000000 | U44: 0.01633843435
B45: Sm Bus DI_E262 Elect | C45: E262 | E45: Small Business Direct Install | H45: 18231134 | I45: ='2020 BCP Sector View Electric'!I45+'2021 ACP Sector View Elect'!I45 -> 175800 | J45: ='2020 BCP Sector View Electric'!J45+'2021 ACP Sector View Elect'!J45 -> 153473.4 | K45: ='2020 BCP Sector View Electric'!K45+'2021 ACP Sector View Elect'!K45 -> 112463 | L45: ='2020 BCP Sector View Electric'!L45+'2021 ACP Sector View Elect'!L45 -> 2400 | M45: ='2020 BCP Sector View Electric'!M45+'2021 ACP Sector View Elect'!M45 -> 3436000 | N45: ='2020 BCP Sector View Electric'!N45+'2021 ACP Sector View Elect'!N45 -> 1000 | O45: ='2020 BCP Sector View Electric'!O45+'2021 ACP Sector View Elect'!O45 -> 500 | P45: ='2020 BCP Sector View Electric'!P45+'2021 ACP Sector View Elect'!P45 -> 13249402 | Q45: ='2020 BCP Sector View Electric'!Q45+'2021 ACP Sector View Elect'!Q45 -> 0 | R45: ='2020 BCP Sector View Electric'!R45+'2021 ACP Sector View Elect'!R45 -> 17131038.4 | S45: ='2020 BCP Sector View Electric'!S45+'2021 ACP Sector View Elect'!S45 -> 36000000 | U45: 0.1176367273
B46: New BusRebt prgm_E262 Elec | C46: E262 | E46: Commercial General Rebates | H46: 1823nnnn | I46: ='2020 BCP Sector View Electric'!I46+'2021 ACP Sector View Elect'!I46 -> 0 | J46: ='2020 BCP Sector View Electric'!J46+'2021 ACP Sector View Elect'!J46 -> 0 | K46: ='2020 BCP Sector View Electric'!K46+'2021 ACP Sector View Elect'!K46 -> 0 | L46: ='2020 BCP Sector View Electric'!L46+'2021 ACP Sector View Elect'!L46 -> 0 | M46: ='2020 BCP Sector View Electric'!M46+'2021 ACP Sector View Elect'!M46 -> 0 | N46: ='2020 BCP Sector View Electric'!N46+'2021 ACP Sector View Elect'!N46 -> 0 | O46: ='2020 BCP Sector View Electric'!O46+'2021 ACP Sector View Elect'!O46 -> 0 | P46: ='2020 BCP Sector View Electric'!P46+'2021 ACP Sector View Elect'!P46 -> 0 | Q46: ='2020 BCP Sector View Electric'!Q46+'2021 ACP Sector View Elect'!Q46 -> 0 | R46: ='2020 BCP Sector View Electric'!R46+'2021 ACP Sector View Elect'!R46 -> 0 | S46: ='2020 BCP Sector View Electric'!S46+'2021 ACP Sector View Elect'!S46 -> 0
G47: Total, Business Energy Management | I47: =SUM(I29:I33)+I36+I39+I40 -> 7367720.681 | J47: 6839010.228 | K47: 575063 | L47: 317400 | M47: 6224702 | N47: 31900 | O47: 25000 | P47: 67474146.29 | Q47: 0 | R47: 88854942.2 | S47: 306026874.6
P48: =P47/R47 -> 0.7593741509
H49: 2018-2019 Figures | I49: 6622001 | J49: 6136624 | K49: 243900 | L49: 342500 | M49: 3543400 | N49: 46900 | O49: 34000 | P49: 55030172 | Q49: 0 | R49: 71999497 | S49: 261623331
C50: Pilots With Uncertain Savings
B51: REM Pilots E249 Elec | C51: E249 | E51: Residential Pilots | H51: 18230522 | I51: ='2020 BCP Sector View Electric'!I51+'2021 ACP Sector View Elect'!I51 -> 181500 | J51: ='2020 BCP Sector View Electric'!J51+'2021 ACP Sector View Elect'!J51 -> 158449.5 | K51: ='2020 BCP Sector View Electric'!K51+'2021 ACP Sector View Elect'!K51 -> 220000 | L51: ='2020 BCP Sector View Electric'!L51+'2021 ACP Sector View Elect'!L51 -> 0 | M51: ='2020 BCP Sector View Electric'!M51+'2021 ACP Sector View Elect'!M51 -> 790000 | N51: ='2020 BCP Sector View Electric'!N51+'2021 ACP Sector View Elect'!N51 -> 0 | O51: ='2020 BCP Sector View Electric'!O51+'2021 ACP Sector View Elect'!O51 -> 432000 | P51: ='2020 BCP Sector View Electric'!P51+'2021 ACP Sector View Elect'!P51 -> 990000 | Q51: ='2020 BCP Sector View Electric'!Q51+'2021 ACP Sector View Elect'!Q51 -> 0 | R51: ='2020 BCP Sector View Electric'!R51+'2021 ACP Sector View Elect'!R51 -> 2771949.5 | S51: ='2020 BCP Sector View Electric'!S51+'2021 ACP Sector View Elect'!S51 -> 11480000
B52: BEM Pilots E249 Elec | C52: E249 | E52: Commercial Pilots | H52: 1823pppp | I52: ='2020 BCP Sector View Electric'!I52+'2021 ACP Sector View Elect'!I52 -> 60000 | J52: ='2020 BCP Sector View Electric'!J52+'2021 ACP Sector View Elect'!J52 -> 45720 | K52: ='2020 BCP Sector View Electric'!K52+'2021 ACP Sector View Elect'!K52 -> 0 | L52: ='2020 BCP Sector View Electric'!L52+'2021 ACP Sector View Elect'!L52 -> 0 | M52: ='2020 BCP Sector View Electric'!M52+'2021 ACP Sector View Elect'!M52 -> 690000 | N52: ='2020 BCP Sector View Electric'!N52+'2021 ACP Sector View Elect'!N52 -> 0 | O52: ='2020 BCP Sector View Electric'!O52+'2021 ACP Sector View Elect'!O52 -> 0 | P52: ='2020 BCP Sector View Electric'!P52+'2021 ACP Sector View Elect'!P52 -> 423500 | Q52: ='2020 BCP Sector View Electric'!Q52+'2021 ACP Sector View Elect'!Q52 -> 0 | R52: ='2020 BCP Sector View Electric'!R52+'2021 ACP Sector View Elect'!R52 -> 1219220 | S52: ='2020 BCP Sector View Electric'!S52+'2021 ACP Sector View Elect'!S52 -> 3600000
G53: Total, Pilots | I53: =SUM(I51:I52) -> 241500 | J53: =SUM(J51:J52) -> 204169.5 | K53: 220000 | L53: 0 | M53: 1480000 | N53: 0 | O53: 432000 | P53: 1413500 | Q53: 0 | R53: 3991169.5 | S53: 15080000
P54: =P53/R53 -> 0.3541568455
H55: 2018-2019 Figures | I55: 0 | J55: 0 | K55: 0 | L55: 0 | M55: 0 | N55: 0 | O55: 0 | P55: 434000 | Q55: 0 | R55: 434000 | S55: 4480000
C57: Regional Efficiency Programs
B58: NEEA Detail_E254 elec | C58: E254 | E58: Northwest Energy Efficiency Alliance | H58: 18230421 | I58: ='2020 BCP Sector View Electric'!I58+'2021 ACP Sector View Elect'!I58 -> 0 | J58: ='2020 BCP Sector View Electric'!J58+'2021 ACP Sector View Elect'!J58 -> 0 | K58: ='2020 BCP Sector View Electric'!K58+'2021 ACP Sector View Elect'!K58 -> 0 | L58: ='2020 BCP Sector View Electric'!L58+'2021 ACP Sector View Elect'!L58 -> 0 | M58: ='2020 BCP Sector View Electric'!M58+'2021 ACP Sector View Elect'!M58 -> 2674323 | N58: ='2020 BCP Sector View Electric'!N58+'2021 ACP Sector View Elect'!N58 -> 0 | O58: ='2020 BCP Sector View Electric'!O58+'2021 ACP Sector View Elect'!O58 -> 0 | P58: ='2020 BCP Sector View Electric'!P58+'2021 ACP Sector View Elect'!P58 -> 6240087 | Q58: ='2020 BCP Sector View Electric'!Q58+'2021 ACP Sector View Elect'!Q58 -> 0 | R58: ='2020 BCP Sector View Electric'!R58+'2021 ACP Sector View Elect'!R58 -> 8914410 | S58: ='2020 BCP Sector View Electric'!S58+'2021 ACP Sector View Elect'!S58 -> 23564400
B59: TDSM_Regnl_elec_e219 | C59: E219 | E59: Targeted DSM | H59: 1823xxxx | I59: ='2020 BCP Sector View Electric'!I59+'2021 ACP Sector View Elect'!I59 -> 401380 | J59: ='2020 BCP Sector View Electric'!J59+'2021 ACP Sector View Elect'!J59 -> 350404.74 | K59: ='2020 BCP Sector View Electric'!K59+'2021 ACP Sector View Elect'!K59 -> 0 | L59: ='2020 BCP Sector View Electric'!L59+'2021 ACP Sector View Elect'!L59 -> 0 | M59: ='2020 BCP Sector View Electric'!M59+'2021 ACP Sector View Elect'!M59 -> 175000 | N59: ='2020 BCP Sector View Electric'!N59+'2021 ACP Sector View Elect'!N59 -> 0 | O59: ='2020 BCP Sector View Electric'!O59+'2021 ACP Sector View Elect'!O59 -> 0 | P59: ='2020 BCP Sector View Electric'!P59+'2021 ACP Sector View Elect'!P59 -> 0 | Q59: ='2020 BCP Sector View Electric'!Q59+'2021 ACP Sector View Elect'!Q59 -> 0 | R59: ='2020 BCP Sector View Electric'!R59+'2021 ACP Sector View Elect'!R59 -> 926784.74 | S59: ='2020 BCP Sector View Electric'!S59+'2021 ACP Sector View Elect'!S59 -> 0
B60: T&D Detail_Reg E292 elec | C60: E292 | E60: Transmission & Distribution | H60: 18230711 | I60: ='2020 BCP Sector View Electric'!I60+'2021 ACP Sector View Elect'!I60 -> 0 | J60: ='2020 BCP Sector View Electric'!J60+'2021 ACP Sector View Elect'!J60 -> 0 | K60: ='2020 BCP Sector View Electric'!K60+'2021 ACP Sector View Elect'!K60 -> 0 | L60: ='2020 BCP Sector View Electric'!L60+'2021 ACP Sector View Elect'!L60 -> 0 | M60: ='2020 BCP Sector View Electric'!M60+'2021 ACP Sector View Elect'!M60 -> 0 | N60: ='2020 BCP Sector View Electric'!N60+'2021 ACP Sector View Elect'!N60 -> 0 | O60: ='2020 BCP Sector View Electric'!O60+'2021 ACP Sector View Elect'!O60 -> 0 | P60: ='2020 BCP Sector View Electric'!P60+'2021 ACP Sector View Elect'!P60 -> 0 | Q60: ='2020 BCP Sector View Electric'!Q60+'2021 ACP Sector View Elect'!Q60 -> 0 | R60: ='2020 BCP Sector View Electric'!R60+'2021 ACP Sector View Elect'!R60 -> 0 | S60: ='2020 BCP Sector View Electric'!S60+'2021 ACP Sector View Elect'!S60 -> 1500000
G61: Total, Regional Efficiency Programs | I61: =SUM(I58:I60) -> 401380 | J61: =SUM(J58:J60) -> 350404.74 | K61: 0 | L61: 0 | M61: 2849323 | N61: 0 | O61: 0 | P61: 6240087 | Q61: 0 | R61: =SUM(R58:R60) -> 9841194.74 | S61: 25064400 | U61: DBtC of Savings Programs:
P62: =P61/R61 -> 0.6340781953 | U62: =(P24+P47+P53+P61)/(R24+R47+R53+R61) -> 0.7470189693
H63: 2018-2019 Figures | I63: 0 | J63: 0 | K63: 0 | L63: 0 | M63: 3120000 | N63: 0 | O63: 1385245 | P63: 7280000 | Q63: 0 | R63: 10400000 | S63: 26553600
C65: Energy Efficiency Portfolio Support
B66: Data & Systm Svcs_Elect | E66: Data and Systems Services | H66: 18230745 | I66: ='2020 BCP Sector View Electric'!I66+'2021 ACP Sector View Elect'!I66 -> 819540 | J66: ='2020 BCP Sector View Electric'!J66+'2021 ACP Sector View Elect'!J66 -> 715458.42 | K66: ='2020 BCP Sector View Electric'!K66+'2021 ACP Sector View Elect'!K66 -> 0 | L66: ='2020 BCP Sector View Electric'!L66+'2021 ACP Sector View Elect'!L66 -> 20880 | M66: ='2020 BCP Sector View Electric'!M66+'2021 ACP Sector View Elect'!M66 -> 565500 | N66: ='2020 BCP Sector View Electric'!N66+'2021 ACP Sector View Elect'!N66 -> 0 | O66: ='2020 BCP Sector View Electric'!O66+'2021 ACP Sector View Elect'!O66 -> 0 | P66: ='2020 BCP Sector View Electric'!P66+'2021 ACP Sector View Elect'!P66 -> 0 | Q66: ='2020 BCP Sector View Electric'!Q66+'2021 ACP Sector View Elect'!Q66 -> 0 | R66: ='2020 BCP Sector View Electric'!R66+'2021 ACP Sector View Elect'!R66 -> 2121378.42
B67: Rebt Procg Detail_Elect | E67: Rebates Processing | H67: 18230507 | I67: ='2020 BCP Sector View Electric'!I67+'2021 ACP Sector View Elect'!I67 -> 629010 | J67: ='2020 BCP Sector View Electric'!J67+'2021 ACP Sector View Elect'!J67 -> 549125.73 | K67: ='2020 BCP Sector View Electric'!K67+'2021 ACP Sector View Elect'!K67 -> 0 | L67: ='2020 BCP Sector View Electric'!L67+'2021 ACP Sector View Elect'!L67 -> 40000 | M67: ='2020 BCP Sector View Electric'!M67+'2021 ACP Sector View Elect'!M67 -> 40000 | N67: ='2020 BCP Sector View Electric'!N67+'2021 ACP Sector View Elect'!N67 -> 10000 | O67: ='2020 BCP Sector View Electric'!O67+'2021 ACP Sector View Elect'!O67 -> 0 | P67: ='2020 BCP Sector View Electric'!P67+'2021 ACP Sector View Elect'!P67 -> 0 | Q67: ='2020 BCP Sector View Electric'!Q67+'2021 ACP Sector View Elect'!Q67 -> 0 | R67: ='2020 BCP Sector View Electric'!R67+'2021 ACP Sector View Elect'!R67 -> 1268135.73
B68: VTeam Detail_R&C_Elec | E68: Verification Team | H68: 18230418 | I68: ='2020 BCP Sector View Electric'!I68+'2021 ACP Sector View Elect'!I68 -> 602860 | J68: ='2020 BCP Sector View Electric'!J68+'2021 ACP Sector View Elect'!J68 -> 526296.78 | K68: ='2020 BCP Sector View Electric'!K68+'2021 ACP Sector View Elect'!K68 -> 0 | L68: ='2020 BCP Sector View Electric'!L68+'2021 ACP Sector View Elect'!L68 -> 30000 | M68: ='2020 BCP Sector View Electric'!M68+'2021 ACP Sector View Elect'!M68 -> 0 | N68: ='2020 BCP Sector View Electric'!N68+'2021 ACP Sector View Elect'!N68 -> 12400 | O68: ='2020 BCP Sector View Electric'!O68+'2021 ACP Sector View Elect'!O68 -> 0 | P68: ='2020 BCP Sector View Electric'!P68+'2021 ACP Sector View Elect'!P68 -> 0 | Q68: ='2020 BCP Sector View Electric'!Q68+'2021 ACP Sector View Elect'!Q68 -> 0 | R68: ='2020 BCP Sector View Electric'!R68+'2021 ACP Sector View Elect'!R68 -> 1171556.78
B69: ProgDev Detail_R&C_ Elec | E69: Programs Support | H69: 18230810 | I69: ='2020 BCP Sector View Electric'!I69+'2021 ACP Sector View Elect'!I69 -> 428040 | J69: ='2020 BCP Sector View Electric'!J69+'2021 ACP Sector View Elect'!J69 -> 373678.92 | K69: ='2020 BCP Sector View Electric'!K69+'2021 ACP Sector View Elect'!K69 -> 0 | L69: ='2020 BCP Sector View Electric'!L69+'2021 ACP Sector View Elect'!L69 -> 24000 | M69: ='2020 BCP Sector View Electric'!M69+'2021 ACP Sector View Elect'!M69 -> 0 | N69: ='2020 BCP Sector View Electric'!N69+'2021 ACP Sector View Elect'!N69 -> 0 | O69: ='2020 BCP Sector View Electric'!O69+'2021 ACP Sector View Elect'!O69 -> 0 | P69: ='2020 BCP Sector View Electric'!P69+'2021 ACP Sector View Elect'!P69 -> 0 | Q69: ='2020 BCP Sector View Electric'!Q69+'2021 ACP Sector View Elect'!Q69 -> 0 | R69: ='2020 BCP Sector View Electric'!R69+'2021 ACP Sector View Elect'!R69 -> 825718.92
B70: TradeAlly Detail_PS_ Elec | E70: Trade Ally Memberships | H70: 18230730 | I70: ='2020 BCP Sector View Electric'!I70+'2021 ACP Sector View Elect'!I70 -> 0 | J70: ='2020 BCP Sector View Electric'!J70+'2021 ACP Sector View Elect'!J70 -> 0 | K70: ='2020 BCP Sector View Electric'!K70+'2021 ACP Sector View Elect'!K70 -> 0 | L70: ='2020 BCP Sector View Electric'!L70+'2021 ACP Sector View Elect'!L70 -> 0 | M70: ='2020 BCP Sector View Electric'!M70+'2021 ACP Sector View Elect'!M70 -> 236000 | N70: ='2020 BCP Sector View Electric'!N70+'2021 ACP Sector View Elect'!N70 -> 0 | O70: ='2020 BCP Sector View Electric'!O70+'2021 ACP Sector View Elect'!O70 -> 0 | P70: ='2020 BCP Sector View Electric'!P70+'2021 ACP Sector View Elect'!P70 -> 0 | Q70: ='2020 BCP Sector View Electric'!Q70+'2021 ACP Sector View Elect'!Q70 -> 0 | R70: ='2020 BCP Sector View Electric'!R70+'2021 ACP Sector View Elect'!R70 -> 236000
B71: CAN_Elect | E71: Trade Ally Network (revenue + cost) | H71: 18230746 | I71: ='2020 BCP Sector View Electric'!I71+'2021 ACP Sector View Elect'!I71 -> 151000 | J71: ='2020 BCP Sector View Electric'!J71+'2021 ACP Sector View Elect'!J71 -> 131823 | K71: ='2020 BCP Sector View Electric'!K71+'2021 ACP Sector View Elect'!K71 -> 40000 | L71: ='2020 BCP Sector View Electric'!L71+'2021 ACP Sector View Elect'!L71 -> 10000 | M71: ='2020 BCP Sector View Electric'!M71+'2021 ACP Sector View Elect'!M71 -> 76200 | N71: ='2020 BCP Sector View Electric'!N71+'2021 ACP Sector View Elect'!N71 -> 3000 | O71: ='2020 BCP Sector View Electric'!O71+'2021 ACP Sector View Elect'!O71 -> 0 | P71: ='2020 BCP Sector View Electric'!P71+'2021 ACP Sector View Elect'!P71 -> 0 | Q71: ='2020 BCP Sector View Electric'!Q71+'2021 ACP Sector View Elect'!Q71 -> -415000 | R71: ='2020 BCP Sector View Electric'!R71+'2021 ACP Sector View Elect'!R71 -> -2977
B72: ABS Detail_PSWE_Elec | E72: Automated Benchmarking System | H72: 18230411 | I72: ='2020 BCP Sector View Electric'!I72+'2021 ACP Sector View Elect'!I72 -> 129200 | J72: ='2020 BCP Sector View Electric'!J72+'2021 ACP Sector View Elect'!J72 -> 112791.6 | K72: ='2020 BCP Sector View Electric'!K72+'2021 ACP Sector View Elect'!K72 -> 0 | L72: ='2020 BCP Sector View Electric'!L72+'2021 ACP Sector View Elect'!L72 -> 0 | M72: ='2020 BCP Sector View Electric'!M72+'2021 ACP Sector View Elect'!M72 -> 361500 | N72: ='2020 BCP Sector View Electric'!N72+'2021 ACP Sector View Elect'!N72 -> 0 | O72: ='2020 BCP Sector View Electric'!O72+'2021 ACP Sector View Elect'!O72 -> 0 | P72: ='2020 BCP Sector View Electric'!P72+'2021 ACP Sector View Elect'!P72 -> 0 | Q72: ='2020 BCP Sector View Electric'!Q72+'2021 ACP Sector View Elect'!Q72 -> 0 | R72: ='2020 BCP Sector View Electric'!R72+'2021 ACP Sector View Elect'!R72 -> 603491.6
B73: Engy Adv Detail_PSCE Elec | E73: Energy Advisors | H73: 18230610 | I73: ='2020 BCP Sector View Electric'!I73+'2021 ACP Sector View Elect'!I73 -> 1421820 | J73: ='2020 BCP Sector View Electric'!J73+'2021 ACP Sector View Elect'!J73 -> 1241248.86 | K73: ='2020 BCP Sector View Electric'!K73+'2021 ACP Sector View Elect'!K73 -> 0 | L73: ='2020 BCP Sector View Electric'!L73+'2021 ACP Sector View Elect'!L73 -> 88000 | M73: ='2020 BCP Sector View Electric'!M73+'2021 ACP Sector View Elect'!M73 -> 2000 | N73: ='2020 BCP Sector View Electric'!N73+'2021 ACP Sector View Elect'!N73 -> 0 | O73: ='2020 BCP Sector View Electric'!O73+'2021 ACP Sector View Elect'!O73 -> 2700 | P73: ='2020 BCP Sector View Electric'!P73+'2021 ACP Sector View Elect'!P73 -> 0 | Q73: ='2020 BCP Sector View Electric'!Q73+'2021 ACP Sector View Elect'!Q73 -> 0 | R73: ='2020 BCP Sector View Electric'!R73+'2021 ACP Sector View Elect'!R73 -> 2755768.86
B74: EEC Detail_PS_Elec | E74: Energy Efficient Communities | H74: 18230811 | I74: ='2020 BCP Sector View Electric'!I74+'2021 ACP Sector View Elect'!I74 -> 921175 | J74: ='2020 BCP Sector View Electric'!J74+'2021 ACP Sector View Elect'!J74 -> 804185.775 | K74: ='2020 BCP Sector View Electric'!K74+'2021 ACP Sector View Elect'!K74 -> 80000 | L74: ='2020 BCP Sector View Electric'!L74+'2021 ACP Sector View Elect'!L74 -> 36000 | M74: ='2020 BCP Sector View Electric'!M74+'2021 ACP Sector View Elect'!M74 -> 200000 | N74: ='2020 BCP Sector View Electric'!N74+'2021 ACP Sector View Elect'!N74 -> 23490 | O74: ='2020 BCP Sector View Electric'!O74+'2021 ACP Sector View Elect'!O74 -> 0 | P74: ='2020 BCP Sector View Electric'!P74+'2021 ACP Sector View Elect'!P74 -> 0 | Q74: ='2020 BCP Sector View Electric'!Q74+'2021 ACP Sector View Elect'!Q74 -> 0 | R74: ='2020 BCP Sector View Electric'!R74+'2021 ACP Sector View Elect'!R74 -> 2064850.775
B75: CustOnline Detail_PSWE_Elec | D75: New Name | E75: Customer Digital Services | I75: =SUM(I76:I78) -> 317620 | J75: =SUM(J76:J78) -> 277282.26 | K75: 0 | L75: 1000 | M75: 2118609.82 | N75: 0 | O75: 0 | P75: 0 | Q75: 0 | R75: 2714512.08
F76: Digital Experience | H76: 18230400 & 408 | I76: ='2020 BCP Sector View Electric'!I76+'2021 ACP Sector View Elect'!I76 -> 185100 | J76: ='2020 BCP Sector View Electric'!J76+'2021 ACP Sector View Elect'!J76 -> 161592.3 | K76: ='2020 BCP Sector View Electric'!K76+'2021 ACP Sector View Elect'!K76 -> 0 | L76: ='2020 BCP Sector View Electric'!L76+'2021 ACP Sector View Elect'!L76 -> 500 | M76: ='2020 BCP Sector View Electric'!M76+'2021 ACP Sector View Elect'!M76 -> 985335.9 | N76: ='2020 BCP Sector View Electric'!N76+'2021 ACP Sector View Elect'!N76 -> 0 | O76: ='2020 BCP Sector View Electric'!O76+'2021 ACP Sector View Elect'!O76 -> 0 | P76: ='2020 BCP Sector View Electric'!P76+'2021 ACP Sector View Elect'!P76 -> 0 | Q76: ='2020 BCP Sector View Electric'!Q76+'2021 ACP Sector View Elect'!Q76 -> 0 | R76: ='2020 BCP Sector View Electric'!R76+'2021 ACP Sector View Elect'!R76 -> 1332528.2
B77: CustAwarTools_elec | F77: Customer Awareness Tools | H77: 18230508 | I77: ='2020 BCP Sector View Electric'!I77+'2021 ACP Sector View Elect'!I77 -> 75700 | J77: ='2020 BCP Sector View Electric'!J77+'2021 ACP Sector View Elect'!J77 -> 66086.1 | K77: ='2020 BCP Sector View Electric'!K77+'2021 ACP Sector View Elect'!K77 -> 0 | L77: ='2020 BCP Sector View Electric'!L77+'2021 ACP Sector View Elect'!L77 -> 500 | M77: ='2020 BCP Sector View Electric'!M77+'2021 ACP Sector View Elect'!M77 -> 1129273.92 | N77: ='2020 BCP Sector View Electric'!N77+'2021 ACP Sector View Elect'!N77 -> 0 | O77: ='2020 BCP Sector View Electric'!O77+'2021 ACP Sector View Elect'!O77 -> 0 | P77: ='2020 BCP Sector View Electric'!P77+'2021 ACP Sector View Elect'!P77 -> 0 | Q77: ='2020 BCP Sector View Electric'!Q77+'2021 ACP Sector View Elect'!Q77 -> 0 | R77: ='2020 BCP Sector View Electric'!R77+'2021 ACP Sector View Elect'!R77 -> 1271560.02
B78: ShopPSE_elec | F78: ShopPSE | H78: 18230509 | I78: ='2020 BCP Sector View Electric'!I78+'2021 ACP Sector View Elect'!I78 -> 56820 | J78: ='2020 BCP Sector View Electric'!J78+'2021 ACP Sector View Elect'!J78 -> 49603.86 | K78: ='2020 BCP Sector View Electric'!K78+'2021 ACP Sector View Elect'!K78 -> 0 | L78: ='2020 BCP Sector View Electric'!L78+'2021 ACP Sector View Elect'!L78 -> 0 | M78: ='2020 BCP Sector View Electric'!M78+'2021 ACP Sector View Elect'!M78 -> 4000 | N78: ='2020 BCP Sector View Electric'!N78+'2021 ACP Sector View Elect'!N78 -> 0 | O78: ='2020 BCP Sector View Electric'!O78+'2021 ACP Sector View Elect'!O78 -> 0 | P78: ='2020 BCP Sector View Electric'!P78+'2021 ACP Sector View Elect'!P78 -> 0 | Q78: ='2020 BCP Sector View Electric'!Q78+'2021 ACP Sector View Elect'!Q78 -> 0 | R78: ='2020 BCP Sector View Electric'!R78+'2021 ACP Sector View Elect'!R78 -> 110423.86
B79: Mkt Intgn Detail_PSWE_Elec | E79: Market Integration | H79: 18230466 | I79: ='2020 BCP Sector View Electric'!I79+'2021 ACP Sector View Elect'!I79 -> 300043 | J79: ='2020 BCP Sector View Electric'!J79+'2021 ACP Sector View Elect'!J79 -> 261937.539 | K79: ='2020 BCP Sector View Electric'!K79+'2021 ACP Sector View Elect'!K79 -> 0 | L79: ='2020 BCP Sector View Electric'!L79+'2021 ACP Sector View Elect'!L79 -> 0 | M79: ='2020 BCP Sector View Electric'!M79+'2021 ACP Sector View Elect'!M79 -> 69600 | N79: ='2020 BCP Sector View Electric'!N79+'2021 ACP Sector View Elect'!N79 -> 0 | O79: ='2020 BCP Sector View Electric'!O79+'2021 ACP Sector View Elect'!O79 -> 0 | P79: ='2020 BCP Sector View Electric'!P79+'2021 ACP Sector View Elect'!P79 -> 0 | Q79: ='2020 BCP Sector View Electric'!Q79+'2021 ACP Sector View Elect'!Q79 -> 0 | R79: ='2020 BCP Sector View Electric'!R79+'2021 ACP Sector View Elect'!R79 -> 631580.539
B80: Events Detail_PSCE Elec | E80: Events | H80: 18230602 | I80: ='2020 BCP Sector View Electric'!I80+'2021 ACP Sector View Elect'!I80 -> 236031 | J80: ='2020 BCP Sector View Electric'!J80+'2021 ACP Sector View Elect'!J80 -> 206055.063 | K80: ='2020 BCP Sector View Electric'!K80+'2021 ACP Sector View Elect'!K80 -> 26000 | L80: ='2020 BCP Sector View Electric'!L80+'2021 ACP Sector View Elect'!L80 -> 7810 | M80: ='2020 BCP Sector View Electric'!M80+'2021 ACP Sector View Elect'!M80 -> 187420 | N80: ='2020 BCP Sector View Electric'!N80+'2021 ACP Sector View Elect'!N80 -> 68730 | O80: ='2020 BCP Sector View Electric'!O80+'2021 ACP Sector View Elect'!O80 -> 0 | P80: ='2020 BCP Sector View Electric'!P80+'2021 ACP Sector View Elect'!P80 -> 0 | Q80: ='2020 BCP Sector View Electric'!Q80+'2021 ACP Sector View Elect'!Q80 -> 0 | R80: ='2020 BCP Sector View Electric'!R80+'2021 ACP Sector View Elect'!R80 -> 732046.063
B81: Brochures Detail_PSCE Elec | E81: Brochures, non program-specific | H81: 18230482 | I81: ='2020 BCP Sector View Electric'!I81+'2021 ACP Sector View Elect'!I81 -> 0 | J81: ='2020 BCP Sector View Electric'!J81+'2021 ACP Sector View Elect'!J81 -> 0 | K81: ='2020 BCP Sector View Electric'!K81+'2021 ACP Sector View Elect'!K81 -> 0 | L81: ='2020 BCP Sector View Electric'!L81+'2021 ACP Sector View Elect'!L81 -> 0 | M81: ='2020 BCP Sector View Electric'!M81+'2021 ACP Sector View Elect'!M81 -> 0 | N81: ='2020 BCP Sector View Electric'!N81+'2021 ACP Sector View Elect'!N81 -> 0 | O81: ='2020 BCP Sector View Electric'!O81+'2021 ACP Sector View Elect'!O81 -> 0 | P81: ='2020 BCP Sector View Electric'!P81+'2021 ACP Sector View Elect'!P81 -> 0 | Q81: ='2020 BCP Sector View Electric'!Q81+'2021 ACP Sector View Elect'!Q81 -> 0 | R81: ='2020 BCP Sector View Electric'!R81+'2021 ACP Sector View Elect'!R81 -> 0
G82: Total, Portfolio Support | I82: =SUM(I58:I75)+SUM(I79:I81) -> 6759099 | J82: =SUM(J66:J75)+SUM(J79:J81) -> 5199883.947 | K82: 146000 | L82: 257690 | M82: 3856829.82 | N82: 117620 | O82: 2700 | P82: 0 | Q82: -415000 | R82: =SUM(R66:R75)+SUM(R79:R81) -> 15122062.77
H84: 2018-2019 Figures | I84: 5909459 | J84: 4979779 | K84: 354000 | L84: 282760 | M84: 2474340 | N84: 103955 | O84: 2700 | P84: 0 | Q84: -564802 | R84: 13239192
C86: Research & Compliance
B87: SuppCrv Detail_R&C_Elec | E87: Conservation Supply Curves | H87: 18230809 | I87: ='2020 BCP Sector View Electric'!I87+'2021 ACP Sector View Elect'!I87 -> 142680 | J87: ='2020 BCP Sector View Electric'!J87+'2021 ACP Sector View Elect'!J87 -> 124559.64 | K87: ='2020 BCP Sector View Electric'!K87+'2021 ACP Sector View Elect'!K87 -> 0 | L87: ='2020 BCP Sector View Electric'!L87+'2021 ACP Sector View Elect'!L87 -> 1740 | M87: ='2020 BCP Sector View Electric'!M87+'2021 ACP Sector View Elect'!M87 -> 365400 | N87: ='2020 BCP Sector View Electric'!N87+'2021 ACP Sector View Elect'!N87 -> 0 | O87: ='2020 BCP Sector View Electric'!O87+'2021 ACP Sector View Elect'!O87 -> 0 | P87: ='2020 BCP Sector View Electric'!P87+'2021 ACP Sector View Elect'!P87 -> 0 | Q87: ='2020 BCP Sector View Electric'!Q87+'2021 ACP Sector View Elect'!Q87 -> 0 | R87: ='2020 BCP Sector View Electric'!R87+'2021 ACP Sector View Elect'!R87 -> 634379.64
B88: Strat Plan Detail_R&C_Elec | E88: Strategic Planning | H88: 18230469 | I88: ='2020 BCP Sector View Electric'!I88+'2021 ACP Sector View Elect'!I88 -> 346695 | J88: ='2020 BCP Sector View Electric'!J88+'2021 ACP Sector View Elect'!J88 -> 302664.735 | K88: ='2020 BCP Sector View Electric'!K88+'2021 ACP Sector View Elect'!K88 -> 0 | L88: ='2020 BCP Sector View Electric'!L88+'2021 ACP Sector View Elect'!L88 -> 6612 | M88: ='2020 BCP Sector View Electric'!M88+'2021 ACP Sector View Elect'!M88 -> 752200 | N88: ='2020 BCP Sector View Electric'!N88+'2021 ACP Sector View Elect'!N88 -> 0 | O88: ='2020 BCP Sector View Electric'!O88+'2021 ACP Sector View Elect'!O88 -> 0 | P88: ='2020 BCP Sector View Electric'!P88+'2021 ACP Sector View Elect'!P88 -> 0 | Q88: ='2020 BCP Sector View Electric'!Q88+'2021 ACP Sector View Elect'!Q88 -> 0 | R88: ='2020 BCP Sector View Electric'!R88+'2021 ACP Sector View Elect'!R88 -> 1408171.735
B89: Mktg Resch Detail_PS_ Elec | E89: Market Research | H89: 18230413 | I89: ='2020 BCP Sector View Electric'!I89+'2021 ACP Sector View Elect'!I89 -> 170560 | J89: ='2020 BCP Sector View Electric'!J89+'2021 ACP Sector View Elect'!J89 -> 148898.88 | K89: ='2020 BCP Sector View Electric'!K89+'2021 ACP Sector View Elect'!K89 -> 0 | L89: ='2020 BCP Sector View Electric'!L89+'2021 ACP Sector View Elect'!L89 -> 0 | M89: ='2020 BCP Sector View Electric'!M89+'2021 ACP Sector View Elect'!M89 -> 14413 | N89: ='2020 BCP Sector View Electric'!N89+'2021 ACP Sector View Elect'!N89 -> 0 | O89: ='2020 BCP Sector View Electric'!O89+'2021 ACP Sector View Elect'!O89 -> 0 | P89: ='2020 BCP Sector View Electric'!P89+'2021 ACP Sector View Elect'!P89 -> 0 | Q89: ='2020 BCP Sector View Electric'!Q89+'2021 ACP Sector View Elect'!Q89 -> 0 | R89: ='2020 BCP Sector View Electric'!R89+'2021 ACP Sector View Elect'!R89 -> 333871.88
B90: Eval Detail_R&C_Elec | E90: Program Evaluation | H90: 18230802 | I90: ='2020 BCP Sector View Electric'!I90+'2021 ACP Sector View Elect'!I90 -> 335385 | J90: ='2020 BCP Sector View Electric'!J90+'2021 ACP Sector View Elect'!J90 -> 292791.105 | K90: ='2020 BCP Sector View Electric'!K90+'2021 ACP Sector View Elect'!K90 -> 0 | L90: ='2020 BCP Sector View Electric'!L90+'2021 ACP Sector View Elect'!L90 -> 12180 | M90: ='2020 BCP Sector View Electric'!M90+'2021 ACP Sector View Elect'!M90 -> 2958000 | N90: ='2020 BCP Sector View Electric'!N90+'2021 ACP Sector View Elect'!N90 -> 0 | O90: ='2020 BCP Sector View Electric'!O90+'2021 ACP Sector View Elect'!O90 -> 408390 | P90: ='2020 BCP Sector View Electric'!P90+'2021 ACP Sector View Elect'!P90 -> 0 | Q90: ='2020 BCP Sector View Electric'!Q90+'2021 ACP Sector View Elect'!Q90 -> 0 | R90: ='2020 BCP Sector View Electric'!R90+'2021 ACP Sector View Elect'!R90 -> 4006746.105
B91: BECAR Detail_R&C Elec | E91: Biennial Elec. Consv. Aquisitn. Review | H91: 18230624 | I91: ='2020 BCP Sector View Electric'!I91+'2021 ACP Sector View Elect'!I91 -> 0 | J91: ='2020 BCP Sector View Electric'!J91+'2021 ACP Sector View Elect'!J91 -> 0 | K91: ='2020 BCP Sector View Electric'!K91+'2021 ACP Sector View Elect'!K91 -> 0 | L91: ='2020 BCP Sector View Electric'!L91+'2021 ACP Sector View Elect'!L91 -> 0 | M91: ='2020 BCP Sector View Electric'!M91+'2021 ACP Sector View Elect'!M91 -> 150000 | N91: ='2020 BCP Sector View Electric'!N91+'2021 ACP Sector View Elect'!N91 -> 0 | O91: ='2020 BCP Sector View Electric'!O91+'2021 ACP Sector View Elect'!O91 -> 0 | P91: ='2020 BCP Sector View Electric'!P91+'2021 ACP Sector View Elect'!P91 -> 0 | Q91: ='2020 BCP Sector View Electric'!Q91+'2021 ACP Sector View Elect'!Q91 -> 0 | R91: ='2020 BCP Sector View Electric'!R91+'2021 ACP Sector View Elect'!R91 -> 150000
G92: Total, Research & Compliance | I92: =SUM(I87:I91) -> 995320 | J92: 868914.36 | K92: 0 | L92: =SUM(L87:L91) -> 20532 | M92: 4240013 | N92: 0 | O92: =SUM(O87:O91) -> 408390 | P92: 0 | Q92: 0 | R92: 6533169.36
H94: 2018-2019 Figures | I94: 1244448 | J94: 935023 | K94: 0 | L94: 33930 | M94: 4302207 | N94: 0 | O94: 540000 | P94: 0 | Q94: 0 | R94: 7055608
C96: Other Customer Programs
B97: Net Mtr Details_Oth Elec E150 | C97: E150 | E97: Net Metering | H97: 18230128 | I97: ='2020 BCP Sector View Electric'!I97+'2021 ACP Sector View Elect'!I97 -> 586500 | J97: ='2020 BCP Sector View Electric'!J97+'2021 ACP Sector View Elect'!J97 -> 512014.5 | K97: ='2020 BCP Sector View Electric'!K97+'2021 ACP Sector View Elect'!K97 -> 0 | L97: ='2020 BCP Sector View Electric'!L97+'2021 ACP Sector View Elect'!L97 -> 20000 | M97: ='2020 BCP Sector View Electric'!M97+'2021 ACP Sector View Elect'!M97 -> 140000 | N97: ='2020 BCP Sector View Electric'!N97+'2021 ACP Sector View Elect'!N97 -> 0 | O97: ='2020 BCP Sector View Electric'!O97+'2021 ACP Sector View Elect'!O97 -> 1650000 | P97: ='2020 BCP Sector View Electric'!P97+'2021 ACP Sector View Elect'!P97 -> 0 | Q97: ='2020 BCP Sector View Electric'!Q97+'2021 ACP Sector View Elect'!Q97 -> 0 | R97: ='2020 BCP Sector View Electric'!R97+'2021 ACP Sector View Elect'!R97 -> 2908514.5
B98: DemndResp_Detail_E249_Elec | C98: 249A, 271 | E98: Demand Response Pilot | H98: 1823XXXX | I98: ='2020 BCP Sector View Electric'!I98+'2021 ACP Sector View Elect'!I98 -> 0 | J98: ='2020 BCP Sector View Electric'!J98+'2021 ACP Sector View Elect'!J98 -> 0 | K98: ='2020 BCP Sector View Electric'!K98+'2021 ACP Sector View Elect'!K98 -> 0 | L98: ='2020 BCP Sector View Electric'!L98+'2021 ACP Sector View Elect'!L98 -> 0 | M98: ='2020 BCP Sector View Electric'!M98+'2021 ACP Sector View Elect'!M98 -> 485100 | N98: ='2020 BCP Sector View Electric'!N98+'2021 ACP Sector View Elect'!N98 -> 0 | O98: ='2020 BCP Sector View Electric'!O98+'2021 ACP Sector View Elect'!O98 -> 0 | P98: ='2020 BCP Sector View Electric'!P98+'2021 ACP Sector View Elect'!P98 -> 0 | Q98: ='2020 BCP Sector View Electric'!Q98+'2021 ACP Sector View Elect'!Q98 -> 0 | R98: ='2020 BCP Sector View Electric'!R98+'2021 ACP Sector View Elect'!R98 -> 485100
G99: Total, Other Energy Efficiency Programs | I99: =SUM(I97:I98) -> 586500 | J99: =SUM(J97:J98) -> 512014.5 | K99: 0 | L99: 20000 | M99: 625100 | N99: 0 | O99: 1650000 | P99: 0 | Q99: 0 | R99: 3393614.5
H101: 2018-2019 Figures | I101: 486400 | J101: 451379 | K101: 0 | L101: 20000 | M101: 120000 | N101: 10000 | O101: 1070000 | P101: 0 | Q101: 0 | R101: 2157779
G103: GRAND TOTAL, ELECTRIC PROGRAMS | I103: =I99+I92+I82+I61+I53+I47+I24 -> 18729900.68 | J103: =J99+J92+J82+J61+J53+J47+J24 -> 16050723.89 | K103: 3359593 | L103: 677772 | M103: 27448873.8 | N103: 181720 | O103: 2528290 | P103: 126117675.1 | Q103: -415000 | R103: =R99+R92+R82+R61+R53+R47+R24 -> 193876788.5 | S103: =S99+S92+S61+S53+S47+S24 -> 526043702.5
P104: =P103/R103 -> 0.6505042512
H105: 2018-2019 Figures | I105: 17446826 | J105: 9627693 | K105: 5476255 | L105: 468580 | M105: 19062044 | N105: 93300 | O105: 1657500 | P105: 123590908 | Q105: -564802 | R105: 183836280 | S105: 520455766
S106: =S103/1000/8760 -> 60.05065097
G107: Budget Category Includes | H107: This is the main level of tracking expenditures and expenses in EES. Per FERC rules, all conservation order numbers start with a "1823nnnn", where "n" is some number. Cost elements apply to all order numbers (for instance, all conservation programs that | I107: Energy Efficiency program staff labor. Average FTE cost including management assessments. This Budget Category group includes assessments from Major Accounts management, Resource Planning, Corporate Communications management, IT specialists and some building maintenance allocations. | J107: Overhead--costs associated with primarily employee labor; benefits, for instance. For 2017, includes micro-overhead. | K107: Service and materials associated with the cost of printing program brochures, marketing pieces, advertising, banners, etc. Also includes marketing conducted by vendors and contractors. | L107: Costs associated with EE staff attending events, employee training, conferences, business meals, business parking, ferry & bridge tolls, mileage incurred on employee automobiles, office supplies, phones, subscriptions, software/hardware, etc. | M107: Contractors and vendors, such as PECI, Ecos, CostCo, EFI, etc. Legal expenses, technical services (CMS design, PSE.com web portals, etc.). These costs do NOT include brochure development, marketing pieces, (which are classified under MARKETING). These costs do NOT include incentives paid to customers by contractors. | N107: Primarily tools, trade show equipment, etc. | O107: This category should seldomly be used, and only expenses that cannot be classified under one of the above categories. | P107: All costs associated with rebates, grants, remuneration, value-added services that have a direct bearing on a customer's perceived value of PSE offerings. | Q107: Any amount that PSE is paid by a customer, partner, municipality or outside entity.

Sheet 2020 BCP Sector View Electric
C2: Energy Efficiency 2020 Budgets and Aggregate Program Savings
C3: Sector View
C4: Electric Programs | I4: Please see category descriptions at the bottom of the sector table.
I5: Budget Category
B6: Workbook Name | C6: Schedule | D6: Comment | E6: Description (Blue, indented text indicates a sub-total value) | H6: Order Number (Click on the order# below to link to the detail page) | I6: Labor | J6: Overhead | K6: Marketing | L6: Employee/Office Expense | M6: Outside Services | N6: Materials | O6: Miscellaneous | P6: DBtC | Q6: Revenue | R6: Total Budget | S6: Total Savings kWh | U6: Comments
C7: Residential Energy Management
B8: LIW Detail_REM E201_Elec | C8: E201 | E8: Low Income Weatherization | H8: 18230611 | I8: =' LowIncWx Detail_REM E201_Elec'!D5 -> 115090.5 | J8: =' LowIncWx Detail_REM E201_Elec'!E5 -> 100474.0065 | K8: =' LowIncWx Detail_REM E201_Elec'!F5 -> 48600 | L8: =' LowIncWx Detail_REM E201_Elec'!G5 -> 4500 | M8: =' LowIncWx Detail_REM E201_Elec'!H5 -> 22500 | N8: =' LowIncWx Detail_REM E201_Elec'!I5 -> 1350 | O8: =' LowIncWx Detail_REM E201_Elec'!J5 -> 1350 | P8: =' LowIncWx Detail_REM E201_Elec'!K5 -> 5855151.295 | Q8: =' LowIncWx Detail_REM E201_Elec'!L5 -> 0 | R8: =' LowIncWx Detail_REM E201_Elec'!M5 -> 6149015.802 | S8: =' LowIncWx Detail_REM E201_Elec'!N5 -> 1965872.1
B9: HomePrint Detail_REM_E214 Elec | C9: E214 | E9: Home Energy Assessments | H9: 18230625 | I9: ='HmEnrgAsmt Detail_REM_E214 Elec'!D5 -> 107650 | J9: ='HmEnrgAsmt Detail_REM_E214 Elec'!E5 -> 93978.45 | K9: ='HmEnrgAsmt Detail_REM_E214 Elec'!F5 -> 5000 | L9: ='HmEnrgAsmt Detail_REM_E214 Elec'!G5 -> 1500 | M9: ='HmEnrgAsmt Detail_REM_E214 Elec'!H5 -> 290680 | N9: ='HmEnrgAsmt Detail_REM_E214 Elec'!I5 -> 0 | O9: ='HmEnrgAsmt Detail_REM_E214 Elec'!J5 -> 1000 | P9: ='HmEnrgAsmt Detail_REM_E214 Elec'!K5 -> 725886.15 | Q9: ='HmEnrgAsmt Detail_REM_E214 Elec'!L5 -> 0 | R9: ='HmEnrgAsmt Detail_REM_E214 Elec'!M5 -> 1225694.6 | S9: ='HmEnrgAsmt Detail_REM_E214 Elec'!N5 -> 3657177.4
B10: WaterHea_Detail_REM_E214 Elec | C10: E214 | E10: SF Existing Water Heat | H10: 18230626 | I10: ='WaterHea_Detail_REM_E214 Elec'!D5 -> 35750 | J10: ='WaterHea_Detail_REM_E214 Elec'!E5 -> 31209.75 | K10: ='WaterHea_Detail_REM_E214 Elec'!F5 -> 10000 | L10: ='WaterHea_Detail_REM_E214 Elec'!G5 -> 500 | M10: ='WaterHea_Detail_REM_E214 Elec'!H5 -> 214000 | N10: ='WaterHea_Detail_REM_E214 Elec'!I5 -> 500 | O10: ='WaterHea_Detail_REM_E214 Elec'!J5 -> 500 | P10: ='WaterHea_Detail_REM_E214 Elec'!K5 -> 700000 | Q10: ='WaterHea_Detail_REM_E214 Elec'!L5 -> 0 | R10: ='WaterHea_Detail_REM_E214 Elec'!M5 -> 992459.75 | S10: ='WaterHea_Detail_REM_E214 Elec'!N5 -> 2225000
B11: Wx_Detail_REM E214 Elec | C11: E214 | E11: SF Existing Weatherization | H11: 18230627 | I11: ='Wx_Detail_REM E214 Elec'!D5 -> 72700 | J11: ='Wx_Detail_REM E214 Elec'!E5 -> 63467.1 | K11: ='Wx_Detail_REM E214 Elec'!F5 -> 120000 | L11: ='Wx_Detail_REM E214 Elec'!G5 -> 1000 | M11: ='Wx_Detail_REM E214 Elec'!H5 -> 0 | N11: ='Wx_Detail_REM E214 Elec'!I5 -> 500 | O11: ='Wx_Detail_REM E214 Elec'!J5 -> 1000 | P11: ='Wx_Detail_REM E214 Elec'!K5 -> 488411 | Q11: ='Wx_Detail_REM E214 Elec'!L5 -> 0 | R11: ='Wx_Detail_REM E214 Elec'!M5 -> 747078.1 | S11: ='Wx_Detail_REM E214 Elec'!N5 -> 2061262
B12: SpcHeat Detail_REM_E214 Elec | C12: E214 | E12: SF Existing Space Heat | H12: 18230628 | I12: ='SpcHeat Detail_REM_E214 Elec'!D5 -> 71500 | J12: ='SpcHeat Detail_REM_E214 Elec'!E5 -> 62419.5 | K12: ='SpcHeat Detail_REM_E214 Elec'!F5 -> 225000 | L12: ='SpcHeat Detail_REM_E214 Elec'!G5 -> 1000 | M12: ='SpcHeat Detail_REM_E214 Elec'!H5 -> 550000 | N12: ='SpcHeat Detail_REM_E214 Elec'!I5 -> 0 | O12: ='SpcHeat Detail_REM_E214 Elec'!J5 -> 0 | P12: ='SpcHeat Detail_REM_E214 Elec'!K5 -> 5528000 | Q12: ='SpcHeat Detail_REM_E214 Elec'!L5 -> 0 | R12: ='SpcHeat Detail_REM_E214 Elec'!M5 -> 6437919.5 | S12: ='SpcHeat Detail_REM_E214 Elec'!N5 -> 14207240
B13: HmAppplc_Detail_REM_E214 Elec | C13: E214 | E13: Home Appliances | H13: 18230434 | I13: ='HmAppplc_Detail_REM_E214 Elec'!D5 -> 59850 | J13: ='HmAppplc_Detail_REM_E214 Elec'!E5 -> 52249.05 | K13: ='HmAppplc_Detail_REM_E214 Elec'!F5 -> 40000 | L13: ='HmAppplc_Detail_REM_E214 Elec'!G5 -> 1000 | M13: ='HmAppplc_Detail_REM_E214 Elec'!H5 -> 119500 | N13: ='HmAppplc_Detail_REM_E214 Elec'!I5 -> 500 | O13: ='HmAppplc_Detail_REM_E214 Elec'!J5 -> 0 | P13: ='HmAppplc_Detail_REM_E214 Elec'!K5 -> 1042622.24 | Q13: ='HmAppplc_Detail_REM_E214 Elec'!L5 -> 0 | R13: ='HmAppplc_Detail_REM_E214 Elec'!M5 -> 1315721.29 | S13: ='HmAppplc_Detail_REM_E214 Elec'!N5 -> 2513420.28
B14: ShwrHead_Detail_REM_E214 Elec | C14: E214 | E14: Residential Showerheads | H14: 18230435 | I14: ='ShwrHead_Detail_REM_E214 Elec'!D5 -> 30450 | J14: ='ShwrHead_Detail_REM_E214 Elec'!E5 -> 26582.85 | K14: ='ShwrHead_Detail_REM_E214 Elec'!F5 -> 80915 | L14: ='ShwrHead_Detail_REM_E214 Elec'!G5 -> 500 | M14: ='ShwrHead_Detail_REM_E214 Elec'!H5 -> 144500 | N14: ='ShwrHead_Detail_REM_E214 Elec'!I5 -> 500 | O14: ='ShwrHead_Detail_REM_E214 Elec'!J5 -> 250 | P14: ='ShwrHead_Detail_REM_E214 Elec'!K5 -> 379177.6 | Q14: ='ShwrHead_Detail_REM_E214 Elec'!L5 -> 0 | R14: ='ShwrHead_Detail_REM_E214 Elec'!M5 -> 662875.45 | S14: ='ShwrHead_Detail_REM_E214 Elec'!N5 -> 2581994.8
B15: Lighting Detail_REM_E214 Elec | C15: E214 | E15: Energy Efficient Lighting Services | H15: 18230440 | I15: ='Lighting Detail_REM_E214 Elec'!D5 -> 272220 | J15: ='Lighting Detail_REM_E214 Elec'!E5 -> 237648.06 | K15: ='Lighting Detail_REM_E214 Elec'!F5 -> 500000 | L15: ='Lighting Detail_REM_E214 Elec'!G5 -> 10000 | M15: ='Lighting Detail_REM_E214 Elec'!H5 -> 596000 | N15: ='Lighting Detail_REM_E214 Elec'!I5 -> 8250 | O15: ='Lighting Detail_REM_E214 Elec'!J5 -> 0 | P15: ='Lighting Detail_REM_E214 Elec'!K5 -> 4887393.24 | Q15: ='Lighting Detail_REM_E214 Elec'!L5 -> 0 | R15: ='Lighting Detail_REM_E214 Elec'!M5 -> 6511511.3 | S15: ='Lighting Detail_REM_E214 Elec'!N5 -> 31185377.55
B16: HER Detail_REM_E214 elec. | C16: E214 | E16: Home Energy Reports | H16: 18230461 | I16: ='HER Detail_REM_E214 elec.'!D5 -> 84000 | J16: ='HER Detail_REM_E214 elec.'!E5 -> 73332 | K16: ='HER Detail_REM_E214 elec.'!F5 -> 0 | L16: ='HER Detail_REM_E214 elec.'!G5 -> 1300 | M16: ='HER Detail_REM_E214 elec.'!H5 -> 607602.9 | N16: ='HER Detail_REM_E214 elec.'!I5 -> 0 | O16: ='HER Detail_REM_E214 elec.'!J5 -> 0 | P16: ='HER Detail_REM_E214 elec.'!K5 -> 601327.9 | Q16: ='HER Detail_REM_E214 elec.'!L5 -> 0 | R16: ='HER Detail_REM_E214 elec.'!M5 -> 1367562.8 | S16: ='HER Detail_REM_E214 elec.'!N5 -> 46876400
B17: Web Tstat Detail_REM E214 Elec | C17: E214 | E17: Smart Thermostats | H17: 18230023 | I17: ='Web Tstat Detail_REM E214 Elec'!D5 -> 28400 | J17: ='Web Tstat Detail_REM E214 Elec'!E5 -> 24793.2 | K17: ='Web Tstat Detail_REM E214 Elec'!F5 -> 44000 | L17: ='Web Tstat Detail_REM E214 Elec'!G5 -> 100 | M17: ='Web Tstat Detail_REM E214 Elec'!H5 -> 35050 | N17: ='Web Tstat Detail_REM E214 Elec'!I5 -> 1000 | O17: ='Web Tstat Detail_REM E214 Elec'!J5 -> 0 | P17: ='Web Tstat Detail_REM E214 Elec'!K5 -> 127173.96 | Q17: ='Web Tstat Detail_REM E214 Elec'!L5 -> 0 | R17: ='Web Tstat Detail_REM E214 Elec'!M5 -> 260517.16 | S17: ='Web Tstat Detail_REM E214 Elec'!N5 -> 781887.44
B18: SFNC Detail_REM E215 Elec | C18: E215 | E18: Single Family New Construction | H18: 18230405 | I18: ='SFNC Detail_REM E215 Elec'!D5 -> 19050 | J18: ='SFNC Detail_REM E215 Elec'!E5 -> 16630.65 | K18: ='SFNC Detail_REM E215 Elec'!F5 -> 4000 | L18: ='SFNC Detail_REM E215 Elec'!G5 -> 1000 | M18: ='SFNC Detail_REM E215 Elec'!H5 -> 0 | N18: ='SFNC Detail_REM E215 Elec'!I5 -> 0 | O18: ='SFNC Detail_REM E215 Elec'!J5 -> 0 | P18: ='SFNC Detail_REM E215 Elec'!K5 -> 307500 | Q18: ='SFNC Detail_REM E215 Elec'!L5 -> 0 | R18: ='SFNC Detail_REM E215 Elec'!M5 -> 348180.65 | S18: ='SFNC Detail_REM E215 Elec'!N5 -> 480130
B19: MfgHmNew Detail_REM E215 Elec | C19: E215 | E19: Manufactured Home New Construction | H19: 18230071 | I19: ='NCMfgHome Detail_REM E215 Elec'!D5 -> 13120 | J19: ='NCMfgHome Detail_REM E215 Elec'!E5 -> 11453.76 | K19: ='NCMfgHome Detail_REM E215 Elec'!F5 -> 15500 | L19: ='NCMfgHome Detail_REM E215 Elec'!G5 -> 500 | M19: ='NCMfgHome Detail_REM E215 Elec'!H5 -> 15000 | N19: ='NCMfgHome Detail_REM E215 Elec'!I5 -> 500 | O19: ='NCMfgHome Detail_REM E215 Elec'!J5 -> 0 | P19: ='NCMfgHome Detail_REM E215 Elec'!K5 -> 110000 | Q19: ='NCMfgHome Detail_REM E215 Elec'!L5 -> 0 | R19: ='NCMfgHome Detail_REM E215 Elec'!M5 -> 166073.76 | S19: ='NCMfgHome Detail_REM E215 Elec'!N5 -> 243720
B20: ModIncome Detail E217 | C20: E214 & 217 | D20: New for 2020 | E20: Moderate Income Residences | H20: 1823xxxx | I20: ='ModIncome Detail_E217 Elec'!D5 -> 15210 | J20: ='ModIncome Detail_E217 Elec'!E5 -> 13278.33 | K20: ='ModIncome Detail_E217 Elec'!F5 -> 15000 | L20: ='ModIncome Detail_E217 Elec'!G5 -> 250 | M20: ='ModIncome Detail_E217 Elec'!H5 -> 0 | N20: ='ModIncome Detail_E217 Elec'!I5 -> 0 | O20: ='ModIncome Detail_E217 Elec'!J5 -> 0 | P20: ='ModIncome Detail_E217 Elec'!K5 -> 0 | Q20: ='ModIncome Detail_E217 Elec'!L5 -> 0 | R20: ='ModIncome Detail_E217 Elec'!M5 -> 43738.33 | S20: ='ModIncome Detail_E217 Elec'!N5 -> 0
B21: MF Retr Detail_REM E217 Elec | C21: E217 | E21: Multifamily Retrofit | H21: 18230407 | I21: ='MF Retr Detail_REM E217 Elec'!D5 -> 146600 | J21: ='MF Retr Detail_REM E217 Elec'!E5 -> 127981.8 | K21: ='MF Retr Detail_REM E217 Elec'!F5 -> 67000 | L21: ='MF Retr Detail_REM E217 Elec'!G5 -> 4000 | M21: ='MF Retr Detail_REM E217 Elec'!H5 -> 1660173.333 | N21: ='MF Retr Detail_REM E217 Elec'!I5 -> 1000 | O21: ='MF Retr Detail_REM E217 Elec'!J5 -> 1000 | P21: ='MF Retr Detail_REM E217 Elec'!K5 -> 5381270.404 | Q21: ='MF Retr Detail_REM E217 Elec'!L5 -> 0 | R21: ='MF Retr Detail_REM E217 Elec'!M5 -> 7389025.537 | S21: ='MF Retr Detail_REM E217 Elec'!N5 -> 15736240.12
B22: MF Retr Grants Detail_REM E217 Elec | C22: E217 | E22: Multifamily Retrofit Grants | H22: 18230747 | I22: ='MF Retr-Grnts Detail_E217 Elect'!D5 -> 0 | J22: ='MF Retr-Grnts Detail_E217 Elect'!E5 -> 0 | K22: ='MF Retr-Grnts Detail_E217 Elect'!F5 -> 0 | L22: ='MF Retr-Grnts Detail_E217 Elect'!G5 -> 0 | M22: ='MF Retr-Grnts Detail_E217 Elect'!H5 -> 0 | N22: ='MF Retr-Grnts Detail_E217 Elect'!I5 -> 0 | O22: ='MF Retr-Grnts Detail_E217 Elect'!J5 -> 0 | P22: ='MF Retr-Grnts Detail_E217 Elect'!K5 -> 0 | Q22: ='MF Retr-Grnts Detail_E217 Elect'!L5 -> 0 | R22: ='MF Retr-Grnts Detail_E217 Elect'!M5 -> 0 | S22: ='MF Retr-Grnts Detail_E217 Elect'!N5 -> 0
B23: MFNC Detail_REM E218 Elec | C23: E218 | E23: Multi-Family New Construction | H23: 18230486 | I23: ='MFNC Detail_REM E218 Elec'!D5 -> 110350 | J23: ='MFNC Detail_REM E218 Elec'!E5 -> 96335.55 | K23: ='MFNC Detail_REM E218 Elec'!F5 -> 35000 | L23: ='MFNC Detail_REM E218 Elec'!G5 -> 4000 | M23: ='MFNC Detail_REM E218 Elec'!H5 -> 284200 | N23: ='MFNC Detail_REM E218 Elec'!I5 -> 2000 | O23: ='MFNC Detail_REM E218 Elec'!J5 -> 0 | P23: ='MFNC Detail_REM E218 Elec'!K5 -> 1443840 | Q23: ='MFNC Detail_REM E218 Elec'!L5 -> 0 | R23: ='MFNC Detail_REM E218 Elec'!M5 -> 1975725.55 | S23: ='MFNC Detail_REM E218 Elec'!N5 -> 5112000
G24: Total, Residential Energy Management | I24: =SUM(I8:I23) -> 1181940.5 | J24: 1031834.057 | K24: 1210015 | L24: 31150 | M24: 4539206.233 | N24: 16100 | O24: 5100 | P24: 27577753.79 | Q24: 0 | R24: =SUM(R8:R23) -> 35593099.58 | S24: 129627721.7
C27: Business Energy Managment
E28: Commercial/Industrial Retrofit | I28: =SUM(I29:I31) -> 2214645.891 | J28: =SUM(J29:J31) -> 2097993.888 | K28: 162000 | L28: 131700 | M28: 155000 | N28: 3500 | O28: 8000 | P28: 15151666.67 | Q28: 0 | R28: 19924506.45 | S28: 70000000
B29: CI Retr Detail_BEM E250 Elec | C29: E250 | E29: Retrofit Custom Grants | H29: 18230711 | I29: ='CI Retr Detail_BEM E250 Elec'!C5 -> 527145.8911 | J29: ='CI Retr Detail_BEM E250 Elec'!D5 -> 624806.3878 | K29: ='CI Retr Detail_BEM E250 Elec'!E5 -> 90000 | L29: ='CI Retr Detail_BEM E250 Elec'!F5 -> 90700 | M29: ='CI Retr Detail_BEM E250 Elec'!G5 -> 0 | N29: ='CI Retr Detail_BEM E250 Elec'!H5 -> 0 | O29: ='CI Retr Detail_BEM E250 Elec'!I5 -> 5000 | P29: ='CI Retr Detail_BEM E250 Elec'!J5 -> 4200000 | Q29: ='CI Retr Detail_BEM E250 Elec'!K5 -> 0 | R29: ='CI Retr Detail_BEM E250 Elec'!L5 -> 5537652.279 | S29: ='CI Retr Detail_BEM E250 Elec'!M5 -> 14000000
B30: BusLgtGrants_BEM E250 Elect | C30: E250 | E30: Custom Lighting Grants | H30: 18230724 | I30: ='BusLgtGrants_BEM E250 Elect'!C5 -> 1400000 | J30: ='BusLgtGrants_BEM E250 Elect'!D5 -> 1222200 | K30: ='BusLgtGrants_BEM E250 Elect'!E5 -> 47000 | L30: ='BusLgtGrants_BEM E250 Elect'!F5 -> 35000 | M30: ='BusLgtGrants_BEM E250 Elect'!G5 -> 140000 | N30: ='BusLgtGrants_BEM E250 Elect'!H5 -> 3500 | O30: ='BusLgtGrants_BEM E250 Elect'!I5 -> 3000 | P30: ='BusLgtGrants_BEM E250 Elect'!J5 -> 9100000 | Q30: ='BusLgtGrants_BEM E250 Elect'!K5 -> 0 | R30: ='BusLgtGrants_BEM E250 Elect'!L5 -> 11950700 | S30: ='BusLgtGrants_BEM E250 Elect'!M5 -> 52000000
B31: CI Indust_BEM_E250_Elec | C31: E250 | E31: Industrial Programs | H31: 18231137 | I31: ='CI Indust_BEM_E250_Elec'!C5 -> 287500 | J31: ='CI Indust_BEM_E250_Elec'!D5 -> 250987.5 | K31: ='CI Indust_BEM_E250_Elec'!E5 -> 25000 | L31: ='CI Indust_BEM_E250_Elec'!F5 -> 6000 | M31: ='CI Indust_BEM_E250_Elec'!G5 -> 15000 | N31: ='CI Indust_BEM_E250_Elec'!H5 -> 0 | O31: ='CI Indust_BEM_E250_Elec'!I5 -> 0 | P31: ='CI Indust_BEM_E250_Elec'!J5 -> 1851666.667 | Q31: ='CI Indust_BEM_E250_Elec'!K5 -> 0 | R31: ='CI Indust_BEM_E250_Elec'!L5 -> 2436154.167 | S31: ='CI Indust_BEM_E250_Elec'!M5 -> 4000000
B32: CI NC Detail_BEM E251 Elec | C32: E251 | E32: Commercial/Industrial New Construction | H32: 18230715 | I32: ='CI NC Detail_BEM E251 Elec'!C5 -> 336000 | J32: ='CI NC Detail_BEM E251 Elec'!D5 -> 293328 | K32: ='CI NC Detail_BEM E251 Elec'!E5 -> 22300 | L32: ='CI NC Detail_BEM E251 Elec'!F5 -> 4800 | M32: ='CI NC Detail_BEM E251 Elec'!G5 -> 108920 | N32: ='CI NC Detail_BEM E251 Elec'!H5 -> 7200 | O32: ='CI NC Detail_BEM E251 Elec'!I5 -> 0 | P32: ='CI NC Detail_BEM E251 Elec'!J5 -> 3893750 | Q32: ='CI NC Detail_BEM E251 Elec'!K5 -> 0 | R32: ='CI NC Detail_BEM E251 Elec'!L5 -> 4666298 | S32: ='CI NC Detail_BEM E251 Elec'!M5 -> 17500000
E33: Commercial Strategic Energy Management | I33: =SUM(I34:I35) -> 615000 | J33: 540245.24 | K33: 2500 | L33: 15000 | M33: 30000 | N33: 2500 | O33: 2500 | P33: 557692.3077 | Q33: 0 | R33: 1765437.548 | S33: 14500000
B34: RCM Detail_BEM E253 Elec | C34: E253 | E34: SEM | H34: 18230723 | I34: ='RCM Detail_BEM E253 Elec'!C5 -> 565000 | J34: ='RCM Detail_BEM E253 Elec'!D5 -> 493245 | K34: ='RCM Detail_BEM E253 Elec'!E5 -> 2500 | L34: ='RCM Detail_BEM E253 Elec'!F5 -> 15000 | M34: ='RCM Detail_BEM E253 Elec'!G5 -> 15000 | N34: ='RCM Detail_BEM E253 Elec'!H5 -> 2500 | O34: ='RCM Detail_BEM E253 Elec'!I5 -> 2500 | P34: ='RCM Detail_BEM E253 Elec'!J5 -> 557692.3077 | Q34: ='RCM Detail_BEM E253 Elec'!K5 -> 0 | R34: ='RCM Detail_BEM E253 Elec'!L5 -> 1653437.308 | S34: ='RCM Detail_BEM E253 Elec'!M5 -> 14500000
B35: ResAcctSW Detail_PSWE_Elec | E35: Resource Accounting Software | H35: 18230502 | I35: ='ResAcctSW Detail_PSWE_Elec'!D5 -> 50000 | J35: ='ResAcctSW Detail_PSWE_Elec'!E5 -> 47000.24 | K35: ='ResAcctSW Detail_PSWE_Elec'!F5 -> 0 | L35: ='ResAcctSW Detail_PSWE_Elec'!G5 -> 0 | M35: ='ResAcctSW Detail_PSWE_Elec'!H5 -> 15000 | N35: ='ResAcctSW Detail_PSWE_Elec'!I5 -> 0 | O35: ='ResAcctSW Detail_PSWE_Elec'!J5 -> 0 | P35: ='ResAcctSW Detail_PSWE_Elec'!K5 -> 0 | Q35: ='ResAcctSW Detail_PSWE_Elec'!L5 -> 0 | R35: ='ResAcctSW Detail_PSWE_Elec'!M5 -> 112000.24 | S35: ='ResAcctSW Detail_PSWE_Elec'!N5 -> 0
E36: High Voltage, Self-Directed | I36: =SUM(I37:I38) -> 198265.9493 | J36: =SUM(J37:J38) -> 208623.0657 | K36: 0 | L36: 0 | M36: 0 | N36: 0 | O36: 0 | P36: 2684921.961 | Q36: 0 | R36: 3091810.976 | S36: 5118359
B37: LPSD_Detail_449_Elec | C37: E258 | E37: 449 Customers | H37: 18230720 | I37: =LPSD_Detail_449_Elec!C5 -> 94853 | J37: =LPSD_Detail_449_Elec!D5 -> 118343.5609 | K37: =LPSD_Detail_449_Elec!E5 -> 0 | L37: =LPSD_Detail_449_Elec!F5 -> 0 | M37: =LPSD_Detail_449_Elec!G5 -> 0 | N37: =LPSD_Detail_449_Elec!H5 -> 0 | O37: =LPSD_Detail_449_Elec!I5 -> 0 | P37: =LPSD_Detail_449_Elec!J5 -> 1929207.806 | Q37: =LPSD_Detail_449_Elec!K5 -> 0 | R37: =LPSD_Detail_449_Elec!L5 -> 2142404.367 | S37: =LPSD_Detail_449_Elec!M5 -> 3966157
B38: LPSD_Detail_Non-449 Elec | C38: E258 | E38: Non-449 Customers | H38: 18230721 | I38: ='LPSD_Detail_Non-449 Elec'!C5 -> 103412.9493 | J38: ='LPSD_Detail_Non-449 Elec'!D5 -> 90279.50478 | K38: ='LPSD_Detail_Non-449 Elec'!E5 -> 0 | L38: ='LPSD_Detail_Non-449 Elec'!F5 -> 0 | M38: ='LPSD_Detail_Non-449 Elec'!G5 -> 0 | N38: ='LPSD_Detail_Non-449 Elec'!H5 -> 0 | O38: ='LPSD_Detail_Non-449 Elec'!I5 -> 0 | P38: ='LPSD_Detail_Non-449 Elec'!J5 -> 755714.155 | Q38: ='LPSD_Detail_Non-449 Elec'!K5 -> 0 | R38: ='LPSD_Detail_Non-449 Elec'!L5 -> 949406.6091 | S38: ='LPSD_Detail_Non-449 Elec'!M5 -> 1152202
B39: TechEval Detail_BEM E261 Elec | C39: E261 | E39: Technology Evaluation | H39: 18230448 | I39: ='TechEval Detail_BEM E261 Elec'!C5 -> 0 | J39: ='TechEval Detail_BEM E261 Elec'!D5 -> 0 | K39: ='TechEval Detail_BEM E261 Elec'!E5 -> 0 | L39: ='TechEval Detail_BEM E261 Elec'!F5 -> 0 | M39: ='TechEval Detail_BEM E261 Elec'!G5 -> 0 | N39: ='TechEval Detail_BEM E261 Elec'!H5 -> 0 | O39: ='TechEval Detail_BEM E261 Elec'!I5 -> 0 | P39: ='TechEval Detail_BEM E261 Elec'!J5 -> 0 | Q39: ='TechEval Detail_BEM E261 Elec'!K5 -> 0 | R39: ='TechEval Detail_BEM E261 Elec'!L5 -> 0 | S39: ='TechEval Detail_BEM E261 Elec'!M5 -> 0
C40: E262 | E40: Business Rebates | I40: =SUM(I41:I46) -> 265636 | J40: 231900.228 | K40: 95732 | L40: 7200 | M40: 2816681 | N40: 2750 | O40: 2000 | P40: 9522359 | Q40: 0 | R40: 12944258.23 | S40: 38187872.3
B41: Comm Lgt Mkdn_E262 Elect | C41: E262 | E41: Lighting to Go--also referred to as Business Lighting Markdowns | H41: 18230714 | I41: ='Comm Lgt Mkdn_E262 Elect'!D5 -> 51370 | J41: ='Comm Lgt Mkdn_E262 Elect'!E5 -> 44846.01 | K41: ='Comm Lgt Mkdn_E262 Elect'!F5 -> 20000 | L41: ='Comm Lgt Mkdn_E262 Elect'!G5 -> 1000 | M41: ='Comm Lgt Mkdn_E262 Elect'!H5 -> 605681 | N41: ='Comm Lgt Mkdn_E262 Elect'!I5 -> 250 | O41: ='Comm Lgt Mkdn_E262 Elect'!J5 -> 250 | P41: ='Comm Lgt Mkdn_E262 Elect'!K5 -> 1806157 | Q41: ='Comm Lgt Mkdn_E262 Elect'!L5 -> 0 | R41: ='Comm Lgt Mkdn_E262 Elect'!M5 -> 2529554.01 | S41: ='Comm Lgt Mkdn_E262 Elect'!N5 -> 15054532.3
B42: Comm Kit-Laund_E262 Elect | C42: E262 | E42: Commercial kitchen and laundry | H42: 18230716 | I42: ='Comm Kit-Laund_E262 Elect'!D5 -> 13866 | J42: ='Comm Kit-Laund_E262 Elect'!E5 -> 12105.018 | K42: ='Comm Kit-Laund_E262 Elect'!F5 -> 4500 | L42: ='Comm Kit-Laund_E262 Elect'!G5 -> 3000 | M42: ='Comm Kit-Laund_E262 Elect'!H5 -> 280000 | N42: ='Comm Kit-Laund_E262 Elect'!I5 -> 500 | O42: ='Comm Kit-Laund_E262 Elect'!J5 -> 0 | P42: ='Comm Kit-Laund_E262 Elect'!K5 -> 255000 | Q42: ='Comm Kit-Laund_E262 Elect'!L5 -> 0 | R42: ='Comm Kit-Laund_E262 Elect'!M5 -> 568971.018 | S42: ='Comm Kit-Laund_E262 Elect'!N5 -> 1300000
B43: Comm HVAC_E262 Elect | C43: E262 | E43: Commercial HVAC | H43: 18230718 | I43: ='Comm HVAC_E262 Elect'!D5 -> 56250 | J43: ='Comm HVAC_E262 Elect'!E5 -> 49106.25 | K43: ='Comm HVAC_E262 Elect'!F5 -> 5000 | L43: ='Comm HVAC_E262 Elect'!G5 -> 500 | M43: ='Comm HVAC_E262 Elect'!H5 -> 500 | N43: ='Comm HVAC_E262 Elect'!I5 -> 500 | O43: ='Comm HVAC_E262 Elect'!J5 -> 500 | P43: ='Comm HVAC_E262 Elect'!K5 -> 305800 | Q43: ='Comm HVAC_E262 Elect'!L5 -> 0 | R43: ='Comm HVAC_E262 Elect'!M5 -> 418156.25 | S43: ='Comm HVAC_E262 Elect'!N5 -> 1333340
C44: E262 | E44: Commercial Midstream | H44: 1823zzzz | I44: ='Comm Upstr-Rooftop_E262 Elect'!D5 -> 56250 | J44: ='Comm Upstr-Rooftop_E262 Elect'!E5 -> 49106.25 | K44: ='Comm Upstr-Rooftop_E262 Elect'!F5 -> 10000 | L44: ='Comm Upstr-Rooftop_E262 Elect'!G5 -> 1500 | M44: ='Comm Upstr-Rooftop_E262 Elect'!H5 -> 212500 | N44: ='Comm Upstr-Rooftop_E262 Elect'!I5 -> 1000 | O44: ='Comm Upstr-Rooftop_E262 Elect'!J5 -> 1000 | P44: ='Comm Upstr-Rooftop_E262 Elect'!K5 -> 1250000 | Q44: ='Comm Upstr-Rooftop_E262 Elect'!L5 -> 0 | R44: ='Comm Upstr-Rooftop_E262 Elect'!M5 -> 1581356.25 | S44: ='Comm Upstr-Rooftop_E262 Elect'!N5 -> 2500000
B45: Sm Bus DI_E262 Elect | C45: E262 | E45: Small Business Direct Install | H45: 18231134 | I45: ='Sm Bus DI_E262 Elect'!D5 -> 87900 | J45: ='Sm Bus DI_E262 Elect'!E5 -> 76736.7 | K45: ='Sm Bus DI_E262 Elect'!F5 -> 56232 | L45: ='Sm Bus DI_E262 Elect'!G5 -> 1200 | M45: ='Sm Bus DI_E262 Elect'!H5 -> 1718000 | N45: ='Sm Bus DI_E262 Elect'!I5 -> 500 | O45: ='Sm Bus DI_E262 Elect'!J5 -> 250 | P45: ='Sm Bus DI_E262 Elect'!K5 -> 5905402 | Q45: ='Sm Bus DI_E262 Elect'!L5 -> 0 | R45: ='Sm Bus DI_E262 Elect'!M5 -> 7846220.7 | S45: ='Sm Bus DI_E262 Elect'!N5 -> 18000000
B46: New BusRebt prgm_E262 Elec | C46: E262 | E46: Commercial General Rebates | H46: 1823nnnn | I46: ='Comm Genl Rbats_E262 Elec'!D5 -> 0 | J46: ='Comm Genl Rbats_E262 Elec'!E5 -> 0 | K46: ='Comm Genl Rbats_E262 Elec'!F5 -> 0 | L46: ='Comm Genl Rbats_E262 Elec'!G5 -> 0 | M46: ='Comm Genl Rbats_E262 Elec'!H5 -> 0 | N46: ='Comm Genl Rbats_E262 Elec'!I5 -> 0 | O46: ='Comm Genl Rbats_E262 Elec'!J5 -> 0 | P46: ='Comm Genl Rbats_E262 Elec'!K5 -> 0 | Q46: ='Comm Genl Rbats_E262 Elec'!L5 -> 0 | R46: ='Comm Genl Rbats_E262 Elec'!M5 -> 0 | S46: ='Comm Genl Rbats_E262 Elec'!N5 -> 0
G47: Total, Business Energy Management | I47: =SUM(I29:I33)+I36+I39+I40 -> 3629547.84 | J47: 3372090.421 | K47: 282532 | L47: 158700 | M47: 3110601 | N47: 15950 | O47: 12500 | P47: 31810389.94 | Q47: 0 | R47: =SUM(R29:R33)+R36+R39+R40 -> 42392311.2 | S47: 145306231.3
C50: Pilots With Uncertain Savings
B51: REM Pilots E249 Elec | C51: E249 | E51: Residential Pilots | H51: 18230522 | I51: ='REM Pilots E249 Elec'!D5 -> 90750 | J51: ='REM Pilots E249 Elec'!E5 -> 79224.75 | K51: ='REM Pilots E249 Elec'!F5 -> 110000 | L51: ='REM Pilots E249 Elec'!G5 -> 0 | M51: ='REM Pilots E249 Elec'!H5 -> 410000 | N51: ='REM Pilots E249 Elec'!I5 -> 0 | O51: ='REM Pilots E249 Elec'!J5 -> 216000 | P51: ='REM Pilots E249 Elec'!K5 -> 495000 | Q51: ='REM Pilots E249 Elec'!L5 -> 0 | R51: ='REM Pilots E249 Elec'!M5 -> 1400974.75 | S51: ='REM Pilots E249 Elec'!N5 -> 5740000
B52: BEM Pilots E249 Elec | C52: E249 | E52: Commercial Pilots | H52: 1823pppp | I52: ='BEM Pilots E249 Elec'!E5 -> 30000 | J52: ='BEM Pilots E249 Elec'!F5 -> 19530 | K52: ='BEM Pilots E249 Elec'!G5 -> 0 | L52: ='BEM Pilots E249 Elec'!H5 -> 0 | M52: ='BEM Pilots E249 Elec'!I5 -> 345000 | N52: ='BEM Pilots E249 Elec'!J5 -> 0 | O52: ='BEM Pilots E249 Elec'!K5 -> 0 | P52: ='BEM Pilots E249 Elec'!L5 -> 211750 | Q52: ='BEM Pilots E249 Elec'!M5 -> 0 | R52: ='BEM Pilots E249 Elec'!N5 -> 606280 | S52: ='BEM Pilots E249 Elec'!O5 -> 1800000
G53: Total, Pilots | I53: =SUM(I51:I52) -> 120750 | J53: =SUM(J51:J52) -> 98754.75 | K53: 110000 | L53: 0 | M53: 755000 | N53: 0 | O53: 216000 | P53: 706750 | Q53: 0 | R53: 2007254.75 | S53: 7540000
C57: Regional Efficiency Programs
B58: NEEA Detail_E254 elec | C58: E254 | E58: Northwest Energy Efficiency Alliance | H58: 18230421 | I58: ='NEEA Detail_E254 elec'!D5 -> 0 | J58: ='NEEA Detail_E254 elec'!E5 -> 0 | K58: ='NEEA Detail_E254 elec'!F5 -> 0 | L58: ='NEEA Detail_E254 elec'!G5 -> 0 | M58: ='NEEA Detail_E254 elec'!H5 -> 1337161.5 | N58: ='NEEA Detail_E254 elec'!I5 -> 0 | O58: ='NEEA Detail_E254 elec'!J5 -> 0 | P58: ='NEEA Detail_E254 elec'!K5 -> 3120043.5 | Q58: ='NEEA Detail_E254 elec'!L5 -> 0 | R58: ='NEEA Detail_E254 elec'!M5 -> 4457205 | S58: ='NEEA Detail_E254 elec'!N5 -> 12702000
B59: TDSM_Regnl_elec_e219 | C59: E219 | E59: Targeted DSM | H59: 1823xxxx | I59: ='TDSM_Regnl_E219 Elec'!D5 -> 200690 | J59: ='TDSM_Regnl_E219 Elec'!E5 -> 175202.37 | K59: ='TDSM_Regnl_E219 Elec'!F5 -> 0 | L59: ='TDSM_Regnl_E219 Elec'!G5 -> 0 | M59: ='TDSM_Regnl_E219 Elec'!H5 -> 70000 | N59: ='TDSM_Regnl_E219 Elec'!I5 -> 0 | O59: ='TDSM_Regnl_E219 Elec'!J5 -> 0 | P59: ='TDSM_Regnl_E219 Elec'!K5 -> 0 | Q59: ='TDSM_Regnl_E219 Elec'!L5 -> 0 | R59: ='TDSM_Regnl_E219 Elec'!M5 -> 445892.37 | S59: ='TDSM_Regnl_E219 Elec'!N5 -> 0
B60: T&D Detail_Reg E292 elec | C60: E292 | E60: Transmission & Distribution | H60: 18230711 | I60: ='T&D Detail_Reg E292 elec'!C5 -> 0 | J60: ='T&D Detail_Reg E292 elec'!D5 -> 0 | K60: ='T&D Detail_Reg E292 elec'!E5 -> 0 | L60: ='T&D Detail_Reg E292 elec'!F5 -> 0 | M60: ='T&D Detail_Reg E292 elec'!G5 -> 0 | N60: ='T&D Detail_Reg E292 elec'!H5 -> 0 | O60: ='T&D Detail_Reg E292 elec'!I5 -> 0 | P60: ='T&D Detail_Reg E292 elec'!J5 -> 0 | Q60: ='T&D Detail_Reg E292 elec'!K5 -> 0 | R60: ='T&D Detail_Reg E292 elec'!L5 -> 0 | S60: ='T&D Detail_Reg E292 elec'!M5 -> 750000
G61: Total, Regional Efficiency Programs | I61: =SUM(I58:I60) -> 200690 | J61: 175202.37 | K61: 0 | L61: 0 | M61: 1407161.5 | N61: 0 | O61: 0 | P61: 3120043.5 | Q61: 0 | R61: =SUM(R58:R60) -> 4903097.37 | S61: =SUM(S58:S60) -> 13452000
C65: Energy Efficiency Portfolio Support
B66: Data & Systm Svcs_Elect | E66: Data and Systems Services | H66: 18230745 | I66: ='Data & Systm Svcs_Elect'!D5 -> 409770 | J66: ='Data & Systm Svcs_Elect'!E5 -> 357729.21 | K66: ='Data & Systm Svcs_Elect'!F5 -> 0 | L66: ='Data & Systm Svcs_Elect'!G5 -> 10440 | M66: ='Data & Systm Svcs_Elect'!H5 -> 282750 | N66: ='Data & Systm Svcs_Elect'!I5 -> 0 | O66: ='Data & Systm Svcs_Elect'!J5 -> 0 | P66: ='Data & Systm Svcs_Elect'!K5 -> 0 | Q66: ='Data & Systm Svcs_Elect'!L5 -> 0 | R66: ='Data & Systm Svcs_Elect'!M5 -> 1060689.21
B67: Rebt Procg Detail_Elect | E67: Rebates Processing | H67: 18230507 | I67: ='Rebt Procg Detail_Elect'!D5 -> 314505 | J67: ='Rebt Procg Detail_Elect'!E5 -> 274562.865 | K67: ='Rebt Procg Detail_Elect'!F5 -> 0 | L67: ='Rebt Procg Detail_Elect'!G5 -> 20000 | M67: ='Rebt Procg Detail_Elect'!H5 -> 20000 | N67: ='Rebt Procg Detail_Elect'!I5 -> 5000 | O67: ='Rebt Procg Detail_Elect'!J5 -> 0 | P67: ='Rebt Procg Detail_Elect'!K5 -> 0 | Q67: ='Rebt Procg Detail_Elect'!L5 -> 0 | R67: ='Rebt Procg Detail_Elect'!M5 -> 634067.865
B68: VTeam Detail_R&C_Elec | E68: Verification Team | H68: 18230418 | I68: ='Verifctn Team Detail Elec'!D5 -> 301430 | J68: ='Verifctn Team Detail Elec'!E5 -> 263148.39 | K68: ='Verifctn Team Detail Elec'!F5 -> 0 | L68: ='Verifctn Team Detail Elec'!G5 -> 15000 | M68: ='Verifctn Team Detail Elec'!H5 -> 0 | N68: ='Verifctn Team Detail Elec'!I5 -> 6200 | O68: ='Verifctn Team Detail Elec'!J5 -> 0 | P68: ='Verifctn Team Detail Elec'!K5 -> 0 | Q68: ='Verifctn Team Detail Elec'!L5 -> 0 | R68: ='Verifctn Team Detail Elec'!M5 -> 585778.39
B69: ProgDev Detail_R&C_ Elec | E69: Programs Support | H69: 18230810 | I69: ='Progs Supp Detail_PS_ Elec'!D5 -> 214020 | J69: ='Progs Supp Detail_PS_ Elec'!E5 -> 186839.46 | K69: ='Progs Supp Detail_PS_ Elec'!F5 -> 0 | L69: ='Progs Supp Detail_PS_ Elec'!G5 -> 12000 | M69: ='Progs Supp Detail_PS_ Elec'!H5 -> 0 | N69: ='Progs Supp Detail_PS_ Elec'!I5 -> 0 | O69: ='Progs Supp Detail_PS_ Elec'!J5 -> 0 | P69: ='Progs Supp Detail_PS_ Elec'!K5 -> 0 | Q69: ='Progs Supp Detail_PS_ Elec'!L5 -> 0 | R69: ='Progs Supp Detail_PS_ Elec'!M5 -> 412859.46
B70: TradeAlly Detail_PS_ Elec | E70: Trade Ally Memberships | H70: 18230730 | I70: ='TradeAlly Detail_PS_ Elec'!D5 -> 0 | J70: ='TradeAlly Detail_PS_ Elec'!E5 -> 0 | K70: ='TradeAlly Detail_PS_ Elec'!F5 -> 0 | L70: ='TradeAlly Detail_PS_ Elec'!G5 -> 0 | M70: ='TradeAlly Detail_PS_ Elec'!H5 -> 118000 | N70: ='TradeAlly Detail_PS_ Elec'!I5 -> 0 | O70: ='TradeAlly Detail_PS_ Elec'!J5 -> 0 | P70: ='TradeAlly Detail_PS_ Elec'!K5 -> 0 | Q70: ='TradeAlly Detail_PS_ Elec'!L5 -> 0 | R70: ='TradeAlly Detail_PS_ Elec'!M5 -> 118000
B71: CAN_Elect | E71: Trade Ally Network (revenue + cost) | H71: 18230746 | I71: =REP_Elect!D5 -> 75500 | J71: =REP_Elect!E5 -> 65911.5 | K71: =REP_Elect!F5 -> 20000 | L71: =REP_Elect!G5 -> 5000 | M71: =REP_Elect!H5 -> 37300 | N71: =REP_Elect!I5 -> 1500 | O71: =REP_Elect!J5 -> 0 | P71: =REP_Elect!K5 -> 0 | Q71: =REP_Elect!L5 -> -205000 | R71: =REP_Elect!M5 -> 211.5
B72: ABS Detail_PSWE_Elec | E72: Automated Benchmarking System | H72: 18230411 | I72: ='ABS Detail_PSWE_Elec'!D5 -> 64600 | J72: ='ABS Detail_PSWE_Elec'!E5 -> 56395.8 | K72: ='ABS Detail_PSWE_Elec'!F5 -> 0 | L72: ='ABS Detail_PSWE_Elec'!G5 -> 0 | M72: ='ABS Detail_PSWE_Elec'!H5 -> 227000 | N72: ='ABS Detail_PSWE_Elec'!I5 -> 0 | O72: ='ABS Detail_PSWE_Elec'!J5 -> 0 | P72: ='ABS Detail_PSWE_Elec'!K5 -> 0 | Q72: ='ABS Detail_PSWE_Elec'!L5 -> 0 | R72: ='ABS Detail_PSWE_Elec'!M5 -> 347995.8
B73: Engy Adv Detail_PSCE Elec | E73: Energy Advisors | H73: 18230610 | I73: ='Engy Adv Detail_PSCE Elec'!D5 -> 710910 | J73: ='Engy Adv Detail_PSCE Elec'!E5 -> 620624.43 | K73: ='Engy Adv Detail_PSCE Elec'!F5 -> 0 | L73: ='Engy Adv Detail_PSCE Elec'!G5 -> 44000 | M73: ='Engy Adv Detail_PSCE Elec'!H5 -> 1000 | N73: ='Engy Adv Detail_PSCE Elec'!I5 -> 0 | O73: ='Engy Adv Detail_PSCE Elec'!J5 -> 1350 | P73: ='Engy Adv Detail_PSCE Elec'!K5 -> 0 | Q73: ='Engy Adv Detail_PSCE Elec'!L5 -> 0 | R73: ='Engy Adv Detail_PSCE Elec'!M5 -> 1377884.43
B74: EEC Detail_PS_Elec | E74: Energy Efficient Communities | H74: 18230811 | I74: ='EEC Detail_PS_Elec'!D5 -> 460485 | J74: ='EEC Detail_PS_Elec'!E5 -> 402003.405 | K74: ='EEC Detail_PS_Elec'!F5 -> 40000 | L74: ='EEC Detail_PS_Elec'!G5 -> 18000 | M74: ='EEC Detail_PS_Elec'!H5 -> 100000 | N74: ='EEC Detail_PS_Elec'!I5 -> 11745 | O74: ='EEC Detail_PS_Elec'!J5 -> 0 | P74: ='EEC Detail_PS_Elec'!K5 -> 0 | Q74: ='EEC Detail_PS_Elec'!L5 -> 0 | R74: ='EEC Detail_PS_Elec'!M5 -> 1032233.405
B75: CustOnline Detail_PSWE_Elec | D75: New Name | E75: Customer Digital Services | I75: =SUM(I76:I78) -> 158810 | J75: =SUM(J76:J78) -> 138641.13 | K75: 0 | L75: 500 | M75: 1037915.96 | N75: 0 | O75: 0 | P75: 0 | Q75: 0 | R75: 1335867.09
F76: Digital Experience | H76: 18230400 & 408 | I76: ='CustDigExprnc Detail_PSWE_Elec'!D5 -> 92550 | J76: ='CustDigExprnc Detail_PSWE_Elec'!E5 -> 80796.15 | K76: ='CustDigExprnc Detail_PSWE_Elec'!F5 -> 0 | L76: ='CustDigExprnc Detail_PSWE_Elec'!G5 -> 250 | M76: ='CustDigExprnc Detail_PSWE_Elec'!H5 -> 471279 | N76: ='CustDigExprnc Detail_PSWE_Elec'!I5 -> 0 | O76: ='CustDigExprnc Detail_PSWE_Elec'!J5 -> 0 | P76: ='CustDigExprnc Detail_PSWE_Elec'!K5 -> 0 | Q76: ='CustDigExprnc Detail_PSWE_Elec'!L5 -> 0 | R76: ='CustDigExprnc Detail_PSWE_Elec'!M5 -> 644875.15
B77: CustAwarTools_elec | F77: Customer Awareness Tools | H77: 18230508 | I77: =CustAwarTools_Elect!D5 -> 37850 | J77: =CustAwarTools_Elect!E5 -> 33043.05 | K77: =CustAwarTools_Elect!F5 -> 0 | L77: =CustAwarTools_Elect!G5 -> 250 | M77: =CustAwarTools_Elect!H5 -> 564636.96 | N77: =CustAwarTools_Elect!I5 -> 0 | O77: =CustAwarTools_Elect!J5 -> 0 | P77: =CustAwarTools_Elect!K5 -> 0 | Q77: =CustAwarTools_Elect!L5 -> 0 | R77: =CustAwarTools_Elect!M5 -> 635780.01
B78: ShopPSE_elec | F78: ShopPSE | H78: 18230509 | I78: =ShopPSE_elect!D5 -> 28410 | J78: =ShopPSE_elect!E5 -> 24801.93 | K78: =ShopPSE_elect!F5 -> 0 | L78: =ShopPSE_elect!G5 -> 0 | M78: =ShopPSE_elect!H5 -> 2000 | N78: =ShopPSE_elect!I5 -> 0 | O78: =ShopPSE_elect!J5 -> 0 | P78: =ShopPSE_elect!K5 -> 0 | Q78: =ShopPSE_elect!L5 -> 0 | R78: =ShopPSE_elect!M5 -> 55211.93
B79: Mkt Intgn Detail_PSWE_Elec | E79: Market Integration | H79: 18230466 | I79: ='Mkt Intgn Detail_PSWE_Elec'!D5 -> 150021.5 | J79: ='Mkt Intgn Detail_PSWE_Elec'!E5 -> 130968.7695 | K79: ='Mkt Intgn Detail_PSWE_Elec'!F5 -> 0 | L79: ='Mkt Intgn Detail_PSWE_Elec'!G5 -> 0 | M79: ='Mkt Intgn Detail_PSWE_Elec'!H5 -> 34800 | N79: ='Mkt Intgn Detail_PSWE_Elec'!I5 -> 0 | O79: ='Mkt Intgn Detail_PSWE_Elec'!J5 -> 0 | P79: ='Mkt Intgn Detail_PSWE_Elec'!K5 -> 0 | Q79: ='Mkt Intgn Detail_PSWE_Elec'!L5 -> 0 | R79: ='Mkt Intgn Detail_PSWE_Elec'!M5 -> 315790.2695
B80: Events Detail_PSCE Elec | E80: Events | H80: 18230602 | I80: ='Events Detail_PSCE Elec'!D5 -> 118015.5 | J80: ='Events Detail_PSCE Elec'!E5 -> 103027.5315 | K80: ='Events Detail_PSCE Elec'!F5 -> 13000 | L80: ='Events Detail_PSCE Elec'!G5 -> 3905 | M80: ='Events Detail_PSCE Elec'!H5 -> 112610 | N80: ='Events Detail_PSCE Elec'!I5 -> 34365 | O80: ='Events Detail_PSCE Elec'!J5 -> 0 | P80: ='Events Detail_PSCE Elec'!K5 -> 0 | Q80: ='Events Detail_PSCE Elec'!L5 -> 0 | R80: ='Events Detail_PSCE Elec'!M5 -> 384923.0315
B81: Brochures Detail_PSCE Elec | E81: Brochures, non program-specific | H81: 18230482 | I81: ='Brochures Detail_PSCE Elec'!D5 -> 0 | J81: ='Brochures Detail_PSCE Elec'!E5 -> 0 | K81: ='Brochures Detail_PSCE Elec'!F5 -> 0 | L81: ='Brochures Detail_PSCE Elec'!G5 -> 0 | M81: ='Brochures Detail_PSCE Elec'!H5 -> 0 | N81: ='Brochures Detail_PSCE Elec'!I5 -> 0 | O81: ='Brochures Detail_PSCE Elec'!J5 -> 0 | P81: ='Brochures Detail_PSCE Elec'!K5 -> 0 | Q81: ='Brochures Detail_PSCE Elec'!L5 -> 0 | R81: ='Brochures Detail_PSCE Elec'!M5 -> 0
G82: Total, Portfolio Support | I82: =SUM(I66:I75)+SUM(I79:I81) -> 2978067 | J82: =SUM(J66:J75)+SUM(J79:J81) -> 2599852.491 | K82: 73000 | L82: 128845 | M82: 1971375.96 | N82: 58810 | O82: 1350 | P82: 0 | Q82: -205000 | R82: =SUM(R66:R75)+SUM(R79:R81) -> 7606300.451
C86: Research & Compliance
B87: SuppCrv Detail_R&C_Elec | E87: Conservation Supply Curves | H87: 18230809 | I87: ='SuppCrv Detail_R&C_Elec'!D5 -> 71340 | J87: ='SuppCrv Detail_R&C_Elec'!E5 -> 62279.82 | K87: ='SuppCrv Detail_R&C_Elec'!F5 -> 0 | L87: ='SuppCrv Detail_R&C_Elec'!G5 -> 870 | M87: ='SuppCrv Detail_R&C_Elec'!H5 -> 274050 | N87: ='SuppCrv Detail_R&C_Elec'!I5 -> 0 | O87: ='SuppCrv Detail_R&C_Elec'!J5 -> 0 | P87: ='SuppCrv Detail_R&C_Elec'!K5 -> 0 | Q87: ='SuppCrv Detail_R&C_Elec'!L5 -> 0 | R87: ='SuppCrv Detail_R&C_Elec'!M5 -> 408539.82
B88: Strat Plan Detail_R&C_Elec | E88: Strategic Planning | H88: 18230469 | I88: ='Strat Plan Detail_R&C_Elec'!D5 -> 173347.5 | J88: ='Strat Plan Detail_R&C_Elec'!E5 -> 151332.3675 | K88: ='Strat Plan Detail_R&C_Elec'!F5 -> 0 | L88: ='Strat Plan Detail_R&C_Elec'!G5 -> 3306 | M88: ='Strat Plan Detail_R&C_Elec'!H5 -> 402200 | N88: ='Strat Plan Detail_R&C_Elec'!I5 -> 0 | O88: ='Strat Plan Detail_R&C_Elec'!J5 -> 0 | P88: ='Strat Plan Detail_R&C_Elec'!K5 -> 0 | Q88: ='Strat Plan Detail_R&C_Elec'!L5 -> 0 | R88: ='Strat Plan Detail_R&C_Elec'!M5 -> 730185.8675
B89: Mktg Resch Detail_PS_ Elec | E89: Market Research | H89: 18230413 | I89: ='Mktg Resch Detail_PS_ Elec'!D5 -> 85280 | J89: ='Mktg Resch Detail_PS_ Elec'!E5 -> 74449.44 | K89: ='Mktg Resch Detail_PS_ Elec'!F5 -> 0 | L89: ='Mktg Resch Detail_PS_ Elec'!G5 -> 0 | M89: ='Mktg Resch Detail_PS_ Elec'!H5 -> 7100 | N89: ='Mktg Resch Detail_PS_ Elec'!I5 -> 0 | O89: ='Mktg Resch Detail_PS_ Elec'!J5 -> 0 | P89: ='Mktg Resch Detail_PS_ Elec'!K5 -> 0 | Q89: ='Mktg Resch Detail_PS_ Elec'!L5 -> 0 | R89: ='Mktg Resch Detail_PS_ Elec'!M5 -> 166829.44
B90: Eval Detail_R&C_Elec | E90: Program Evaluation | H90: 18230802 | I90: ='Eval Detail_R&C_Elec'!D5 -> 167692.5 | J90: ='Eval Detail_R&C_Elec'!E5 -> 146395.5525 | K90: ='Eval Detail_R&C_Elec'!F5 -> 0 | L90: ='Eval Detail_R&C_Elec'!G5 -> 6090 | M90: ='Eval Detail_R&C_Elec'!H5 -> 1479000 | N90: ='Eval Detail_R&C_Elec'!I5 -> 0 | O90: ='Eval Detail_R&C_Elec'!J5 -> 201650 | P90: ='Eval Detail_R&C_Elec'!K5 -> 0 | Q90: ='Eval Detail_R&C_Elec'!L5 -> 0 | R90: ='Eval Detail_R&C_Elec'!M5 -> 2000828.052
B91: BECAR Detail_R&C Elec | E91: Biennial Elec. Consv. Aquisitn. Review | H91: 18230624 | I91: ='BECAR Detail_R&C Elec'!D5 -> 0 | J91: ='BECAR Detail_R&C Elec'!E5 -> 0 | K91: ='BECAR Detail_R&C Elec'!F5 -> 0 | L91: ='BECAR Detail_R&C Elec'!G5 -> 0 | M91: ='BECAR Detail_R&C Elec'!H5 -> 90000 | N91: ='BECAR Detail_R&C Elec'!I5 -> 0 | O91: ='BECAR Detail_R&C Elec'!J5 -> 0 | P91: ='BECAR Detail_R&C Elec'!K5 -> 0 | Q91: ='BECAR Detail_R&C Elec'!L5 -> 0 | R91: ='BECAR Detail_R&C Elec'!M5 -> 90000
G92: Total, Research & Compliance | I92: =SUM(I87:I91) -> 497660 | J92: 434457.18 | K92: 0 | L92: 10266 | M92: 2252350 | N92: 0 | O92: 201650 | P92: 0 | Q92: 0 | R92: =SUM(R87:R91) -> 3396383.18
C96: Other Customer Programs
B97: Net Mtr Details_Oth Elec E150 | C97: E150 | E97: Net Metering | H97: 18230128 | I97: ='Net Mtr Details_Oth Elec E150'!D5 -> 293250 | J97: ='Net Mtr Details_Oth Elec E150'!E5 -> 256007.25 | K97: ='Net Mtr Details_Oth Elec E150'!F5 -> 0 | L97: ='Net Mtr Details_Oth Elec E150'!G5 -> 10000 | M97: ='Net Mtr Details_Oth Elec E150'!H5 -> 70000 | N97: ='Net Mtr Details_Oth Elec E150'!I5 -> 0 | O97: ='Net Mtr Details_Oth Elec E150'!J5 -> 800000 | P97: ='Net Mtr Details_Oth Elec E150'!K5 -> 0 | Q97: ='Net Mtr Details_Oth Elec E150'!L5 -> 0 | R97: ='Net Mtr Details_Oth Elec E150'!M5 -> 1429257.25
B98: DemndResp_Detail_E249_Elec | C98: 249A, 271 | E98: Demand Response Pilot | H98: 1823XXXX | I98: =DmndResp_Detail_E249_Elec!D5 -> 0 | J98: =DmndResp_Detail_E249_Elec!E5 -> 0 | K98: =DmndResp_Detail_E249_Elec!F5 -> 0 | L98: =DmndResp_Detail_E249_Elec!G5 -> 0 | M98: =DmndResp_Detail_E249_Elec!H5 -> 282100 | N98: =DmndResp_Detail_E249_Elec!I5 -> 0 | O98: =DmndResp_Detail_E249_Elec!J5 -> 0 | P98: =DmndResp_Detail_E249_Elec!K5 -> 0 | Q98: =DmndResp_Detail_E249_Elec!L5 -> 0 | R98: =DmndResp_Detail_E249_Elec!M5 -> 282100
G99: Total, Other Energy Efficiency Programs | I99: =SUM(I97:I98) -> 293250 | J99: =SUM(J97:J98) -> 256007.25 | K99: 0 | L99: 10000 | M99: 352100 | N99: 0 | O99: 800000 | P99: 0 | Q99: 0 | R99: =SUM(R97:R98) -> 1711357.25
G103: GRAND TOTAL, ELECTRIC PROGRAMS | I103: =I99+I92+I82+I61+I53+I47+I24 -> 8901905.34 | J103: =J99+J92+J82+J61+J53+J47+J24 -> 7968198.519 | K103: 1675547 | L103: 338961 | M103: 14387794.69 | N103: 90860 | O103: 1236600 | P103: 63214937.22 | Q103: -205000 | R103: =R99+R92+R82+R61+R53+R47+R24 -> 97609803.78 | S103: =S99+S92+S61+S53+S47+S24 -> 295925953
S106: =S103/1000/8760 -> 33.78150148
G107: Budget Category Includes | H107: This is the main level of tracking expenditures and expenses in EES. Per FERC rules, all conservation order numbers start with a "1823nnnn", where "n" is some number. Cost elements apply to all order numbers (for instance, all conservation programs that | I107: Energy Efficiency program staff labor. Average FTE cost including management assessments. This Budget Category group includes assessments from Major Accounts management, Resource Planning, Corporate Communications management, IT specialists and some building maintenance allocations. | J107: Overhead--costs associated with primarily employee labor; benefits, for instance. For 2017, includes micro-overhead. | K107: Service and materials associated with the cost of printing program brochures, marketing pieces, advertising, banners, etc. Also includes marketing conducted by vendors and contractors. | L107: Costs associated with EE staff attending events, employee training, conferences, business meals, business parking, ferry & bridge tolls, mileage incurred on employee automobiles, office supplies, phones, subscriptions, software/hardware, etc. | M107: Contractors and vendors, such as PECI, Ecos, CostCo, EFI, etc. Legal expenses, technical services (CMS design, PSE.com web portals, etc.). These costs do NOT include brochure development, marketing pieces, (which are classified under MARKETING). These costs do NOT include incentives paid to customers by contractors. | N107: Primarily tools, trade show equipment, etc. | O107: This category should seldomly be used, and only expenses that cannot be classified under one of the above categories. | P107: All costs associated with rebates, grants, remuneration, value-added services that have a direct bearing on a customer's perceived value of PSE offerings. | Q107: Any amount that PSE is paid by a customer, partner, municipality or outside entity.

Sheet 2021 ACP Sector View Elect
C2: Energy Efficiency 2021 Budgets and Aggregate Program Savings
C3: Sector View | G3: Updated for 2021 ACP! | I3: Please see category descriptions at the bottom of the sector table.
C4: Electric Programs
I5: Budget Category
B6: Workbook Name | C6: Schedule | D6: Comment | E6: Description (Blue, indented text indicates a sub-total value) | H6: Order Number (Click on the order# below to link to the detail page) | I6: Labor | J6: Overhead | K6: Marketing | L6: Employee/Office Expense | M6: Outside Services | N6: Materials | O6: Miscellaneous | P6: DBtC | Q6: Revenue | R6: Total Budget | S6: Total Savings kWh | U6: Comments
C7: Residential Energy Management
B8: LIW Detail_REM E201_Elec | C8: E201 | E8: Low Income Weatherization | H8: 18230611 | I8: =' LowIncWx Detail_REM E201_Elec'!D6 -> 115090.5 | J8: =' LowIncWx Detail_REM E201_Elec'!E6 -> 100474.0065 | K8: =' LowIncWx Detail_REM E201_Elec'!F6 -> 48600 | L8: =' LowIncWx Detail_REM E201_Elec'!G6 -> 4500 | M8: =' LowIncWx Detail_REM E201_Elec'!H6 -> 22500 | N8: =' LowIncWx Detail_REM E201_Elec'!I6 -> 1350 | O8: =' LowIncWx Detail_REM E201_Elec'!J6 -> 1350 | P8: =' LowIncWx Detail_REM E201_Elec'!K6 -> 5846990.545 | Q8: =' LowIncWx Detail_REM E201_Elec'!L6 -> 0 | R8: =' LowIncWx Detail_REM E201_Elec'!M6 -> 6140855.052 | S8: =' LowIncWx Detail_REM E201_Elec'!N6 -> 1949907.1
B9: HomePrint Detail_REM_E214 Elec | C9: E214 | E9: Home Energy Assessments | H9: 18230625 | I9: ='HmEnrgAsmt Detail_REM_E214 Elec'!D6 -> 118050 | J9: ='HmEnrgAsmt Detail_REM_E214 Elec'!E6 -> 103057.65 | K9: ='HmEnrgAsmt Detail_REM_E214 Elec'!F6 -> 5000 | L9: ='HmEnrgAsmt Detail_REM_E214 Elec'!G6 -> 1500 | M9: ='HmEnrgAsmt Detail_REM_E214 Elec'!H6 -> 280680 | N9: ='HmEnrgAsmt Detail_REM_E214 Elec'!I6 -> 0 | O9: ='HmEnrgAsmt Detail_REM_E214 Elec'!J6 -> 1000 | P9: ='HmEnrgAsmt Detail_REM_E214 Elec'!K6 -> 615612.907 | Q9: ='HmEnrgAsmt Detail_REM_E214 Elec'!L6 -> 0 | R9: ='HmEnrgAsmt Detail_REM_E214 Elec'!M6 -> 1124900.557 | S9: ='HmEnrgAsmt Detail_REM_E214 Elec'!N6 -> 2590369.254
B10: WaterHea_Detail_REM_E214 Elec | C10: E214 | E10: SF Existing Water Heat | H10: 18230626 | I10: ='WaterHea_Detail_REM_E214 Elec'!D6 -> 35750 | J10: ='WaterHea_Detail_REM_E214 Elec'!E6 -> 31209.75 | K10: ='WaterHea_Detail_REM_E214 Elec'!F6 -> 10000 | L10: ='WaterHea_Detail_REM_E214 Elec'!G6 -> 500 | M10: ='WaterHea_Detail_REM_E214 Elec'!H6 -> 214000 | N10: ='WaterHea_Detail_REM_E214 Elec'!I6 -> 500 | O10: ='WaterHea_Detail_REM_E214 Elec'!J6 -> 500 | P10: ='WaterHea_Detail_REM_E214 Elec'!K6 -> 700000 | Q10: ='WaterHea_Detail_REM_E214 Elec'!L6 -> 0 | R10: ='WaterHea_Detail_REM_E214 Elec'!M6 -> 992459.75 | S10: ='WaterHea_Detail_REM_E214 Elec'!N6 -> 2225000
B11: Wx_Detail_REM E214 Elec | C11: E214 | E11: SF Existing Weatherization | H11: 18230627 | I11: ='Wx_Detail_REM E214 Elec'!D6 -> 72700 | J11: ='Wx_Detail_REM E214 Elec'!E6 -> 63467.1 | K11: ='Wx_Detail_REM E214 Elec'!F6 -> 120000 | L11: ='Wx_Detail_REM E214 Elec'!G6 -> 1000 | M11: ='Wx_Detail_REM E214 Elec'!H6 -> 0 | N11: ='Wx_Detail_REM E214 Elec'!I6 -> 500 | O11: ='Wx_Detail_REM E214 Elec'!J6 -> 1000 | P11: ='Wx_Detail_REM E214 Elec'!K6 -> 488411 | Q11: ='Wx_Detail_REM E214 Elec'!L6 -> 0 | R11: ='Wx_Detail_REM E214 Elec'!M6 -> 747078.1 | S11: ='Wx_Detail_REM E214 Elec'!N6 -> 2061262
B12: SpcHeat Detail_REM_E214 Elec | C12: E214 | E12: SF Existing Space Heat | H12: 18230628 | I12: ='SpcHeat Detail_REM_E214 Elec'!D6 -> 71500 | J12: ='SpcHeat Detail_REM_E214 Elec'!E6 -> 62419.5 | K12: ='SpcHeat Detail_REM_E214 Elec'!F6 -> 225000 | L12: ='SpcHeat Detail_REM_E214 Elec'!G6 -> 1000 | M12: ='SpcHeat Detail_REM_E214 Elec'!H6 -> 550000 | N12: ='SpcHeat Detail_REM_E214 Elec'!I6 -> 0 | O12: ='SpcHeat Detail_REM_E214 Elec'!J6 -> 0 | P12: ='SpcHeat Detail_REM_E214 Elec'!K6 -> 5568000 | Q12: ='SpcHeat Detail_REM_E214 Elec'!L6 -> 0 | R12: ='SpcHeat Detail_REM_E214 Elec'!M6 -> 6477919.5 | S12: ='SpcHeat Detail_REM_E214 Elec'!N6 -> 14257165
B13: HmAppplc_Detail_REM_E214 Elec | C13: E214 | E13: Home Appliances | H13: 18230434 | I13: ='HmAppplc_Detail_REM_E214 Elec'!D6 -> 59850 | J13: ='HmAppplc_Detail_REM_E214 Elec'!E6 -> 52249.05 | K13: ='HmAppplc_Detail_REM_E214 Elec'!F6 -> 40000 | L13: ='HmAppplc_Detail_REM_E214 Elec'!G6 -> 1000 | M13: ='HmAppplc_Detail_REM_E214 Elec'!H6 -> 37500 | N13: ='HmAppplc_Detail_REM_E214 Elec'!I6 -> 500 | O13: ='HmAppplc_Detail_REM_E214 Elec'!J6 -> 0 | P13: ='HmAppplc_Detail_REM_E214 Elec'!K6 -> 1084905 | Q13: ='HmAppplc_Detail_REM_E214 Elec'!L6 -> 0 | R13: ='HmAppplc_Detail_REM_E214 Elec'!M6 -> 1276004.05 | S13: ='HmAppplc_Detail_REM_E214 Elec'!N6 -> 2590861
B14: ShwrHead_Detail_REM_E214 Elec | C14: E214 | E14: Residential Showerheads | H14: 18230435 | I14: ='ShwrHead_Detail_REM_E214 Elec'!D6 -> 30450 | J14: ='ShwrHead_Detail_REM_E214 Elec'!E6 -> 26582.85 | K14: ='ShwrHead_Detail_REM_E214 Elec'!F6 -> 80915 | L14: ='ShwrHead_Detail_REM_E214 Elec'!G6 -> 500 | M14: ='ShwrHead_Detail_REM_E214 Elec'!H6 -> 144800 | N14: ='ShwrHead_Detail_REM_E214 Elec'!I6 -> 500 | O14: ='ShwrHead_Detail_REM_E214 Elec'!J6 -> 250 | P14: ='ShwrHead_Detail_REM_E214 Elec'!K6 -> 266895.76 | Q14: ='ShwrHead_Detail_REM_E214 Elec'!L6 -> 0 | R14: ='ShwrHead_Detail_REM_E214 Elec'!M6 -> 550893.61 | S14: ='ShwrHead_Detail_REM_E214 Elec'!N6 -> 1522465
B15: Lighting Detail_REM_E214 Elec | C15: E214 | E15: Energy Efficient Lighting Services | H15: 18230440 | I15: ='Lighting Detail_REM_E214 Elec'!D6 -> 272220 | J15: ='Lighting Detail_REM_E214 Elec'!E6 -> 237648.06 | K15: ='Lighting Detail_REM_E214 Elec'!F6 -> 500000 | L15: ='Lighting Detail_REM_E214 Elec'!G6 -> 10000 | M15: ='Lighting Detail_REM_E214 Elec'!H6 -> 416000 | N15: ='Lighting Detail_REM_E214 Elec'!I6 -> 8250 | O15: ='Lighting Detail_REM_E214 Elec'!J6 -> 0 | P15: ='Lighting Detail_REM_E214 Elec'!K6 -> 1016498.75 | Q15: ='Lighting Detail_REM_E214 Elec'!L6 -> 0 | R15: ='Lighting Detail_REM_E214 Elec'!M6 -> 2460616.81 | S15: ='Lighting Detail_REM_E214 Elec'!N6 -> 4209641.86
B16: HER Detail_REM_E214 elec. | C16: E214 | E16: Home Energy Reports | H16: 18230461 | I16: ='HER Detail_REM_E214 elec.'!D6 -> 84000 | J16: ='HER Detail_REM_E214 elec.'!E6 -> 73332 | K16: ='HER Detail_REM_E214 elec.'!F6 -> 0 | L16: ='HER Detail_REM_E214 elec.'!G6 -> 1300 | M16: ='HER Detail_REM_E214 elec.'!H6 -> 607602.9 | N16: ='HER Detail_REM_E214 elec.'!I6 -> 0 | O16: ='HER Detail_REM_E214 elec.'!J6 -> 0 | P16: ='HER Detail_REM_E214 elec.'!K6 -> 601299.342 | Q16: ='HER Detail_REM_E214 elec.'!L6 -> 0 | R16: ='HER Detail_REM_E214 elec.'!M6 -> 1367534.242 | S16: ='HER Detail_REM_E214 elec.'!N6 -> 899910
B17: Web Tstat Detail_REM E214 Elec | C17: E214 | E17: Smart Thermostats | H17: 18230023 | I17: ='Web Tstat Detail_REM E214 Elec'!D6 -> 28400 | J17: ='Web Tstat Detail_REM E214 Elec'!E6 -> 24793.2 | K17: ='Web Tstat Detail_REM E214 Elec'!F6 -> 44000 | L17: ='Web Tstat Detail_REM E214 Elec'!G6 -> 100 | M17: ='Web Tstat Detail_REM E214 Elec'!H6 -> 39050 | N17: ='Web Tstat Detail_REM E214 Elec'!I6 -> 1000 | O17: ='Web Tstat Detail_REM E214 Elec'!J6 -> 0 | P17: ='Web Tstat Detail_REM E214 Elec'!K6 -> 127642.5 | Q17: ='Web Tstat Detail_REM E214 Elec'!L6 -> 0 | R17: ='Web Tstat Detail_REM E214 Elec'!M6 -> 264985.7 | S17: ='Web Tstat Detail_REM E214 Elec'!N6 -> 773594
B18: SFNC Detail_REM E215 Elec | C18: E215 | E18: Single Family New Construction | H18: 18230405 | I18: ='SFNC Detail_REM E215 Elec'!D6 -> 19050 | J18: ='SFNC Detail_REM E215 Elec'!E6 -> 16630.65 | K18: ='SFNC Detail_REM E215 Elec'!F6 -> 2000 | L18: ='SFNC Detail_REM E215 Elec'!G6 -> 1000 | M18: ='SFNC Detail_REM E215 Elec'!H6 -> 0 | N18: ='SFNC Detail_REM E215 Elec'!I6 -> 0 | O18: ='SFNC Detail_REM E215 Elec'!J6 -> 0 | P18: ='SFNC Detail_REM E215 Elec'!K6 -> 307500 | Q18: ='SFNC Detail_REM E215 Elec'!L6 -> 0 | R18: ='SFNC Detail_REM E215 Elec'!M6 -> 346180.65 | S18: ='SFNC Detail_REM E215 Elec'!N6 -> 480130
B19: MfgHmNew Detail_REM E215 Elec | C19: E215 | E19: Manufactured Home New Construction | H19: 18230071 | I19: ='NCMfgHome Detail_REM E215 Elec'!D6 -> 13120 | J19: ='NCMfgHome Detail_REM E215 Elec'!E6 -> 11453.76 | K19: ='NCMfgHome Detail_REM E215 Elec'!F6 -> 16000 | L19: ='NCMfgHome Detail_REM E215 Elec'!G6 -> 500 | M19: ='NCMfgHome Detail_REM E215 Elec'!H6 -> 15000 | N19: ='NCMfgHome Detail_REM E215 Elec'!I6 -> 500 | O19: ='NCMfgHome Detail_REM E215 Elec'!J6 -> 0 | P19: ='NCMfgHome Detail_REM E215 Elec'!K6 -> 110000 | Q19: ='NCMfgHome Detail_REM E215 Elec'!L6 -> 0 | R19: ='NCMfgHome Detail_REM E215 Elec'!M6 -> 166573.76 | S19: ='NCMfgHome Detail_REM E215 Elec'!N6 -> 243720
B20: ModIncome Detail E217 | C20: E214 & 217 | D20: New for 2020 | E20: Moderate Income Residences | H20: 1823xxxx | I20: ='ModIncome Detail_E217 Elec'!D6 -> 15210 | J20: ='ModIncome Detail_E217 Elec'!E6 -> 13278.33 | K20: ='ModIncome Detail_E217 Elec'!F6 -> 15000 | L20: ='ModIncome Detail_E217 Elec'!G6 -> 100 | M20: ='ModIncome Detail_E217 Elec'!H6 -> 0 | N20: ='ModIncome Detail_E217 Elec'!I6 -> 0 | O20: ='ModIncome Detail_E217 Elec'!J6 -> 0 | P20: ='ModIncome Detail_E217 Elec'!K6 -> 0 | Q20: ='ModIncome Detail_E217 Elec'!L6 -> 0 | R20: ='ModIncome Detail_E217 Elec'!M6 -> 43588.33 | S20: ='ModIncome Detail_E217 Elec'!N6 -> 0
B21: MF Retr Detail_REM E217 Elec | C21: E217 | E21: Multifamily Retrofit | H21: 18230407 | I21: ='MF Retr Detail_REM E217 Elec'!D6 -> 146600 | J21: ='MF Retr Detail_REM E217 Elec'!E6 -> 127981.8 | K21: ='MF Retr Detail_REM E217 Elec'!F6 -> 67000 | L21: ='MF Retr Detail_REM E217 Elec'!G6 -> 4000 | M21: ='MF Retr Detail_REM E217 Elec'!H6 -> 1022366.848 | N21: ='MF Retr Detail_REM E217 Elec'!I6 -> 1000 | O21: ='MF Retr Detail_REM E217 Elec'!J6 -> 1000 | P21: ='MF Retr Detail_REM E217 Elec'!K6 -> 4785682.25 | Q21: ='MF Retr Detail_REM E217 Elec'!L6 -> 0 | R21: ='MF Retr Detail_REM E217 Elec'!M6 -> 6155630.898 | S21: ='MF Retr Detail_REM E217 Elec'!N6 -> 9690681.02
B22: MF Retr Grants Detail_REM E217 Elec | C22: E217 | E22: Multifamily Retrofit Grants | H22: 18230747 | I22: ='MF Retr-Grnts Detail_E217 Elect'!D6 -> 0 | J22: ='MF Retr-Grnts Detail_E217 Elect'!E6 -> 0 | K22: ='MF Retr-Grnts Detail_E217 Elect'!F6 -> 0 | L22: ='MF Retr-Grnts Detail_E217 Elect'!G6 -> 0 | M22: ='MF Retr-Grnts Detail_E217 Elect'!H6 -> 0 | N22: ='MF Retr-Grnts Detail_E217 Elect'!I6 -> 0 | O22: ='MF Retr-Grnts Detail_E217 Elect'!J6 -> 0 | P22: ='MF Retr-Grnts Detail_E217 Elect'!K6 -> 0 | Q22: ='MF Retr-Grnts Detail_E217 Elect'!L6 -> 0 | R22: ='MF Retr-Grnts Detail_E217 Elect'!M6 -> 0 | S22: ='MF Retr-Grnts Detail_E217 Elect'!N6 -> 0
B23: MFNC Detail_REM E218 Elec | C23: E218 | E23: Multi-Family New Construction | H23: 18230486 | I23: ='MFNC Detail_REM E218 Elec'!D6 -> 114450 | J23: ='MFNC Detail_REM E218 Elec'!E6 -> 99914.85 | K23: ='MFNC Detail_REM E218 Elec'!F6 -> 35000 | L23: ='MFNC Detail_REM E218 Elec'!G6 -> 4000 | M23: ='MFNC Detail_REM E218 Elec'!H6 -> 284200 | N23: ='MFNC Detail_REM E218 Elec'!I6 -> 2000 | O23: ='MFNC Detail_REM E218 Elec'!J6 -> 0 | P23: ='MFNC Detail_REM E218 Elec'!K6 -> 1892750 | Q23: ='MFNC Detail_REM E218 Elec'!L6 -> 0 | R23: ='MFNC Detail_REM E218 Elec'!M6 -> 2432314.85 | S23: ='MFNC Detail_REM E218 Elec'!N6 -> 6750000
G24: Total, Residential Energy Management | I24: =SUM(I8:I23) -> 1196440.5 | J24: 1044492.556 | K24: 1208515 | L24: 31000 | M24: 3633699.748 | N24: 16100 | O24: 5100 | P24: 23412188.05 | Q24: 0 | R24: 30547535.86 | S24: 50244706.23
C27: Business Energy Managment
E28: Commercial/Industrial Retrofit | I28: =SUM(I29:I31) -> 2323270.891 | J28: =SUM(J29:J31) -> 2192823.513 | K28: 172000 | L28: 131700 | M28: 155000 | N28: 3500 | O28: 8000 | P28: 15332111.11 | Q28: 0 | R28: 20318405.51 | S28: 78500000
B29: CI Retr Detail_BEM E250 Elec | C29: E250 | E29: Retrofit Custom Grants | H29: 18230711 | I29: ='CI Retr Detail_BEM E250 Elec'!C6 -> 527145.8911 | J29: ='CI Retr Detail_BEM E250 Elec'!D6 -> 624806.3878 | K29: ='CI Retr Detail_BEM E250 Elec'!E6 -> 100000 | L29: ='CI Retr Detail_BEM E250 Elec'!F6 -> 90700 | M29: ='CI Retr Detail_BEM E250 Elec'!G6 -> 0 | N29: ='CI Retr Detail_BEM E250 Elec'!H6 -> 0 | O29: ='CI Retr Detail_BEM E250 Elec'!I6 -> 5000 | P29: ='CI Retr Detail_BEM E250 Elec'!J6 -> 4350000 | R29: ='CI Retr Detail_BEM E250 Elec'!L6 -> 5697652.279 | S29: ='CI Retr Detail_BEM E250 Elec'!M6 -> 14500000
B30: BusLgtGrants_BEM E250 Elect | C30: E250 | E30: Custom Lighting Grants | H30: 18230724 | I30: ='BusLgtGrants_BEM E250 Elect'!C6 -> 1500000 | J30: ='BusLgtGrants_BEM E250 Elect'!D6 -> 1309500 | K30: ='BusLgtGrants_BEM E250 Elect'!E6 -> 47000 | L30: ='BusLgtGrants_BEM E250 Elect'!F6 -> 35000 | M30: ='BusLgtGrants_BEM E250 Elect'!G6 -> 140000 | N30: ='BusLgtGrants_BEM E250 Elect'!H6 -> 3500 | O30: ='BusLgtGrants_BEM E250 Elect'!I6 -> 3000 | P30: ='BusLgtGrants_BEM E250 Elect'!J6 -> 9450000 | R30: ='BusLgtGrants_BEM E250 Elect'!L6 -> 12488000 | S30: ='BusLgtGrants_BEM E250 Elect'!M6 -> 54000000
B31: CI Indust_BEM_E250_Elec | C31: E250 | E31: Industrial Programs | H31: 18231137 | I31: ='CI Indust_BEM_E250_Elec'!C6 -> 296125 | J31: ='CI Indust_BEM_E250_Elec'!D6 -> 258517.125 | K31: ='CI Indust_BEM_E250_Elec'!E6 -> 25000 | L31: ='CI Indust_BEM_E250_Elec'!F6 -> 6000 | M31: ='CI Indust_BEM_E250_Elec'!G6 -> 15000 | N31: ='CI Indust_BEM_E250_Elec'!H6 -> 0 | O31: ='CI Indust_BEM_E250_Elec'!I6 -> 0 | P31: ='CI Indust_BEM_E250_Elec'!J6 -> 1532111.111 | Q31: ='CI Indust_BEM_E250_Elec'!K6 -> 0 | R31: ='CI Indust_BEM_E250_Elec'!L6 -> 2132753.236 | S31: ='CI Indust_BEM_E250_Elec'!M6 -> 10000000
B32: CI NC Detail_BEM E251 Elec | C32: E251 | E32: Commercial/Industrial New Construction | H32: 18230715 | I32: ='CI NC Detail_BEM E251 Elec'!C6 -> 336000 | J32: ='CI NC Detail_BEM E251 Elec'!D6 -> 293328 | K32: ='CI NC Detail_BEM E251 Elec'!E6 -> 22300 | L32: ='CI NC Detail_BEM E251 Elec'!F6 -> 4800 | M32: ='CI NC Detail_BEM E251 Elec'!G6 -> 112420 | N32: ='CI NC Detail_BEM E251 Elec'!H6 -> 7200 | O32: ='CI NC Detail_BEM E251 Elec'!I6 -> 0 | P32: ='CI NC Detail_BEM E251 Elec'!J6 -> 3902500 | R32: ='CI NC Detail_BEM E251 Elec'!L6 -> 4678548 | S32: ='CI NC Detail_BEM E251 Elec'!M6 -> 17500000
E33: Commercial Strategic Energy Management | I33: =SUM(I34:I35) -> 615000 | J33: 540245 | K33: 2500 | L33: 15000 | M33: 30000 | N33: 2500 | O33: 2500 | P33: 596153.8462 | Q33: 0 | R33: 1803898.846 | S33: 15500000
B34: RCM Detail_BEM E253 Elec | C34: E253 | E34: SEM | H34: 18230723 | I34: ='RCM Detail_BEM E253 Elec'!C6 -> 565000 | J34: ='RCM Detail_BEM E253 Elec'!D6 -> 493245 | K34: ='RCM Detail_BEM E253 Elec'!E6 -> 2500 | L34: ='RCM Detail_BEM E253 Elec'!F6 -> 15000 | M34: ='RCM Detail_BEM E253 Elec'!G6 -> 15000 | N34: ='RCM Detail_BEM E253 Elec'!H6 -> 2500 | O34: ='RCM Detail_BEM E253 Elec'!I6 -> 2500 | P34: ='RCM Detail_BEM E253 Elec'!J6 -> 596153.8462 | R34: ='RCM Detail_BEM E253 Elec'!L6 -> 1691898.846 | S34: ='RCM Detail_BEM E253 Elec'!M6 -> 15500000
B35: ResAcctSW Detail_PSWE_Elec | E35: Resource Accounting Software | H35: 18230502 | I35: ='ResAcctSW Detail_PSWE_Elec'!D6 -> 50000 | J35: ='ResAcctSW Detail_PSWE_Elec'!E6 -> 47000 | K35: ='ResAcctSW Detail_PSWE_Elec'!F6 -> 0 | L35: ='ResAcctSW Detail_PSWE_Elec'!G6 -> 0 | M35: ='ResAcctSW Detail_PSWE_Elec'!H6 -> 15000 | N35: ='ResAcctSW Detail_PSWE_Elec'!I6 -> 0 | O35: ='ResAcctSW Detail_PSWE_Elec'!J6 -> 0 | P35: ='ResAcctSW Detail_PSWE_Elec'!K6 -> 0 | Q35: ='ResAcctSW Detail_PSWE_Elec'!L6 -> 0 | R35: ='ResAcctSW Detail_PSWE_Elec'!M6 -> 112000
E36: High Voltage, Self-Directed | I36: =SUM(I37:I38) -> 198265.9493 | J36: =SUM(J37:J38) -> 208623.0657 | K36: 0 | L36: 0 | M36: 0 | N36: 0 | O36: 0 | P36: 4872034.396 | Q36: 0 | R36: 5278923.411 | S36: 11032771
B37: LPSD_Detail_449_Elec | C37: E258 | E37: 449 Customers | H37: 18230720 | I37: =LPSD_Detail_449_Elec!C6 -> 94853 | J37: =LPSD_Detail_449_Elec!D6 -> 118343.5609 | K37: =LPSD_Detail_449_Elec!E6 -> 0 | L37: =LPSD_Detail_449_Elec!F6 -> 0 | M37: =LPSD_Detail_449_Elec!G6 -> 0 | N37: =LPSD_Detail_449_Elec!H6 -> 0 | O37: =LPSD_Detail_449_Elec!I6 -> 0 | P37: =LPSD_Detail_449_Elec!J6 -> 1892447.806 | Q37: =LPSD_Detail_449_Elec!K6 -> 0 | R37: =LPSD_Detail_449_Elec!L6 -> 2105644.367 | S37: =LPSD_Detail_449_Elec!M6 -> 5231634
B38: LPSD_Detail_Non-449 Elec | C38: E258 | E38: Non-449 Customers | H38: 18230721 | I38: ='LPSD_Detail_Non-449 Elec'!C6 -> 103412.9493 | J38: ='LPSD_Detail_Non-449 Elec'!D6 -> 90279.50478 | K38: ='LPSD_Detail_Non-449 Elec'!E6 -> 0 | L38: ='LPSD_Detail_Non-449 Elec'!F6 -> 0 | M38: ='LPSD_Detail_Non-449 Elec'!G6 -> 0 | N38: ='LPSD_Detail_Non-449 Elec'!H6 -> 0 | O38: ='LPSD_Detail_Non-449 Elec'!I6 -> 0 | P38: ='LPSD_Detail_Non-449 Elec'!J6 -> 2979586.59 | R38: ='LPSD_Detail_Non-449 Elec'!L6 -> 3173279.044 | S38: ='LPSD_Detail_Non-449 Elec'!M6 -> 5801137
B39: TechEval Detail_BEM E261 Elec | C39: E261 | E39: Technology Evaluation | H39: 18230448 | I39: ='TechEval Detail_BEM E261 Elec'!C6 -> 0 | J39: ='TechEval Detail_BEM E261 Elec'!D6 -> 0 | K39: ='TechEval Detail_BEM E261 Elec'!E6 -> 0 | L39: ='TechEval Detail_BEM E261 Elec'!F6 -> 0 | M39: ='TechEval Detail_BEM E261 Elec'!G6 -> 0 | N39: ='TechEval Detail_BEM E261 Elec'!H6 -> 0 | O39: ='TechEval Detail_BEM E261 Elec'!I6 -> 0 | P39: ='TechEval Detail_BEM E261 Elec'!J6 -> 0 | R39: ='TechEval Detail_BEM E261 Elec'!L6 -> 0 | S39: ='TechEval Detail_BEM E261 Elec'!M6 -> 0
C40: E262 | E40: Business Rebates | I40: =SUM(I41:I46) -> 265636 | J40: 231900.228 | K40: 95731 | L40: 7200 | M40: 2816681 | N40: 2750 | O40: 2000 | P40: 10960957 | Q40: 0 | R40: 14382855.23 | S40: 38187872.3
B41: Comm Lgt Mkdn_E262 Elect | C41: E262 | E41: Lighting to Go--also referred to as Business Lighting Markdowns | H41: 18230714 | I41: ='Comm Lgt Mkdn_E262 Elect'!D6 -> 51370 | J41: ='Comm Lgt Mkdn_E262 Elect'!E6 -> 44846.01 | K41: ='Comm Lgt Mkdn_E262 Elect'!F6 -> 20000 | L41: ='Comm Lgt Mkdn_E262 Elect'!G6 -> 1000 | M41: ='Comm Lgt Mkdn_E262 Elect'!H6 -> 605681 | N41: ='Comm Lgt Mkdn_E262 Elect'!I6 -> 250 | O41: ='Comm Lgt Mkdn_E262 Elect'!J6 -> 250 | P41: ='Comm Lgt Mkdn_E262 Elect'!K6 -> 1806157 | Q41: ='Comm Lgt Mkdn_E262 Elect'!L6 -> 0 | R41: ='Comm Lgt Mkdn_E262 Elect'!M6 -> 2529554.01 | S41: ='Comm Lgt Mkdn_E262 Elect'!N6 -> 15054532.3
B42: Comm Kit-Laund_E262 Elect | C42: E262 | E42: Commercial kitchen and laundry | H42: 18230716 | I42: ='Comm Kit-Laund_E262 Elect'!D6 -> 13866 | J42: ='Comm Kit-Laund_E262 Elect'!E6 -> 12105.018 | K42: ='Comm Kit-Laund_E262 Elect'!F6 -> 4500 | L42: ='Comm Kit-Laund_E262 Elect'!G6 -> 3000 | M42: ='Comm Kit-Laund_E262 Elect'!H6 -> 280000 | N42: ='Comm Kit-Laund_E262 Elect'!I6 -> 500 | O42: ='Comm Kit-Laund_E262 Elect'!J6 -> 0 | P42: ='Comm Kit-Laund_E262 Elect'!K6 -> 255000 | Q42: ='Comm Kit-Laund_E262 Elect'!L6 -> 0 | R42: ='Comm Kit-Laund_E262 Elect'!M6 -> 568971.018 | S42: ='Comm Kit-Laund_E262 Elect'!N6 -> 1300000
B43: Comm HVAC_E262 Elect | C43: E262 | E43: Commercial HVAC | H43: 18230718 | I43: ='Comm HVAC_E262 Elect'!D6 -> 56250 | J43: ='Comm HVAC_E262 Elect'!E6 -> 49106.25 | K43: ='Comm HVAC_E262 Elect'!F6 -> 5000 | L43: ='Comm HVAC_E262 Elect'!G6 -> 500 | M43: ='Comm HVAC_E262 Elect'!H6 -> 500 | N43: ='Comm HVAC_E262 Elect'!I6 -> 500 | O43: ='Comm HVAC_E262 Elect'!J6 -> 500 | P43: ='Comm HVAC_E262 Elect'!K6 -> 305800 | Q43: ='Comm HVAC_E262 Elect'!L6 -> 0 | R43: ='Comm HVAC_E262 Elect'!M6 -> 418156.25 | S43: ='Comm HVAC_E262 Elect'!N6 -> 1333340
C44: E262 | E44: Commercial Midstream | H44: 1823zzzz | I44: ='Comm Upstr-Rooftop_E262 Elect'!D6 -> 56250 | J44: ='Comm Upstr-Rooftop_E262 Elect'!E6 -> 49106.25 | K44: ='Comm Upstr-Rooftop_E262 Elect'!F6 -> 10000 | L44: ='Comm Upstr-Rooftop_E262 Elect'!G6 -> 1500 | M44: ='Comm Upstr-Rooftop_E262 Elect'!H6 -> 212500 | N44: ='Comm Upstr-Rooftop_E262 Elect'!I6 -> 1000 | O44: ='Comm Upstr-Rooftop_E262 Elect'!J6 -> 1000 | P44: ='Comm Upstr-Rooftop_E262 Elect'!K6 -> 1250000 | Q44: ='Comm Upstr-Rooftop_E262 Elect'!L6 -> 0 | R44: ='Comm Upstr-Rooftop_E262 Elect'!M6 -> 1581356.25 | S44: ='Comm Upstr-Rooftop_E262 Elect'!N6 -> 2500000
B45: Sm Bus DI_E262 Elect | C45: E262 | E45: Small Business Direct Install | H45: 18231134 | I45: ='Sm Bus DI_E262 Elect'!D6 -> 87900 | J45: ='Sm Bus DI_E262 Elect'!E6 -> 76736.7 | K45: ='Sm Bus DI_E262 Elect'!F6 -> 56231 | L45: ='Sm Bus DI_E262 Elect'!G6 -> 1200 | M45: ='Sm Bus DI_E262 Elect'!H6 -> 1718000 | N45: ='Sm Bus DI_E262 Elect'!I6 -> 500 | O45: ='Sm Bus DI_E262 Elect'!J6 -> 250 | P45: ='Sm Bus DI_E262 Elect'!K6 -> 7344000 | Q45: ='Sm Bus DI_E262 Elect'!L6 -> 0 | R45: ='Sm Bus DI_E262 Elect'!M6 -> 9284817.7 | S45: ='Sm Bus DI_E262 Elect'!N6 -> 18000000
B46: Lodging DI_E262 Elec | C46: E262 | E46: Commercial General Rebates | H46: 1823nnnn | I46: ='Comm Genl Rbats_E262 Elec'!D6 -> 0 | J46: ='Comm Genl Rbats_E262 Elec'!E6 -> 0 | K46: ='Comm Genl Rbats_E262 Elec'!F6 -> 0 | L46: ='Comm Genl Rbats_E262 Elec'!G6 -> 0 | M46: ='Comm Genl Rbats_E262 Elec'!H6 -> 0 | N46: ='Comm Genl Rbats_E262 Elec'!I6 -> 0 | O46: ='Comm Genl Rbats_E262 Elec'!J6 -> 0 | P46: ='Comm Genl Rbats_E262 Elec'!K6 -> 0 | Q46: ='Comm Genl Rbats_E262 Elec'!L6 -> 0 | R46: ='Comm Genl Rbats_E262 Elec'!M6 -> 0 | S46: ='Comm Genl Rbats_E262 Elec'!N6 -> 0
G47: Total, Business Energy Management | I47: =SUM(I29:I33)+I36+I39+I40 -> 3738172.84 | J47: 3466919.806 | K47: 292531 | L47: 158700 | M47: 3114101 | N47: 15950 | O47: 12500 | P47: 35663756.35 | Q47: 0 | R47: 46462631 | S47: 160720643.3
C50: Pilots With Uncertain Savings
B51: REM Pilots E249 Elec | C51: E249 | E51: Residential Pilots | H51: 18230522 | I51: ='REM Pilots E249 Elec'!D6 -> 90750 | J51: ='REM Pilots E249 Elec'!E6 -> 79224.75 | K51: ='REM Pilots E249 Elec'!F6 -> 110000 | L51: ='REM Pilots E249 Elec'!G6 -> 0 | M51: ='REM Pilots E249 Elec'!H6 -> 380000 | N51: ='REM Pilots E249 Elec'!I6 -> 0 | O51: ='REM Pilots E249 Elec'!J6 -> 216000 | P51: ='REM Pilots E249 Elec'!K6 -> 495000 | Q51: ='REM Pilots E249 Elec'!L6 -> 0 | R51: ='REM Pilots E249 Elec'!M6 -> 1370974.75 | S51: ='REM Pilots E249 Elec'!N6 -> 5740000
B52: BEM Pilots E249 Elec | C52: E249 | E52: Commercial Pilots | H52: 1823pppp | I52: ='BEM Pilots E249 Elec'!E6 -> 30000 | J52: ='BEM Pilots E249 Elec'!F6 -> 26190 | K52: ='BEM Pilots E249 Elec'!G6 -> 0 | L52: ='BEM Pilots E249 Elec'!H6 -> 0 | M52: ='BEM Pilots E249 Elec'!I6 -> 345000 | N52: ='BEM Pilots E249 Elec'!J6 -> 0 | O52: ='BEM Pilots E249 Elec'!K6 -> 0 | P52: ='BEM Pilots E249 Elec'!L6 -> 211750 | Q52: ='BEM Pilots E249 Elec'!M6 -> 0 | R52: ='BEM Pilots E249 Elec'!N6 -> 612940 | S52: ='BEM Pilots E249 Elec'!O6 -> 1800000
G53: Total, Pilots | I53: =SUM(I51:I52) -> 120750 | J53: =SUM(J51:J52) -> 105414.75 | K53: 110000 | L53: 0 | M53: 725000 | N53: 0 | O53: 216000 | P53: 706750 | Q53: 0 | R53: 1983914.75 | S53: 7540000
C57: Regional Efficiency Programs
B58: NEEA Detail_E254 elec | C58: E254 | E58: Northwest Energy Efficiency Alliance | H58: 18230421 | I58: ='NEEA Detail_E254 elec'!D6 -> 0 | J58: ='NEEA Detail_E254 elec'!E6 -> 0 | K58: ='NEEA Detail_E254 elec'!F6 -> 0 | L58: ='NEEA Detail_E254 elec'!G6 -> 0 | M58: ='NEEA Detail_E254 elec'!H6 -> 1337161.5 | N58: ='NEEA Detail_E254 elec'!I6 -> 0 | O58: ='NEEA Detail_E254 elec'!J6 -> 0 | P58: ='NEEA Detail_E254 elec'!K6 -> 3120043.5 | R58: ='NEEA Detail_E254 elec'!M6 -> 4457205 | S58: ='NEEA Detail_E254 elec'!N6 -> 10862400
B59: TDSM_Regnl_elec_e219 | C59: E219 | E59: Targeted DSM | H59: 1823xxxx | I59: ='TDSM_Regnl_E219 Elec'!D6 -> 200690 | J59: ='TDSM_Regnl_E219 Elec'!E6 -> 175202.37 | K59: ='TDSM_Regnl_E219 Elec'!F6 -> 0 | L59: ='TDSM_Regnl_E219 Elec'!G6 -> 0 | M59: ='TDSM_Regnl_E219 Elec'!H6 -> 105000 | N59: ='TDSM_Regnl_E219 Elec'!I6 -> 0 | O59: ='TDSM_Regnl_E219 Elec'!J6 -> 0 | P59: ='TDSM_Regnl_E219 Elec'!K6 -> 0 | Q59: ='TDSM_Regnl_E219 Elec'!L6 -> 0 | R59: ='TDSM_Regnl_E219 Elec'!M6 -> 480892.37 | S59: ='TDSM_Regnl_E219 Elec'!N6 -> 0
B60: T&D Detail_Reg E292 elec | C60: E292 | E60: Transmission & Distribution | H60: 18230711 | I60: ='T&D Detail_Reg E292 elec'!C6 -> 0 | J60: ='T&D Detail_Reg E292 elec'!D6 -> 0 | K60: ='T&D Detail_Reg E292 elec'!E6 -> 0 | L60: ='T&D Detail_Reg E292 elec'!F6 -> 0 | M60: ='T&D Detail_Reg E292 elec'!G6 -> 0 | N60: ='T&D Detail_Reg E292 elec'!H6 -> 0 | O60: ='T&D Detail_Reg E292 elec'!I6 -> 0 | P60: ='T&D Detail_Reg E292 elec'!J6 -> 0 | R60: ='T&D Detail_Reg E292 elec'!L6 -> 0 | S60: ='T&D Detail_Reg E292 elec'!M6 -> 750000
G61: Total, Regional Efficiency Programs | I61: =SUM(I58:I60) -> 200690 | J61: 175202.37 | K61: 0 | L61: 0 | M61: 1442161.5 | N61: 0 | O61: 0 | P61: 3120043.5 | Q61: 0 | R61: 4938097.37 | S61: 11612400
C65: Energy Efficiency Portfolio Support
B66: Data & Systm Svcs_Elect | E66: Data and Systems Services | H66: 18230745 | I66: ='Data & Systm Svcs_Elect'!D6 -> 409770 | J66: ='Data & Systm Svcs_Elect'!E6 -> 357729.21 | K66: ='Data & Systm Svcs_Elect'!F6 -> 0 | L66: ='Data & Systm Svcs_Elect'!G6 -> 10440 | M66: ='Data & Systm Svcs_Elect'!H6 -> 282750 | N66: ='Data & Systm Svcs_Elect'!I6 -> 0 | O66: ='Data & Systm Svcs_Elect'!J6 -> 0 | P66: ='Data & Systm Svcs_Elect'!K6 -> 0 | Q66: ='Data & Systm Svcs_Elect'!L6 -> 0 | R66: ='Data & Systm Svcs_Elect'!M6 -> 1060689.21
B67: Rebt Procg Detail_Elect | E67: Rebates Processing | H67: 18230507 | I67: ='Rebt Procg Detail_Elect'!D6 -> 314505 | J67: ='Rebt Procg Detail_Elect'!E6 -> 274562.865 | K67: ='Rebt Procg Detail_Elect'!F6 -> 0 | L67: ='Rebt Procg Detail_Elect'!G6 -> 20000 | M67: ='Rebt Procg Detail_Elect'!H6 -> 20000 | N67: ='Rebt Procg Detail_Elect'!I6 -> 5000 | O67: ='Rebt Procg Detail_Elect'!J6 -> 0 | P67: ='Rebt Procg Detail_Elect'!K6 -> 0 | R67: ='Rebt Procg Detail_Elect'!M6 -> 634067.865
B68: VTeam Detail_R&C_Elec | E68: Verification Team | H68: 18230418 | I68: ='Verifctn Team Detail Elec'!D6 -> 301430 | J68: ='Verifctn Team Detail Elec'!E6 -> 263148.39 | K68: ='Verifctn Team Detail Elec'!F6 -> 0 | L68: ='Verifctn Team Detail Elec'!G6 -> 15000 | M68: ='Verifctn Team Detail Elec'!H6 -> 0 | N68: ='Verifctn Team Detail Elec'!I6 -> 6200 | O68: ='Verifctn Team Detail Elec'!J6 -> 0 | P68: ='Verifctn Team Detail Elec'!K6 -> 0 | Q68: ='Verifctn Team Detail Elec'!L6 -> 0 | R68: ='Verifctn Team Detail Elec'!M6 -> 585778.39
B69: ProgDev Detail_R&C_ Elec | E69: Programs Support | H69: 18230810 | I69: ='Progs Supp Detail_PS_ Elec'!D6 -> 214020 | J69: ='Progs Supp Detail_PS_ Elec'!E6 -> 186839.46 | K69: ='Progs Supp Detail_PS_ Elec'!F6 -> 0 | L69: ='Progs Supp Detail_PS_ Elec'!G6 -> 12000 | M69: ='Progs Supp Detail_PS_ Elec'!H6 -> 0 | N69: ='Progs Supp Detail_PS_ Elec'!I6 -> 0 | O69: ='Progs Supp Detail_PS_ Elec'!J6 -> 0 | P69: ='Progs Supp Detail_PS_ Elec'!K6 -> 0 | Q69: ='Progs Supp Detail_PS_ Elec'!L6 -> 0 | R69: ='Progs Supp Detail_PS_ Elec'!M6 -> 412859.46
B70: TradeAlly Detail_PS_ Elec | E70: Trade Ally Memberships | H70: 18230730 | I70: ='TradeAlly Detail_PS_ Elec'!D6 -> 0 | J70: ='TradeAlly Detail_PS_ Elec'!E6 -> 0 | K70: ='TradeAlly Detail_PS_ Elec'!F6 -> 0 | L70: ='TradeAlly Detail_PS_ Elec'!G6 -> 0 | M70: ='TradeAlly Detail_PS_ Elec'!H6 -> 118000 | N70: ='TradeAlly Detail_PS_ Elec'!I6 -> 0 | O70: ='TradeAlly Detail_PS_ Elec'!J6 -> 0 | P70: ='TradeAlly Detail_PS_ Elec'!K6 -> 0 | R70: ='TradeAlly Detail_PS_ Elec'!M6 -> 118000
B71: CAN_Elect | E71: Trade Ally Network (revenue + cost) | H71: 18230746 | I71: =REP_Elect!D6 -> 75500 | J71: =REP_Elect!E6 -> 65911.5 | K71: =REP_Elect!F6 -> 20000 | L71: =REP_Elect!G6 -> 5000 | M71: =REP_Elect!H6 -> 38900 | N71: =REP_Elect!I6 -> 1500 | O71: =REP_Elect!J6 -> 0 | P71: =REP_Elect!K6 -> 0 | Q71: =REP_Elect!L6 -> -210000 | R71: =REP_Elect!M6 -> -3188.5
B72: ABS Detail_PSWE_Elec | E72: Automated Benchmarking System | H72: 18230411 | I72: ='ABS Detail_PSWE_Elec'!D6 -> 64600 | J72: ='ABS Detail_PSWE_Elec'!E6 -> 56395.8 | K72: ='ABS Detail_PSWE_Elec'!F6 -> 0 | L72: ='ABS Detail_PSWE_Elec'!G6 -> 0 | M72: ='ABS Detail_PSWE_Elec'!H6 -> 134500 | N72: ='ABS Detail_PSWE_Elec'!I6 -> 0 | O72: ='ABS Detail_PSWE_Elec'!J6 -> 0 | P72: ='ABS Detail_PSWE_Elec'!K6 -> 0 | Q72: ='ABS Detail_PSWE_Elec'!K6 -> 0 | R72: ='ABS Detail_PSWE_Elec'!M6 -> 255495.8
B73: Engy Adv Detail_PSCE Elec | E73: Energy Advisors | H73: 18230610 | I73: ='Engy Adv Detail_PSCE Elec'!D6 -> 710910 | J73: ='Engy Adv Detail_PSCE Elec'!E6 -> 620624.43 | K73: ='Engy Adv Detail_PSCE Elec'!F6 -> 0 | L73: ='Engy Adv Detail_PSCE Elec'!G6 -> 44000 | M73: ='Engy Adv Detail_PSCE Elec'!H6 -> 1000 | N73: ='Engy Adv Detail_PSCE Elec'!I6 -> 0 | O73: ='Engy Adv Detail_PSCE Elec'!J6 -> 1350 | P73: ='Engy Adv Detail_PSCE Elec'!K6 -> 0 | Q73: ='Engy Adv Detail_PSCE Elec'!L6 -> 0 | R73: ='Engy Adv Detail_PSCE Elec'!M6 -> 1377884.43
B74: EEC Detail_PS_Elec | E74: Energy Efficient Communities | H74: 18230811 | I74: ='EEC Detail_PS_Elec'!D6 -> 460690 | J74: ='EEC Detail_PS_Elec'!E6 -> 402182.37 | K74: ='EEC Detail_PS_Elec'!F6 -> 40000 | L74: ='EEC Detail_PS_Elec'!G6 -> 18000 | M74: ='EEC Detail_PS_Elec'!H6 -> 100000 | N74: ='EEC Detail_PS_Elec'!I6 -> 11745 | O74: ='EEC Detail_PS_Elec'!J6 -> 0 | P74: ='EEC Detail_PS_Elec'!K6 -> 0 | R74: ='EEC Detail_PS_Elec'!M6 -> 1032617.37
B75: CustOnline Detail_PSWE_Elec | D75: New Name | E75: Customer Digital Services | I75: =SUM(I76:I78) -> 158810 | J75: =SUM(J76:J78) -> 138641.13 | K75: 0 | L75: 500 | M75: 1080693.86 | N75: 0 | O75: 0 | P75: 0 | Q75: 0 | R75: 1378644.99
F76: Digital Experience | H76: 18230400 & 408 | I76: ='CustDigExprnc Detail_PSWE_Elec'!D6 -> 92550 | J76: ='CustDigExprnc Detail_PSWE_Elec'!E6 -> 80796.15 | K76: ='CustDigExprnc Detail_PSWE_Elec'!F6 -> 0 | L76: ='CustDigExprnc Detail_PSWE_Elec'!G6 -> 250 | M76: ='CustDigExprnc Detail_PSWE_Elec'!H6 -> 514056.9 | N76: ='CustDigExprnc Detail_PSWE_Elec'!I6 -> 0 | O76: ='CustDigExprnc Detail_PSWE_Elec'!J6 -> 0 | P76: ='CustDigExprnc Detail_PSWE_Elec'!K6 -> 0 | Q76: ='CustDigExprnc Detail_PSWE_Elec'!L6 -> 0 | R76: ='CustDigExprnc Detail_PSWE_Elec'!M6 -> 687653.05
B77: CustAwarTools_elec | F77: Customer Awareness Tools | H77: 18230508 | I77: =CustAwarTools_Elect!D6 -> 37850 | J77: =CustAwarTools_Elect!E6 -> 33043.05 | K77: =CustAwarTools_Elect!F6 -> 0 | L77: =CustAwarTools_Elect!G6 -> 250 | M77: =CustAwarTools_Elect!H6 -> 564636.96 | N77: =CustAwarTools_Elect!I6 -> 0 | O77: =CustAwarTools_Elect!J6 -> 0 | P77: =CustAwarTools_Elect!K6 -> 0 | Q77: =CustAwarTools_Elect!L6 -> 0 | R77: =CustAwarTools_Elect!M6 -> 635780.01
B78: ShopPSE_elec | F78: ShopPSE | H78: 18230509 | I78: =ShopPSE_elect!D6 -> 28410 | J78: =ShopPSE_elect!E6 -> 24801.93 | K78: =ShopPSE_elect!F6 -> 0 | L78: =ShopPSE_elect!G6 -> 0 | M78: =ShopPSE_elect!H6 -> 2000 | N78: =ShopPSE_elect!I6 -> 0 | O78: =ShopPSE_elect!J6 -> 0 | P78: =ShopPSE_elect!K6 -> 0 | Q78: =ShopPSE_elect!L6 -> 0 | R78: =ShopPSE_elect!M6 -> 55211.93
B79: Mkt Intgn Detail_PSWE_Elec | E79: Market Integration | H79: 18230466 | I79: ='Mkt Intgn Detail_PSWE_Elec'!D6 -> 150021.5 | J79: ='Mkt Intgn Detail_PSWE_Elec'!E6 -> 130968.7695 | K79: ='Mkt Intgn Detail_PSWE_Elec'!F6 -> 0 | L79: ='Mkt Intgn Detail_PSWE_Elec'!G6 -> 0 | M79: ='Mkt Intgn Detail_PSWE_Elec'!H6 -> 34800 | N79: ='Mkt Intgn Detail_PSWE_Elec'!I6 -> 0 | O79: ='Mkt Intgn Detail_PSWE_Elec'!J6 -> 0 | P79: ='Mkt Intgn Detail_PSWE_Elec'!K6 -> 0 | R79: ='Mkt Intgn Detail_PSWE_Elec'!M6 -> 315790.2695
B80: Events Detail_PSCE Elec | E80: Events | H80: 18230602 | I80: ='Events Detail_PSCE Elec'!D6 -> 118015.5 | J80: ='Events Detail_PSCE Elec'!E6 -> 103027.5315 | K80: ='Events Detail_PSCE Elec'!F6 -> 13000 | L80: ='Events Detail_PSCE Elec'!G6 -> 3905 | M80: ='Events Detail_PSCE Elec'!H6 -> 74810 | N80: ='Events Detail_PSCE Elec'!I6 -> 34365 | O80: ='Events Detail_PSCE Elec'!J6 -> 0 | P80: ='Events Detail_PSCE Elec'!K6 -> 0 | Q80: ='Events Detail_PSCE Elec'!L6 -> 0 | R80: ='Events Detail_PSCE Elec'!M6 -> 347123.0315
B81: Brochures Detail_PSCE Elec | E81: Brochures, non program-specific | H81: 18230482 | I81: ='Brochures Detail_PSCE Elec'!D6 -> 0 | J81: ='Brochures Detail_PSCE Elec'!E6 -> 0 | K81: ='Brochures Detail_PSCE Elec'!F6 -> 0 | L81: ='Brochures Detail_PSCE Elec'!G6 -> 0 | M81: ='Brochures Detail_PSCE Elec'!H6 -> 0 | N81: ='Brochures Detail_PSCE Elec'!I6 -> 0 | O81: ='Brochures Detail_PSCE Elec'!J6 -> 0 | P81: ='Brochures Detail_PSCE Elec'!K6 -> 0 | Q81: ='Brochures Detail_PSCE Elec'!L6 -> 0 | R81: ='Brochures Detail_PSCE Elec'!M6 -> 0
G82: Total, Portfolio Support | I82: =SUM(I66:I75)+SUM(I79:I81) -> 2978272 | J82: =SUM(J66:J75)+SUM(J79:J81) -> 2600031.456 | K82: 73000 | L82: 128845 | M82: 1885453.86 | N82: 58810 | O82: 1350 | P82: 0 | Q82: -210000 | R82: =SUM(R66:R75)+SUM(R79:R81) -> 7515762.316
C86: Research & Compliance
B87: SuppCrv Detail_R&C_Elec | E87: Conservation Supply Curves | H87: 18230809 | I87: ='SuppCrv Detail_R&C_Elec'!D6 -> 71340 | J87: ='SuppCrv Detail_R&C_Elec'!E6 -> 62279.82 | K87: ='SuppCrv Detail_R&C_Elec'!F6 -> 0 | L87: ='SuppCrv Detail_R&C_Elec'!G6 -> 870 | M87: ='SuppCrv Detail_R&C_Elec'!H6 -> 91350 | N87: ='SuppCrv Detail_R&C_Elec'!I6 -> 0 | O87: ='SuppCrv Detail_R&C_Elec'!J6 -> 0 | P87: ='SuppCrv Detail_R&C_Elec'!K6 -> 0 | Q87: ='SuppCrv Detail_R&C_Elec'!L6 -> 0 | R87: ='SuppCrv Detail_R&C_Elec'!M6 -> 225839.82
B88: Strat Plan Detail_R&C_Elec | E88: Strategic Planning | H88: 18230469 | I88: ='Strat Plan Detail_R&C_Elec'!D6 -> 173347.5 | J88: ='Strat Plan Detail_R&C_Elec'!E6 -> 151332.3675 | K88: ='Strat Plan Detail_R&C_Elec'!F6 -> 0 | L88: ='Strat Plan Detail_R&C_Elec'!G6 -> 3306 | M88: ='Strat Plan Detail_R&C_Elec'!H6 -> 350000 | N88: ='Strat Plan Detail_R&C_Elec'!I6 -> 0 | O88: ='Strat Plan Detail_R&C_Elec'!J6 -> 0 | P88: ='Strat Plan Detail_R&C_Elec'!K6 -> 0 | Q88: ='Strat Plan Detail_R&C_Elec'!L6 -> 0 | R88: ='Strat Plan Detail_R&C_Elec'!M6 -> 677985.8675
B89: Mktg Resch Detail_PS_ Elec | E89: Market Research | H89: 18230413 | I89: ='Mktg Resch Detail_PS_ Elec'!D6 -> 85280 | J89: ='Mktg Resch Detail_PS_ Elec'!E6 -> 74449.44 | K89: ='Mktg Resch Detail_PS_ Elec'!F6 -> 0 | L89: ='Mktg Resch Detail_PS_ Elec'!G6 -> 0 | M89: ='Mktg Resch Detail_PS_ Elec'!H6 -> 7313 | N89: ='Mktg Resch Detail_PS_ Elec'!I6 -> 0 | O89: ='Mktg Resch Detail_PS_ Elec'!J6 -> 0 | P89: ='Mktg Resch Detail_PS_ Elec'!K6 -> 0 | Q89: ='Mktg Resch Detail_PS_ Elec'!L6 -> 0 | R89: ='Mktg Resch Detail_PS_ Elec'!M6 -> 167042.44
B90: Eval Detail_R&C_Elec | E90: Program Evaluation | H90: 18230802 | I90: ='Eval Detail_R&C_Elec'!D6 -> 167692.5 | J90: ='Eval Detail_R&C_Elec'!E6 -> 146395.5525 | K90: ='Eval Detail_R&C_Elec'!F6 -> 0 | L90: ='Eval Detail_R&C_Elec'!G6 -> 6090 | M90: ='Eval Detail_R&C_Elec'!H6 -> 1479000 | N90: ='Eval Detail_R&C_Elec'!I6 -> 0 | O90: ='Eval Detail_R&C_Elec'!J6 -> 206740 | P90: ='Eval Detail_R&C_Elec'!K6 -> 0 | Q90: ='Eval Detail_R&C_Elec'!L6 -> 0 | R90: ='Eval Detail_R&C_Elec'!M6 -> 2005918.052
B91: BECAR Detail_R&C Elec | E91: Biennial Elec. Consv. Aquisitn. Review | H91: 18230624 | I91: ='BECAR Detail_R&C Elec'!D6 -> 0 | J91: ='BECAR Detail_R&C Elec'!E6 -> 0 | K91: ='BECAR Detail_R&C Elec'!F6 -> 0 | L91: ='BECAR Detail_R&C Elec'!G6 -> 0 | M91: ='BECAR Detail_R&C Elec'!H6 -> 60000 | N91: ='BECAR Detail_R&C Elec'!I6 -> 0 | O91: ='BECAR Detail_R&C Elec'!J6 -> 0 | P91: ='BECAR Detail_R&C Elec'!K6 -> 0 | Q91: ='BECAR Detail_R&C Elec'!L6 -> 0 | R91: ='BECAR Detail_R&C Elec'!M6 -> 60000
G92: Total, Research & Compliance | I92: =SUM(I87:I91) -> 497660 | J92: 434457.18 | K92: 0 | L92: 10266 | M92: 1987663 | N92: 0 | O92: 206740 | P92: 0 | Q92: 0 | R92: 3136786.18
C96: Other Customer Programs
B97: Net Mtr Details_Oth Elec E150 | C97: E150 | E97: Net Metering | H97: 18230128 | I97: ='Net Mtr Details_Oth Elec E150'!D6 -> 293250 | J97: ='Net Mtr Details_Oth Elec E150'!E6 -> 256007.25 | K97: ='Net Mtr Details_Oth Elec E150'!F6 -> 0 | L97: ='Net Mtr Details_Oth Elec E150'!G6 -> 10000 | M97: ='Net Mtr Details_Oth Elec E150'!H6 -> 70000 | N97: ='Net Mtr Details_Oth Elec E150'!I6 -> 0 | O97: ='Net Mtr Details_Oth Elec E150'!J6 -> 850000 | P97: ='Net Mtr Details_Oth Elec E150'!K6 -> 0 | R97: ='Net Mtr Details_Oth Elec E150'!M6 -> 1479257.25
B98: DemndResp_Detail_E249_Elec | C98: 249A, 271 | E98: Demand Response Pilot | H98: 1823XXXX | I98: =DmndResp_Detail_E249_Elec!D6 -> 0 | J98: =DmndResp_Detail_E249_Elec!E6 -> 0 | K98: =DmndResp_Detail_E249_Elec!F6 -> 0 | L98: =DmndResp_Detail_E249_Elec!G6 -> 0 | M98: =DmndResp_Detail_E249_Elec!H6 -> 203000 | N98: =DmndResp_Detail_E249_Elec!I6 -> 0 | O98: =DmndResp_Detail_E249_Elec!J6 -> 0 | P98: =DmndResp_Detail_E249_Elec!K6 -> 0 | Q98: =DmndResp_Detail_E249_Elec!L6 -> 0 | R98: =DmndResp_Detail_E249_Elec!M6 -> 203000
G99: Total, Other Energy Efficiency Programs | I99: =SUM(I97:I98) -> 293250 | J99: =SUM(J97:J98) -> 256007.25 | K99: 0 | L99: 10000 | M99: 273000 | N99: 0 | O99: 850000 | P99: 0 | Q99: =SUM(Q97:Q98) -> 0 | R99: 1682257.25
G103: GRAND TOTAL, ELECTRIC PROGRAMS | I103: =I99+I92+I61+I53+I47+I24 -> 6046963.34 | J103: 5482493.913 | K103: 1611046 | L103: 209966 | M103: 11175625.25 | N103: 32050 | O103: 1290340 | P103: 62902737.91 | Q103: 0 | R103: =R99+R92+R82+R61+R53+R47+R24 -> 96266984.72 | S103: =S99+S92+S61+S53+S47+S24 -> 230117749.5
S106: =S103/1000/8760 -> 26.26914949
G107: Budget Category Includes | H107: This is the main level of tracking expenditures and expenses in EES. Per FERC rules, all conservation order numbers start with a "1823nnnn", where "n" is some number. Cost elements apply to all order numbers (for instance, all conservation programs that | I107: Energy Efficiency program staff labor. Average FTE cost including management assessments. This Budget Category group includes assessments from Major Accounts management, Resource Planning, Corporate Communications management, IT specialists and some building maintenance allocations. | J107: Overhead--costs associated with primarily employee labor; benefits, for instance. For 2017, includes micro-overhead. | K107: Service and materials associated with the cost of printing program brochures, marketing pieces, advertising, banners, etc. Also includes marketing conducted by vendors and contractors. | L107: Costs associated with EE staff attending events, employee training, conferences, business meals, business parking, ferry & bridge tolls, mileage incurred on employee automobiles, office supplies, phones, subscriptions, software/hardware, etc. | M107: Contractors and vendors, such as PECI, Ecos, CostCo, EFI, etc. Legal expenses, technical services (CMS design, PSE.com web portals, etc.). These costs do NOT include brochure development, marketing pieces, (which are classified under MARKETING). These costs do NOT include incentives paid to customers by contractors. | N107: Primarily tools, trade show equipment, etc. | O107: This category should seldomly be used, and only expenses that cannot be classified under one of the above categories. | P107: All costs associated with rebates, grants, remuneration, value-added services that have a direct bearing on a customer's perceived value of PSE offerings. | Q107: Any amount that PSE is paid by a customer, partner, municipality or outside entity.

Sheet 2-year Sector View Gas
C2: Energy Efficiency 2020 + 2021 ACP Budgets and Aggregate Program Savings
C3: Two-Year Sector View
C4: Natural Gas Programs | I4: Please see category descriptions at the bottom of the sector table.
I5: Budget Category
B6: Workbook Name | C6: Schedule | D6: Comment | E6: Description (Blue, indented text indicates a sub-total value) | H6: Order Number (Click on the order# below to link to the detail page) | I6: Labor | J6: Overhead | K6: Marketing | L6: Employee/Office Expense | M6: Outside Services | N6: Materials | O6: Miscellaneous | P6: DBtC | Q6: Revenue | R6: Total Budget | S6: Total Savings Therms
C7: Residential Energy Management
B8: LIW Detail_REM G201 Gas | C8: G201 | E8: Low Income Weatherization | H8: 18230661 | I8: ='2020 Sector View Gas'!I8+'2021 Sector View Gas'!I8 -> 40621 | J8: ='2020 Sector View Gas'!J8+'2021 Sector View Gas'!J8 -> 35462.133 | K8: ='2020 Sector View Gas'!K8+'2021 Sector View Gas'!K8 -> 10800 | L8: ='2020 Sector View Gas'!L8+'2021 Sector View Gas'!L8 -> 1000 | M8: ='2020 Sector View Gas'!M8+'2021 Sector View Gas'!M8 -> 5000 | N8: ='2020 Sector View Gas'!N8+'2021 Sector View Gas'!N8 -> 300 | O8: ='2020 Sector View Gas'!O8+'2021 Sector View Gas'!O8 -> 300 | P8: ='2020 Sector View Gas'!P8+'2021 Sector View Gas'!P8 -> 2450183.203 | Q8: ='2020 Sector View Gas'!Q8+'2021 Sector View Gas'!Q8 -> 0 | R8: ='2020 Sector View Gas'!R8+'2021 Sector View Gas'!R8 -> 2543666.336 | S8: ='2020 Sector View Gas'!S8+'2021 Sector View Gas'!S8 -> 49918.31
B9: HmPrint Detail_REM G214 Gas | C9: G214 | E9: Home Energy Assessments | H9: 18230635 | I9: ='2020 Sector View Gas'!I9+'2021 Sector View Gas'!I9 -> 0 | J9: ='2020 Sector View Gas'!J9+'2021 Sector View Gas'!J9 -> 0 | K9: ='2020 Sector View Gas'!K9+'2021 Sector View Gas'!K9 -> 0 | L9: ='2020 Sector View Gas'!L9+'2021 Sector View Gas'!L9 -> 0 | M9: ='2020 Sector View Gas'!M9+'2021 Sector View Gas'!M9 -> 0 | N9: ='2020 Sector View Gas'!N9+'2021 Sector View Gas'!N9 -> 0 | O9: ='2020 Sector View Gas'!O9+'2021 Sector View Gas'!O9 -> 0 | P9: ='2020 Sector View Gas'!P9+'2021 Sector View Gas'!P9 -> 0 | Q9: ='2020 Sector View Gas'!Q9+'2021 Sector View Gas'!Q9 -> 0 | R9: ='2020 Sector View Gas'!R9+'2021 Sector View Gas'!R9 -> 0 | S9: ='2020 Sector View Gas'!S9+'2021 Sector View Gas'!S9 -> 0
B10: WtrHeat Detail_REM G214 Gas | C10: G214 | E10: SF Existing Water Heat | H10: 18230636 | I10: ='2020 Sector View Gas'!I10+'2021 Sector View Gas'!I10 -> 71500 | J10: ='2020 Sector View Gas'!J10+'2021 Sector View Gas'!J10 -> 62419.5 | K10: ='2020 Sector View Gas'!K10+'2021 Sector View Gas'!K10 -> 10000 | L10: ='2020 Sector View Gas'!L10+'2021 Sector View Gas'!L10 -> 1000 | M10: ='2020 Sector View Gas'!M10+'2021 Sector View Gas'!M10 -> 1000 | N10: ='2020 Sector View Gas'!N10+'2021 Sector View Gas'!N10 -> 1000 | O10: ='2020 Sector View Gas'!O10+'2021 Sector View Gas'!O10 -> 1000 | P10: ='2020 Sector View Gas'!P10+'2021 Sector View Gas'!P10 -> 510000 | Q10: ='2020 Sector View Gas'!Q10+'2021 Sector View Gas'!Q10 -> 0 | R10: ='2020 Sector View Gas'!R10+'2021 Sector View Gas'!R10 -> 657919.5 | S10: ='2020 Sector View Gas'!S10+'2021 Sector View Gas'!S10 -> 107600
B11: Wx Detail_REM G214 Gas | C11: G214 | E11: SF Existing Weatherization | H11: 18230637 | I11: ='2020 Sector View Gas'!I11+'2021 Sector View Gas'!I11 -> 166800 | J11: ='2020 Sector View Gas'!J11+'2021 Sector View Gas'!J11 -> 145616.4 | K11: ='2020 Sector View Gas'!K11+'2021 Sector View Gas'!K11 -> 76000 | L11: ='2020 Sector View Gas'!L11+'2021 Sector View Gas'!L11 -> 2000 | M11: ='2020 Sector View Gas'!M11+'2021 Sector View Gas'!M11 -> 69840 | N11: ='2020 Sector View Gas'!N11+'2021 Sector View Gas'!N11 -> 1000 | O11: ='2020 Sector View Gas'!O11+'2021 Sector View Gas'!O11 -> 2000 | P11: ='2020 Sector View Gas'!P11+'2021 Sector View Gas'!P11 -> 3700077.4 | Q11: ='2020 Sector View Gas'!Q11+'2021 Sector View Gas'!Q11 -> 0 | R11: ='2020 Sector View Gas'!R11+'2021 Sector View Gas'!R11 -> 4163333.8 | S11: ='2020 Sector View Gas'!S11+'2021 Sector View Gas'!S11 -> 695350.8
B12: SpHeat Detail_REM G214 Gas | C12: G214 | E12: SF Existing Space Heat | H12: 18230638 | I12: ='2020 Sector View Gas'!I12+'2021 Sector View Gas'!I12 -> 143000 | J12: ='2020 Sector View Gas'!J12+'2021 Sector View Gas'!J12 -> 124839 | K12: ='2020 Sector View Gas'!K12+'2021 Sector View Gas'!K12 -> 450000 | L12: ='2020 Sector View Gas'!L12+'2021 Sector View Gas'!L12 -> 2000 | M12: ='2020 Sector View Gas'!M12+'2021 Sector View Gas'!M12 -> 10000 | N12: ='2020 Sector View Gas'!N12+'2021 Sector View Gas'!N12 -> 2000 | O12: ='2020 Sector View Gas'!O12+'2021 Sector View Gas'!O12 -> 2000 | P12: ='2020 Sector View Gas'!P12+'2021 Sector View Gas'!P12 -> 3642500 | Q12: ='2020 Sector View Gas'!Q12+'2021 Sector View Gas'!Q12 -> 0 | R12: ='2020 Sector View Gas'!R12+'2021 Sector View Gas'!R12 -> 4376339 | S12: ='2020 Sector View Gas'!S12+'2021 Sector View Gas'!S12 -> 1130450
B13: ShwrHead Detail_REM G214 Gas | C13: G214 | E13: Residential Showerheads | H13: 18230700 | I13: ='2020 Sector View Gas'!I13+'2021 Sector View Gas'!I13 -> 33520 | J13: ='2020 Sector View Gas'!J13+'2021 Sector View Gas'!J13 -> 29262.96 | K13: ='2020 Sector View Gas'!K13+'2021 Sector View Gas'!K13 -> 141830 | L13: ='2020 Sector View Gas'!L13+'2021 Sector View Gas'!L13 -> 600 | M13: ='2020 Sector View Gas'!M13+'2021 Sector View Gas'!M13 -> 118400 | N13: ='2020 Sector View Gas'!N13+'2021 Sector View Gas'!N13 -> 1000 | O13: ='2020 Sector View Gas'!O13+'2021 Sector View Gas'!O13 -> 500 | P13: ='2020 Sector View Gas'!P13+'2021 Sector View Gas'!P13 -> 176559.7 | Q13: ='2020 Sector View Gas'!Q13+'2021 Sector View Gas'!Q13 -> 0 | R13: ='2020 Sector View Gas'!R13+'2021 Sector View Gas'!R13 -> 501672.66 | S13: ='2020 Sector View Gas'!S13+'2021 Sector View Gas'!S13 -> 115264.7
B14: HmApplSvgs Detail_REM G214 Gas | C14: G214 | E14: Home Appliances | H14: 1823gggg | I14: ='2020 Sector View Gas'!I14+'2021 Sector View Gas'!I14 -> 0 | J14: ='2020 Sector View Gas'!J14+'2021 Sector View Gas'!J14 -> 0 | K14: ='2020 Sector View Gas'!K14+'2021 Sector View Gas'!K14 -> 0 | L14: ='2020 Sector View Gas'!L14+'2021 Sector View Gas'!L14 -> 0 | M14: ='2020 Sector View Gas'!M14+'2021 Sector View Gas'!M14 -> 0 | N14: ='2020 Sector View Gas'!N14+'2021 Sector View Gas'!N14 -> 0 | O14: ='2020 Sector View Gas'!O14+'2021 Sector View Gas'!O14 -> 0 | P14: ='2020 Sector View Gas'!P14+'2021 Sector View Gas'!P14 -> 0 | Q14: ='2020 Sector View Gas'!Q14+'2021 Sector View Gas'!Q14 -> 0 | R14: ='2020 Sector View Gas'!R14+'2021 Sector View Gas'!R14 -> 0 | S14: ='2020 Sector View Gas'!S14+'2021 Sector View Gas'!S14 -> 14017.2
B15: WebTstat Detail_REM G214 Gas | C15: G214 | E15: Smart Thermostats | H15: 18230687 | I15: ='2020 Sector View Gas'!I15+'2021 Sector View Gas'!I15 -> 64200 | J15: ='2020 Sector View Gas'!J15+'2021 Sector View Gas'!J15 -> 56046.6 | K15: ='2020 Sector View Gas'!K15+'2021 Sector View Gas'!K15 -> 200000 | L15: ='2020 Sector View Gas'!L15+'2021 Sector View Gas'!L15 -> 2000 | M15: ='2020 Sector View Gas'!M15+'2021 Sector View Gas'!M15 -> 718400 | N15: ='2020 Sector View Gas'!N15+'2021 Sector View Gas'!N15 -> 2000 | O15: ='2020 Sector View Gas'!O15+'2021 Sector View Gas'!O15 -> 0 | P15: ='2020 Sector View Gas'!P15+'2021 Sector View Gas'!P15 -> 1563537.45 | Q15: ='2020 Sector View Gas'!Q15+'2021 Sector View Gas'!Q15 -> 0 | R15: ='2020 Sector View Gas'!R15+'2021 Sector View Gas'!R15 -> 2606184.05 | S15: ='2020 Sector View Gas'!S15+'2021 Sector View Gas'!S15 -> 629449.8
B16: HER Detail_REM G214 gas | C16: G214 | E16: Home Energy Reports | H16: 18230738 | I16: ='2020 Sector View Gas'!I16+'2021 Sector View Gas'!I16 -> 82720 | J16: ='2020 Sector View Gas'!J16+'2021 Sector View Gas'!J16 -> 72214.56 | K16: ='2020 Sector View Gas'!K16+'2021 Sector View Gas'!K16 -> 0 | L16: ='2020 Sector View Gas'!L16+'2021 Sector View Gas'!L16 -> 1200 | M16: ='2020 Sector View Gas'!M16+'2021 Sector View Gas'!M16 -> 992090.84 | N16: ='2020 Sector View Gas'!N16+'2021 Sector View Gas'!N16 -> 0 | O16: ='2020 Sector View Gas'!O16+'2021 Sector View Gas'!O16 -> 0 | P16: ='2020 Sector View Gas'!P16+'2021 Sector View Gas'!P16 -> 850555.917 | Q16: ='2020 Sector View Gas'!Q16+'2021 Sector View Gas'!Q16 -> 0 | R16: ='2020 Sector View Gas'!R16+'2021 Sector View Gas'!R16 -> 1998781.317 | S16: ='2020 Sector View Gas'!S16+'2021 Sector View Gas'!S16 -> 1431851
B17: SFNC Detail_REM G215 Gas | C17: G215 | E17: Single Family New Construction | H17: 18230684 | I17: ='2020 Sector View Gas'!I17+'2021 Sector View Gas'!I17 -> 18840 | J17: ='2020 Sector View Gas'!J17+'2021 Sector View Gas'!J17 -> 16447.32 | K17: ='2020 Sector View Gas'!K17+'2021 Sector View Gas'!K17 -> 96000 | L17: ='2020 Sector View Gas'!L17+'2021 Sector View Gas'!L17 -> 3000 | M17: ='2020 Sector View Gas'!M17+'2021 Sector View Gas'!M17 -> 0 | N17: ='2020 Sector View Gas'!N17+'2021 Sector View Gas'!N17 -> 2000 | O17: ='2020 Sector View Gas'!O17+'2021 Sector View Gas'!O17 -> 0 | P17: ='2020 Sector View Gas'!P17+'2021 Sector View Gas'!P17 -> 155000 | Q17: ='2020 Sector View Gas'!Q17+'2021 Sector View Gas'!Q17 -> 0 | R17: ='2020 Sector View Gas'!R17+'2021 Sector View Gas'!R17 -> 291287.32 | S17: ='2020 Sector View Gas'!S17+'2021 Sector View Gas'!S17 -> 51860
B18: Modincome Detail G217 | C18: G214 & 217 | D18: New for 2020 | E18: Moderate Income Residences | H18: 1823yyyy | I18: ='2020 Sector View Gas'!I18+'2021 Sector View Gas'!I18 -> 30420 | J18: ='2020 Sector View Gas'!J18+'2021 Sector View Gas'!J18 -> 26556.66 | K18: ='2020 Sector View Gas'!K18+'2021 Sector View Gas'!K18 -> 30000 | L18: ='2020 Sector View Gas'!L18+'2021 Sector View Gas'!L18 -> 350 | M18: ='2020 Sector View Gas'!M18+'2021 Sector View Gas'!M18 -> 0 | N18: ='2020 Sector View Gas'!N18+'2021 Sector View Gas'!N18 -> 0 | O18: ='2020 Sector View Gas'!O18+'2021 Sector View Gas'!O18 -> 0 | P18: ='2020 Sector View Gas'!P18+'2021 Sector View Gas'!P18 -> 0 | Q18: ='2020 Sector View Gas'!Q18+'2021 Sector View Gas'!Q18 -> 0 | R18: ='2020 Sector View Gas'!R18+'2021 Sector View Gas'!R18 -> 87326.66 | S18: ='2020 Sector View Gas'!S18+'2021 Sector View Gas'!S18 -> 0
B19: MF Retr Detail_REM G217 Gas | C19: G217 | E19: Multifamily Retrofit | H19: 18230736 | I19: ='2020 Sector View Gas'!I19+'2021 Sector View Gas'!I19 -> 70420 | J19: ='2020 Sector View Gas'!J19+'2021 Sector View Gas'!J19 -> 61476.66 | K19: ='2020 Sector View Gas'!K19+'2021 Sector View Gas'!K19 -> 7200 | L19: ='2020 Sector View Gas'!L19+'2021 Sector View Gas'!L19 -> 4000 | M19: ='2020 Sector View Gas'!M19+'2021 Sector View Gas'!M19 -> 74947.964 | N19: ='2020 Sector View Gas'!N19+'2021 Sector View Gas'!N19 -> 1000 | O19: ='2020 Sector View Gas'!O19+'2021 Sector View Gas'!O19 -> 1000 | P19: ='2020 Sector View Gas'!P19+'2021 Sector View Gas'!P19 -> 313805.3 | Q19: ='2020 Sector View Gas'!Q19+'2021 Sector View Gas'!Q19 -> 0 | R19: ='2020 Sector View Gas'!R19+'2021 Sector View Gas'!R19 -> 533849.924 | S19: ='2020 Sector View Gas'!S19+'2021 Sector View Gas'!S19 -> 53534.26
B20: MF Retr Grants_REM G217 Gas | C20: G218 | E20: Multifamily Retrofit Grants | H20: 1823nnnn | I20: ='2020 Sector View Gas'!I20+'2021 Sector View Gas'!I20 -> 0 | J20: ='2020 Sector View Gas'!J20+'2021 Sector View Gas'!J20 -> 0 | K20: ='2020 Sector View Gas'!K20+'2021 Sector View Gas'!K20 -> 0 | L20: ='2020 Sector View Gas'!L20+'2021 Sector View Gas'!L20 -> 0 | M20: ='2020 Sector View Gas'!M20+'2021 Sector View Gas'!M20 -> 0 | N20: ='2020 Sector View Gas'!N20+'2021 Sector View Gas'!N20 -> 0 | O20: ='2020 Sector View Gas'!O20+'2021 Sector View Gas'!O20 -> 0 | P20: ='2020 Sector View Gas'!P20+'2021 Sector View Gas'!P20 -> 0 | Q20: ='2020 Sector View Gas'!Q20+'2021 Sector View Gas'!Q20 -> 0 | R20: ='2020 Sector View Gas'!R20+'2021 Sector View Gas'!R20 -> 0 | S20: ='2020 Sector View Gas'!S20+'2021 Sector View Gas'!S20 -> 0
B21: MFNC Detail_REM G218 Gas | C21: G218 | E21: Multi-Family New Construction | H21: 18230673 | I21: ='2020 Sector View Gas'!I21+'2021 Sector View Gas'!I21 -> 79220 | J21: ='2020 Sector View Gas'!J21+'2021 Sector View Gas'!J21 -> 69159.06 | K21: ='2020 Sector View Gas'!K21+'2021 Sector View Gas'!K21 -> 26000 | L21: ='2020 Sector View Gas'!L21+'2021 Sector View Gas'!L21 -> 2000 | M21: ='2020 Sector View Gas'!M21+'2021 Sector View Gas'!M21 -> 162400 | N21: ='2020 Sector View Gas'!N21+'2021 Sector View Gas'!N21 -> 4000 | O21: ='2020 Sector View Gas'!O21+'2021 Sector View Gas'!O21 -> 0 | P21: ='2020 Sector View Gas'!P21+'2021 Sector View Gas'!P21 -> 567636 | Q21: ='2020 Sector View Gas'!Q21+'2021 Sector View Gas'!Q21 -> 0 | R21: ='2020 Sector View Gas'!R21+'2021 Sector View Gas'!R21 -> 910415.06 | S21: ='2020 Sector View Gas'!S21+'2021 Sector View Gas'!S21 -> 109900
G22: Total, Residential Energy Management | I22: =SUM(I8:I21) -> 801261 | J22: 699500.853 | K22: 1047830 | L22: 19150 | M22: 2152078.804 | N22: 14300 | O22: 6800 | P22: 13929854.97 | Q22: 0 | R22: 18670775.63 | S22: 4389196.07
P23: =P22/R22 -> 0.7460780017
H24: 2018-2019 Figures | I24: 595240 | J24: 552383 | K24: 986116 | L24: 21850 | M24: 1269156 | N24: 12300 | O24: 7200 | P24: 12472384 | Q24: 0 | R24: 15916628 | S24: 3511182
C26: Business Energy Management
E27: Commercial/Industrial Retrofit | I27: =I28+I29 -> 405750 | J27: =J28+J29 -> 357006 | K27: 13400 | L27: 24600 | M27: 0 | N27: 0 | O27: 0 | P27: 2320000 | Q27: 0 | R27: 3120756 | S27: 670000
B28: CI Retr Detail_BEM G250 Gas | C28: G250 | E28: Retrofit Custom Grants | H28: 18230731 | I28: ='2020 Sector View Gas'!I28+'2021 Sector View Gas'!I28 -> 355000 | J28: ='2020 Sector View Gas'!J28+'2021 Sector View Gas'!J28 -> 309910 | K28: ='2020 Sector View Gas'!K28+'2021 Sector View Gas'!K28 -> 13400 | L28: ='2020 Sector View Gas'!L28+'2021 Sector View Gas'!L28 -> 24600 | M28: ='2020 Sector View Gas'!M28+'2021 Sector View Gas'!M28 -> 0 | N28: ='2020 Sector View Gas'!N28+'2021 Sector View Gas'!N28 -> 0 | O28: ='2020 Sector View Gas'!O28+'2021 Sector View Gas'!O28 -> 0 | P28: ='2020 Sector View Gas'!P28+'2021 Sector View Gas'!P28 -> 2170000 | Q28: ='2020 Sector View Gas'!Q28+'2021 Sector View Gas'!Q28 -> 0 | R28: ='2020 Sector View Gas'!R28+'2021 Sector View Gas'!R28 -> 2872910 | S28: ='2020 Sector View Gas'!S28+'2021 Sector View Gas'!S28 -> 620000
B29: CI Industrial BEM G250_Gas | C29: G250 | E29: Industrial Programs | H29: 18231037 | I29: ='2020 Sector View Gas'!I29+'2021 Sector View Gas'!I29 -> 50750 | J29: ='2020 Sector View Gas'!J29+'2021 Sector View Gas'!J29 -> 47096 | K29: ='2020 Sector View Gas'!K29+'2021 Sector View Gas'!K29 -> 0 | L29: ='2020 Sector View Gas'!L29+'2021 Sector View Gas'!L29 -> 0 | M29: ='2020 Sector View Gas'!M29+'2021 Sector View Gas'!M29 -> 0 | N29: ='2020 Sector View Gas'!N29+'2021 Sector View Gas'!N29 -> 0 | O29: ='2020 Sector View Gas'!O29+'2021 Sector View Gas'!O29 -> 0 | P29: ='2020 Sector View Gas'!P29+'2021 Sector View Gas'!P29 -> 150000 | Q29: ='2020 Sector View Gas'!Q29+'2021 Sector View Gas'!Q29 -> 0 | R29: ='2020 Sector View Gas'!R29+'2021 Sector View Gas'!R29 -> 247846 | S29: ='2020 Sector View Gas'!S29+'2021 Sector View Gas'!S29 -> 50000
B30: CI NC Detail_BEM G251 Gas | C30: G251 | E30: Commercial/Industrial New Construction | H30: 18230706 | I30: ='2020 Sector View Gas'!I30+'2021 Sector View Gas'!I30 -> 88000 | J30: ='2020 Sector View Gas'!J30+'2021 Sector View Gas'!J30 -> 76824 | K30: ='2020 Sector View Gas'!K30+'2021 Sector View Gas'!K30 -> 17000 | L30: ='2020 Sector View Gas'!L30+'2021 Sector View Gas'!L30 -> 4000 | M30: ='2020 Sector View Gas'!M30+'2021 Sector View Gas'!M30 -> 94860 | N30: ='2020 Sector View Gas'!N30+'2021 Sector View Gas'!N30 -> 4000 | O30: ='2020 Sector View Gas'!O30+'2021 Sector View Gas'!O30 -> 0 | P30: ='2020 Sector View Gas'!P30+'2021 Sector View Gas'!P30 -> 771250 | Q30: ='2020 Sector View Gas'!Q30+'2021 Sector View Gas'!Q30 -> 0 | R30: ='2020 Sector View Gas'!R30+'2021 Sector View Gas'!R30 -> 1055934 | S30: ='2020 Sector View Gas'!S30+'2021 Sector View Gas'!S30 -> 200000
E31: Commercial Strategic Energy Management | I31: ='2020 Sector View Gas'!I31+'2021 Sector View Gas'!I31 -> 402000 | J31: ='2020 Sector View Gas'!J31+'2021 Sector View Gas'!J31 -> 350946.222 | K31: ='2020 Sector View Gas'!K31+'2021 Sector View Gas'!K31 -> 4000 | L31: ='2020 Sector View Gas'!L31+'2021 Sector View Gas'!L31 -> 10000 | M31: ='2020 Sector View Gas'!M31+'2021 Sector View Gas'!M31 -> 20000 | N31: ='2020 Sector View Gas'!N31+'2021 Sector View Gas'!N31 -> 4000 | O31: ='2020 Sector View Gas'!O31+'2021 Sector View Gas'!O31 -> 10000 | P31: ='2020 Sector View Gas'!P31+'2021 Sector View Gas'!P31 -> 326686.5672 | Q31: ='2020 Sector View Gas'!Q31+'2021 Sector View Gas'!Q31 -> 0 | R31: ='2020 Sector View Gas'!R31+'2021 Sector View Gas'!R31 -> 1127632.789 | S31: ='2020 Sector View Gas'!S31+'2021 Sector View Gas'!S31 -> 1140000
B32: RCM Detail_BEM 253 Gas | C32: G253 | E32: SEM | H32: 18230691 | I32: ='2020 Sector View Gas'!I32+'2021 Sector View Gas'!I32 -> 372000 | J32: ='2020 Sector View Gas'!J32+'2021 Sector View Gas'!J32 -> 324756 | K32: ='2020 Sector View Gas'!K32+'2021 Sector View Gas'!K32 -> 4000 | L32: ='2020 Sector View Gas'!L32+'2021 Sector View Gas'!L32 -> 10000 | M32: ='2020 Sector View Gas'!M32+'2021 Sector View Gas'!M32 -> 10000 | N32: ='2020 Sector View Gas'!N32+'2021 Sector View Gas'!N32 -> 4000 | O32: ='2020 Sector View Gas'!O32+'2021 Sector View Gas'!O32 -> 10000 | P32: ='2020 Sector View Gas'!P32+'2021 Sector View Gas'!P32 -> 326686.5672 | Q32: ='2020 Sector View Gas'!Q32+'2021 Sector View Gas'!Q32 -> 0 | R32: ='2020 Sector View Gas'!R32+'2021 Sector View Gas'!R32 -> 1061442.567 | S32: ='2020 Sector View Gas'!S32+'2021 Sector View Gas'!S32 -> 1140000
B33: ResAcctSW Detail_PSWE_Gas | E33: Resource Accounting Software | H33: 18231033 | I33: ='2020 Sector View Gas'!I33+'2021 Sector View Gas'!I33 -> 30000 | J33: ='2020 Sector View Gas'!J33+'2021 Sector View Gas'!J33 -> 26190.222 | K33: ='2020 Sector View Gas'!K33+'2021 Sector View Gas'!K33 -> 0 | L33: ='2020 Sector View Gas'!L33+'2021 Sector View Gas'!L33 -> 0 | M33: ='2020 Sector View Gas'!M33+'2021 Sector View Gas'!M33 -> 10000 | N33: ='2020 Sector View Gas'!N33+'2021 Sector View Gas'!N33 -> 0 | O33: ='2020 Sector View Gas'!O33+'2021 Sector View Gas'!O33 -> 0 | P33: ='2020 Sector View Gas'!P33+'2021 Sector View Gas'!P33 -> 0 | Q33: ='2020 Sector View Gas'!Q33+'2021 Sector View Gas'!Q33 -> 0 | R33: ='2020 Sector View Gas'!R33+'2021 Sector View Gas'!R33 -> 66190.222 | S33: ='2020 Sector View Gas'!S33+'2021 Sector View Gas'!S33 -> 0
B34: TechEval Detail_BEM G261 Gas | C34: G261 | E34: Technology Evaluation | H34: 18230694 | I34: ='2020 Sector View Gas'!I34+'2021 Sector View Gas'!I34 -> 0 | J34: ='2020 Sector View Gas'!J34+'2021 Sector View Gas'!J34 -> 0 | K34: ='2020 Sector View Gas'!K34+'2021 Sector View Gas'!K34 -> 0 | L34: ='2020 Sector View Gas'!L34+'2021 Sector View Gas'!L34 -> 0 | M34: ='2020 Sector View Gas'!M34+'2021 Sector View Gas'!M34 -> 0 | N34: ='2020 Sector View Gas'!N34+'2021 Sector View Gas'!N34 -> 0 | O34: ='2020 Sector View Gas'!O34+'2021 Sector View Gas'!O34 -> 0 | P34: ='2020 Sector View Gas'!P34+'2021 Sector View Gas'!P34 -> 0 | Q34: ='2020 Sector View Gas'!Q34+'2021 Sector View Gas'!Q34 -> 0 | R34: ='2020 Sector View Gas'!R34+'2021 Sector View Gas'!R34 -> 0 | S34: ='2020 Sector View Gas'!S34+'2021 Sector View Gas'!S34 -> 0
B35: Rebates Detail_BEM G262 Gas | C35: G262 | E35: Business Rebates | I35: ='2020 Sector View Gas'!I35+'2021 Sector View Gas'!I35 -> 280828 | J35: ='2020 Sector View Gas'!J35+'2021 Sector View Gas'!J35 -> 245162.844 | K35: ='2020 Sector View Gas'!K35+'2021 Sector View Gas'!K35 -> 56000 | L35: ='2020 Sector View Gas'!L35+'2021 Sector View Gas'!L35 -> 8000 | M35: ='2020 Sector View Gas'!M35+'2021 Sector View Gas'!M35 -> 1490000 | N35: ='2020 Sector View Gas'!N35+'2021 Sector View Gas'!N35 -> 3000 | O35: ='2020 Sector View Gas'!O35+'2021 Sector View Gas'!O35 -> 2000 | P35: ='2020 Sector View Gas'!P35+'2021 Sector View Gas'!P35 -> 2716400 | Q35: ='2020 Sector View Gas'!Q35+'2021 Sector View Gas'!Q35 -> 0 | R35: ='2020 Sector View Gas'!R35+'2021 Sector View Gas'!R35 -> 4801390.844 | S35: ='2020 Sector View Gas'!S35+'2021 Sector View Gas'!S35 -> 1284086
B36: Comm Kit-Laund_G262 Gas | C36: G262 | E36: Commercial Kitchen & Laundry | H36: 18231027 | I36: ='2020 Sector View Gas'!I36+'2021 Sector View Gas'!I36 -> 168328 | J36: ='2020 Sector View Gas'!J36+'2021 Sector View Gas'!J36 -> 146950.344 | K36: ='2020 Sector View Gas'!K36+'2021 Sector View Gas'!K36 -> 36000 | L36: ='2020 Sector View Gas'!L36+'2021 Sector View Gas'!L36 -> 6000 | M36: ='2020 Sector View Gas'!M36+'2021 Sector View Gas'!M36 -> 740000 | N36: ='2020 Sector View Gas'!N36+'2021 Sector View Gas'!N36 -> 1000 | O36: ='2020 Sector View Gas'!O36+'2021 Sector View Gas'!O36 -> 0 | P36: ='2020 Sector View Gas'!P36+'2021 Sector View Gas'!P36 -> 642000 | Q36: ='2020 Sector View Gas'!Q36+'2021 Sector View Gas'!Q36 -> 0 | R36: ='2020 Sector View Gas'!R36+'2021 Sector View Gas'!R36 -> 1740278.344 | S36: ='2020 Sector View Gas'!S36+'2021 Sector View Gas'!S36 -> 501200
B37: Comm HVAC_G262 Gas | C37: G262 | E37: Commercial HVAC | H37: 18231029 | I37: ='2020 Sector View Gas'!I37+'2021 Sector View Gas'!I37 -> 0 | J37: ='2020 Sector View Gas'!J37+'2021 Sector View Gas'!J37 -> 0 | K37: ='2020 Sector View Gas'!K37+'2021 Sector View Gas'!K37 -> 0 | L37: ='2020 Sector View Gas'!L37+'2021 Sector View Gas'!L37 -> 0 | M37: ='2020 Sector View Gas'!M37+'2021 Sector View Gas'!M37 -> 0 | N37: ='2020 Sector View Gas'!N37+'2021 Sector View Gas'!N37 -> 0 | O37: ='2020 Sector View Gas'!O37+'2021 Sector View Gas'!O37 -> 0 | P37: ='2020 Sector View Gas'!P37+'2021 Sector View Gas'!P37 -> 24000 | Q37: ='2020 Sector View Gas'!Q37+'2021 Sector View Gas'!Q37 -> 0 | R37: ='2020 Sector View Gas'!R37+'2021 Sector View Gas'!R37 -> 24000 | S37: ='2020 Sector View Gas'!S37+'2021 Sector View Gas'!S37 -> 20886
C38: E262 | E38: Commercial Midstream | H38: 1823nnnn | I38: ='2020 Sector View Gas'!I38+'2021 Sector View Gas'!I38 -> 112500 | J38: ='2020 Sector View Gas'!J38+'2021 Sector View Gas'!J38 -> 98212.5 | K38: ='2020 Sector View Gas'!K38+'2021 Sector View Gas'!K38 -> 20000 | L38: ='2020 Sector View Gas'!L38+'2021 Sector View Gas'!L38 -> 2000 | M38: ='2020 Sector View Gas'!M38+'2021 Sector View Gas'!M38 -> 750000 | N38: ='2020 Sector View Gas'!N38+'2021 Sector View Gas'!N38 -> 2000 | O38: ='2020 Sector View Gas'!O38+'2021 Sector View Gas'!O38 -> 2000 | P38: ='2020 Sector View Gas'!P38+'2021 Sector View Gas'!P38 -> 2000000 | Q38: ='2020 Sector View Gas'!Q38+'2021 Sector View Gas'!Q38 -> 0 | R38: ='2020 Sector View Gas'!R38+'2021 Sector View Gas'!R38 -> 2986712.5 | S38: ='2020 Sector View Gas'!S38+'2021 Sector View Gas'!S38 -> 750000
B39: Sm Bus DI_G262 Gas | C39: G262 | E39: Small Business Direct Install | H39: 18231022 | I39: ='2020 Sector View Gas'!I39+'2021 Sector View Gas'!I39 -> 0 | J39: ='2020 Sector View Gas'!J39+'2021 Sector View Gas'!J39 -> 0 | K39: ='2020 Sector View Gas'!K39+'2021 Sector View Gas'!K39 -> 0 | L39: ='2020 Sector View Gas'!L39+'2021 Sector View Gas'!L39 -> 0 | M39: ='2020 Sector View Gas'!M39+'2021 Sector View Gas'!M39 -> 0 | N39: ='2020 Sector View Gas'!N39+'2021 Sector View Gas'!N39 -> 0 | O39: ='2020 Sector View Gas'!O39+'2021 Sector View Gas'!O39 -> 0 | P39: ='2020 Sector View Gas'!P39+'2021 Sector View Gas'!P39 -> 50400 | Q39: ='2020 Sector View Gas'!Q39+'2021 Sector View Gas'!Q39 -> 0 | R39: ='2020 Sector View Gas'!R39+'2021 Sector View Gas'!R39 -> 50400 | S39: ='2020 Sector View Gas'!S39+'2021 Sector View Gas'!S39 -> 12000
B40: New BusRebt Prgm_G262_Gas | C40: G262 | E40: Commercial General Rebates | H40: 1823xxxx | I40: ='2020 Sector View Gas'!I40+'2021 Sector View Gas'!I40 -> 0 | J40: ='2020 Sector View Gas'!J40+'2021 Sector View Gas'!J40 -> 0 | K40: ='2020 Sector View Gas'!K40+'2021 Sector View Gas'!K40 -> 0 | L40: ='2020 Sector View Gas'!L40+'2021 Sector View Gas'!L40 -> 0 | M40: ='2020 Sector View Gas'!M40+'2021 Sector View Gas'!M40 -> 0 | N40: ='2020 Sector View Gas'!N40+'2021 Sector View Gas'!N40 -> 0 | O40: ='2020 Sector View Gas'!O40+'2021 Sector View Gas'!O40 -> 0 | P40: ='2020 Sector View Gas'!P40+'2021 Sector View Gas'!P40 -> 0 | Q40: ='2020 Sector View Gas'!Q40+'2021 Sector View Gas'!Q40 -> 0 | R40: ='2020 Sector View Gas'!R40+'2021 Sector View Gas'!R40 -> 0 | S40: ='2020 Sector View Gas'!S40+'2021 Sector View Gas'!S40 -> 0
G41: Total, Business Energy Management | I41: =SUM(I28:I31)+I34+I35 -> 1176578 | J41: 1029939.066 | K41: 90400 | L41: 46600 | M41: 1604860 | N41: 11000 | O41: 12000 | P41: 6134336.567 | Q41: 0 | R41: 10105713.63 | S41: 3294086
P42: =P41/R41 -> 0.607016663
H43: 2018-2019 Figures | I43: 1051400 | J43: 971280 | K43: 89400 | L43: 50600 | M43: 631970 | N43: 10000 | O43: 10000 | P43: 4856396 | Q43: 0 | R43: 7671046 | S43: 2951568
C45: Pilots With Uncertain Savings
B46: REM Pilots Detail G249 Gas | C46: G249 | E46: Residential Pilots | H46: 18230622 | I46: ='2020 Sector View Gas'!I46+'2021 Sector View Gas'!I46 -> 0 | J46: ='2020 Sector View Gas'!J46+'2021 Sector View Gas'!J46 -> 0 | K46: ='2020 Sector View Gas'!K46+'2021 Sector View Gas'!K46 -> 0 | L46: ='2020 Sector View Gas'!L46+'2021 Sector View Gas'!L46 -> 0 | M46: ='2020 Sector View Gas'!M46+'2021 Sector View Gas'!M46 -> 48000 | N46: ='2020 Sector View Gas'!N46+'2021 Sector View Gas'!N46 -> 0 | O46: ='2020 Sector View Gas'!O46+'2021 Sector View Gas'!O46 -> 0 | P46: ='2020 Sector View Gas'!P46+'2021 Sector View Gas'!P46 -> 128700 | Q46: ='2020 Sector View Gas'!Q46+'2021 Sector View Gas'!Q46 -> 0 | R46: ='2020 Sector View Gas'!R46+'2021 Sector View Gas'!R46 -> 176700 | S46: ='2020 Sector View Gas'!S46+'2021 Sector View Gas'!S46 -> 300000
B47: BEM Pilots Detail G249 Gas | C47: G249 | E47: Commercial Pilots | H47: 1823pppp | I47: ='2020 Sector View Gas'!I47+'2021 Sector View Gas'!I47 -> 0 | J47: ='2020 Sector View Gas'!J47+'2021 Sector View Gas'!J47 -> 0 | K47: ='2020 Sector View Gas'!K47+'2021 Sector View Gas'!K47 -> 0 | L47: ='2020 Sector View Gas'!L47+'2021 Sector View Gas'!L47 -> 0 | M47: ='2020 Sector View Gas'!M47+'2021 Sector View Gas'!M47 -> 0 | N47: ='2020 Sector View Gas'!N47+'2021 Sector View Gas'!N47 -> 0 | O47: ='2020 Sector View Gas'!O47+'2021 Sector View Gas'!O47 -> 0 | P47: ='2020 Sector View Gas'!P47+'2021 Sector View Gas'!P47 -> 25125 | Q47: ='2020 Sector View Gas'!Q47+'2021 Sector View Gas'!Q47 -> 0 | R47: ='2020 Sector View Gas'!R47+'2021 Sector View Gas'!R47 -> 25125 | S47: ='2020 Sector View Gas'!S47+'2021 Sector View Gas'!S47 -> 20000
G48: Total, Pilots | I48: =SUM(I46:I47) -> 0 | J48: =SUM(J46:J47) -> 0 | K48: 0 | L48: 0 | M48: 48000 | N48: 0 | O48: 0 | P48: 153825 | Q48: 0 | R48: 201825 | S48: =SUM(S46:S47) -> 320000
P49: =P48/R48 -> 0.762170197
H50: 2018-2019 Figures | I50: 0 | J50: 0 | K50: 0 | L50: 0 | M50: 0 | N50: 0 | O50: 0 | P50: 61613 | Q50: 0 | R50: 61613 | S50: 40000
C52: Regional Efficiency Programs
B53: TDSM_Regnl_Gas_g219 | E53: Targeted DSM | H53: 1823yyyy | I53: ='2020 Sector View Gas'!I53+'2021 Sector View Gas'!I53 -> 172020 | J53: ='2020 Sector View Gas'!J53+'2021 Sector View Gas'!J53 -> 150173.46 | K53: ='2020 Sector View Gas'!K53+'2021 Sector View Gas'!K53 -> 0 | L53: ='2020 Sector View Gas'!L53+'2021 Sector View Gas'!L53 -> 0 | M53: ='2020 Sector View Gas'!M53+'2021 Sector View Gas'!M53 -> 75000 | N53: ='2020 Sector View Gas'!N53+'2021 Sector View Gas'!N53 -> 0 | O53: ='2020 Sector View Gas'!O53+'2021 Sector View Gas'!O53 -> 0 | P53: ='2020 Sector View Gas'!P53+'2021 Sector View Gas'!P53 -> 0 | Q53: ='2020 Sector View Gas'!Q53+'2021 Sector View Gas'!Q53 -> 0 | R53: ='2020 Sector View Gas'!R53+'2021 Sector View Gas'!R53 -> 397193.46 | S53: ='2020 Sector View Gas'!S53+'2021 Sector View Gas'!S53 -> 0
E54: NW Gas Market Transformation | H54: 18230660 | I54: ='2020 Sector View Gas'!I54+'2021 Sector View Gas'!I54 -> 0 | J54: ='2020 Sector View Gas'!J54+'2021 Sector View Gas'!J54 -> 0 | K54: ='2020 Sector View Gas'!K54+'2021 Sector View Gas'!K54 -> 0 | L54: ='2020 Sector View Gas'!L54+'2021 Sector View Gas'!L54 -> 0 | M54: ='2020 Sector View Gas'!M54+'2021 Sector View Gas'!M54 -> 3466888 | N54: ='2020 Sector View Gas'!N54+'2021 Sector View Gas'!N54 -> 0 | O54: ='2020 Sector View Gas'!O54+'2021 Sector View Gas'!O54 -> 0 | P54: ='2020 Sector View Gas'!P54+'2021 Sector View Gas'!P54 -> 0 | Q54: ='2020 Sector View Gas'!Q54+'2021 Sector View Gas'!Q54 -> 0 | R54: ='2020 Sector View Gas'!R54+'2021 Sector View Gas'!R54 -> 3466888 | S54: ='2020 Sector View Gas'!S54+'2021 Sector View Gas'!S54 -> 0
G55: Total, Regional Efficiency Programs | I55: =SUM(I53:I54) -> 172020 | J55: 150173.46 | K55: 0 | L55: 0 | M55: 3541888 | N55: 0 | O55: 0 | P55: 0 | Q55: 0 | R55: =SUM(R53:R54) -> 3864081.46 | S55: =SUM(S54:S54) -> 0
P56: =P55/R55 -> 0 | U56: DBtC of Savings Programs:
H57: 2018-2019 Figures | I57: 0 | J57: 0 | K57: 0 | L57: 0 | M57: 4440380 | N57: 0 | O57: 0 | P57: 0 | Q57: 0 | R57: 4440380 | S57: 0 | U57: =(P22+P41+P48+P55)/(R22+R41+R48+R55) -> 0.6156072386
C59: Energy Efficiency Portfolio Support | U59: (Without NEEA Gas MT):
B60: Data & Systm Svcs Detail Gas | E60: Data and Systems Services | H60: 18231005 | I60: ='2020 Sector View Gas'!I60+'2021 Sector View Gas'!I60 -> 122460 | J60: ='2020 Sector View Gas'!J60+'2021 Sector View Gas'!J60 -> 106907.58 | K60: ='2020 Sector View Gas'!K60+'2021 Sector View Gas'!K60 -> 0 | L60: ='2020 Sector View Gas'!L60+'2021 Sector View Gas'!L60 -> 3120 | M60: ='2020 Sector View Gas'!M60+'2021 Sector View Gas'!M60 -> 84500 | N60: ='2020 Sector View Gas'!N60+'2021 Sector View Gas'!N60 -> 0 | O60: ='2020 Sector View Gas'!O60+'2021 Sector View Gas'!O60 -> 0 | P60: ='2020 Sector View Gas'!P60+'2021 Sector View Gas'!P60 -> 0 | Q60: ='2020 Sector View Gas'!Q60+'2021 Sector View Gas'!Q60 -> 0 | R60: ='2020 Sector View Gas'!R60+'2021 Sector View Gas'!R60 -> 316987.58 | U60: =(P22+P41+P48)/(R22+R41+R48) -> 0.6976947091
B61: Rebt Procg_Detail Gas | E61: Rebates Processing | H61: 18230507 | I61: ='2020 Sector View Gas'!I61+'2021 Sector View Gas'!I61 -> 92860 | J61: ='2020 Sector View Gas'!J61+'2021 Sector View Gas'!J61 -> 81066.78 | K61: ='2020 Sector View Gas'!K61+'2021 Sector View Gas'!K61 -> 0 | L61: ='2020 Sector View Gas'!L61+'2021 Sector View Gas'!L61 -> 6600 | M61: ='2020 Sector View Gas'!M61+'2021 Sector View Gas'!M61 -> 20800 | N61: ='2020 Sector View Gas'!N61+'2021 Sector View Gas'!N61 -> 1500 | O61: ='2020 Sector View Gas'!O61+'2021 Sector View Gas'!O61 -> 0 | P61: ='2020 Sector View Gas'!P61+'2021 Sector View Gas'!P61 -> 0 | Q61: ='2020 Sector View Gas'!Q61+'2021 Sector View Gas'!Q61 -> 0 | R61: ='2020 Sector View Gas'!R61+'2021 Sector View Gas'!R61 -> 202826.78
B62: Vteam Detail_R&C_Gas | E62: Verification Team | H62: 18230668 | I62: ='2020 Sector View Gas'!I62+'2021 Sector View Gas'!I62 -> 89140 | J62: ='2020 Sector View Gas'!J62+'2021 Sector View Gas'!J62 -> 77819.22 | K62: ='2020 Sector View Gas'!K62+'2021 Sector View Gas'!K62 -> 0 | L62: ='2020 Sector View Gas'!L62+'2021 Sector View Gas'!L62 -> 3700 | M62: ='2020 Sector View Gas'!M62+'2021 Sector View Gas'!M62 -> 0 | N62: ='2020 Sector View Gas'!N62+'2021 Sector View Gas'!N62 -> 1800 | O62: ='2020 Sector View Gas'!O62+'2021 Sector View Gas'!O62 -> 0 | P62: ='2020 Sector View Gas'!P62+'2021 Sector View Gas'!P62 -> 0 | Q62: ='2020 Sector View Gas'!Q62+'2021 Sector View Gas'!Q62 -> 0 | R62: ='2020 Sector View Gas'!R62+'2021 Sector View Gas'!R62 -> 172459.22
B63: ProgDev Detail_R&C_ Elec | E63: Programs Support | H63: 18230688 | I63: ='2020 Sector View Gas'!I63+'2021 Sector View Gas'!I63 -> 63960 | J63: ='2020 Sector View Gas'!J63+'2021 Sector View Gas'!J63 -> 55837.08 | K63: ='2020 Sector View Gas'!K63+'2021 Sector View Gas'!K63 -> 0 | L63: ='2020 Sector View Gas'!L63+'2021 Sector View Gas'!L63 -> 4000 | M63: ='2020 Sector View Gas'!M63+'2021 Sector View Gas'!M63 -> 0 | N63: ='2020 Sector View Gas'!N63+'2021 Sector View Gas'!N63 -> 0 | O63: ='2020 Sector View Gas'!O63+'2021 Sector View Gas'!O63 -> 0 | P63: ='2020 Sector View Gas'!P63+'2021 Sector View Gas'!P63 -> 0 | Q63: ='2020 Sector View Gas'!Q63+'2021 Sector View Gas'!Q63 -> 0 | R63: ='2020 Sector View Gas'!R63+'2021 Sector View Gas'!R63 -> 123797.08
B64: TradeAlly Detail_PS_gas | E64: Trade Ally Memberships | H64: 18230698 | I64: ='2020 Sector View Gas'!I64+'2021 Sector View Gas'!I64 -> 0 | J64: ='2020 Sector View Gas'!J64+'2021 Sector View Gas'!J64 -> 0 | K64: ='2020 Sector View Gas'!K64+'2021 Sector View Gas'!K64 -> 0 | L64: ='2020 Sector View Gas'!L64+'2021 Sector View Gas'!L64 -> 0 | M64: ='2020 Sector View Gas'!M64+'2021 Sector View Gas'!M64 -> 0 | N64: ='2020 Sector View Gas'!N64+'2021 Sector View Gas'!N64 -> 44000 | O64: ='2020 Sector View Gas'!O64+'2021 Sector View Gas'!O64 -> 0 | P64: ='2020 Sector View Gas'!P64+'2021 Sector View Gas'!P64 -> 0 | Q64: ='2020 Sector View Gas'!Q64+'2021 Sector View Gas'!Q64 -> 0 | R64: ='2020 Sector View Gas'!R64+'2021 Sector View Gas'!R64 -> 44000
B65: CAN_PS_Detail Gas | E65: Trade Ally Network (revenue + cost) | H65: 18231031 | I65: ='2020 Sector View Gas'!I65+'2021 Sector View Gas'!I65 -> 151000 | J65: ='2020 Sector View Gas'!J65+'2021 Sector View Gas'!J65 -> 131823 | K65: ='2020 Sector View Gas'!K65+'2021 Sector View Gas'!K65 -> 40000 | L65: ='2020 Sector View Gas'!L65+'2021 Sector View Gas'!L65 -> 10000 | M65: ='2020 Sector View Gas'!M65+'2021 Sector View Gas'!M65 -> 76200 | N65: ='2020 Sector View Gas'!N65+'2021 Sector View Gas'!N65 -> 3000 | O65: ='2020 Sector View Gas'!O65+'2021 Sector View Gas'!O65 -> 0 | P65: ='2020 Sector View Gas'!P65+'2021 Sector View Gas'!P65 -> 0 | Q65: ='2020 Sector View Gas'!Q65+'2021 Sector View Gas'!Q65 -> -415000 | R65: ='2020 Sector View Gas'!R65+'2021 Sector View Gas'!R65 -> -2977
B66: ABS Detail_PSWE_Gas | E66: Automated Benchmarking System | H66: 18230667 | I66: ='2020 Sector View Gas'!I66+'2021 Sector View Gas'!I66 -> 80000 | J66: ='2020 Sector View Gas'!J66+'2021 Sector View Gas'!J66 -> 69840 | K66: ='2020 Sector View Gas'!K66+'2021 Sector View Gas'!K66 -> 0 | L66: ='2020 Sector View Gas'!L66+'2021 Sector View Gas'!L66 -> 0 | M66: ='2020 Sector View Gas'!M66+'2021 Sector View Gas'!M66 -> 133500 | N66: ='2020 Sector View Gas'!N66+'2021 Sector View Gas'!N66 -> 0 | O66: ='2020 Sector View Gas'!O66+'2021 Sector View Gas'!O66 -> 0 | P66: ='2020 Sector View Gas'!P66+'2021 Sector View Gas'!P66 -> 0 | Q66: ='2020 Sector View Gas'!Q66+'2021 Sector View Gas'!Q66 -> 0 | R66: ='2020 Sector View Gas'!R66+'2021 Sector View Gas'!R66 -> 283340
